Workbook

Sheet Sample Report (hidden)
A2: Date
A3: Hen
A4: Program
A5: Start at 999999
A6: Sequence component 1 | B6: Time 1 | C6: Seqeunce Component 2 | D6: Time 2 | E6: Seqeunce Component 3 | F6: Time 3 | G6: Correct 0 = No 1=Yes | J6: Seqeunce | K6: Time
A7: 12 | B7: 7 | C7: 12 | D7: 42 | E7: 13 | F7: 18 | G7: if 77 new line, if 31 or 41 = yes new line on 77, | J7: =string of Seqeunce compponent 1, 2 & 3 | K7: =time 3
A8: This continues until ther is a 1 on its own to indicate start of summary data
J9: 10-19 =1
A10: Summary Data | J10: 20-29 =2
A11: Correct | B11: Incorrect | C11: Rft | D11: total | E11: Av Correct | F11: Av Incorrect | G11: Percent correct | H11: Time | J11: in this example the seqeunce would be 111
A12: 40 | B12: 33 | C12: 40 | D12: 73 | E12: 23.95 | F12: 15 | G12: 54 | H12: 806

Sheet Summary
A2: Day | B2: Date | C2: Average Response Rate | D2: Target % | E2: RF for non correct sequence | F2: U Value | K2: Block 1 | L2: Block 2 | M2: Block 3 | N2: Block 4 | O2: Block 5 | P2: Block 6
A3: 1 | B3: ='!M621A5D.ust'!B2:C2 -> <date> | C3: =('!M621A5D.ust'!F46/60)/'!M621A5D.ust'!Q3 -> 2.814166667 | D3: ='!M621A5D.ust'!N20/'!M621A5D.ust'!Q3 -> 1 | E3: =SUM('!M621A5D.ust'!L20:Q20)/'!M621A5D.ust'!Q3 -> 4.1 | F3: ='!M621A5D.ust'!Q16 -> 0 | J3: Average Response Rate | K3: =AVERAGE(C3:C7) -> 3.298091578 | L3: =AVERAGE(C8:C12) -> 3.290753968 | M3: =AVERAGE(C13:C17) -> 3.098734514 | N3: =AVERAGE(C18:C22) -> 2.684282946 | O3: =AVERAGE(C23:C27) -> 2.56725 | P3: =AVERAGE(C28:C32) -> 2.3325
A4: 2 | B4: ='!M623A0D.ust'!B2:C2 -> <date> | C4: =('!M623A0D.ust'!F48/60)/'!M623A0D.ust'!Q3 -> 3.31031746 | D4: ='!M623A0D.ust'!N20/'!M623A0D.ust'!Q3 -> 0.9523809524 | E4: =SUM('!M623A0D.ust'!L20:Q20)/'!M623A0D.ust'!Q3 -> 3.928571429 | F4: ='!M623A0D.ust'!Q16 -> 0.06005107821 | J4: Target % | K4: =AVERAGE(D3:D7) -> 0.9625382747 | L4: =AVERAGE(D8:D12) -> 0.9714285714 | M4: =AVERAGE(D13:D17) -> 0.9711962834 | N4: =AVERAGE(D18:D22) -> 0.9860465116 | O4: =AVERAGE(D23:D27) -> 0.980952381 | P4: =AVERAGE(D28:D32) -> 1
A5: 3 | B5: ='!M624B3D.ust'!B2:C2 -> <date> | C5: =('!M624B3D.ust'!F47/60)/'!M624B3D.ust'!Q3 -> 3.945121951 | D5: ='!M624B3D.ust'!N20/'!M624B3D.ust'!Q3 -> 0.9756097561 | E5: =SUM('!M624B3D.ust'!L20:Q20)/'!M624B3D.ust'!Q3 -> 4.024390244 | F5: ='!M624B3D.ust'!Q16 -> 0.03087735478 | J5: CCRF | K5: =AVERAGE(E3:E7) -> 3.970015838 | L5: =AVERAGE(E8:E12) -> 3.997142857 | M5: =AVERAGE(E13:E17) -> 4.001184669 | N5: =AVERAGE(E18:E22) -> 4.04744186 | O5: =AVERAGE(E23:E27) -> 4.56 | P5: =AVERAGE(E28:E32) -> 4.1
A6: 4 | B6: ='!M625A5D.ust'!B2:C2 -> <date> | C6: =('!M625A5D.ust'!F47/60)/'!M625A5D.ust'!Q3 -> 3.094715447 | D6: ='!M625A5D.ust'!N20/'!M625A5D.ust'!Q3 -> 0.9756097561 | E6: =SUM('!M625A5D.ust'!L20:Q20)/'!M625A5D.ust'!Q3 -> 4.024390244 | F6: ='!M625A5D.ust'!Q16 -> 0.03087735478 | J6: U Value | K6: =AVERAGE(F3:F7) -> 0.04545714935 | L6: =AVERAGE(F8:F12) -> 0.03603064692 | M6: =AVERAGE(F13:F17) -> 0.03460519202 | N6: =AVERAGE(F18:F22) -> 0.01581649109 | O6: =AVERAGE(F23:F27) -> 0.02225425011 | P6: =AVERAGE(F28:F32) -> 0
A7: 5 | B7: ='!M626A2D.ust'!B2:C2 -> <date> | C7: =('!M626A2D.ust'!F50/60)/'!M626A2D.ust'!Q3 -> 3.326136364 | D7: ='!M626A2D.ust'!N20/'!M626A2D.ust'!Q3 -> 0.9090909091 | E7: =SUM('!M626A2D.ust'!L20:Q20)/'!M626A2D.ust'!Q3 -> 3.772727273 | F7: ='!M626A2D.ust'!Q16 -> 0.105479959
A8: 6 | B8: ='!M627A3D.ust'!B2:C2 -> <date> | C8: =('!M627A3D.ust'!F48/60)/'!M627A3D.ust'!Q3 -> 3.321428571 | D8: ='!M627A3D.ust'!N20/'!M627A3D.ust'!Q3 -> 0.9523809524 | E8: =SUM('!M627A3D.ust'!L20:Q20)/'!M627A3D.ust'!Q3 -> 3.928571429 | F8: ='!M627A3D.ust'!Q16 -> 0.06005107821
A9: 7 | B9: ='!M629A2D.ust'!B2:C2 -> <date> | C9: =('!M629A2D.ust'!F46/60)/'!M629A2D.ust'!Q3 -> 3.374583333 | D9: ='!M629A2D.ust'!N20/'!M629A2D.ust'!Q3 -> 1 | E9: =SUM('!M629A2D.ust'!L20:Q20)/'!M629A2D.ust'!Q3 -> 4.1 | F9: ='!M629A2D.ust'!Q16 -> 0 | G9: =K3 -> 3.298091578 | H9: =L3 -> 3.290753968 | I9: 3.098734514 | J9: 2.684282946 | K9: 2.56725 | L9: 2.3325 | M9: =K4 -> 0.9625382747 | N9: =L4 -> 0.9714285714 | O9: 0.9711962834 | P9: 0.9860465116 | Q9: 0.980952381 | R9: 1 | S9: =K6 -> 0.04545714935 | T9: =L6 -> 0.03603064692 | U9: 0.03460519202 | V9: 0.01581649109 | W9: 0.02225425011 | X9: 0
A10: 8 | B10: ='!M630C3D.ust'!B2:C2 -> <date> | C10: =('!M630C3D.ust'!F48/60)/'!M630C3D.ust'!Q3 -> 3.329761905 | D10: ='!M630C3D.ust'!N20/'!M630C3D.ust'!Q3 -> 0.9523809524 | E10: =SUM('!M630C3D.ust'!L20:Q20)/'!M630C3D.ust'!Q3 -> 3.928571429 | F10: ='!M630C3D.ust'!Q16 -> 0.06005107821
A11: 9 | B11: ='!M701B3D.ust'!B2:C2 -> <date> | C11: =('!M701B3D.ust'!F46/60)/'!M701B3D.ust'!Q3 -> 3.412916667 | D11: ='!M701B3D.ust'!N20/'!M701B3D.ust'!Q3 -> 1 | E11: =SUM('!M701B3D.ust'!L20:Q20)/'!M701B3D.ust'!Q3 -> 4.1 | F11: ='!M701B3D.ust'!Q16 -> 0
A12: 10 | B12: ='!M702A2D.ust'!B2:C2 -> <date> | C12: =('!M702A2D.ust'!F48/60)/'!M702A2D.ust'!Q3 -> 3.015079365 | D12: ='!M702A2D.ust'!N20/'!M702A2D.ust'!Q3 -> 0.9523809524 | E12: =SUM('!M702A2D.ust'!L20:Q20)/'!M702A2D.ust'!Q3 -> 3.928571429 | F12: ='!M702A2D.ust'!Q16 -> 0.06005107821
A13: 11 | B13: ='!M703B0D.ust'!B2:C2 -> <date> | C13: =('!M703B0D.ust'!F47/60)/'!M703B0D.ust'!Q3 -> 3.478455285 | D13: ='!M703B0D.ust'!N20/'!M703B0D.ust'!Q3 -> 0.9756097561 | E13: =SUM('!M703B0D.ust'!L20:Q20)/'!M703B0D.ust'!Q3 -> 4.024390244 | F13: ='!M703B0D.ust'!Q16 -> 0.03087735478
A14: 12 | B14: ='!M704A5D.ust'!B2:C2 -> <date> | C14: =('!M704A5D.ust'!F48/60)/'!M704A5D.ust'!Q3 -> 3.416666667 | D14: ='!M704A5D.ust'!N20/'!M704A5D.ust'!Q3 -> 0.9523809524 | E14: =SUM('!M704A5D.ust'!L20:Q20)/'!M704A5D.ust'!Q3 -> 3.928571429 | F14: ='!M704A5D.ust'!Q16 -> 0.06005107821
A15: 13 | B15: ='!M705A5D.ust'!B2:C2 -> <date> | C15: =('!M705A5D.ust'!F46/60)/'!M705A5D.ust'!Q3 -> 3.160416667 | D15: ='!M705A5D.ust'!N20/'!M705A5D.ust'!Q3 -> 1 | E15: =SUM('!M705A5D.ust'!L20:Q20)/'!M705A5D.ust'!Q3 -> 4.1 | F15: ='!M705A5D.ust'!Q16 -> 0
A16: 14 | B16: ='!M706B2D.ust'!B2:C2 -> <date> | C16: =('!M706B2D.ust'!F47/60)/'!M706B2D.ust'!Q3 -> 2.63495935 | D16: ='!M706B2D.ust'!N20/'!M706B2D.ust'!Q3 -> 0.9756097561 | E16: =SUM('!M706B2D.ust'!L20:Q20)/'!M706B2D.ust'!Q3 -> 4.024390244 | F16: ='!M706B2D.ust'!Q16 -> 0.03087735478
A17: 15 | B17: ='!M707A3D.ust'!B2:C2 -> <date> | C17: =('!M707A3D.ust'!F48/60)/'!M707A3D.ust'!Q3 -> 2.803174603 | D17: ='!M707A3D.ust'!N20/'!M707A3D.ust'!Q3 -> 0.9523809524 | E17: =SUM('!M707A3D.ust'!L20:Q20)/'!M707A3D.ust'!Q3 -> 3.928571429 | F17: ='!M707A3D.ust'!Q16 -> 0.05122017233
A18: 16 | B18: ='!M708A0D.ust'!B2:C2 -> <date> | C18: =('!M708A0D.ust'!F46/60)/'!M708A0D.ust'!Q3 -> 3.385 | D18: ='!M708A0D.ust'!N20/'!M708A0D.ust'!Q3 -> 1 | E18: =SUM('!M708A0D.ust'!L20:Q20)/'!M708A0D.ust'!Q3 -> 4.1 | F18: ='!M708A0D.ust'!Q16 -> 0
A19: 17 | B19: ='!M709A2D.ust'!B2:C2 -> <date> | C19: =('!M709A2D.ust'!F49/60)/'!M709A2D.ust'!Q3 -> 2.492248062 | D19: ='!M709A2D.ust'!N20/'!M709A2D.ust'!Q3 -> 0.9302325581 | E19: =SUM('!M709A2D.ust'!L20:Q20)/'!M709A2D.ust'!Q3 -> 3.837209302 | F19: ='!M709A2D.ust'!Q16 -> 0.07908245547
A20: 18 | B20: ='!M710A4D.ust'!B2:C2 -> <date> | C20: =('!M710A4D.ust'!F46/60)/'!M710A4D.ust'!Q3 -> 2.522083333 | D20: ='!M710A4D.ust'!N20/'!M710A4D.ust'!Q3 -> 1 | E20: =SUM('!M710A4D.ust'!L20:Q20)/'!M710A4D.ust'!Q3 -> 4.1 | F20: ='!M710A4D.ust'!Q16 -> 0
A21: 19 | B21: ='!M711A1D.ust'!B2:C2 -> <date> | C21: =('!M711A1D.ust'!F46/60)/'!M711A1D.ust'!Q3 -> 2.46 | D21: ='!M711A1D.ust'!N20/'!M711A1D.ust'!Q3 -> 1 | E21: =SUM('!M711A1D.ust'!L20:Q20)/'!M711A1D.ust'!Q3 -> 4.1 | F21: ='!M711A1D.ust'!Q16 -> 0
A22: 20 | B22: ='!M712A4D.ust'!B2:C2 -> <date> | C22: =('!M712A4D.ust'!F46/60)/'!M712A4D.ust'!Q3 -> 2.562083333 | D22: ='!M712A4D.ust'!N20/'!M712A4D.ust'!Q3 -> 1 | E22: =SUM('!M712A4D.ust'!L20:Q20)/'!M712A4D.ust'!Q3 -> 4.1 | F22: ='!M712A4D.ust'!Q16 -> 0
A23: 21 | B23: ='!M713B1D.ust'!B2:C2 -> <date> | C23: =('!M713B1D.ust'!F46/60)/'!M713B1D.ust'!Q3 -> 2.562916667 | D23: ='!M713B1D.ust'!N20/'!M713B1D.ust'!Q3 -> 1 | E23: =SUM('!M713B1D.ust'!L20:Q20)/'!M713B1D.ust'!Q3 -> 4.1 | F23: ='!M713B1D.ust'!Q16 -> 0
A24: 22 | B24: ='!M71592D.ust'!B2:C2 -> <date> | C24: =('!M71592D.ust'!F48/60)/'!M71592D.ust'!Q3 -> 2.43015873 | D24: ='!M71592D.ust'!N20/'!M71592D.ust'!Q3 -> 0.9523809524 | E24: =SUM('!M71592D.ust'!L20:Q20)/'!M71592D.ust'!Q3 -> 3.928571429 | F24: ='!M71592D.ust'!Q16 -> 0.05122017233
A25: 23 | B25: ='!M716A1D.ust'!B2:C2 -> <date> | C25: =('!M716A1D.ust'!F46/60)/'!M716A1D.ust'!Q3 -> 2.76375 | D25: ='!M716A1D.ust'!N20/'!M716A1D.ust'!Q3 -> 1 | E25: =SUM('!M716A1D.ust'!L20:Q20)/'!M716A1D.ust'!Q3 -> 4.1 | F25: ='!M716A1D.ust'!Q16 -> 0
A26: 24 | B26: ='!M718A5D.ust'!B2:C2 -> <date> | C26: =('!M718A5D.ust'!F46/60)/'!M718A5D.ust'!Q3 -> 2.67625 | D26: ='!M718A5D.ust'!N20/'!M718A5D.ust'!Q3 -> 1 | E26: =SUM('!M718A5D.ust'!L20:Q20)/'!M718A5D.ust'!Q3 -> 4.1 | F26: ='!M718A5D.ust'!Q16 -> 0
A27: 25 | B27: ='!M719A5D.ust'!B2:C2 -> <date> | C27: =('!M719A5D.ust'!F48/60)/'!M719A5D.ust'!Q3 -> 2.403174603 | D27: ='!M719A5D.ust'!N20/'!M719A5D.ust'!Q3 -> 0.9523809524 | E27: =SUM('!M719A5D.ust'!L20:Q20)/'!M719A5D.ust'!Q3 -> 6.571428571 | F27: ='!M719A5D.ust'!Q16 -> 0.06005107821
A28: 26 | B28: ='!M720A3D.ust'!B2:C2 -> <date> | C28: =('!M720A3D.ust'!F46/60)/'!M720A3D.ust'!Q3 -> 2.055416667 | D28: ='!M720A3D.ust'!N20/'!M720A3D.ust'!Q3 -> 1 | E28: =SUM('!M720A3D.ust'!L20:Q20)/'!M720A3D.ust'!Q3 -> 4.1 | F28: ='!M720A3D.ust'!Q16 -> 0
A29: 27 | B29: ='!M721B5D.ust'!B2:C2 -> <date> | C29: =('!M721B5D.ust'!F46/60)/'!M721B5D.ust'!Q3 -> 2.609583333 | D29: ='!M721B5D.ust'!N20/'!M721B5D.ust'!Q3 -> 1 | E29: =SUM('!M721B5D.ust'!L20:Q20)/'!M721B5D.ust'!Q3 -> 4.1 | F29: ='!M721B5D.ust'!Q16 -> 0
A30: 28
A31: 29
A32: 30

Sheet Start
F1: Use Folder 51 | H1: Auto Clean Up | J1: Correct sequence
F2: FALSE | H2: TRUE | J2: 111
A4: Working with Folder | G4: Process All/Or Pick A number: ALL or an integer
A5: F:\Possum Chapter\Raw Data\Dusti\New Phase LLL Con\ | G5: ALL
A6: Filenames:
A7: !M711A1D.ust | G7: Paint Cells
A8: !M712A4D.ust | G8: FALSE
A9: !M713B1D.ust
A10: !M716A1D.ust
A11: !M718A5D.ust
A12: !M719A5D.ust
A13: !M720A3D.ust
A14: !M721B5D.ust
A15: !M621A5D.ust
A16: !M623A0D.ust
A17: !M624B3D.ust
A18: !M625A5D.ust
A19: !M626A2D.ust
A20: !M627A3D.ust
A21: !M629A2D.ust
A22: !M630C3D.ust
A23: !M701B3D.ust
A24: !M702A2D.ust
A25: !M703B0D.ust
A26: !M704A5D.ust
A27: !M705A5D.ust
A28: !M706B2D.ust
A29: !M707A3D.ust
A30: !M708A0D.ust
A31: !M709A2D.ust
A32: !M710A4D.ust
A33: !M71592D.ust

Sheet !M621A5D.ust
A1: Report for:!M621A5D.ust
A2: Date: | B2: <date>
A3: Hen: | B3: <hen> | F3: Correct Sequence | G3: =Start!J2 -> 111 | P3: Total Sequences in Data | Q3: =4994-COUNTBLANK(L7:L5000) -> 40 | V3: Total Sequences in Block Data | W3: =COUNTA(L7:L13) -> 7 | AA3: Total Sequences in Block Data | AB3: =COUNTA(L14:L19) -> 6 | AF3: Total Sequences in Block Data | AG3: =COUNTA(L20:L26) -> 7 | AK3: Total Sequences in Block Data | AL3: =COUNTA(L27:L33) -> 7 | AP3: Total Sequences in Block Data | AQ3: =COUNTA(L34:L39) -> 6 | AU3: Total Sequences in Block Data | AV3: =COUNTA(L40:L46) -> 7
P4: Total Sequences in Summary | Q4: =SUM(O7:O14) -> 40 | V4: Total Sequences in Block Summary | W4: =SUM(U7:U14) -> 7 | AA4: Total Sequences in Block Summary | AB4: =SUM(Z7:Z14) -> 6 | AF4: Total Sequences in Block Summary | AG4: =SUM(AE7:AE14) -> 7 | AK4: Total Sequences in Block Summary | AL4: =SUM(AJ7:AJ14) -> 7 | AP4: Total Sequences in Block Summary | AQ4: =SUM(AO7:AO14) -> 6 | AU4: Total Sequences in Block Summary | AV4: =SUM(AT7:AT14) -> 7
T5: Block 1 | Y5: Block 2 | AD5: Block 3 | AI5: Block 4 | AN5: Block 5 | AS5: Block 6
A6: Sequence Component 1 | B6: Time 1 | C6: Sequence Component 2 | D6: Time 2 | E6: Sequence Component 3 | F6: Time 3 | G6: Sequence Component 4 | H6: Time 4 | I6: Sequence Component 5 | J6: Time 5 | K6: Correct? 0=No 1=Yes | L6: Sequence | N6: Frequency | P6: Relative Frequency | Q6: Variability | T6: Frequency | V6: Relative Frequency | W6: Variability | Y6: Frequency | AA6: Relative Frequency | AB6: Variability | AD6: Frequency | AF6: Relative Frequency | AG6: Variability | AI6: Frequency | AK6: Relative Frequency | AL6: Variability | AN6: Frequency | AP6: Relative Frequency | AQ6: Variability | AS6: Frequency | AU6: Relative Frequency | AV6: Variability
A7: 11 | B7: 8 | C7: 11 | D7: 14 | E7: 11 | F7: 20 | K7: 0 | L7: 111 | N7: 111 | O7: =COUNTIF($L$7:$L$500,N7) -> 40 | P7: =O7/$Q$4 -> 1 | Q7: =IF(P7=0,0,(P7*((LOG(P7))/LOG(2)))) -> 0 | T7: =N7 -> 111 | U7: =COUNTIF(L7:L13,T7) -> 7 | Y7: =N7 -> 111 | Z7: =COUNTIF(L14:L19,Y7) -> 6 | AD7: =N7 -> 111 | AE7: =COUNTIF(L20:L26,AD7) -> 7 | AI7: =N7 -> 111 | AJ7: =COUNTIF(L27:L33,AI7) -> 7 | AN7: =N7 -> 111 | AO7: =COUNTIF(L34:L39,AN7) -> 6 | AS7: =N7 -> 111 | AT7: =COUNTIF(L40:L46,AS7) -> 7
A8: 11 | B8: 145 | C8: 11 | D8: 150 | E8: 11 | F8: 156 | K8: 0 | L8: 111 | N8: 112 | O8: =COUNTIF($L$7:$L$500,N8) -> 0 | P8: =O8/$Q$4 -> 0 | Q8: =IF(P8=0,0,(P8*((LOG(P8))/LOG(2)))) -> 0 | T8: =N8 -> 112 | U8: =COUNTIF(L7:L13,T8) -> 0 | V8: =U8/(W4-U7) ->  | W8: =IF(V8=0,0,(V8*((LOG(V8))/LOG(2)))) ->  | Y8: =N8 -> 112 | Z8: =COUNTIF(L14:L19,Y8) -> 0 | AA8: =Z8/(AB4-Z7) ->  | AB8: =IF(AA8=0,0,(AA8*((LOG(AA8))/LOG(2)))) ->  | AD8: =N8 -> 112 | AE8: =COUNTIF(L20:L26,AD8) -> 0 | AF8: =AE8/(AG4-AE7) ->  | AG8: =IF(AF8=0,0,(AF8*((LOG(AF8))/LOG(2)))) ->  | AI8: =N8 -> 112 | AJ8: =COUNTIF(L27:L33,AI8) -> 0 | AK8: =AJ8/(AL4-AJ7) ->  | AL8: =IF(AK8=0,0,(AK8*((LOG(AK8))/LOG(2)))) ->  | AN8: =N8 -> 112 | AO8: =COUNTIF(L34:L39,AN8) -> 0 | AP8: =AO8/(AQ4-AO7) ->  | AQ8: =IF(AP8=0,0,(AP8*((LOG(AP8))/LOG(2)))) ->  | AS8: =N8 -> 112 | AT8: =COUNTIF(L40:L46,AS8) -> 0 | AU8: =AT8/(AV4-AT7) ->  | AV8: =IF(AU8=0,0,(AU8*((LOG(AU8))/LOG(2)))) -> 
A9: 11 | B9: 306 | C9: 11 | D9: 312 | E9: 11 | F9: 319 | K9: 0 | L9: 111 | N9: 121 | O9: =COUNTIF($L$7:$L$500,N9) -> 0 | P9: =O9/$Q$4 -> 0 | Q9: =IF(P9=0,0,(P9*((LOG(P9))/LOG(2)))) -> 0 | T9: =N9 -> 121 | U9: =COUNTIF(L7:L13,T9) -> 0 | V9: =U9/(W4-U7) ->  | W9: =IF(V9=0,0,(V9*((LOG(V9))/LOG(2)))) ->  | Y9: =N9 -> 121 | Z9: =COUNTIF(L14:L19,Y9) -> 0 | AA9: =Z9/(AB4-Z7) ->  | AB9: =IF(AA9=0,0,(AA9*((LOG(AA9))/LOG(2)))) ->  | AD9: =N9 -> 121 | AE9: =COUNTIF(L20:L26,AD9) -> 0 | AF9: =AE9/(AG4-AE7) ->  | AG9: =IF(AF9=0,0,(AF9*((LOG(AF9))/LOG(2)))) ->  | AI9: =N9 -> 121 | AJ9: =COUNTIF(L27:L33,AI9) -> 0 | AK9: =AJ9/(AL4-AJ7) ->  | AL9: =IF(AK9=0,0,(AK9*((LOG(AK9))/LOG(2)))) ->  | AN9: =N9 -> 121 | AO9: =COUNTIF(L34:L39,AN9) -> 0 | AP9: =AO9/(AQ4-AO7) ->  | AQ9: =IF(AP9=0,0,(AP9*((LOG(AP9))/LOG(2)))) ->  | AS9: =N9 -> 121 | AT9: =COUNTIF(L40:L46,AS9) -> 0 | AU9: =AT9/(AV4-AT7) ->  | AV9: =IF(AU9=0,0,(AU9*((LOG(AU9))/LOG(2)))) -> 
A10: 11 | B10: 462 | C10: 11 | D10: 468 | E10: 11 | F10: 475 | K10: 0 | L10: 111 | N10: 122 | O10: =COUNTIF($L$7:$L$500,N10) -> 0 | P10: =O10/$Q$4 -> 0 | Q10: =IF(P10=0,0,(P10*((LOG(P10))/LOG(2)))) -> 0 | T10: =N10 -> 122 | U10: =COUNTIF(L7:L13,T10) -> 0 | V10: =U10/(W4-U7) ->  | W10: =IF(V10=0,0,(V10*((LOG(V10))/LOG(2)))) ->  | Y10: =N10 -> 122 | Z10: =COUNTIF(L14:L19,Y10) -> 0 | AA10: =Z10/(AB4-Z7) ->  | AB10: =IF(AA10=0,0,(AA10*((LOG(AA10))/LOG(2)))) ->  | AD10: =N10 -> 122 | AE10: =COUNTIF(L20:L26,AD10) -> 0 | AF10: =AE10/(AG4-AE7) ->  | AG10: =IF(AF10=0,0,(AF10*((LOG(AF10))/LOG(2)))) ->  | AI10: =N10 -> 122 | AJ10: =COUNTIF(L27:L33,AI10) -> 0 | AK10: =AJ10/(AL4-AJ7) ->  | AL10: =IF(AK10=0,0,(AK10*((LOG(AK10))/LOG(2)))) ->  | AN10: =N10 -> 122 | AO10: =COUNTIF(L34:L39,AN10) -> 0 | AP10: =AO10/(AQ4-AO7) ->  | AQ10: =IF(AP10=0,0,(AP10*((LOG(AP10))/LOG(2)))) ->  | AS10: =N10 -> 122 | AT10: =COUNTIF(L40:L46,AS10) -> 0 | AU10: =AT10/(AV4-AT7) ->  | AV10: =IF(AU10=0,0,(AU10*((LOG(AU10))/LOG(2)))) -> 
A11: 11 | B11: 583 | C11: 11 | D11: 588 | E11: 11 | F11: 593 | K11: 0 | L11: 111 | N11: 211 | O11: =COUNTIF($L$7:$L$500,N11) -> 0 | P11: =O11/$Q$4 -> 0 | Q11: =IF(P11=0,0,(P11*((LOG(P11))/LOG(2)))) -> 0 | T11: =N11 -> 211 | U11: =COUNTIF(L7:L13,T11) -> 0 | V11: =U11/(W4-U7) ->  | W11: =IF(V11=0,0,(V11*((LOG(V11))/LOG(2)))) ->  | Y11: =N11 -> 211 | Z11: =COUNTIF(L14:L19,Y11) -> 0 | AA11: =Z11/(AB4-Z7) ->  | AB11: =IF(AA11=0,0,(AA11*((LOG(AA11))/LOG(2)))) ->  | AD11: =N11 -> 211 | AE11: =COUNTIF(L20:L26,AD11) -> 0 | AF11: =AE11/(AG4-AE7) ->  | AG11: =IF(AF11=0,0,(AF11*((LOG(AF11))/LOG(2)))) ->  | AI11: =N11 -> 211 | AJ11: =COUNTIF(L27:L33,AI11) -> 0 | AK11: =AJ11/(AL4-AJ7) ->  | AL11: =IF(AK11=0,0,(AK11*((LOG(AK11))/LOG(2)))) ->  | AN11: =N11 -> 211 | AO11: =COUNTIF(L34:L39,AN11) -> 0 | AP11: =AO11/(AQ4-AO7) ->  | AQ11: =IF(AP11=0,0,(AP11*((LOG(AP11))/LOG(2)))) ->  | AS11: =N11 -> 211 | AT11: =COUNTIF(L40:L46,AS11) -> 0 | AU11: =AT11/(AV4-AT7) ->  | AV11: =IF(AU11=0,0,(AU11*((LOG(AU11))/LOG(2)))) -> 
A12: 11 | B12: 703 | C12: 11 | D12: 708 | E12: 11 | F12: 714 | K12: 0 | L12: 111 | N12: 212 | O12: =COUNTIF($L$7:$L$500,N12) -> 0 | P12: =O12/$Q$4 -> 0 | Q12: =IF(P12=0,0,(P12*((LOG(P12))/LOG(2)))) -> 0 | T12: =N12 -> 212 | U12: =COUNTIF(L7:L13,T12) -> 0 | V12: =U12/(W4-U7) ->  | W12: =IF(V12=0,0,(V12*((LOG(V12))/LOG(2)))) ->  | Y12: =N12 -> 212 | Z12: =COUNTIF(L14:L19,Y12) -> 0 | AA12: =Z12/(AB4-Z7) ->  | AB12: =IF(AA12=0,0,(AA12*((LOG(AA12))/LOG(2)))) ->  | AD12: =N12 -> 212 | AE12: =COUNTIF(L20:L26,AD12) -> 0 | AF12: =AE12/(AG4-AE7) ->  | AG12: =IF(AF12=0,0,(AF12*((LOG(AF12))/LOG(2)))) ->  | AI12: =N12 -> 212 | AJ12: =COUNTIF(L27:L33,AI12) -> 0 | AK12: =AJ12/(AL4-AJ7) ->  | AL12: =IF(AK12=0,0,(AK12*((LOG(AK12))/LOG(2)))) ->  | AN12: =N12 -> 212 | AO12: =COUNTIF(L34:L39,AN12) -> 0 | AP12: =AO12/(AQ4-AO7) ->  | AQ12: =IF(AP12=0,0,(AP12*((LOG(AP12))/LOG(2)))) ->  | AS12: =N12 -> 212 | AT12: =COUNTIF(L40:L46,AS12) -> 0 | AU12: =AT12/(AV4-AT7) ->  | AV12: =IF(AU12=0,0,(AU12*((LOG(AU12))/LOG(2)))) -> 
A13: 11 | B13: 883 | C13: 11 | D13: 889 | E13: 11 | F13: 895 | K13: 0 | L13: 111 | N13: 221 | O13: =COUNTIF($L$7:$L$500,N13) -> 0 | P13: =O13/$Q$4 -> 0 | Q13: =IF(P13=0,0,(P13*((LOG(P13))/LOG(2)))) -> 0 | T13: =N13 -> 221 | U13: =COUNTIF(L7:L13,T13) -> 0 | V13: =U13/(W4-U7) ->  | W13: =IF(V13=0,0,(V13*((LOG(V13))/LOG(2)))) ->  | Y13: =N13 -> 221 | Z13: =COUNTIF(L14:L19,Y13) -> 0 | AA13: =Z13/(AB4-Z7) ->  | AB13: =IF(AA13=0,0,(AA13*((LOG(AA13))/LOG(2)))) ->  | AD13: =N13 -> 221 | AE13: =COUNTIF(L20:L26,AD13) -> 0 | AF13: =AE13/(AG4-AE7) ->  | AG13: =IF(AF13=0,0,(AF13*((LOG(AF13))/LOG(2)))) ->  | AI13: =N13 -> 221 | AJ13: =COUNTIF(L27:L33,AI13) -> 0 | AK13: =AJ13/(AL4-AJ7) ->  | AL13: =IF(AK13=0,0,(AK13*((LOG(AK13))/LOG(2)))) ->  | AN13: =N13 -> 221 | AO13: =COUNTIF(L34:L39,AN13) -> 0 | AP13: =AO13/(AQ4-AO7) ->  | AQ13: =IF(AP13=0,0,(AP13*((LOG(AP13))/LOG(2)))) ->  | AS13: =N13 -> 221 | AT13: =COUNTIF(L40:L46,AS13) -> 0 | AU13: =AT13/(AV4-AT7) ->  | AV13: =IF(AU13=0,0,(AU13*((LOG(AU13))/LOG(2)))) -> 
A14: 11 | B14: 1030 | C14: 11 | D14: 1038 | E14: 11 | F14: 1043 | K14: 0 | L14: 111 | N14: 222 | O14: =COUNTIF($L$7:$L$500,N14) -> 0 | P14: =O14/$Q$4 -> 0 | Q14: =IF(P14=0,0,(P14*((LOG(P14))/LOG(2)))) -> 0 | T14: =N14 -> 222 | U14: =COUNTIF(L7:L13,T14) -> 0 | V14: =U14/(W4-U7) ->  | W14: =IF(V14=0,0,(V14*((LOG(V14))/LOG(2)))) ->  | Y14: =N14 -> 222 | Z14: =COUNTIF(L14:L19,Y14) -> 0 | AA14: =Z14/(AB4-Z7) ->  | AB14: =IF(AA14=0,0,(AA14*((LOG(AA14))/LOG(2)))) ->  | AD14: =N14 -> 222 | AE14: =COUNTIF(L20:L26,AD14) -> 0 | AF14: =AE14/(AG4-AE7) ->  | AG14: =IF(AF14=0,0,(AF14*((LOG(AF14))/LOG(2)))) ->  | AI14: =N14 -> 222 | AJ14: =COUNTIF(L27:L33,AI14) -> 0 | AK14: =AJ14/(AL4-AJ7) ->  | AL14: =IF(AK14=0,0,(AK14*((LOG(AK14))/LOG(2)))) ->  | AN14: =N14 -> 222 | AO14: =COUNTIF(L34:L39,AN14) -> 0 | AP14: =AO14/(AQ4-AO7) ->  | AQ14: =IF(AP14=0,0,(AP14*((LOG(AP14))/LOG(2)))) ->  | AS14: =N14 -> 222 | AT14: =COUNTIF(L40:L46,AS14) -> 0 | AU14: =AT14/(AV4-AT7) ->  | AV14: =IF(AU14=0,0,(AU14*((LOG(AU14))/LOG(2)))) -> 
A15: 11 | B15: 1222 | C15: 11 | D15: 1227 | E15: 11 | F15: 1244 | K15: 0 | L15: 111 | P15: =SUM(P7:P14) -> 1 | Q15: =-SUM(Q7:Q14) -> 0 | V15: =SUM(V7:V14) ->  | W15: =-SUM(W7:W14) ->  | AA15: =SUM(AA7:AA14) ->  | AB15: =-SUM(AB7:AB14) ->  | AF15: =SUM(AF7:AF14) ->  | AG15: =-SUM(AG7:AG14) ->  | AK15: =SUM(AK7:AK14) ->  | AL15: =-SUM(AL7:AL14) ->  | AP15: =SUM(AP7:AP14) ->  | AQ15: =-SUM(AQ7:AQ14) ->  | AU15: =SUM(AU7:AU14) ->  | AV15: =-SUM(AV7:AV14) -> 
A16: 11 | B16: 1371 | C16: 11 | D16: 1376 | E16: 11 | F16: 1381 | K16: 0 | L16: 111 | P16: U= | Q16: =Q15/(LOG(Q4)/LOG(2)) -> 0 | V16: U1= | W16: =W15/(LOG(W4)/LOG(2)) ->  | AA16: U2= | AB16: =AB15/(LOG(AB4)/LOG(2)) ->  | AF16: U3= | AG16: =AG15/(LOG(AG4)/LOG(2)) ->  | AK16: U4= | AL16: =AL15/(LOG(AL4)/LOG(2)) ->  | AP16: U5= | AQ16: =AQ15/(LOG(AQ4)/LOG(2)) ->  | AU16: U6= | AV16: =AV15/(LOG(AV4)/LOG(2)) -> 
A17: 11 | B17: 1539 | C17: 11 | D17: 1546 | E17: 11 | F17: 1555 | K17: 0 | L17: 111
A18: 11 | B18: 1819 | C18: 11 | D18: 1825 | E18: 11 | F18: 1835 | K18: 0 | L18: 111
A19: 11 | B19: 2011 | C19: 11 | D19: 2017 | E19: 11 | F19: 2021 | K19: 0 | L19: 111 | N19: Total Target Seq
A20: 11 | B20: 2202 | C20: 11 | D20: 2211 | E20: 11 | F20: 2246 | K20: 0 | L20: 111 | N20: =COUNTIF(L7:L46,G3) -> 40 | P20: 7 | Q20: 6 | R20: 7 | S20: 7 | T20: 6 | U20: 7
A21: 11 | B21: 2358 | C21: 11 | D21: 2363 | E21: 11 | F21: 2370 | K21: 0 | L21: 111 | P21: % of reinforcement given in 6 equal intervals based on number of trials
A22: 11 | B22: 2601 | C22: 11 | D22: 2606 | E22: 11 | F22: 2612 | K22: 0 | L22: 111 | P22: %_1 | Q22: %_2 | R22: %_3 | S22: %_4 | T22: %_5 | U22: %_6
A23: 11 | B23: 2789 | C23: 11 | D23: 2795 | E23: 11 | F23: 2801 | K23: 0 | L23: 111 | O23: target sequence | P23: =$G$3 -> 111 | Q23: =$G$3 -> 111 | R23: =$G$3 -> 111 | S23: =$G$3 -> 111 | T23: =$G$3 -> 111 | U23: =$G$3 -> 111
A24: 11 | B24: 2922 | C24: 11 | D24: 2927 | E24: 11 | F24: 2932 | K24: 0 | L24: 111 | O24: total reinforcement | P24: =U7 -> 7 | Q24: =Z7 -> 6 | R24: =AE7 -> 7 | S24: =AJ7 -> 7 | T24: =AO7 -> 6 | U24: =AT7 -> 7
A25: 11 | B25: 3095 | C25: 11 | D25: 3102 | E25: 11 | F25: 3116 | K25: 0 | L25: 111 | O25: % target
A26: 11 | B26: 3280 | C26: 11 | D26: 3289 | E26: 11 | F26: 3294 | K26: 0 | L26: 111 | O26: CCRF
A27: 11 | B27: 3491 | C27: 11 | D27: 3496 | E27: 11 | F27: 3503 | K27: 0 | L27: 111 | O27: % CCRf
A28: 11 | B28: 3639 | C28: 11 | D28: 3645 | E28: 11 | F28: 3651 | K28: 0 | L28: 111 | O28: average response rate | P28: =F13/P20 -> 127.8571429 | Q28: =(F19-F13)/Q20 -> 187.6666667 | R28: =(F26-F19)/R20 -> 181.8571429 | S28: =(F33-F26)/S20 -> 163.1428571 | T28: =(F39-F33)/T20 -> 156.5 | U28: =(F46-F39)/U20 -> 197
A29: 11 | B29: 3790 | C29: 11 | D29: 3800 | E29: 11 | F29: 3807 | K29: 0 | L29: 111
A30: 11 | B30: 3957 | C30: 11 | D30: 3963 | E30: 11 | F30: 3969 | K30: 0 | L30: 111
A31: 11 | B31: 4121 | C31: 11 | D31: 4127 | E31: 11 | F31: 4137 | K31: 0 | L31: 111
A32: 11 | B32: 4269 | C32: 11 | D32: 4273 | E32: 11 | F32: 4283 | K32: 0 | L32: 111
A33: 11 | B33: 4425 | C33: 11 | D33: 4430 | E33: 11 | F33: 4436 | K33: 0 | L33: 111
A34: 11 | B34: 4564 | C34: 11 | D34: 4568 | E34: 11 | F34: 4577 | K34: 0 | L34: 111
A35: 11 | B35: 4715 | C35: 11 | D35: 4719 | E35: 11 | F35: 4725 | K35: 0 | L35: 111
A36: 11 | B36: 4854 | C36: 11 | D36: 4858 | E36: 11 | F36: 4865 | K36: 0 | L36: 111
A37: 11 | B37: 4987 | C37: 11 | D37: 5003 | E37: 11 | F37: 5009 | K37: 0 | L37: 111
A38: 11 | B38: 5247 | C38: 11 | D38: 5252 | E38: 11 | F38: 5258 | K38: 0 | L38: 111
A39: 11 | B39: 5365 | C39: 11 | D39: 5369 | E39: 11 | F39: 5375 | K39: 0 | L39: 111
A40: 11 | B40: 5510 | C40: 11 | D40: 5515 | E40: 11 | F40: 5521 | K40: 0 | L40: 111
A41: 11 | B41: 5754 | C41: 11 | D41: 5760 | E41: 11 | F41: 5765 | K41: 0 | L41: 111
A42: 11 | B42: 5981 | C42: 11 | D42: 5987 | E42: 11 | F42: 5994 | K42: 0 | L42: 111
A43: 11 | B43: 6172 | C43: 11 | D43: 6176 | E43: 11 | F43: 6181 | K43: 0 | L43: 111
A44: 11 | B44: 6309 | C44: 11 | D44: 6317 | E44: 11 | F44: 6326 | K44: 0 | L44: 111
A45: 11 | B45: 6467 | C45: 11 | D45: 6472 | E45: 11 | F45: 6478 | K45: 0 | L45: 111
A46: 11 | B46: 6742 | C46: 11 | D46: 6747 | E46: 11 | F46: 6754 | K46: 1 | L46: 111

Sheet !M623A0D.ust
A1: Report for:!M623A0D.ust
A2: Date: | B2: <date>
A3: Hen: | B3: <hen> | F3: Correct Sequence | G3: =Start!J2 -> 111 | P3: Total Sequences in Data | Q3: =4994-COUNTBLANK(L7:L5000) -> 42 | V3: Total Sequences in Block Data | W3: =COUNTA(L7:L13) -> 7 | AA3: Total Sequences in Block Data | AB3: =COUNTA(L14:L20) -> 7 | AF3: Total Sequences in Block Data | AG3: =COUNTA(L21:L27) -> 7 | AK3: Total Sequences in Block Data | AL3: =COUNTA(L28:L34) -> 7 | AP3: Total Sequences in Block Data | AQ3: =COUNTA(L35:L41) -> 7 | AU3: Total Sequences in Block Data | AV3: =COUNTA(L42:L48) -> 7
P4: Total Sequences in Summary | Q4: =SUM(O7:O14) -> 42 | V4: Total Sequences in Block Summary | W4: =SUM(U7:U14) -> 7 | AA4: Total Sequences in Block Summary | AB4: =SUM(Z7:Z14) -> 7 | AF4: Total Sequences in Block Summary | AG4: =SUM(AE7:AE14) -> 7 | AK4: Total Sequences in Block Summary | AL4: =SUM(AJ7:AJ14) -> 7 | AP4: Total Sequences in Block Summary | AQ4: =SUM(AO7:AO14) -> 7 | AU4: Total Sequences in Block Summary | AV4: =SUM(AT7:AT14) -> 7
T5: Block 1 | Y5: Block 2 | AD5: Block 3 | AI5: Block 4 | AN5: Block 5 | AS5: Block 6
A6: Sequence Component 1 | B6: Time 1 | C6: Sequence Component 2 | D6: Time 2 | E6: Sequence Component 3 | F6: Time 3 | G6: Sequence Component 4 | H6: Time 4 | I6: Sequence Component 5 | J6: Time 5 | K6: Correct? 0=No 1=Yes | L6: Sequence | N6: Frequency | P6: Relative Frequency | Q6: Variability | T6: Frequency | V6: Relative Frequency | W6: Variability | Y6: Frequency | AA6: Relative Frequency | AB6: Variability | AD6: Frequency | AF6: Relative Frequency | AG6: Variability | AI6: Frequency | AK6: Relative Frequency | AL6: Variability | AN6: Frequency | AP6: Relative Frequency | AQ6: Variability | AS6: Frequency | AU6: Relative Frequency | AV6: Variability
A7: 11 | B7: 7 | C7: 22 | D7: 14 | E7: 24 | F7: 21 | K7: 0 | L7: 122 | N7: 111 | O7: =COUNTIF($L$7:$L$500,N7) -> 40 | P7: =O7/$Q$4 -> 0.9523809524 | Q7: =IF(P7=0,0,(P7*((LOG(P7))/LOG(2)))) -> -0.06703745513 | T7: =N7 -> 111 | U7: =COUNTIF(L7:L13,T7) -> 6 | Y7: =N7 -> 111 | Z7: =COUNTIF(L14:L20,Y7) -> 7 | AD7: =N7 -> 111 | AE7: =COUNTIF(L21:L27,AD7) -> 7 | AI7: =N7 -> 111 | AJ7: =COUNTIF(L28:L34,AI7) -> 7 | AN7: =N7 -> 111 | AO7: =COUNTIF(L35:L41,AN7) -> 7 | AS7: =N7 -> 111 | AT7: =COUNTIF(L42:L48,AS7) -> 6
A8: 11 | B8: 123 | C8: 11 | D8: 128 | E8: 11 | F8: 136 | K8: 0 | L8: 111 | N8: 112 | O8: =COUNTIF($L$7:$L$500,N8) -> 0 | P8: =O8/$Q$4 -> 0 | Q8: =IF(P8=0,0,(P8*((LOG(P8))/LOG(2)))) -> 0 | T8: =N8 -> 112 | U8: =COUNTIF(L7:L13,T8) -> 0 | V8: =U8/(W4-U7) -> 0 | W8: =IF(V8=0,0,(V8*((LOG(V8))/LOG(2)))) -> 0 | Y8: =N8 -> 112 | Z8: =COUNTIF(L14:L20,Y8) -> 0 | AA8: =Z8/(AB4-Z7) ->  | AB8: =IF(AA8=0,0,(AA8*((LOG(AA8))/LOG(2)))) ->  | AD8: =N8 -> 112 | AE8: =COUNTIF(L21:L27,AD8) -> 0 | AF8: =AE8/(AG4-AE7) ->  | AG8: =IF(AF8=0,0,(AF8*((LOG(AF8))/LOG(2)))) ->  | AI8: =N8 -> 112 | AJ8: =COUNTIF(L28:L34,AI8) -> 0 | AK8: =AJ8/(AL4-AJ7) ->  | AL8: =IF(AK8=0,0,(AK8*((LOG(AK8))/LOG(2)))) ->  | AN8: =N8 -> 112 | AO8: =COUNTIF(L35:L41,AN8) -> 0 | AP8: =AO8/(AQ4-AO7) ->  | AQ8: =IF(AP8=0,0,(AP8*((LOG(AP8))/LOG(2)))) ->  | AS8: =N8 -> 112 | AT8: =COUNTIF(L42:L48,AS8) -> 0 | AU8: =AT8/(AV4-AT7) -> 0 | AV8: =IF(AU8=0,0,(AU8*((LOG(AU8))/LOG(2)))) -> 0
A9: 11 | B9: 293 | C9: 11 | D9: 300 | E9: 11 | F9: 306 | K9: 0 | L9: 111 | N9: 121 | O9: =COUNTIF($L$7:$L$500,N9) -> 0 | P9: =O9/$Q$4 -> 0 | Q9: =IF(P9=0,0,(P9*((LOG(P9))/LOG(2)))) -> 0 | T9: =N9 -> 121 | U9: =COUNTIF(L7:L13,T9) -> 0 | V9: =U9/(W4-U7) -> 0 | W9: =IF(V9=0,0,(V9*((LOG(V9))/LOG(2)))) -> 0 | Y9: =N9 -> 121 | Z9: =COUNTIF(L14:L20,Y9) -> 0 | AA9: =Z9/(AB4-Z7) ->  | AB9: =IF(AA9=0,0,(AA9*((LOG(AA9))/LOG(2)))) ->  | AD9: =N9 -> 121 | AE9: =COUNTIF(L21:L27,AD9) -> 0 | AF9: =AE9/(AG4-AE7) ->  | AG9: =IF(AF9=0,0,(AF9*((LOG(AF9))/LOG(2)))) ->  | AI9: =N9 -> 121 | AJ9: =COUNTIF(L28:L34,AI9) -> 0 | AK9: =AJ9/(AL4-AJ7) ->  | AL9: =IF(AK9=0,0,(AK9*((LOG(AK9))/LOG(2)))) ->  | AN9: =N9 -> 121 | AO9: =COUNTIF(L35:L41,AN9) -> 0 | AP9: =AO9/(AQ4-AO7) ->  | AQ9: =IF(AP9=0,0,(AP9*((LOG(AP9))/LOG(2)))) ->  | AS9: =N9 -> 121 | AT9: =COUNTIF(L42:L48,AS9) -> 0 | AU9: =AT9/(AV4-AT7) -> 0 | AV9: =IF(AU9=0,0,(AU9*((LOG(AU9))/LOG(2)))) -> 0
A10: 11 | B10: 458 | C10: 11 | D10: 464 | E10: 11 | F10: 470 | K10: 0 | L10: 111 | N10: 122 | O10: =COUNTIF($L$7:$L$500,N10) -> 1 | P10: =O10/$Q$4 -> 0.02380952381 | Q10: =IF(P10=0,0,(P10*((LOG(P10))/LOG(2)))) -> -0.1283885101 | T10: =N10 -> 122 | U10: =COUNTIF(L7:L13,T10) -> 1 | V10: =U10/(W4-U7) -> 1 | W10: =IF(V10=0,0,(V10*((LOG(V10))/LOG(2)))) -> 0 | Y10: =N10 -> 122 | Z10: =COUNTIF(L14:L20,Y10) -> 0 | AA10: =Z10/(AB4-Z7) ->  | AB10: =IF(AA10=0,0,(AA10*((LOG(AA10))/LOG(2)))) ->  | AD10: =N10 -> 122 | AE10: =COUNTIF(L21:L27,AD10) -> 0 | AF10: =AE10/(AG4-AE7) ->  | AG10: =IF(AF10=0,0,(AF10*((LOG(AF10))/LOG(2)))) ->  | AI10: =N10 -> 122 | AJ10: =COUNTIF(L28:L34,AI10) -> 0 | AK10: =AJ10/(AL4-AJ7) ->  | AL10: =IF(AK10=0,0,(AK10*((LOG(AK10))/LOG(2)))) ->  | AN10: =N10 -> 122 | AO10: =COUNTIF(L35:L41,AN10) -> 0 | AP10: =AO10/(AQ4-AO7) ->  | AQ10: =IF(AP10=0,0,(AP10*((LOG(AP10))/LOG(2)))) ->  | AS10: =N10 -> 122 | AT10: =COUNTIF(L42:L48,AS10) -> 0 | AU10: =AT10/(AV4-AT7) -> 0 | AV10: =IF(AU10=0,0,(AU10*((LOG(AU10))/LOG(2)))) -> 0
A11: 11 | B11: 594 | C11: 11 | D11: 601 | E11: 11 | F11: 611 | K11: 0 | L11: 111 | N11: 211 | O11: =COUNTIF($L$7:$L$500,N11) -> 0 | P11: =O11/$Q$4 -> 0 | Q11: =IF(P11=0,0,(P11*((LOG(P11))/LOG(2)))) -> 0 | T11: =N11 -> 211 | U11: =COUNTIF(L7:L13,T11) -> 0 | V11: =U11/(W4-U7) -> 0 | W11: =IF(V11=0,0,(V11*((LOG(V11))/LOG(2)))) -> 0 | Y11: =N11 -> 211 | Z11: =COUNTIF(L14:L20,Y11) -> 0 | AA11: =Z11/(AB4-Z7) ->  | AB11: =IF(AA11=0,0,(AA11*((LOG(AA11))/LOG(2)))) ->  | AD11: =N11 -> 211 | AE11: =COUNTIF(L21:L27,AD11) -> 0 | AF11: =AE11/(AG4-AE7) ->  | AG11: =IF(AF11=0,0,(AF11*((LOG(AF11))/LOG(2)))) ->  | AI11: =N11 -> 211 | AJ11: =COUNTIF(L28:L34,AI11) -> 0 | AK11: =AJ11/(AL4-AJ7) ->  | AL11: =IF(AK11=0,0,(AK11*((LOG(AK11))/LOG(2)))) ->  | AN11: =N11 -> 211 | AO11: =COUNTIF(L35:L41,AN11) -> 0 | AP11: =AO11/(AQ4-AO7) ->  | AQ11: =IF(AP11=0,0,(AP11*((LOG(AP11))/LOG(2)))) ->  | AS11: =N11 -> 211 | AT11: =COUNTIF(L42:L48,AS11) -> 0 | AU11: =AT11/(AV4-AT7) -> 0 | AV11: =IF(AU11=0,0,(AU11*((LOG(AU11))/LOG(2)))) -> 0
A12: 11 | B12: 779 | C12: 11 | D12: 785 | E12: 11 | F12: 791 | K12: 0 | L12: 111 | N12: 212 | O12: =COUNTIF($L$7:$L$500,N12) -> 0 | P12: =O12/$Q$4 -> 0 | Q12: =IF(P12=0,0,(P12*((LOG(P12))/LOG(2)))) -> 0 | T12: =N12 -> 212 | U12: =COUNTIF(L7:L13,T12) -> 0 | V12: =U12/(W4-U7) -> 0 | W12: =IF(V12=0,0,(V12*((LOG(V12))/LOG(2)))) -> 0 | Y12: =N12 -> 212 | Z12: =COUNTIF(L14:L20,Y12) -> 0 | AA12: =Z12/(AB4-Z7) ->  | AB12: =IF(AA12=0,0,(AA12*((LOG(AA12))/LOG(2)))) ->  | AD12: =N12 -> 212 | AE12: =COUNTIF(L21:L27,AD12) -> 0 | AF12: =AE12/(AG4-AE7) ->  | AG12: =IF(AF12=0,0,(AF12*((LOG(AF12))/LOG(2)))) ->  | AI12: =N12 -> 212 | AJ12: =COUNTIF(L28:L34,AI12) -> 0 | AK12: =AJ12/(AL4-AJ7) ->  | AL12: =IF(AK12=0,0,(AK12*((LOG(AK12))/LOG(2)))) ->  | AN12: =N12 -> 212 | AO12: =COUNTIF(L35:L41,AN12) -> 0 | AP12: =AO12/(AQ4-AO7) ->  | AQ12: =IF(AP12=0,0,(AP12*((LOG(AP12))/LOG(2)))) ->  | AS12: =N12 -> 212 | AT12: =COUNTIF(L42:L48,AS12) -> 0 | AU12: =AT12/(AV4-AT7) -> 0 | AV12: =IF(AU12=0,0,(AU12*((LOG(AU12))/LOG(2)))) -> 0
A13: 11 | B13: 936 | C13: 11 | D13: 942 | E13: 11 | F13: 948 | K13: 0 | L13: 111 | N13: 221 | O13: =COUNTIF($L$7:$L$500,N13) -> 0 | P13: =O13/$Q$4 -> 0 | Q13: =IF(P13=0,0,(P13*((LOG(P13))/LOG(2)))) -> 0 | T13: =N13 -> 221 | U13: =COUNTIF(L7:L13,T13) -> 0 | V13: =U13/(W4-U7) -> 0 | W13: =IF(V13=0,0,(V13*((LOG(V13))/LOG(2)))) -> 0 | Y13: =N13 -> 221 | Z13: =COUNTIF(L14:L20,Y13) -> 0 | AA13: =Z13/(AB4-Z7) ->  | AB13: =IF(AA13=0,0,(AA13*((LOG(AA13))/LOG(2)))) ->  | AD13: =N13 -> 221 | AE13: =COUNTIF(L21:L27,AD13) -> 0 | AF13: =AE13/(AG4-AE7) ->  | AG13: =IF(AF13=0,0,(AF13*((LOG(AF13))/LOG(2)))) ->  | AI13: =N13 -> 221 | AJ13: =COUNTIF(L28:L34,AI13) -> 0 | AK13: =AJ13/(AL4-AJ7) ->  | AL13: =IF(AK13=0,0,(AK13*((LOG(AK13))/LOG(2)))) ->  | AN13: =N13 -> 221 | AO13: =COUNTIF(L35:L41,AN13) -> 0 | AP13: =AO13/(AQ4-AO7) ->  | AQ13: =IF(AP13=0,0,(AP13*((LOG(AP13))/LOG(2)))) ->  | AS13: =N13 -> 221 | AT13: =COUNTIF(L42:L48,AS13) -> 0 | AU13: =AT13/(AV4-AT7) -> 0 | AV13: =IF(AU13=0,0,(AU13*((LOG(AU13))/LOG(2)))) -> 0
A14: 11 | B14: 1150 | C14: 11 | D14: 1156 | E14: 11 | F14: 1162 | K14: 0 | L14: 111 | N14: 222 | O14: =COUNTIF($L$7:$L$500,N14) -> 1 | P14: =O14/$Q$4 -> 0.02380952381 | Q14: =IF(P14=0,0,(P14*((LOG(P14))/LOG(2)))) -> -0.1283885101 | T14: =N14 -> 222 | U14: =COUNTIF(L7:L13,T14) -> 0 | V14: =U14/(W4-U7) -> 0 | W14: =IF(V14=0,0,(V14*((LOG(V14))/LOG(2)))) -> 0 | Y14: =N14 -> 222 | Z14: =COUNTIF(L14:L20,Y14) -> 0 | AA14: =Z14/(AB4-Z7) ->  | AB14: =IF(AA14=0,0,(AA14*((LOG(AA14))/LOG(2)))) ->  | AD14: =N14 -> 222 | AE14: =COUNTIF(L21:L27,AD14) -> 0 | AF14: =AE14/(AG4-AE7) ->  | AG14: =IF(AF14=0,0,(AF14*((LOG(AF14))/LOG(2)))) ->  | AI14: =N14 -> 222 | AJ14: =COUNTIF(L28:L34,AI14) -> 0 | AK14: =AJ14/(AL4-AJ7) ->  | AL14: =IF(AK14=0,0,(AK14*((LOG(AK14))/LOG(2)))) ->  | AN14: =N14 -> 222 | AO14: =COUNTIF(L35:L41,AN14) -> 0 | AP14: =AO14/(AQ4-AO7) ->  | AQ14: =IF(AP14=0,0,(AP14*((LOG(AP14))/LOG(2)))) ->  | AS14: =N14 -> 222 | AT14: =COUNTIF(L42:L48,AS14) -> 1 | AU14: =AT14/(AV4-AT7) -> 1 | AV14: =IF(AU14=0,0,(AU14*((LOG(AU14))/LOG(2)))) -> 0
A15: 11 | B15: 1288 | C15: 11 | D15: 1292 | E15: 11 | F15: 1299 | K15: 0 | L15: 111 | P15: =SUM(P7:P14) -> 1 | Q15: =-SUM(Q7:Q14) -> 0.3238144753 | V15: =SUM(V7:V14) -> 1 | W15: =-SUM(W7:W14) -> 0 | AA15: =SUM(AA7:AA14) ->  | AB15: =-SUM(AB7:AB14) ->  | AF15: =SUM(AF7:AF14) ->  | AG15: =-SUM(AG7:AG14) ->  | AK15: =SUM(AK7:AK14) ->  | AL15: =-SUM(AL7:AL14) ->  | AP15: =SUM(AP7:AP14) ->  | AQ15: =-SUM(AQ7:AQ14) ->  | AU15: =SUM(AU7:AU14) -> 1 | AV15: =-SUM(AV7:AV14) -> 0
A16: 11 | B16: 1427 | C16: 11 | D16: 1437 | E16: 11 | F16: 1444 | K16: 0 | L16: 111 | P16: U= | Q16: =Q15/(LOG(Q4)/LOG(2)) -> 0.06005107821 | V16: U1= | W16: =W15/(LOG(W4)/LOG(2)) -> 0 | AA16: U2= | AB16: =AB15/(LOG(AB4)/LOG(2)) ->  | AF16: U3= | AG16: =AG15/(LOG(AG4)/LOG(2)) ->  | AK16: U4= | AL16: =AL15/(LOG(AL4)/LOG(2)) ->  | AP16: U5= | AQ16: =AQ15/(LOG(AQ4)/LOG(2)) ->  | AU16: U6= | AV16: =AV15/(LOG(AV4)/LOG(2)) -> 0
A17: 11 | B17: 1638 | C17: 11 | D17: 1643 | E17: 11 | F17: 1650 | K17: 0 | L17: 111
A18: 11 | B18: 1864 | C18: 11 | D18: 1868 | E18: 11 | F18: 1875 | K18: 0 | L18: 111
A19: 11 | B19: 2064 | C19: 11 | D19: 2075 | E19: 11 | F19: 2100 | K19: 0 | L19: 111 | N19: Total Target Seq
A20: 11 | B20: 2244 | C20: 11 | D20: 2249 | E20: 11 | F20: 2255 | K20: 0 | L20: 111 | N20: =COUNTIF(L7:L48,G3) -> 40 | P20: 7 | Q20: 7 | R20: 7 | S20: 7 | T20: 7 | U20: 7
A21: 11 | B21: 2431 | C21: 11 | D21: 2437 | E21: 11 | F21: 2443 | K21: 0 | L21: 111 | P21: % of reinforcement given in 6 equal intervals based on number of trials
A22: 11 | B22: 2703 | C22: 11 | D22: 2708 | E22: 11 | F22: 2714 | K22: 0 | L22: 111 | P22: %_1 | Q22: %_2 | R22: %_3 | S22: %_4 | T22: %_5 | U22: %_6
A23: 11 | B23: 2873 | C23: 11 | D23: 2877 | E23: 11 | F23: 2884 | K23: 0 | L23: 111 | O23: target sequence | P23: =$G$3 -> 111 | Q23: =$G$3 -> 111 | R23: =$G$3 -> 111 | S23: =$G$3 -> 111 | T23: =$G$3 -> 111 | U23: =$G$3 -> 111
A24: 11 | B24: 3005 | C24: 11 | D24: 3011 | E24: 11 | F24: 3018 | K24: 0 | L24: 111 | O24: total reinforcement | P24: =U7 -> 6 | Q24: =Z7 -> 7 | R24: =AE7 -> 7 | S24: =AJ7 -> 7 | T24: =AO7 -> 7 | U24: =AT7 -> 6
A25: 11 | B25: 3184 | C25: 11 | D25: 3191 | E25: 11 | F25: 3198 | K25: 0 | L25: 111 | O25: % target
A26: 11 | B26: 3363 | C26: 11 | D26: 3369 | E26: 11 | F26: 3375 | K26: 0 | L26: 111 | O26: CCRF
A27: 11 | B27: 3559 | C27: 11 | D27: 3565 | E27: 11 | F27: 3576 | K27: 0 | L27: 111 | O27: % CCRf
A28: 11 | B28: 3799 | C28: 11 | D28: 3811 | E28: 11 | F28: 3817 | K28: 0 | L28: 111 | O28: average response rate | P28: =F13/P20 -> 135.4285714 | Q28: =(F20-F13)/Q20 -> 186.7142857 | R28: =(F27-F20)/R20 -> 188.7142857 | S28: =(F34-F27)/S20 -> 215.2857143 | T28: =(F41-F34)/T20 -> 209.7142857 | U28: =(F48-F41)/U20 -> 255.8571429
A29: 11 | B29: 4081 | C29: 11 | D29: 4086 | E29: 11 | F29: 4092 | K29: 0 | L29: 111
A30: 11 | B30: 4208 | C30: 11 | D30: 4214 | E30: 11 | F30: 4220 | K30: 0 | L30: 111
A31: 11 | B31: 4421 | C31: 11 | D31: 4427 | E31: 11 | F31: 4433 | K31: 0 | L31: 111
A32: 11 | B32: 4614 | C32: 11 | D32: 4620 | E32: 11 | F32: 4627 | K32: 0 | L32: 111
A33: 11 | B33: 4880 | C33: 11 | D33: 4886 | E33: 11 | F33: 4892 | K33: 0 | L33: 111
A34: 11 | B34: 5059 | C34: 11 | D34: 5066 | E34: 11 | F34: 5083 | K34: 0 | L34: 111
A35: 11 | B35: 5281 | C35: 11 | D35: 5288 | E35: 11 | F35: 5295 | K35: 0 | L35: 111
A36: 11 | B36: 5485 | C36: 11 | D36: 5489 | E36: 11 | F36: 5496 | K36: 0 | L36: 111
A37: 11 | B37: 5630 | C37: 11 | D37: 5637 | E37: 11 | F37: 5644 | K37: 0 | L37: 111
A38: 11 | B38: 5841 | C38: 11 | D38: 5844 | E38: 11 | F38: 5850 | K38: 0 | L38: 111
A39: 11 | B39: 6086 | C39: 11 | D39: 6092 | E39: 11 | F39: 6098 | K39: 0 | L39: 111
A40: 11 | B40: 6273 | C40: 11 | D40: 6279 | E40: 11 | F40: 6292 | K40: 0 | L40: 111
A41: 11 | B41: 6544 | C41: 11 | D41: 6548 | E41: 11 | F41: 6551 | K41: 0 | L41: 111
A42: 11 | B42: 6858 | C42: 11 | D42: 6862 | E42: 11 | F42: 6868 | K42: 0 | L42: 111
A43: 11 | B43: 7092 | C43: 11 | D43: 7097 | E43: 11 | F43: 7105 | K43: 0 | L43: 111
A44: 11 | B44: 7276 | C44: 11 | D44: 7279 | E44: 11 | F44: 7287 | K44: 0 | L44: 111
A45: 11 | B45: 7450 | C45: 11 | D45: 7454 | E45: 11 | F45: 7461 | K45: 0 | L45: 111
A46: 22 | B46: 8029 | C46: 24 | D46: 8032 | E46: 24 | F46: 8039 | K46: 0 | L46: 222
A47: 11 | B47: 8133 | C47: 11 | D47: 8140 | E47: 11 | F47: 8147 | K47: 0 | L47: 111
A48: 11 | B48: 8325 | C48: 11 | D48: 8330 | E48: 11 | F48: 8342 | K48: 1 | L48: 111

Sheet !M624B3D.ust
A1: Report for:!M624B3D.ust
A2: Date: | B2: <date>
A3: Hen: | B3: <hen> | F3: Correct Sequence | G3: =Start!J2 -> 111 | P3: Total Sequences in Data | Q3: =4994-COUNTBLANK(L7:L5000) -> 41 | V3: Total Sequences in Block Data | W3: =COUNTA(L7:L13) -> 7 | AA3: Total Sequences in Block Data | AB3: =COUNTA(L14:L20) -> 7 | AF3: Total Sequences in Block Data | AG3: =COUNTA(L21:L26) -> 6 | AK3: Total Sequences in Block Data | AL3: =COUNTA(L27:L33) -> 7 | AP3: Total Sequences in Block Data | AQ3: =COUNTA(L34:L40) -> 7 | AU3: Total Sequences in Block Data | AV3: =COUNTA(L41:L47) -> 7
P4: Total Sequences in Summary | Q4: =SUM(O7:O14) -> 41 | V4: Total Sequences in Block Summary | W4: =SUM(U7:U14) -> 7 | AA4: Total Sequences in Block Summary | AB4: =SUM(Z7:Z14) -> 7 | AF4: Total Sequences in Block Summary | AG4: =SUM(AE7:AE14) -> 6 | AK4: Total Sequences in Block Summary | AL4: =SUM(AJ7:AJ14) -> 7 | AP4: Total Sequences in Block Summary | AQ4: =SUM(AO7:AO14) -> 7 | AU4: Total Sequences in Block Summary | AV4: =SUM(AT7:AT14) -> 7
T5: Block 1 | Y5: Block 2 | AD5: Block 3 | AI5: Block 4 | AN5: Block 5 | AS5: Block 6
A6: Sequence Component 1 | B6: Time 1 | C6: Sequence Component 2 | D6: Time 2 | E6: Sequence Component 3 | F6: Time 3 | G6: Sequence Component 4 | H6: Time 4 | I6: Sequence Component 5 | J6: Time 5 | K6: Correct? 0=No 1=Yes | L6: Sequence | N6: Frequency | P6: Relative Frequency | Q6: Variability | T6: Frequency | V6: Relative Frequency | W6: Variability | Y6: Frequency | AA6: Relative Frequency | AB6: Variability | AD6: Frequency | AF6: Relative Frequency | AG6: Variability | AI6: Frequency | AK6: Relative Frequency | AL6: Variability | AN6: Frequency | AP6: Relative Frequency | AQ6: Variability | AS6: Frequency | AU6: Relative Frequency | AV6: Variability
A7: 22 | B7: 8 | C7: 24 | D7: 13 | E7: 24 | F7: 18 | K7: 0 | L7: 222 | N7: 111 | O7: =COUNTIF($L$7:$L$500,N7) -> 40 | P7: =O7/$Q$4 -> 0.9756097561 | Q7: =IF(P7=0,0,(P7*((LOG(P7))/LOG(2)))) -> -0.03475503388 | T7: =N7 -> 111 | U7: =COUNTIF(L7:L13,T7) -> 6 | Y7: =N7 -> 111 | Z7: =COUNTIF(L14:L20,Y7) -> 7 | AD7: =N7 -> 111 | AE7: =COUNTIF(L21:L26,AD7) -> 6 | AI7: =N7 -> 111 | AJ7: =COUNTIF(L27:L33,AI7) -> 7 | AN7: =N7 -> 111 | AO7: =COUNTIF(L34:L40,AN7) -> 7 | AS7: =N7 -> 111 | AT7: =COUNTIF(L41:L47,AS7) -> 7
A8: 11 | B8: 120 | C8: 11 | D8: 127 | E8: 11 | F8: 137 | K8: 0 | L8: 111 | N8: 112 | O8: =COUNTIF($L$7:$L$500,N8) -> 0 | P8: =O8/$Q$4 -> 0 | Q8: =IF(P8=0,0,(P8*((LOG(P8))/LOG(2)))) -> 0 | T8: =N8 -> 112 | U8: =COUNTIF(L7:L13,T8) -> 0 | V8: =U8/(W4-U7) -> 0 | W8: =IF(V8=0,0,(V8*((LOG(V8))/LOG(2)))) -> 0 | Y8: =N8 -> 112 | Z8: =COUNTIF(L14:L20,Y8) -> 0 | AA8: =Z8/(AB4-Z7) ->  | AB8: =IF(AA8=0,0,(AA8*((LOG(AA8))/LOG(2)))) ->  | AD8: =N8 -> 112 | AE8: =COUNTIF(L21:L26,AD8) -> 0 | AF8: =AE8/(AG4-AE7) ->  | AG8: =IF(AF8=0,0,(AF8*((LOG(AF8))/LOG(2)))) ->  | AI8: =N8 -> 112 | AJ8: =COUNTIF(L27:L33,AI8) -> 0 | AK8: =AJ8/(AL4-AJ7) ->  | AL8: =IF(AK8=0,0,(AK8*((LOG(AK8))/LOG(2)))) ->  | AN8: =N8 -> 112 | AO8: =COUNTIF(L34:L40,AN8) -> 0 | AP8: =AO8/(AQ4-AO7) ->  | AQ8: =IF(AP8=0,0,(AP8*((LOG(AP8))/LOG(2)))) ->  | AS8: =N8 -> 112 | AT8: =COUNTIF(L41:L47,AS8) -> 0 | AU8: =AT8/(AV4-AT7) ->  | AV8: =IF(AU8=0,0,(AU8*((LOG(AU8))/LOG(2)))) -> 
A9: 11 | B9: 300 | C9: 11 | D9: 309 | E9: 11 | F9: 314 | K9: 0 | L9: 111 | N9: 121 | O9: =COUNTIF($L$7:$L$500,N9) -> 0 | P9: =O9/$Q$4 -> 0 | Q9: =IF(P9=0,0,(P9*((LOG(P9))/LOG(2)))) -> 0 | T9: =N9 -> 121 | U9: =COUNTIF(L7:L13,T9) -> 0 | V9: =U9/(W4-U7) -> 0 | W9: =IF(V9=0,0,(V9*((LOG(V9))/LOG(2)))) -> 0 | Y9: =N9 -> 121 | Z9: =COUNTIF(L14:L20,Y9) -> 0 | AA9: =Z9/(AB4-Z7) ->  | AB9: =IF(AA9=0,0,(AA9*((LOG(AA9))/LOG(2)))) ->  | AD9: =N9 -> 121 | AE9: =COUNTIF(L21:L26,AD9) -> 0 | AF9: =AE9/(AG4-AE7) ->  | AG9: =IF(AF9=0,0,(AF9*((LOG(AF9))/LOG(2)))) ->  | AI9: =N9 -> 121 | AJ9: =COUNTIF(L27:L33,AI9) -> 0 | AK9: =AJ9/(AL4-AJ7) ->  | AL9: =IF(AK9=0,0,(AK9*((LOG(AK9))/LOG(2)))) ->  | AN9: =N9 -> 121 | AO9: =COUNTIF(L34:L40,AN9) -> 0 | AP9: =AO9/(AQ4-AO7) ->  | AQ9: =IF(AP9=0,0,(AP9*((LOG(AP9))/LOG(2)))) ->  | AS9: =N9 -> 121 | AT9: =COUNTIF(L41:L47,AS9) -> 0 | AU9: =AT9/(AV4-AT7) ->  | AV9: =IF(AU9=0,0,(AU9*((LOG(AU9))/LOG(2)))) -> 
A10: 11 | B10: 507 | C10: 11 | D10: 513 | E10: 11 | F10: 527 | K10: 0 | L10: 111 | N10: 122 | O10: =COUNTIF($L$7:$L$500,N10) -> 0 | P10: =O10/$Q$4 -> 0 | Q10: =IF(P10=0,0,(P10*((LOG(P10))/LOG(2)))) -> 0 | T10: =N10 -> 122 | U10: =COUNTIF(L7:L13,T10) -> 0 | V10: =U10/(W4-U7) -> 0 | W10: =IF(V10=0,0,(V10*((LOG(V10))/LOG(2)))) -> 0 | Y10: =N10 -> 122 | Z10: =COUNTIF(L14:L20,Y10) -> 0 | AA10: =Z10/(AB4-Z7) ->  | AB10: =IF(AA10=0,0,(AA10*((LOG(AA10))/LOG(2)))) ->  | AD10: =N10 -> 122 | AE10: =COUNTIF(L21:L26,AD10) -> 0 | AF10: =AE10/(AG4-AE7) ->  | AG10: =IF(AF10=0,0,(AF10*((LOG(AF10))/LOG(2)))) ->  | AI10: =N10 -> 122 | AJ10: =COUNTIF(L27:L33,AI10) -> 0 | AK10: =AJ10/(AL4-AJ7) ->  | AL10: =IF(AK10=0,0,(AK10*((LOG(AK10))/LOG(2)))) ->  | AN10: =N10 -> 122 | AO10: =COUNTIF(L34:L40,AN10) -> 0 | AP10: =AO10/(AQ4-AO7) ->  | AQ10: =IF(AP10=0,0,(AP10*((LOG(AP10))/LOG(2)))) ->  | AS10: =N10 -> 122 | AT10: =COUNTIF(L41:L47,AS10) -> 0 | AU10: =AT10/(AV4-AT7) ->  | AV10: =IF(AU10=0,0,(AU10*((LOG(AU10))/LOG(2)))) -> 
A11: 11 | B11: 826 | C11: 11 | D11: 834 | E11: 11 | F11: 865 | K11: 0 | L11: 111 | N11: 211 | O11: =COUNTIF($L$7:$L$500,N11) -> 0 | P11: =O11/$Q$4 -> 0 | Q11: =IF(P11=0,0,(P11*((LOG(P11))/LOG(2)))) -> 0 | T11: =N11 -> 211 | U11: =COUNTIF(L7:L13,T11) -> 0 | V11: =U11/(W4-U7) -> 0 | W11: =IF(V11=0,0,(V11*((LOG(V11))/LOG(2)))) -> 0 | Y11: =N11 -> 211 | Z11: =COUNTIF(L14:L20,Y11) -> 0 | AA11: =Z11/(AB4-Z7) ->  | AB11: =IF(AA11=0,0,(AA11*((LOG(AA11))/LOG(2)))) ->  | AD11: =N11 -> 211 | AE11: =COUNTIF(L21:L26,AD11) -> 0 | AF11: =AE11/(AG4-AE7) ->  | AG11: =IF(AF11=0,0,(AF11*((LOG(AF11))/LOG(2)))) ->  | AI11: =N11 -> 211 | AJ11: =COUNTIF(L27:L33,AI11) -> 0 | AK11: =AJ11/(AL4-AJ7) ->  | AL11: =IF(AK11=0,0,(AK11*((LOG(AK11))/LOG(2)))) ->  | AN11: =N11 -> 211 | AO11: =COUNTIF(L34:L40,AN11) -> 0 | AP11: =AO11/(AQ4-AO7) ->  | AQ11: =IF(AP11=0,0,(AP11*((LOG(AP11))/LOG(2)))) ->  | AS11: =N11 -> 211 | AT11: =COUNTIF(L41:L47,AS11) -> 0 | AU11: =AT11/(AV4-AT7) ->  | AV11: =IF(AU11=0,0,(AU11*((LOG(AU11))/LOG(2)))) -> 
A12: 11 | B12: 1022 | C12: 11 | D12: 1029 | E12: 11 | F12: 1036 | K12: 0 | L12: 111 | N12: 212 | O12: =COUNTIF($L$7:$L$500,N12) -> 0 | P12: =O12/$Q$4 -> 0 | Q12: =IF(P12=0,0,(P12*((LOG(P12))/LOG(2)))) -> 0 | T12: =N12 -> 212 | U12: =COUNTIF(L7:L13,T12) -> 0 | V12: =U12/(W4-U7) -> 0 | W12: =IF(V12=0,0,(V12*((LOG(V12))/LOG(2)))) -> 0 | Y12: =N12 -> 212 | Z12: =COUNTIF(L14:L20,Y12) -> 0 | AA12: =Z12/(AB4-Z7) ->  | AB12: =IF(AA12=0,0,(AA12*((LOG(AA12))/LOG(2)))) ->  | AD12: =N12 -> 212 | AE12: =COUNTIF(L21:L26,AD12) -> 0 | AF12: =AE12/(AG4-AE7) ->  | AG12: =IF(AF12=0,0,(AF12*((LOG(AF12))/LOG(2)))) ->  | AI12: =N12 -> 212 | AJ12: =COUNTIF(L27:L33,AI12) -> 0 | AK12: =AJ12/(AL4-AJ7) ->  | AL12: =IF(AK12=0,0,(AK12*((LOG(AK12))/LOG(2)))) ->  | AN12: =N12 -> 212 | AO12: =COUNTIF(L34:L40,AN12) -> 0 | AP12: =AO12/(AQ4-AO7) ->  | AQ12: =IF(AP12=0,0,(AP12*((LOG(AP12))/LOG(2)))) ->  | AS12: =N12 -> 212 | AT12: =COUNTIF(L41:L47,AS12) -> 0 | AU12: =AT12/(AV4-AT7) ->  | AV12: =IF(AU12=0,0,(AU12*((LOG(AU12))/LOG(2)))) -> 
A13: 11 | B13: 1217 | C13: 11 | D13: 1222 | E13: 11 | F13: 1228 | K13: 0 | L13: 111 | N13: 221 | O13: =COUNTIF($L$7:$L$500,N13) -> 0 | P13: =O13/$Q$4 -> 0 | Q13: =IF(P13=0,0,(P13*((LOG(P13))/LOG(2)))) -> 0 | T13: =N13 -> 221 | U13: =COUNTIF(L7:L13,T13) -> 0 | V13: =U13/(W4-U7) -> 0 | W13: =IF(V13=0,0,(V13*((LOG(V13))/LOG(2)))) -> 0 | Y13: =N13 -> 221 | Z13: =COUNTIF(L14:L20,Y13) -> 0 | AA13: =Z13/(AB4-Z7) ->  | AB13: =IF(AA13=0,0,(AA13*((LOG(AA13))/LOG(2)))) ->  | AD13: =N13 -> 221 | AE13: =COUNTIF(L21:L26,AD13) -> 0 | AF13: =AE13/(AG4-AE7) ->  | AG13: =IF(AF13=0,0,(AF13*((LOG(AF13))/LOG(2)))) ->  | AI13: =N13 -> 221 | AJ13: =COUNTIF(L27:L33,AI13) -> 0 | AK13: =AJ13/(AL4-AJ7) ->  | AL13: =IF(AK13=0,0,(AK13*((LOG(AK13))/LOG(2)))) ->  | AN13: =N13 -> 221 | AO13: =COUNTIF(L34:L40,AN13) -> 0 | AP13: =AO13/(AQ4-AO7) ->  | AQ13: =IF(AP13=0,0,(AP13*((LOG(AP13))/LOG(2)))) ->  | AS13: =N13 -> 221 | AT13: =COUNTIF(L41:L47,AS13) -> 0 | AU13: =AT13/(AV4-AT7) ->  | AV13: =IF(AU13=0,0,(AU13*((LOG(AU13))/LOG(2)))) -> 
A14: 11 | B14: 1428 | C14: 11 | D14: 1436 | E14: 11 | F14: 1442 | K14: 0 | L14: 111 | N14: 222 | O14: =COUNTIF($L$7:$L$500,N14) -> 1 | P14: =O14/$Q$4 -> 0.0243902439 | Q14: =IF(P14=0,0,(P14*((LOG(P14))/LOG(2)))) -> -0.1306720001 | T14: =N14 -> 222 | U14: =COUNTIF(L7:L13,T14) -> 1 | V14: =U14/(W4-U7) -> 1 | W14: =IF(V14=0,0,(V14*((LOG(V14))/LOG(2)))) -> 0 | Y14: =N14 -> 222 | Z14: =COUNTIF(L14:L20,Y14) -> 0 | AA14: =Z14/(AB4-Z7) ->  | AB14: =IF(AA14=0,0,(AA14*((LOG(AA14))/LOG(2)))) ->  | AD14: =N14 -> 222 | AE14: =COUNTIF(L21:L26,AD14) -> 0 | AF14: =AE14/(AG4-AE7) ->  | AG14: =IF(AF14=0,0,(AF14*((LOG(AF14))/LOG(2)))) ->  | AI14: =N14 -> 222 | AJ14: =COUNTIF(L27:L33,AI14) -> 0 | AK14: =AJ14/(AL4-AJ7) ->  | AL14: =IF(AK14=0,0,(AK14*((LOG(AK14))/LOG(2)))) ->  | AN14: =N14 -> 222 | AO14: =COUNTIF(L34:L40,AN14) -> 0 | AP14: =AO14/(AQ4-AO7) ->  | AQ14: =IF(AP14=0,0,(AP14*((LOG(AP14))/LOG(2)))) ->  | AS14: =N14 -> 222 | AT14: =COUNTIF(L41:L47,AS14) -> 0 | AU14: =AT14/(AV4-AT7) ->  | AV14: =IF(AU14=0,0,(AU14*((LOG(AU14))/LOG(2)))) -> 
A15: 11 | B15: 1668 | C15: 11 | D15: 1673 | E15: 11 | F15: 1679 | K15: 0 | L15: 111 | P15: =SUM(P7:P14) -> 1 | Q15: =-SUM(Q7:Q14) -> 0.165427034 | V15: =SUM(V7:V14) -> 1 | W15: =-SUM(W7:W14) -> 0 | AA15: =SUM(AA7:AA14) ->  | AB15: =-SUM(AB7:AB14) ->  | AF15: =SUM(AF7:AF14) ->  | AG15: =-SUM(AG7:AG14) ->  | AK15: =SUM(AK7:AK14) ->  | AL15: =-SUM(AL7:AL14) ->  | AP15: =SUM(AP7:AP14) ->  | AQ15: =-SUM(AQ7:AQ14) ->  | AU15: =SUM(AU7:AU14) ->  | AV15: =-SUM(AV7:AV14) -> 
A16: 11 | B16: 1963 | C16: 11 | D16: 1968 | E16: 11 | F16: 1988 | K16: 0 | L16: 111 | P16: U= | Q16: =Q15/(LOG(Q4)/LOG(2)) -> 0.03087735478 | V16: U1= | W16: =W15/(LOG(W4)/LOG(2)) -> 0 | AA16: U2= | AB16: =AB15/(LOG(AB4)/LOG(2)) ->  | AF16: U3= | AG16: =AG15/(LOG(AG4)/LOG(2)) ->  | AK16: U4= | AL16: =AL15/(LOG(AL4)/LOG(2)) ->  | AP16: U5= | AQ16: =AQ15/(LOG(AQ4)/LOG(2)) ->  | AU16: U6= | AV16: =AV15/(LOG(AV4)/LOG(2)) -> 
A17: 11 | B17: 2109 | C17: 11 | D17: 2114 | E17: 11 | F17: 2120 | K17: 0 | L17: 111
A18: 11 | B18: 2280 | C18: 11 | D18: 2286 | E18: 11 | F18: 2293 | K18: 0 | L18: 111
A19: 11 | B19: 2450 | C19: 11 | D19: 2460 | E19: 11 | F19: 2468 | K19: 0 | L19: 111 | N19: Total Target Seq
A20: 11 | B20: 2683 | C20: 11 | D20: 2689 | E20: 11 | F20: 2695 | K20: 0 | L20: 111 | N20: =COUNTIF(L7:L47,G3) -> 40 | P20: 7 | Q20: 7 | R20: 6 | S20: 7 | T20: 7 | U20: 7
A21: 11 | B21: 2865 | C21: 11 | D21: 2872 | E21: 11 | F21: 2892 | K21: 0 | L21: 111 | P21: % of reinforcement given in 6 equal intervals based on number of trials
A22: 11 | B22: 3132 | C22: 11 | D22: 3137 | E22: 11 | F22: 3143 | K22: 0 | L22: 111 | P22: %_1 | Q22: %_2 | R22: %_3 | S22: %_4 | T22: %_5 | U22: %_6
A23: 11 | B23: 3344 | C23: 11 | D23: 3349 | E23: 11 | F23: 3350 | K23: 0 | L23: 111 | O23: target sequence | P23: =$G$3 -> 111 | Q23: =$G$3 -> 111 | R23: =$G$3 -> 111 | S23: =$G$3 -> 111 | T23: =$G$3 -> 111 | U23: =$G$3 -> 111
A24: 11 | B24: 3534 | C24: 11 | D24: 3549 | E24: 11 | F24: 3582 | K24: 0 | L24: 111 | O24: total reinforcement | P24: =U7 -> 6 | Q24: =Z7 -> 7 | R24: =AE7 -> 6 | S24: =AJ7 -> 7 | T24: =AO7 -> 7 | U24: =AT7 -> 7
A25: 11 | B25: 3853 | C25: 11 | D25: 3859 | E25: 11 | F25: 3865 | K25: 0 | L25: 111 | O25: % target
A26: 11 | B26: 4105 | C26: 11 | D26: 4109 | E26: 11 | F26: 4115 | K26: 0 | L26: 111 | O26: CCRF
A27: 11 | B27: 4348 | C27: 11 | D27: 4358 | E27: 11 | F27: 4365 | K27: 0 | L27: 111 | O27: % CCRf
A28: 11 | B28: 4563 | C28: 11 | D28: 4568 | E28: 11 | F28: 4575 | K28: 0 | L28: 111 | O28: average response rate | P28: =F13/P20 -> 175.4285714 | Q28: =(F20-F13)/Q20 -> 209.5714286 | R28: =(F26-F20)/R20 -> 236.6666667 | S28: =(F33-F26)/S20 -> 286 | T28: =(F40-F33)/T20 -> 263.4285714 | U28: =(F47-F40)/U20 -> 249.1428571
A29: 11 | B29: 4737 | C29: 11 | D29: 4741 | E29: 11 | F29: 4748 | K29: 0 | L29: 111
A30: 11 | B30: 5084 | C30: 11 | D30: 5086 | E30: 11 | F30: 5092 | K30: 0 | L30: 111
A31: 11 | B31: 5238 | C31: 11 | D31: 5244 | E31: 11 | F31: 5250 | K31: 0 | L31: 111
A32: 11 | B32: 5472 | C32: 11 | D32: 5478 | E32: 11 | F32: 5486 | K32: 0 | L32: 111
A33: 11 | B33: 6081 | C33: 11 | D33: 6104 | E33: 11 | F33: 6117 | K33: 0 | L33: 111
A34: 11 | B34: 6327 | C34: 11 | D34: 6333 | E34: 11 | F34: 6339 | K34: 0 | L34: 111
A35: 11 | B35: 6533 | C35: 11 | D35: 6534 | E35: 11 | F35: 6542 | K35: 0 | L35: 111
A36: 11 | B36: 6819 | C36: 11 | D36: 6825 | E36: 11 | F36: 6832 | K36: 0 | L36: 111
A37: 11 | B37: 7105 | C37: 11 | D37: 7110 | E37: 11 | F37: 7122 | K37: 0 | L37: 111
A38: 11 | B38: 7371 | C38: 11 | D38: 7375 | E38: 11 | F38: 7380 | K38: 0 | L38: 111
A39: 11 | B39: 7607 | C39: 11 | D39: 7613 | E39: 11 | F39: 7644 | K39: 0 | L39: 111
A40: 11 | B40: 7950 | C40: 11 | D40: 7955 | E40: 11 | F40: 7961 | K40: 0 | L40: 111
A41: 11 | B41: 8121 | C41: 11 | D41: 8125 | E41: 11 | F41: 8133 | K41: 0 | L41: 111
A42: 11 | B42: 8444 | C42: 11 | D42: 8449 | E42: 11 | F42: 8455 | K42: 0 | L42: 111
A43: 11 | B43: 8605 | C43: 11 | D43: 8614 | E43: 11 | F43: 8626 | K43: 0 | L43: 111
A44: 11 | B44: 9006 | C44: 11 | D44: 9012 | E44: 11 | F44: 9019 | K44: 0 | L44: 111
A45: 11 | B45: 9176 | C45: 11 | D45: 9182 | E45: 11 | F45: 9204 | K45: 0 | L45: 111
A46: 11 | B46: 9390 | C46: 11 | D46: 9395 | E46: 11 | F46: 9402 | K46: 0 | L46: 111
A47: 11 | B47: 9690 | C47: 11 | D47: 9698 | E47: 11 | F47: 9705 | K47: 1 | L47: 111

Sheet !M625A5D.ust
A1: Report for:!M625A5D.ust
A2: Date: | B2: <date>
A3: Hen: | B3: <hen> | F3: Correct Sequence | G3: =Start!J2 -> 111 | P3: Total Sequences in Data | Q3: =4994-COUNTBLANK(L7:L5000) -> 41 | V3: Total Sequences in Block Data | W3: =COUNTA(L7:L13) -> 7 | AA3: Total Sequences in Block Data | AB3: =COUNTA(L14:L20) -> 7 | AF3: Total Sequences in Block Data | AG3: =COUNTA(L21:L26) -> 6 | AK3: Total Sequences in Block Data | AL3: =COUNTA(L27:L33) -> 7 | AP3: Total Sequences in Block Data | AQ3: =COUNTA(L34:L40) -> 7 | AU3: Total Sequences in Block Data | AV3: =COUNTA(L41:L47) -> 7
P4: Total Sequences in Summary | Q4: =SUM(O7:O14) -> 41 | V4: Total Sequences in Block Summary | W4: =SUM(U7:U14) -> 7 | AA4: Total Sequences in Block Summary | AB4: =SUM(Z7:Z14) -> 7 | AF4: Total Sequences in Block Summary | AG4: =SUM(AE7:AE14) -> 6 | AK4: Total Sequences in Block Summary | AL4: =SUM(AJ7:AJ14) -> 7 | AP4: Total Sequences in Block Summary | AQ4: =SUM(AO7:AO14) -> 7 | AU4: Total Sequences in Block Summary | AV4: =SUM(AT7:AT14) -> 7
T5: Block 1 | Y5: Block 2 | AD5: Block 3 | AI5: Block 4 | AN5: Block 5 | AS5: Block 6
A6: Sequence Component 1 | B6: Time 1 | C6: Sequence Component 2 | D6: Time 2 | E6: Sequence Component 3 | F6: Time 3 | G6: Sequence Component 4 | H6: Time 4 | I6: Sequence Component 5 | J6: Time 5 | K6: Correct? 0=No 1=Yes | L6: Sequence | N6: Frequency | P6: Relative Frequency | Q6: Variability | T6: Frequency | V6: Relative Frequency | W6: Variability | Y6: Frequency | AA6: Relative Frequency | AB6: Variability | AD6: Frequency | AF6: Relative Frequency | AG6: Variability | AI6: Frequency | AK6: Relative Frequency | AL6: Variability | AN6: Frequency | AP6: Relative Frequency | AQ6: Variability | AS6: Frequency | AU6: Relative Frequency | AV6: Variability
A7: 11 | B7: 6 | C7: 22 | D7: 17 | E7: 24 | F7: 22 | K7: 0 | L7: 122 | N7: 111 | O7: =COUNTIF($L$7:$L$500,N7) -> 40 | P7: =O7/$Q$4 -> 0.9756097561 | Q7: =IF(P7=0,0,(P7*((LOG(P7))/LOG(2)))) -> -0.03475503388 | T7: =N7 -> 111 | U7: =COUNTIF(L7:L13,T7) -> 6 | Y7: =N7 -> 111 | Z7: =COUNTIF(L14:L20,Y7) -> 7 | AD7: =N7 -> 111 | AE7: =COUNTIF(L21:L26,AD7) -> 6 | AI7: =N7 -> 111 | AJ7: =COUNTIF(L27:L33,AI7) -> 7 | AN7: =N7 -> 111 | AO7: =COUNTIF(L34:L40,AN7) -> 7 | AS7: =N7 -> 111 | AT7: =COUNTIF(L41:L47,AS7) -> 7
A8: 11 | B8: 120 | C8: 11 | D8: 124 | E8: 11 | F8: 130 | K8: 0 | L8: 111 | N8: 112 | O8: =COUNTIF($L$7:$L$500,N8) -> 0 | P8: =O8/$Q$4 -> 0 | Q8: =IF(P8=0,0,(P8*((LOG(P8))/LOG(2)))) -> 0 | T8: =N8 -> 112 | U8: =COUNTIF(L7:L13,T8) -> 0 | V8: =U8/(W4-U7) -> 0 | W8: =IF(V8=0,0,(V8*((LOG(V8))/LOG(2)))) -> 0 | Y8: =N8 -> 112 | Z8: =COUNTIF(L14:L20,Y8) -> 0 | AA8: =Z8/(AB4-Z7) ->  | AB8: =IF(AA8=0,0,(AA8*((LOG(AA8))/LOG(2)))) ->  | AD8: =N8 -> 112 | AE8: =COUNTIF(L21:L26,AD8) -> 0 | AF8: =AE8/(AG4-AE7) ->  | AG8: =IF(AF8=0,0,(AF8*((LOG(AF8))/LOG(2)))) ->  | AI8: =N8 -> 112 | AJ8: =COUNTIF(L27:L33,AI8) -> 0 | AK8: =AJ8/(AL4-AJ7) ->  | AL8: =IF(AK8=0,0,(AK8*((LOG(AK8))/LOG(2)))) ->  | AN8: =N8 -> 112 | AO8: =COUNTIF(L34:L40,AN8) -> 0 | AP8: =AO8/(AQ4-AO7) ->  | AQ8: =IF(AP8=0,0,(AP8*((LOG(AP8))/LOG(2)))) ->  | AS8: =N8 -> 112 | AT8: =COUNTIF(L41:L47,AS8) -> 0 | AU8: =AT8/(AV4-AT7) ->  | AV8: =IF(AU8=0,0,(AU8*((LOG(AU8))/LOG(2)))) -> 
A9: 11 | B9: 274 | C9: 11 | D9: 279 | E9: 11 | F9: 286 | K9: 0 | L9: 111 | N9: 121 | O9: =COUNTIF($L$7:$L$500,N9) -> 0 | P9: =O9/$Q$4 -> 0 | Q9: =IF(P9=0,0,(P9*((LOG(P9))/LOG(2)))) -> 0 | T9: =N9 -> 121 | U9: =COUNTIF(L7:L13,T9) -> 0 | V9: =U9/(W4-U7) -> 0 | W9: =IF(V9=0,0,(V9*((LOG(V9))/LOG(2)))) -> 0 | Y9: =N9 -> 121 | Z9: =COUNTIF(L14:L20,Y9) -> 0 | AA9: =Z9/(AB4-Z7) ->  | AB9: =IF(AA9=0,0,(AA9*((LOG(AA9))/LOG(2)))) ->  | AD9: =N9 -> 121 | AE9: =COUNTIF(L21:L26,AD9) -> 0 | AF9: =AE9/(AG4-AE7) ->  | AG9: =IF(AF9=0,0,(AF9*((LOG(AF9))/LOG(2)))) ->  | AI9: =N9 -> 121 | AJ9: =COUNTIF(L27:L33,AI9) -> 0 | AK9: =AJ9/(AL4-AJ7) ->  | AL9: =IF(AK9=0,0,(AK9*((LOG(AK9))/LOG(2)))) ->  | AN9: =N9 -> 121 | AO9: =COUNTIF(L34:L40,AN9) -> 0 | AP9: =AO9/(AQ4-AO7) ->  | AQ9: =IF(AP9=0,0,(AP9*((LOG(AP9))/LOG(2)))) ->  | AS9: =N9 -> 121 | AT9: =COUNTIF(L41:L47,AS9) -> 0 | AU9: =AT9/(AV4-AT7) ->  | AV9: =IF(AU9=0,0,(AU9*((LOG(AU9))/LOG(2)))) -> 
A10: 11 | B10: 484 | C10: 11 | D10: 490 | E10: 11 | F10: 505 | K10: 0 | L10: 111 | N10: 122 | O10: =COUNTIF($L$7:$L$500,N10) -> 1 | P10: =O10/$Q$4 -> 0.0243902439 | Q10: =IF(P10=0,0,(P10*((LOG(P10))/LOG(2)))) -> -0.1306720001 | T10: =N10 -> 122 | U10: =COUNTIF(L7:L13,T10) -> 1 | V10: =U10/(W4-U7) -> 1 | W10: =IF(V10=0,0,(V10*((LOG(V10))/LOG(2)))) -> 0 | Y10: =N10 -> 122 | Z10: =COUNTIF(L14:L20,Y10) -> 0 | AA10: =Z10/(AB4-Z7) ->  | AB10: =IF(AA10=0,0,(AA10*((LOG(AA10))/LOG(2)))) ->  | AD10: =N10 -> 122 | AE10: =COUNTIF(L21:L26,AD10) -> 0 | AF10: =AE10/(AG4-AE7) ->  | AG10: =IF(AF10=0,0,(AF10*((LOG(AF10))/LOG(2)))) ->  | AI10: =N10 -> 122 | AJ10: =COUNTIF(L27:L33,AI10) -> 0 | AK10: =AJ10/(AL4-AJ7) ->  | AL10: =IF(AK10=0,0,(AK10*((LOG(AK10))/LOG(2)))) ->  | AN10: =N10 -> 122 | AO10: =COUNTIF(L34:L40,AN10) -> 0 | AP10: =AO10/(AQ4-AO7) ->  | AQ10: =IF(AP10=0,0,(AP10*((LOG(AP10))/LOG(2)))) ->  | AS10: =N10 -> 122 | AT10: =COUNTIF(L41:L47,AS10) -> 0 | AU10: =AT10/(AV4-AT7) ->  | AV10: =IF(AU10=0,0,(AU10*((LOG(AU10))/LOG(2)))) -> 
A11: 11 | B11: 644 | C11: 11 | D11: 651 | E11: 11 | F11: 657 | K11: 0 | L11: 111 | N11: 211 | O11: =COUNTIF($L$7:$L$500,N11) -> 0 | P11: =O11/$Q$4 -> 0 | Q11: =IF(P11=0,0,(P11*((LOG(P11))/LOG(2)))) -> 0 | T11: =N11 -> 211 | U11: =COUNTIF(L7:L13,T11) -> 0 | V11: =U11/(W4-U7) -> 0 | W11: =IF(V11=0,0,(V11*((LOG(V11))/LOG(2)))) -> 0 | Y11: =N11 -> 211 | Z11: =COUNTIF(L14:L20,Y11) -> 0 | AA11: =Z11/(AB4-Z7) ->  | AB11: =IF(AA11=0,0,(AA11*((LOG(AA11))/LOG(2)))) ->  | AD11: =N11 -> 211 | AE11: =COUNTIF(L21:L26,AD11) -> 0 | AF11: =AE11/(AG4-AE7) ->  | AG11: =IF(AF11=0,0,(AF11*((LOG(AF11))/LOG(2)))) ->  | AI11: =N11 -> 211 | AJ11: =COUNTIF(L27:L33,AI11) -> 0 | AK11: =AJ11/(AL4-AJ7) ->  | AL11: =IF(AK11=0,0,(AK11*((LOG(AK11))/LOG(2)))) ->  | AN11: =N11 -> 211 | AO11: =COUNTIF(L34:L40,AN11) -> 0 | AP11: =AO11/(AQ4-AO7) ->  | AQ11: =IF(AP11=0,0,(AP11*((LOG(AP11))/LOG(2)))) ->  | AS11: =N11 -> 211 | AT11: =COUNTIF(L41:L47,AS11) -> 0 | AU11: =AT11/(AV4-AT7) ->  | AV11: =IF(AU11=0,0,(AU11*((LOG(AU11))/LOG(2)))) -> 
A12: 11 | B12: 804 | C12: 11 | D12: 810 | E12: 11 | F12: 817 | K12: 0 | L12: 111 | N12: 212 | O12: =COUNTIF($L$7:$L$500,N12) -> 0 | P12: =O12/$Q$4 -> 0 | Q12: =IF(P12=0,0,(P12*((LOG(P12))/LOG(2)))) -> 0 | T12: =N12 -> 212 | U12: =COUNTIF(L7:L13,T12) -> 0 | V12: =U12/(W4-U7) -> 0 | W12: =IF(V12=0,0,(V12*((LOG(V12))/LOG(2)))) -> 0 | Y12: =N12 -> 212 | Z12: =COUNTIF(L14:L20,Y12) -> 0 | AA12: =Z12/(AB4-Z7) ->  | AB12: =IF(AA12=0,0,(AA12*((LOG(AA12))/LOG(2)))) ->  | AD12: =N12 -> 212 | AE12: =COUNTIF(L21:L26,AD12) -> 0 | AF12: =AE12/(AG4-AE7) ->  | AG12: =IF(AF12=0,0,(AF12*((LOG(AF12))/LOG(2)))) ->  | AI12: =N12 -> 212 | AJ12: =COUNTIF(L27:L33,AI12) -> 0 | AK12: =AJ12/(AL4-AJ7) ->  | AL12: =IF(AK12=0,0,(AK12*((LOG(AK12))/LOG(2)))) ->  | AN12: =N12 -> 212 | AO12: =COUNTIF(L34:L40,AN12) -> 0 | AP12: =AO12/(AQ4-AO7) ->  | AQ12: =IF(AP12=0,0,(AP12*((LOG(AP12))/LOG(2)))) ->  | AS12: =N12 -> 212 | AT12: =COUNTIF(L41:L47,AS12) -> 0 | AU12: =AT12/(AV4-AT7) ->  | AV12: =IF(AU12=0,0,(AU12*((LOG(AU12))/LOG(2)))) -> 
A13: 11 | B13: 944 | C13: 11 | D13: 951 | E13: 11 | F13: 957 | K13: 0 | L13: 111 | N13: 221 | O13: =COUNTIF($L$7:$L$500,N13) -> 0 | P13: =O13/$Q$4 -> 0 | Q13: =IF(P13=0,0,(P13*((LOG(P13))/LOG(2)))) -> 0 | T13: =N13 -> 221 | U13: =COUNTIF(L7:L13,T13) -> 0 | V13: =U13/(W4-U7) -> 0 | W13: =IF(V13=0,0,(V13*((LOG(V13))/LOG(2)))) -> 0 | Y13: =N13 -> 221 | Z13: =COUNTIF(L14:L20,Y13) -> 0 | AA13: =Z13/(AB4-Z7) ->  | AB13: =IF(AA13=0,0,(AA13*((LOG(AA13))/LOG(2)))) ->  | AD13: =N13 -> 221 | AE13: =COUNTIF(L21:L26,AD13) -> 0 | AF13: =AE13/(AG4-AE7) ->  | AG13: =IF(AF13=0,0,(AF13*((LOG(AF13))/LOG(2)))) ->  | AI13: =N13 -> 221 | AJ13: =COUNTIF(L27:L33,AI13) -> 0 | AK13: =AJ13/(AL4-AJ7) ->  | AL13: =IF(AK13=0,0,(AK13*((LOG(AK13))/LOG(2)))) ->  | AN13: =N13 -> 221 | AO13: =COUNTIF(L34:L40,AN13) -> 0 | AP13: =AO13/(AQ4-AO7) ->  | AQ13: =IF(AP13=0,0,(AP13*((LOG(AP13))/LOG(2)))) ->  | AS13: =N13 -> 221 | AT13: =COUNTIF(L41:L47,AS13) -> 0 | AU13: =AT13/(AV4-AT7) ->  | AV13: =IF(AU13=0,0,(AU13*((LOG(AU13))/LOG(2)))) -> 
A14: 11 | B14: 1097 | C14: 11 | D14: 1102 | E14: 11 | F14: 1109 | K14: 0 | L14: 111 | N14: 222 | O14: =COUNTIF($L$7:$L$500,N14) -> 0 | P14: =O14/$Q$4 -> 0 | Q14: =IF(P14=0,0,(P14*((LOG(P14))/LOG(2)))) -> 0 | T14: =N14 -> 222 | U14: =COUNTIF(L7:L13,T14) -> 0 | V14: =U14/(W4-U7) -> 0 | W14: =IF(V14=0,0,(V14*((LOG(V14))/LOG(2)))) -> 0 | Y14: =N14 -> 222 | Z14: =COUNTIF(L14:L20,Y14) -> 0 | AA14: =Z14/(AB4-Z7) ->  | AB14: =IF(AA14=0,0,(AA14*((LOG(AA14))/LOG(2)))) ->  | AD14: =N14 -> 222 | AE14: =COUNTIF(L21:L26,AD14) -> 0 | AF14: =AE14/(AG4-AE7) ->  | AG14: =IF(AF14=0,0,(AF14*((LOG(AF14))/LOG(2)))) ->  | AI14: =N14 -> 222 | AJ14: =COUNTIF(L27:L33,AI14) -> 0 | AK14: =AJ14/(AL4-AJ7) ->  | AL14: =IF(AK14=0,0,(AK14*((LOG(AK14))/LOG(2)))) ->  | AN14: =N14 -> 222 | AO14: =COUNTIF(L34:L40,AN14) -> 0 | AP14: =AO14/(AQ4-AO7) ->  | AQ14: =IF(AP14=0,0,(AP14*((LOG(AP14))/LOG(2)))) ->  | AS14: =N14 -> 222 | AT14: =COUNTIF(L41:L47,AS14) -> 0 | AU14: =AT14/(AV4-AT7) ->  | AV14: =IF(AU14=0,0,(AU14*((LOG(AU14))/LOG(2)))) -> 
A15: 11 | B15: 1318 | C15: 11 | D15: 1324 | E15: 11 | F15: 1330 | K15: 0 | L15: 111 | P15: =SUM(P7:P14) -> 1 | Q15: =-SUM(Q7:Q14) -> 0.165427034 | V15: =SUM(V7:V14) -> 1 | W15: =-SUM(W7:W14) -> 0 | AA15: =SUM(AA7:AA14) ->  | AB15: =-SUM(AB7:AB14) ->  | AF15: =SUM(AF7:AF14) ->  | AG15: =-SUM(AG7:AG14) ->  | AK15: =SUM(AK7:AK14) ->  | AL15: =-SUM(AL7:AL14) ->  | AP15: =SUM(AP7:AP14) ->  | AQ15: =-SUM(AQ7:AQ14) ->  | AU15: =SUM(AU7:AU14) ->  | AV15: =-SUM(AV7:AV14) -> 
A16: 11 | B16: 1530 | C16: 11 | D16: 1537 | E16: 11 | F16: 1542 | K16: 0 | L16: 111 | P16: U= | Q16: =Q15/(LOG(Q4)/LOG(2)) -> 0.03087735478 | V16: U1= | W16: =W15/(LOG(W4)/LOG(2)) -> 0 | AA16: U2= | AB16: =AB15/(LOG(AB4)/LOG(2)) ->  | AF16: U3= | AG16: =AG15/(LOG(AG4)/LOG(2)) ->  | AK16: U4= | AL16: =AL15/(LOG(AL4)/LOG(2)) ->  | AP16: U5= | AQ16: =AQ15/(LOG(AQ4)/LOG(2)) ->  | AU16: U6= | AV16: =AV15/(LOG(AV4)/LOG(2)) -> 
A17: 11 | B17: 1682 | C17: 11 | D17: 1686 | E17: 11 | F17: 1691 | K17: 0 | L17: 111
A18: 11 | B18: 1831 | C18: 11 | D18: 1841 | E18: 11 | F18: 1847 | K18: 0 | L18: 111
A19: 11 | B19: 1950 | C19: 11 | D19: 1956 | E19: 11 | F19: 1962 | K19: 0 | L19: 111 | N19: Total Target Seq
A20: 11 | B20: 2124 | C20: 11 | D20: 2131 | E20: 11 | F20: 2138 | K20: 0 | L20: 111 | N20: =COUNTIF(L7:L47,G3) -> 40 | P20: 7 | Q20: 7 | R20: 6 | S20: 7 | T20: 7 | U20: 7
A21: 11 | B21: 2344 | C21: 11 | D21: 2350 | E21: 11 | F21: 2357 | K21: 0 | L21: 111 | P21: % of reinforcement given in 6 equal intervals based on number of trials
A22: 11 | B22: 2586 | C22: 11 | D22: 2591 | E22: 11 | F22: 2598 | K22: 0 | L22: 111 | P22: %_1 | Q22: %_2 | R22: %_3 | S22: %_4 | T22: %_5 | U22: %_6
A23: 11 | B23: 2707 | C23: 11 | D23: 2713 | E23: 11 | F23: 2719 | K23: 0 | L23: 111 | O23: target sequence | P23: =$G$3 -> 111 | Q23: =$G$3 -> 111 | R23: =$G$3 -> 111 | S23: =$G$3 -> 111 | T23: =$G$3 -> 111 | U23: =$G$3 -> 111
A24: 11 | B24: 2889 | C24: 11 | D24: 2896 | E24: 11 | F24: 2902 | K24: 0 | L24: 111 | O24: total reinforcement | P24: =U7 -> 6 | Q24: =Z7 -> 7 | R24: =AE7 -> 6 | S24: =AJ7 -> 7 | T24: =AO7 -> 7 | U24: =AT7 -> 7
A25: 11 | B25: 3016 | C25: 11 | D25: 3023 | E25: 11 | F25: 3030 | K25: 0 | L25: 111 | O25: % target
A26: 11 | B26: 3239 | C26: 11 | D26: 3245 | E26: 11 | F26: 3250 | K26: 0 | L26: 111 | O26: CCRF
A27: 11 | B27: 3423 | C27: 11 | D27: 3427 | E27: 11 | F27: 3433 | K27: 0 | L27: 111 | O27: % CCRf
A28: 11 | B28: 3610 | C28: 11 | D28: 3616 | E28: 11 | F28: 3621 | K28: 0 | L28: 111 | O28: average response rate | P28: =F13/P20 -> 136.7142857 | Q28: =(F20-F13)/Q20 -> 168.7142857 | R28: =(F26-F20)/R20 -> 185.3333333 | S28: =(F33-F26)/S20 -> 187.2857143 | T28: =(F40-F33)/T20 -> 215.5714286 | U28: =(F47-F40)/U20 -> 220.4285714
A29: 11 | B29: 3762 | C29: 11 | D29: 3769 | E29: 11 | F29: 3778 | K29: 0 | L29: 111
A30: 11 | B30: 3951 | C30: 11 | D30: 3958 | E30: 11 | F30: 3964 | K30: 0 | L30: 111
A31: 11 | B31: 4114 | C31: 11 | D31: 4125 | E31: 11 | F31: 4128 | K31: 0 | L31: 111
A32: 11 | B32: 4268 | C32: 11 | D32: 4275 | E32: 11 | F32: 4281 | K32: 0 | L32: 111
A33: 11 | B33: 4550 | C33: 11 | D33: 4556 | E33: 11 | F33: 4561 | K33: 0 | L33: 111
A34: 11 | B34: 4769 | C34: 11 | D34: 4775 | E34: 11 | F34: 4785 | K34: 0 | L34: 111
A35: 11 | B35: 5016 | C35: 11 | D35: 5021 | E35: 11 | F35: 5031 | K35: 0 | L35: 111
A36: 11 | B36: 5208 | C36: 11 | D36: 5214 | E36: 11 | F36: 5220 | K36: 0 | L36: 111
A37: 11 | B37: 5364 | C37: 11 | D37: 5367 | E37: 11 | F37: 5373 | K37: 0 | L37: 111
A38: 11 | B38: 5600 | C38: 11 | D38: 5606 | E38: 11 | F38: 5612 | K38: 0 | L38: 111
A39: 11 | B39: 5832 | C39: 11 | D39: 5840 | E39: 11 | F39: 5846 | K39: 0 | L39: 111
A40: 11 | B40: 6059 | C40: 11 | D40: 6065 | E40: 11 | F40: 6070 | K40: 0 | L40: 111
A41: 11 | B41: 6255 | C41: 11 | D41: 6258 | E41: 11 | F41: 6264 | K41: 0 | L41: 111
A42: 11 | B42: 6432 | C42: 11 | D42: 6438 | E42: 11 | F42: 6444 | K42: 0 | L42: 111
A43: 11 | B43: 6693 | C43: 11 | D43: 6699 | E43: 11 | F43: 6705 | K43: 0 | L43: 111
A44: 11 | B44: 6930 | C44: 11 | D44: 6936 | E44: 11 | F44: 6944 | K44: 0 | L44: 111
A45: 11 | B45: 7168 | C45: 11 | D45: 7174 | E45: 11 | F45: 7181 | K45: 0 | L45: 111
A46: 11 | B46: 7344 | C46: 11 | D46: 7349 | E46: 11 | F46: 7356 | K46: 0 | L46: 111
A47: 11 | B47: 7606 | C47: 11 | D47: 7609 | E47: 11 | F47: 7613 | K47: 1 | L47: 111

Sheet !M626A2D.ust
A1: Report for:!M626A2D.ust
A2: Date: | B2: <date>
A3: Hen: | B3: <hen> | F3: Correct Sequence | G3: =Start!J2 -> 111 | P3: Total Sequences in Data | Q3: =4994-COUNTBLANK(L7:L5000) -> 44 | V3: Total Sequences in Block Data | W3: =COUNTA(L7:L13) -> 7 | AA3: Total Sequences in Block Data | AB3: =COUNTA(L14:L21) -> 8 | AF3: Total Sequences in Block Data | AG3: =COUNTA(L22:L28) -> 7 | AK3: Total Sequences in Block Data | AL3: =COUNTA(L29:L35) -> 7 | AP3: Total Sequences in Block Data | AQ3: =COUNTA(L36:L43) -> 8 | AU3: Total Sequences in Block Data | AV3: =COUNTA(L44:L50) -> 7
P4: Total Sequences in Summary | Q4: =SUM(O7:O14) -> 44 | V4: Total Sequences in Block Summary | W4: =SUM(U7:U14) -> 7 | AA4: Total Sequences in Block Summary | AB4: =SUM(Z7:Z14) -> 8 | AF4: Total Sequences in Block Summary | AG4: =SUM(AE7:AE14) -> 7 | AK4: Total Sequences in Block Summary | AL4: =SUM(AJ7:AJ14) -> 7 | AP4: Total Sequences in Block Summary | AQ4: =SUM(AO7:AO14) -> 8 | AU4: Total Sequences in Block Summary | AV4: =SUM(AT7:AT14) -> 7
T5: Block 1 | Y5: Block 2 | AD5: Block 3 | AI5: Block 4 | AN5: Block 5 | AS5: Block 6
A6: Sequence Component 1 | B6: Time 1 | C6: Sequence Component 2 | D6: Time 2 | E6: Sequence Component 3 | F6: Time 3 | G6: Sequence Component 4 | H6: Time 4 | I6: Sequence Component 5 | J6: Time 5 | K6: Correct? 0=No 1=Yes | L6: Sequence | N6: Frequency | P6: Relative Frequency | Q6: Variability | T6: Frequency | V6: Relative Frequency | W6: Variability | Y6: Frequency | AA6: Relative Frequency | AB6: Variability | AD6: Frequency | AF6: Relative Frequency | AG6: Variability | AI6: Frequency | AK6: Relative Frequency | AL6: Variability | AN6: Frequency | AP6: Relative Frequency | AQ6: Variability | AS6: Frequency | AU6: Relative Frequency | AV6: Variability
A7: 22 | B7: 7 | C7: 24 | D7: 12 | E7: 24 | F7: 18 | K7: 0 | L7: 222 | N7: 111 | O7: =COUNTIF($L$7:$L$500,N7) -> 40 | P7: =O7/$Q$4 -> 0.9090909091 | Q7: =IF(P7=0,0,(P7*((LOG(P7))/LOG(2)))) -> -0.1250032034 | T7: =N7 -> 111 | U7: =COUNTIF(L7:L13,T7) -> 5 | Y7: =N7 -> 111 | Z7: =COUNTIF(L14:L21,Y7) -> 6 | AD7: =N7 -> 111 | AE7: =COUNTIF(L22:L28,AD7) -> 7 | AI7: =N7 -> 111 | AJ7: =COUNTIF(L29:L35,AI7) -> 7 | AN7: =N7 -> 111 | AO7: =COUNTIF(L36:L43,AN7) -> 8 | AS7: =N7 -> 111 | AT7: =COUNTIF(L44:L50,AS7) -> 7
A8: 22 | B8: 115 | C8: 24 | D8: 120 | E8: 24 | F8: 126 | K8: 0 | L8: 222 | N8: 112 | O8: =COUNTIF($L$7:$L$500,N8) -> 1 | P8: =O8/$Q$4 -> 0.02272727273 | Q8: =IF(P8=0,0,(P8*((LOG(P8))/LOG(2)))) -> -0.1240779913 | T8: =N8 -> 112 | U8: =COUNTIF(L7:L13,T8) -> 0 | V8: =U8/(W4-U7) -> 0 | W8: =IF(V8=0,0,(V8*((LOG(V8))/LOG(2)))) -> 0 | Y8: =N8 -> 112 | Z8: =COUNTIF(L14:L21,Y8) -> 1 | AA8: =Z8/(AB4-Z7) -> 0.5 | AB8: =IF(AA8=0,0,(AA8*((LOG(AA8))/LOG(2)))) -> -0.5 | AD8: =N8 -> 112 | AE8: =COUNTIF(L22:L28,AD8) -> 0 | AF8: =AE8/(AG4-AE7) ->  | AG8: =IF(AF8=0,0,(AF8*((LOG(AF8))/LOG(2)))) ->  | AI8: =N8 -> 112 | AJ8: =COUNTIF(L29:L35,AI8) -> 0 | AK8: =AJ8/(AL4-AJ7) ->  | AL8: =IF(AK8=0,0,(AK8*((LOG(AK8))/LOG(2)))) ->  | AN8: =N8 -> 112 | AO8: =COUNTIF(L36:L43,AN8) -> 0 | AP8: =AO8/(AQ4-AO7) ->  | AQ8: =IF(AP8=0,0,(AP8*((LOG(AP8))/LOG(2)))) ->  | AS8: =N8 -> 112 | AT8: =COUNTIF(L44:L50,AS8) -> 0 | AU8: =AT8/(AV4-AT7) ->  | AV8: =IF(AU8=0,0,(AU8*((LOG(AU8))/LOG(2)))) -> 
A9: 11 | B9: 224 | C9: 11 | D9: 231 | E9: 11 | F9: 239 | K9: 0 | L9: 111 | N9: 121 | O9: =COUNTIF($L$7:$L$500,N9) -> 0 | P9: =O9/$Q$4 -> 0 | Q9: =IF(P9=0,0,(P9*((LOG(P9))/LOG(2)))) -> 0 | T9: =N9 -> 121 | U9: =COUNTIF(L7:L13,T9) -> 0 | V9: =U9/(W4-U7) -> 0 | W9: =IF(V9=0,0,(V9*((LOG(V9))/LOG(2)))) -> 0 | Y9: =N9 -> 121 | Z9: =COUNTIF(L14:L21,Y9) -> 0 | AA9: =Z9/(AB4-Z7) -> 0 | AB9: =IF(AA9=0,0,(AA9*((LOG(AA9))/LOG(2)))) -> 0 | AD9: =N9 -> 121 | AE9: =COUNTIF(L22:L28,AD9) -> 0 | AF9: =AE9/(AG4-AE7) ->  | AG9: =IF(AF9=0,0,(AF9*((LOG(AF9))/LOG(2)))) ->  | AI9: =N9 -> 121 | AJ9: =COUNTIF(L29:L35,AI9) -> 0 | AK9: =AJ9/(AL4-AJ7) ->  | AL9: =IF(AK9=0,0,(AK9*((LOG(AK9))/LOG(2)))) ->  | AN9: =N9 -> 121 | AO9: =COUNTIF(L36:L43,AN9) -> 0 | AP9: =AO9/(AQ4-AO7) ->  | AQ9: =IF(AP9=0,0,(AP9*((LOG(AP9))/LOG(2)))) ->  | AS9: =N9 -> 121 | AT9: =COUNTIF(L44:L50,AS9) -> 0 | AU9: =AT9/(AV4-AT7) ->  | AV9: =IF(AU9=0,0,(AU9*((LOG(AU9))/LOG(2)))) -> 
A10: 11 | B10: 395 | C10: 11 | D10: 398 | E10: 11 | F10: 406 | K10: 0 | L10: 111 | N10: 122 | O10: =COUNTIF($L$7:$L$500,N10) -> 0 | P10: =O10/$Q$4 -> 0 | Q10: =IF(P10=0,0,(P10*((LOG(P10))/LOG(2)))) -> 0 | T10: =N10 -> 122 | U10: =COUNTIF(L7:L13,T10) -> 0 | V10: =U10/(W4-U7) -> 0 | W10: =IF(V10=0,0,(V10*((LOG(V10))/LOG(2)))) -> 0 | Y10: =N10 -> 122 | Z10: =COUNTIF(L14:L21,Y10) -> 0 | AA10: =Z10/(AB4-Z7) -> 0 | AB10: =IF(AA10=0,0,(AA10*((LOG(AA10))/LOG(2)))) -> 0 | AD10: =N10 -> 122 | AE10: =COUNTIF(L22:L28,AD10) -> 0 | AF10: =AE10/(AG4-AE7) ->  | AG10: =IF(AF10=0,0,(AF10*((LOG(AF10))/LOG(2)))) ->  | AI10: =N10 -> 122 | AJ10: =COUNTIF(L29:L35,AI10) -> 0 | AK10: =AJ10/(AL4-AJ7) ->  | AL10: =IF(AK10=0,0,(AK10*((LOG(AK10))/LOG(2)))) ->  | AN10: =N10 -> 122 | AO10: =COUNTIF(L36:L43,AN10) -> 0 | AP10: =AO10/(AQ4-AO7) ->  | AQ10: =IF(AP10=0,0,(AP10*((LOG(AP10))/LOG(2)))) ->  | AS10: =N10 -> 122 | AT10: =COUNTIF(L44:L50,AS10) -> 0 | AU10: =AT10/(AV4-AT7) ->  | AV10: =IF(AU10=0,0,(AU10*((LOG(AU10))/LOG(2)))) -> 
A11: 11 | B11: 596 | C11: 11 | D11: 602 | E11: 11 | F11: 609 | K11: 0 | L11: 111 | N11: 211 | O11: =COUNTIF($L$7:$L$500,N11) -> 0 | P11: =O11/$Q$4 -> 0 | Q11: =IF(P11=0,0,(P11*((LOG(P11))/LOG(2)))) -> 0 | T11: =N11 -> 211 | U11: =COUNTIF(L7:L13,T11) -> 0 | V11: =U11/(W4-U7) -> 0 | W11: =IF(V11=0,0,(V11*((LOG(V11))/LOG(2)))) -> 0 | Y11: =N11 -> 211 | Z11: =COUNTIF(L14:L21,Y11) -> 0 | AA11: =Z11/(AB4-Z7) -> 0 | AB11: =IF(AA11=0,0,(AA11*((LOG(AA11))/LOG(2)))) -> 0 | AD11: =N11 -> 211 | AE11: =COUNTIF(L22:L28,AD11) -> 0 | AF11: =AE11/(AG4-AE7) ->  | AG11: =IF(AF11=0,0,(AF11*((LOG(AF11))/LOG(2)))) ->  | AI11: =N11 -> 211 | AJ11: =COUNTIF(L29:L35,AI11) -> 0 | AK11: =AJ11/(AL4-AJ7) ->  | AL11: =IF(AK11=0,0,(AK11*((LOG(AK11))/LOG(2)))) ->  | AN11: =N11 -> 211 | AO11: =COUNTIF(L36:L43,AN11) -> 0 | AP11: =AO11/(AQ4-AO7) ->  | AQ11: =IF(AP11=0,0,(AP11*((LOG(AP11))/LOG(2)))) ->  | AS11: =N11 -> 211 | AT11: =COUNTIF(L44:L50,AS11) -> 0 | AU11: =AT11/(AV4-AT7) ->  | AV11: =IF(AU11=0,0,(AU11*((LOG(AU11))/LOG(2)))) -> 
A12: 11 | B12: 764 | C12: 11 | D12: 769 | E12: 11 | F12: 776 | K12: 0 | L12: 111 | N12: 212 | O12: =COUNTIF($L$7:$L$500,N12) -> 0 | P12: =O12/$Q$4 -> 0 | Q12: =IF(P12=0,0,(P12*((LOG(P12))/LOG(2)))) -> 0 | T12: =N12 -> 212 | U12: =COUNTIF(L7:L13,T12) -> 0 | V12: =U12/(W4-U7) -> 0 | W12: =IF(V12=0,0,(V12*((LOG(V12))/LOG(2)))) -> 0 | Y12: =N12 -> 212 | Z12: =COUNTIF(L14:L21,Y12) -> 0 | AA12: =Z12/(AB4-Z7) -> 0 | AB12: =IF(AA12=0,0,(AA12*((LOG(AA12))/LOG(2)))) -> 0 | AD12: =N12 -> 212 | AE12: =COUNTIF(L22:L28,AD12) -> 0 | AF12: =AE12/(AG4-AE7) ->  | AG12: =IF(AF12=0,0,(AF12*((LOG(AF12))/LOG(2)))) ->  | AI12: =N12 -> 212 | AJ12: =COUNTIF(L29:L35,AI12) -> 0 | AK12: =AJ12/(AL4-AJ7) ->  | AL12: =IF(AK12=0,0,(AK12*((LOG(AK12))/LOG(2)))) ->  | AN12: =N12 -> 212 | AO12: =COUNTIF(L36:L43,AN12) -> 0 | AP12: =AO12/(AQ4-AO7) ->  | AQ12: =IF(AP12=0,0,(AP12*((LOG(AP12))/LOG(2)))) ->  | AS12: =N12 -> 212 | AT12: =COUNTIF(L44:L50,AS12) -> 0 | AU12: =AT12/(AV4-AT7) ->  | AV12: =IF(AU12=0,0,(AU12*((LOG(AU12))/LOG(2)))) -> 
A13: 11 | B13: 974 | C13: 11 | D13: 979 | E13: 11 | F13: 993 | K13: 0 | L13: 111 | N13: 221 | O13: =COUNTIF($L$7:$L$500,N13) -> 1 | P13: =O13/$Q$4 -> 0.02272727273 | Q13: =IF(P13=0,0,(P13*((LOG(P13))/LOG(2)))) -> -0.1240779913 | T13: =N13 -> 221 | U13: =COUNTIF(L7:L13,T13) -> 0 | V13: =U13/(W4-U7) -> 0 | W13: =IF(V13=0,0,(V13*((LOG(V13))/LOG(2)))) -> 0 | Y13: =N13 -> 221 | Z13: =COUNTIF(L14:L21,Y13) -> 1 | AA13: =Z13/(AB4-Z7) -> 0.5 | AB13: =IF(AA13=0,0,(AA13*((LOG(AA13))/LOG(2)))) -> -0.5 | AD13: =N13 -> 221 | AE13: =COUNTIF(L22:L28,AD13) -> 0 | AF13: =AE13/(AG4-AE7) ->  | AG13: =IF(AF13=0,0,(AF13*((LOG(AF13))/LOG(2)))) ->  | AI13: =N13 -> 221 | AJ13: =COUNTIF(L29:L35,AI13) -> 0 | AK13: =AJ13/(AL4-AJ7) ->  | AL13: =IF(AK13=0,0,(AK13*((LOG(AK13))/LOG(2)))) ->  | AN13: =N13 -> 221 | AO13: =COUNTIF(L36:L43,AN13) -> 0 | AP13: =AO13/(AQ4-AO7) ->  | AQ13: =IF(AP13=0,0,(AP13*((LOG(AP13))/LOG(2)))) ->  | AS13: =N13 -> 221 | AT13: =COUNTIF(L44:L50,AS13) -> 0 | AU13: =AT13/(AV4-AT7) ->  | AV13: =IF(AU13=0,0,(AU13*((LOG(AU13))/LOG(2)))) -> 
A14: 11 | B14: 1183 | C14: 11 | D14: 1187 | E14: 11 | F14: 1193 | K14: 0 | L14: 111 | N14: 222 | O14: =COUNTIF($L$7:$L$500,N14) -> 2 | P14: =O14/$Q$4 -> 0.04545454545 | Q14: =IF(P14=0,0,(P14*((LOG(P14))/LOG(2)))) -> -0.2027014372 | T14: =N14 -> 222 | U14: =COUNTIF(L7:L13,T14) -> 2 | V14: =U14/(W4-U7) -> 1 | W14: =IF(V14=0,0,(V14*((LOG(V14))/LOG(2)))) -> 0 | Y14: =N14 -> 222 | Z14: =COUNTIF(L14:L21,Y14) -> 0 | AA14: =Z14/(AB4-Z7) -> 0 | AB14: =IF(AA14=0,0,(AA14*((LOG(AA14))/LOG(2)))) -> 0 | AD14: =N14 -> 222 | AE14: =COUNTIF(L22:L28,AD14) -> 0 | AF14: =AE14/(AG4-AE7) ->  | AG14: =IF(AF14=0,0,(AF14*((LOG(AF14))/LOG(2)))) ->  | AI14: =N14 -> 222 | AJ14: =COUNTIF(L29:L35,AI14) -> 0 | AK14: =AJ14/(AL4-AJ7) ->  | AL14: =IF(AK14=0,0,(AK14*((LOG(AK14))/LOG(2)))) ->  | AN14: =N14 -> 222 | AO14: =COUNTIF(L36:L43,AN14) -> 0 | AP14: =AO14/(AQ4-AO7) ->  | AQ14: =IF(AP14=0,0,(AP14*((LOG(AP14))/LOG(2)))) ->  | AS14: =N14 -> 222 | AT14: =COUNTIF(L44:L50,AS14) -> 0 | AU14: =AT14/(AV4-AT7) ->  | AV14: =IF(AU14=0,0,(AU14*((LOG(AU14))/LOG(2)))) -> 
A15: 11 | B15: 1356 | C15: 11 | D15: 1362 | E15: 22 | F15: 1378 | K15: 0 | L15: 112 | P15: =SUM(P7:P14) -> 1 | Q15: =-SUM(Q7:Q14) -> 0.5758606233 | V15: =SUM(V7:V14) -> 1 | W15: =-SUM(W7:W14) -> 0 | AA15: =SUM(AA7:AA14) -> 1 | AB15: =-SUM(AB7:AB14) -> 1 | AF15: =SUM(AF7:AF14) ->  | AG15: =-SUM(AG7:AG14) ->  | AK15: =SUM(AK7:AK14) ->  | AL15: =-SUM(AL7:AL14) ->  | AP15: =SUM(AP7:AP14) ->  | AQ15: =-SUM(AQ7:AQ14) ->  | AU15: =SUM(AU7:AU14) ->  | AV15: =-SUM(AV7:AV14) -> 
A16: 22 | B16: 1483 | C16: 24 | D16: 1489 | E16: 13 | F16: 1508 | K16: 0 | L16: 221 | P16: U= | Q16: =Q15/(LOG(Q4)/LOG(2)) -> 0.105479959 | V16: U1= | W16: =W15/(LOG(W4)/LOG(2)) -> 0 | AA16: U2= | AB16: =AB15/(LOG(AB4)/LOG(2)) -> 0.3333333333 | AF16: U3= | AG16: =AG15/(LOG(AG4)/LOG(2)) ->  | AK16: U4= | AL16: =AL15/(LOG(AL4)/LOG(2)) ->  | AP16: U5= | AQ16: =AQ15/(LOG(AQ4)/LOG(2)) ->  | AU16: U6= | AV16: =AV15/(LOG(AV4)/LOG(2)) -> 
A17: 11 | B17: 1605 | C17: 11 | D17: 1611 | E17: 11 | F17: 1617 | K17: 0 | L17: 111
A18: 11 | B18: 1793 | C18: 11 | D18: 1799 | E18: 11 | F18: 1806 | K18: 0 | L18: 111
A19: 11 | B19: 2007 | C19: 11 | D19: 2013 | E19: 11 | F19: 2019 | K19: 0 | L19: 111 | N19: Total Target Seq
A20: 11 | B20: 2183 | C20: 11 | D20: 2188 | E20: 11 | F20: 2195 | K20: 0 | L20: 111 | N20: =COUNTIF(L7:L50,G3) -> 40 | P20: 7 | Q20: 8 | R20: 7 | S20: 7 | T20: 8 | U20: 7
A21: 11 | B21: 2421 | C21: 11 | D21: 2427 | E21: 11 | F21: 2434 | K21: 0 | L21: 111 | P21: % of reinforcement given in 6 equal intervals based on number of trials
A22: 11 | B22: 2594 | C22: 11 | D22: 2600 | E22: 11 | F22: 2606 | K22: 0 | L22: 111 | P22: %_1 | Q22: %_2 | R22: %_3 | S22: %_4 | T22: %_5 | U22: %_6
A23: 11 | B23: 2769 | C23: 11 | D23: 2775 | E23: 11 | F23: 2782 | K23: 0 | L23: 111 | O23: target sequence | P23: =$G$3 -> 111 | Q23: =$G$3 -> 111 | R23: =$G$3 -> 111 | S23: =$G$3 -> 111 | T23: =$G$3 -> 111 | U23: =$G$3 -> 111
A24: 11 | B24: 3020 | C24: 11 | D24: 3027 | E24: 11 | F24: 3038 | K24: 0 | L24: 111 | O24: total reinforcement | P24: =U7 -> 5 | Q24: =Z7 -> 6 | R24: =AE7 -> 7 | S24: =AJ7 -> 7 | T24: =AO7 -> 8 | U24: =AT7 -> 7
A25: 11 | B25: 3212 | C25: 11 | D25: 3218 | E25: 11 | F25: 3225 | K25: 0 | L25: 111 | O25: % target
A26: 11 | B26: 3375 | C26: 11 | D26: 3382 | E26: 11 | F26: 3391 | K26: 0 | L26: 111 | O26: CCRF
A27: 11 | B27: 3567 | C27: 11 | D27: 3577 | E27: 11 | F27: 3583 | K27: 0 | L27: 111 | O27: % CCRf
A28: 11 | B28: 3712 | C28: 11 | D28: 3721 | E28: 11 | F28: 3728 | K28: 0 | L28: 111 | O28: average response rate | P28: =F13/P20 -> 141.8571429 | Q28: =(F21-F13)/Q20 -> 180.125 | R28: =(F28-F21)/R20 -> 184.8571429 | S28: =(F35-F28)/S20 -> 218.1428571 | T28: =(F43-F35)/T20 -> 238.25 | U28: =(F50-F43)/U20 -> 231.4285714
A29: 11 | B29: 3963 | C29: 11 | D29: 3970 | E29: 11 | F29: 3983 | K29: 0 | L29: 111
A30: 11 | B30: 4257 | C30: 11 | D30: 4263 | E30: 11 | F30: 4272 | K30: 0 | L30: 111
A31: 11 | B31: 4387 | C31: 11 | D31: 4394 | E31: 11 | F31: 4401 | K31: 0 | L31: 111
A32: 11 | B32: 4577 | C32: 11 | D32: 4582 | E32: 11 | F32: 4587 | K32: 0 | L32: 111
A33: 11 | B33: 4742 | C33: 11 | D33: 4748 | E33: 11 | F33: 4764 | K33: 0 | L33: 111
A34: 11 | B34: 5070 | C34: 11 | D34: 5076 | E34: 11 | F34: 5082 | K34: 0 | L34: 111
A35: 11 | B35: 5242 | C35: 11 | D35: 5248 | E35: 11 | F35: 5255 | K35: 0 | L35: 111
A36: 11 | B36: 5419 | C36: 11 | D36: 5423 | E36: 11 | F36: 5429 | K36: 0 | L36: 111
A37: 11 | B37: 5573 | C37: 11 | D37: 5581 | E37: 11 | F37: 5588 | K37: 0 | L37: 111
A38: 11 | B38: 5749 | C38: 11 | D38: 5755 | E38: 11 | F38: 5762 | K38: 0 | L38: 111
A39: 11 | B39: 6083 | C39: 11 | D39: 6090 | E39: 11 | F39: 6095 | K39: 0 | L39: 111
A40: 11 | B40: 6250 | C40: 11 | D40: 6255 | E40: 11 | F40: 6262 | K40: 0 | L40: 111
A41: 11 | B41: 6579 | C41: 11 | D41: 6583 | E41: 11 | F41: 6589 | K41: 0 | L41: 111
A42: 11 | B42: 6803 | C42: 11 | D42: 6808 | E42: 11 | F42: 6815 | K42: 0 | L42: 111
A43: 11 | B43: 7150 | C43: 11 | D43: 7155 | E43: 11 | F43: 7161 | K43: 0 | L43: 111
A44: 11 | B44: 7374 | C44: 11 | D44: 7381 | E44: 11 | F44: 7387 | K44: 0 | L44: 111
A45: 11 | B45: 7600 | C45: 11 | D45: 7605 | E45: 11 | F45: 7611 | K45: 0 | L45: 111
A46: 11 | B46: 7791 | C46: 11 | D46: 7800 | E46: 11 | F46: 7807 | K46: 0 | L46: 111
A47: 11 | B47: 8109 | C47: 11 | D47: 8113 | E47: 11 | F47: 8119 | K47: 0 | L47: 111
A48: 11 | B48: 8361 | C48: 11 | D48: 8366 | E48: 11 | F48: 8369 | K48: 0 | L48: 111
A49: 11 | B49: 8553 | C49: 11 | D49: 8559 | E49: 11 | F49: 8565 | K49: 0 | L49: 111
A50: 11 | B50: 8768 | C50: 11 | D50: 8774 | E50: 11 | F50: 8781 | K50: 1 | L50: 111

Sheet !M627A3D.ust
A1: Report for:!M627A3D.ust
A2: Date: | B2: <date>
A3: Hen: | B3: <hen> | F3: Correct Sequence | G3: =Start!J2 -> 111 | P3: Total Sequences in Data | Q3: =4994-COUNTBLANK(L7:L5000) -> 42 | V3: Total Sequences in Block Data | W3: =COUNTA(L7:L13) -> 7 | AA3: Total Sequences in Block Data | AB3: =COUNTA(L14:L20) -> 7 | AF3: Total Sequences in Block Data | AG3: =COUNTA(L21:L27) -> 7 | AK3: Total Sequences in Block Data | AL3: =COUNTA(L28:L34) -> 7 | AP3: Total Sequences in Block Data | AQ3: =COUNTA(L35:L41) -> 7 | AU3: Total Sequences in Block Data | AV3: =COUNTA(L42:L48) -> 7
P4: Total Sequences in Summary | Q4: =SUM(O7:O14) -> 42 | V4: Total Sequences in Block Summary | W4: =SUM(U7:U14) -> 7 | AA4: Total Sequences in Block Summary | AB4: =SUM(Z7:Z14) -> 7 | AF4: Total Sequences in Block Summary | AG4: =SUM(AE7:AE14) -> 7 | AK4: Total Sequences in Block Summary | AL4: =SUM(AJ7:AJ14) -> 7 | AP4: Total Sequences in Block Summary | AQ4: =SUM(AO7:AO14) -> 7 | AU4: Total Sequences in Block Summary | AV4: =SUM(AT7:AT14) -> 7
T5: Block 1 | Y5: Block 2 | AD5: Block 3 | AI5: Block 4 | AN5: Block 5 | AS5: Block 6
A6: Sequence Component 1 | B6: Time 1 | C6: Sequence Component 2 | D6: Time 2 | E6: Sequence Component 3 | F6: Time 3 | G6: Sequence Component 4 | H6: Time 4 | I6: Sequence Component 5 | J6: Time 5 | K6: Correct? 0=No 1=Yes | L6: Sequence | N6: Frequency | P6: Relative Frequency | Q6: Variability | T6: Frequency | V6: Relative Frequency | W6: Variability | Y6: Frequency | AA6: Relative Frequency | AB6: Variability | AD6: Frequency | AF6: Relative Frequency | AG6: Variability | AI6: Frequency | AK6: Relative Frequency | AL6: Variability | AN6: Frequency | AP6: Relative Frequency | AQ6: Variability | AS6: Frequency | AU6: Relative Frequency | AV6: Variability
A7: 11 | B7: 7 | C7: 11 | D7: 11 | E7: 11 | F7: 18 | K7: 0 | L7: 111 | N7: 111 | O7: =COUNTIF($L$7:$L$500,N7) -> 40 | P7: =O7/$Q$4 -> 0.9523809524 | Q7: =IF(P7=0,0,(P7*((LOG(P7))/LOG(2)))) -> -0.06703745513 | T7: =N7 -> 111 | U7: =COUNTIF(L7:L13,T7) -> 7 | Y7: =N7 -> 111 | Z7: =COUNTIF(L14:L20,Y7) -> 7 | AD7: =N7 -> 111 | AE7: =COUNTIF(L21:L27,AD7) -> 7 | AI7: =N7 -> 111 | AJ7: =COUNTIF(L28:L34,AI7) -> 6 | AN7: =N7 -> 111 | AO7: =COUNTIF(L35:L41,AN7) -> 6 | AS7: =N7 -> 111 | AT7: =COUNTIF(L42:L48,AS7) -> 7
A8: 11 | B8: 119 | C8: 11 | D8: 125 | E8: 11 | F8: 140 | K8: 0 | L8: 111 | N8: 112 | O8: =COUNTIF($L$7:$L$500,N8) -> 0 | P8: =O8/$Q$4 -> 0 | Q8: =IF(P8=0,0,(P8*((LOG(P8))/LOG(2)))) -> 0 | T8: =N8 -> 112 | U8: =COUNTIF(L7:L13,T8) -> 0 | V8: =U8/(W4-U7) ->  | W8: =IF(V8=0,0,(V8*((LOG(V8))/LOG(2)))) ->  | Y8: =N8 -> 112 | Z8: =COUNTIF(L14:L20,Y8) -> 0 | AA8: =Z8/(AB4-Z7) ->  | AB8: =IF(AA8=0,0,(AA8*((LOG(AA8))/LOG(2)))) ->  | AD8: =N8 -> 112 | AE8: =COUNTIF(L21:L27,AD8) -> 0 | AF8: =AE8/(AG4-AE7) ->  | AG8: =IF(AF8=0,0,(AF8*((LOG(AF8))/LOG(2)))) ->  | AI8: =N8 -> 112 | AJ8: =COUNTIF(L28:L34,AI8) -> 0 | AK8: =AJ8/(AL4-AJ7) -> 0 | AL8: =IF(AK8=0,0,(AK8*((LOG(AK8))/LOG(2)))) -> 0 | AN8: =N8 -> 112 | AO8: =COUNTIF(L35:L41,AN8) -> 0 | AP8: =AO8/(AQ4-AO7) -> 0 | AQ8: =IF(AP8=0,0,(AP8*((LOG(AP8))/LOG(2)))) -> 0 | AS8: =N8 -> 112 | AT8: =COUNTIF(L42:L48,AS8) -> 0 | AU8: =AT8/(AV4-AT7) ->  | AV8: =IF(AU8=0,0,(AU8*((LOG(AU8))/LOG(2)))) -> 
A9: 11 | B9: 317 | C9: 11 | D9: 322 | E9: 11 | F9: 330 | K9: 0 | L9: 111 | N9: 121 | O9: =COUNTIF($L$7:$L$500,N9) -> 0 | P9: =O9/$Q$4 -> 0 | Q9: =IF(P9=0,0,(P9*((LOG(P9))/LOG(2)))) -> 0 | T9: =N9 -> 121 | U9: =COUNTIF(L7:L13,T9) -> 0 | V9: =U9/(W4-U7) ->  | W9: =IF(V9=0,0,(V9*((LOG(V9))/LOG(2)))) ->  | Y9: =N9 -> 121 | Z9: =COUNTIF(L14:L20,Y9) -> 0 | AA9: =Z9/(AB4-Z7) ->  | AB9: =IF(AA9=0,0,(AA9*((LOG(AA9))/LOG(2)))) ->  | AD9: =N9 -> 121 | AE9: =COUNTIF(L21:L27,AD9) -> 0 | AF9: =AE9/(AG4-AE7) ->  | AG9: =IF(AF9=0,0,(AF9*((LOG(AF9))/LOG(2)))) ->  | AI9: =N9 -> 121 | AJ9: =COUNTIF(L28:L34,AI9) -> 0 | AK9: =AJ9/(AL4-AJ7) -> 0 | AL9: =IF(AK9=0,0,(AK9*((LOG(AK9))/LOG(2)))) -> 0 | AN9: =N9 -> 121 | AO9: =COUNTIF(L35:L41,AN9) -> 0 | AP9: =AO9/(AQ4-AO7) -> 0 | AQ9: =IF(AP9=0,0,(AP9*((LOG(AP9))/LOG(2)))) -> 0 | AS9: =N9 -> 121 | AT9: =COUNTIF(L42:L48,AS9) -> 0 | AU9: =AT9/(AV4-AT7) ->  | AV9: =IF(AU9=0,0,(AU9*((LOG(AU9))/LOG(2)))) -> 
A10: 11 | B10: 471 | C10: 11 | D10: 475 | E10: 11 | F10: 481 | K10: 0 | L10: 111 | N10: 122 | O10: =COUNTIF($L$7:$L$500,N10) -> 1 | P10: =O10/$Q$4 -> 0.02380952381 | Q10: =IF(P10=0,0,(P10*((LOG(P10))/LOG(2)))) -> -0.1283885101 | T10: =N10 -> 122 | U10: =COUNTIF(L7:L13,T10) -> 0 | V10: =U10/(W4-U7) ->  | W10: =IF(V10=0,0,(V10*((LOG(V10))/LOG(2)))) ->  | Y10: =N10 -> 122 | Z10: =COUNTIF(L14:L20,Y10) -> 0 | AA10: =Z10/(AB4-Z7) ->  | AB10: =IF(AA10=0,0,(AA10*((LOG(AA10))/LOG(2)))) ->  | AD10: =N10 -> 122 | AE10: =COUNTIF(L21:L27,AD10) -> 0 | AF10: =AE10/(AG4-AE7) ->  | AG10: =IF(AF10=0,0,(AF10*((LOG(AF10))/LOG(2)))) ->  | AI10: =N10 -> 122 | AJ10: =COUNTIF(L28:L34,AI10) -> 0 | AK10: =AJ10/(AL4-AJ7) -> 0 | AL10: =IF(AK10=0,0,(AK10*((LOG(AK10))/LOG(2)))) -> 0 | AN10: =N10 -> 122 | AO10: =COUNTIF(L35:L41,AN10) -> 1 | AP10: =AO10/(AQ4-AO7) -> 1 | AQ10: =IF(AP10=0,0,(AP10*((LOG(AP10))/LOG(2)))) -> 0 | AS10: =N10 -> 122 | AT10: =COUNTIF(L42:L48,AS10) -> 0 | AU10: =AT10/(AV4-AT7) ->  | AV10: =IF(AU10=0,0,(AU10*((LOG(AU10))/LOG(2)))) -> 
A11: 11 | B11: 637 | C11: 11 | D11: 644 | E11: 11 | F11: 650 | K11: 0 | L11: 111 | N11: 211 | O11: =COUNTIF($L$7:$L$500,N11) -> 0 | P11: =O11/$Q$4 -> 0 | Q11: =IF(P11=0,0,(P11*((LOG(P11))/LOG(2)))) -> 0 | T11: =N11 -> 211 | U11: =COUNTIF(L7:L13,T11) -> 0 | V11: =U11/(W4-U7) ->  | W11: =IF(V11=0,0,(V11*((LOG(V11))/LOG(2)))) ->  | Y11: =N11 -> 211 | Z11: =COUNTIF(L14:L20,Y11) -> 0 | AA11: =Z11/(AB4-Z7) ->  | AB11: =IF(AA11=0,0,(AA11*((LOG(AA11))/LOG(2)))) ->  | AD11: =N11 -> 211 | AE11: =COUNTIF(L21:L27,AD11) -> 0 | AF11: =AE11/(AG4-AE7) ->  | AG11: =IF(AF11=0,0,(AF11*((LOG(AF11))/LOG(2)))) ->  | AI11: =N11 -> 211 | AJ11: =COUNTIF(L28:L34,AI11) -> 0 | AK11: =AJ11/(AL4-AJ7) -> 0 | AL11: =IF(AK11=0,0,(AK11*((LOG(AK11))/LOG(2)))) -> 0 | AN11: =N11 -> 211 | AO11: =COUNTIF(L35:L41,AN11) -> 0 | AP11: =AO11/(AQ4-AO7) -> 0 | AQ11: =IF(AP11=0,0,(AP11*((LOG(AP11))/LOG(2)))) -> 0 | AS11: =N11 -> 211 | AT11: =COUNTIF(L42:L48,AS11) -> 0 | AU11: =AT11/(AV4-AT7) ->  | AV11: =IF(AU11=0,0,(AU11*((LOG(AU11))/LOG(2)))) -> 
A12: 11 | B12: 825 | C12: 11 | D12: 831 | E12: 11 | F12: 838 | K12: 0 | L12: 111 | N12: 212 | O12: =COUNTIF($L$7:$L$500,N12) -> 0 | P12: =O12/$Q$4 -> 0 | Q12: =IF(P12=0,0,(P12*((LOG(P12))/LOG(2)))) -> 0 | T12: =N12 -> 212 | U12: =COUNTIF(L7:L13,T12) -> 0 | V12: =U12/(W4-U7) ->  | W12: =IF(V12=0,0,(V12*((LOG(V12))/LOG(2)))) ->  | Y12: =N12 -> 212 | Z12: =COUNTIF(L14:L20,Y12) -> 0 | AA12: =Z12/(AB4-Z7) ->  | AB12: =IF(AA12=0,0,(AA12*((LOG(AA12))/LOG(2)))) ->  | AD12: =N12 -> 212 | AE12: =COUNTIF(L21:L27,AD12) -> 0 | AF12: =AE12/(AG4-AE7) ->  | AG12: =IF(AF12=0,0,(AF12*((LOG(AF12))/LOG(2)))) ->  | AI12: =N12 -> 212 | AJ12: =COUNTIF(L28:L34,AI12) -> 0 | AK12: =AJ12/(AL4-AJ7) -> 0 | AL12: =IF(AK12=0,0,(AK12*((LOG(AK12))/LOG(2)))) -> 0 | AN12: =N12 -> 212 | AO12: =COUNTIF(L35:L41,AN12) -> 0 | AP12: =AO12/(AQ4-AO7) -> 0 | AQ12: =IF(AP12=0,0,(AP12*((LOG(AP12))/LOG(2)))) -> 0 | AS12: =N12 -> 212 | AT12: =COUNTIF(L42:L48,AS12) -> 0 | AU12: =AT12/(AV4-AT7) ->  | AV12: =IF(AU12=0,0,(AU12*((LOG(AU12))/LOG(2)))) -> 
A13: 11 | B13: 998 | C13: 11 | D13: 1005 | E13: 11 | F13: 1012 | K13: 0 | L13: 111 | N13: 221 | O13: =COUNTIF($L$7:$L$500,N13) -> 0 | P13: =O13/$Q$4 -> 0 | Q13: =IF(P13=0,0,(P13*((LOG(P13))/LOG(2)))) -> 0 | T13: =N13 -> 221 | U13: =COUNTIF(L7:L13,T13) -> 0 | V13: =U13/(W4-U7) ->  | W13: =IF(V13=0,0,(V13*((LOG(V13))/LOG(2)))) ->  | Y13: =N13 -> 221 | Z13: =COUNTIF(L14:L20,Y13) -> 0 | AA13: =Z13/(AB4-Z7) ->  | AB13: =IF(AA13=0,0,(AA13*((LOG(AA13))/LOG(2)))) ->  | AD13: =N13 -> 221 | AE13: =COUNTIF(L21:L27,AD13) -> 0 | AF13: =AE13/(AG4-AE7) ->  | AG13: =IF(AF13=0,0,(AF13*((LOG(AF13))/LOG(2)))) ->  | AI13: =N13 -> 221 | AJ13: =COUNTIF(L28:L34,AI13) -> 0 | AK13: =AJ13/(AL4-AJ7) -> 0 | AL13: =IF(AK13=0,0,(AK13*((LOG(AK13))/LOG(2)))) -> 0 | AN13: =N13 -> 221 | AO13: =COUNTIF(L35:L41,AN13) -> 0 | AP13: =AO13/(AQ4-AO7) -> 0 | AQ13: =IF(AP13=0,0,(AP13*((LOG(AP13))/LOG(2)))) -> 0 | AS13: =N13 -> 221 | AT13: =COUNTIF(L42:L48,AS13) -> 0 | AU13: =AT13/(AV4-AT7) ->  | AV13: =IF(AU13=0,0,(AU13*((LOG(AU13))/LOG(2)))) -> 
A14: 11 | B14: 1124 | C14: 11 | D14: 1130 | E14: 11 | F14: 1138 | K14: 0 | L14: 111 | N14: 222 | O14: =COUNTIF($L$7:$L$500,N14) -> 1 | P14: =O14/$Q$4 -> 0.02380952381 | Q14: =IF(P14=0,0,(P14*((LOG(P14))/LOG(2)))) -> -0.1283885101 | T14: =N14 -> 222 | U14: =COUNTIF(L7:L13,T14) -> 0 | V14: =U14/(W4-U7) ->  | W14: =IF(V14=0,0,(V14*((LOG(V14))/LOG(2)))) ->  | Y14: =N14 -> 222 | Z14: =COUNTIF(L14:L20,Y14) -> 0 | AA14: =Z14/(AB4-Z7) ->  | AB14: =IF(AA14=0,0,(AA14*((LOG(AA14))/LOG(2)))) ->  | AD14: =N14 -> 222 | AE14: =COUNTIF(L21:L27,AD14) -> 0 | AF14: =AE14/(AG4-AE7) ->  | AG14: =IF(AF14=0,0,(AF14*((LOG(AF14))/LOG(2)))) ->  | AI14: =N14 -> 222 | AJ14: =COUNTIF(L28:L34,AI14) -> 1 | AK14: =AJ14/(AL4-AJ7) -> 1 | AL14: =IF(AK14=0,0,(AK14*((LOG(AK14))/LOG(2)))) -> 0 | AN14: =N14 -> 222 | AO14: =COUNTIF(L35:L41,AN14) -> 0 | AP14: =AO14/(AQ4-AO7) -> 0 | AQ14: =IF(AP14=0,0,(AP14*((LOG(AP14))/LOG(2)))) -> 0 | AS14: =N14 -> 222 | AT14: =COUNTIF(L42:L48,AS14) -> 0 | AU14: =AT14/(AV4-AT7) ->  | AV14: =IF(AU14=0,0,(AU14*((LOG(AU14))/LOG(2)))) -> 
A15: 11 | B15: 1268 | C15: 11 | D15: 1276 | E15: 11 | F15: 1289 | K15: 0 | L15: 111 | P15: =SUM(P7:P14) -> 1 | Q15: =-SUM(Q7:Q14) -> 0.3238144753 | V15: =SUM(V7:V14) ->  | W15: =-SUM(W7:W14) ->  | AA15: =SUM(AA7:AA14) ->  | AB15: =-SUM(AB7:AB14) ->  | AF15: =SUM(AF7:AF14) ->  | AG15: =-SUM(AG7:AG14) ->  | AK15: =SUM(AK7:AK14) -> 1 | AL15: =-SUM(AL7:AL14) -> 0 | AP15: =SUM(AP7:AP14) -> 1 | AQ15: =-SUM(AQ7:AQ14) -> 0 | AU15: =SUM(AU7:AU14) ->  | AV15: =-SUM(AV7:AV14) -> 
A16: 11 | B16: 1394 | C16: 11 | D16: 1402 | E16: 11 | F16: 1409 | K16: 0 | L16: 111 | P16: U= | Q16: =Q15/(LOG(Q4)/LOG(2)) -> 0.06005107821 | V16: U1= | W16: =W15/(LOG(W4)/LOG(2)) ->  | AA16: U2= | AB16: =AB15/(LOG(AB4)/LOG(2)) ->  | AF16: U3= | AG16: =AG15/(LOG(AG4)/LOG(2)) ->  | AK16: U4= | AL16: =AL15/(LOG(AL4)/LOG(2)) -> 0 | AP16: U5= | AQ16: =AQ15/(LOG(AQ4)/LOG(2)) -> 0 | AU16: U6= | AV16: =AV15/(LOG(AV4)/LOG(2)) -> 
A17: 11 | B17: 1596 | C17: 11 | D17: 1602 | E17: 11 | F17: 1609 | K17: 0 | L17: 111
A18: 11 | B18: 1735 | C18: 11 | D18: 1742 | E18: 11 | F18: 1749 | K18: 0 | L18: 111
A19: 11 | B19: 1914 | C19: 11 | D19: 1920 | E19: 11 | F19: 1926 | K19: 0 | L19: 111 | N19: Total Target Seq
A20: 11 | B20: 2153 | C20: 11 | D20: 2158 | E20: 11 | F20: 2169 | K20: 0 | L20: 111 | N20: =COUNTIF(L7:L48,G3) -> 40 | P20: 7 | Q20: 7 | R20: 7 | S20: 7 | T20: 7 | U20: 7
A21: 11 | B21: 2378 | C21: 11 | D21: 2383 | E21: 11 | F21: 2389 | K21: 0 | L21: 111 | P21: % of reinforcement given in 6 equal intervals based on number of trials
A22: 11 | B22: 2557 | C22: 11 | D22: 2562 | E22: 11 | F22: 2569 | K22: 0 | L22: 111 | P22: %_1 | Q22: %_2 | R22: %_3 | S22: %_4 | T22: %_5 | U22: %_6
A23: 11 | B23: 2757 | C23: 11 | D23: 2763 | E23: 11 | F23: 2769 | K23: 0 | L23: 111 | O23: target sequence | P23: =$G$3 -> 111 | Q23: =$G$3 -> 111 | R23: =$G$3 -> 111 | S23: =$G$3 -> 111 | T23: =$G$3 -> 111 | U23: =$G$3 -> 111
A24: 11 | B24: 2925 | C24: 11 | D24: 2934 | E24: 11 | F24: 2942 | K24: 0 | L24: 111 | O24: total reinforcement | P24: =U7 -> 7 | Q24: =Z7 -> 7 | R24: =AE7 -> 7 | S24: =AJ7 -> 6 | T24: =AO7 -> 6 | U24: =AT7 -> 7
A25: 11 | B25: 3082 | C25: 11 | D25: 3086 | E25: 11 | F25: 3092 | K25: 0 | L25: 111 | O25: % target
A26: 11 | B26: 3289 | C26: 11 | D26: 3294 | E26: 11 | F26: 3316 | K26: 0 | L26: 111 | O26: CCRF
A27: 11 | B27: 3432 | C27: 11 | D27: 3438 | E27: 11 | F27: 3444 | K27: 0 | L27: 111 | O27: % CCRf
A28: 11 | B28: 3624 | C28: 11 | D28: 3630 | E28: 11 | F28: 3637 | K28: 0 | L28: 111 | O28: average response rate | P28: =F13/P20 -> 144.5714286 | Q28: =(F20-F13)/Q20 -> 165.2857143 | R28: =(F27-F20)/R20 -> 182.1428571 | S28: =(F34-F27)/S20 -> 192.2857143 | T28: =(F41-F34)/T20 -> 258.7142857 | U28: =(F48-F41)/U20 -> 252.7142857
A29: 22 | B29: 3843 | C29: 24 | D29: 3848 | E29: 24 | F29: 3855 | K29: 0 | L29: 222
A30: 11 | B30: 4014 | C30: 11 | D30: 4019 | E30: 11 | F30: 4026 | K30: 0 | L30: 111
A31: 11 | B31: 4191 | C31: 11 | D31: 4196 | E31: 11 | F31: 4201 | K31: 0 | L31: 111
A32: 11 | B32: 4380 | C32: 11 | D32: 4384 | E32: 11 | F32: 4390 | K32: 0 | L32: 111
A33: 11 | B33: 4557 | C33: 11 | D33: 4563 | E33: 11 | F33: 4577 | K33: 0 | L33: 111
A34: 11 | B34: 4773 | C34: 11 | D34: 4778 | E34: 11 | F34: 4790 | K34: 0 | L34: 111
A35: 11 | B35: 4983 | C35: 11 | D35: 4988 | E35: 11 | F35: 4995 | K35: 0 | L35: 111
A36: 11 | B36: 5209 | C36: 11 | D36: 5212 | E36: 11 | F36: 5220 | K36: 0 | L36: 111
A37: 11 | B37: 5391 | C37: 11 | D37: 5397 | E37: 11 | F37: 5405 | K37: 0 | L37: 111
A38: 11 | B38: 5608 | C38: 11 | D38: 5614 | E38: 11 | F38: 5620 | K38: 0 | L38: 111
A39: 11 | B39: 5866 | C39: 11 | D39: 5870 | E39: 11 | F39: 5876 | K39: 0 | L39: 111
A40: 11 | B40: 6130 | C40: 11 | D40: 6135 | E40: 11 | F40: 6159 | K40: 0 | L40: 111
A41: 11 | B41: 6588 | C41: 22 | D41: 6596 | E41: 24 | F41: 6601 | K41: 0 | L41: 122
A42: 11 | B42: 6699 | C42: 11 | D42: 6707 | E42: 11 | F42: 6714 | K42: 0 | L42: 111
A43: 11 | B43: 6958 | C43: 11 | D43: 6963 | E43: 11 | F43: 6979 | K43: 0 | L43: 111
A44: 11 | B44: 7206 | C44: 11 | D44: 7212 | E44: 11 | F44: 7218 | K44: 0 | L44: 111
A45: 11 | B45: 7488 | C45: 11 | D45: 7493 | E45: 11 | F45: 7498 | K45: 0 | L45: 111
A46: 11 | B46: 7830 | C46: 11 | D46: 7835 | E46: 11 | F46: 7849 | K46: 0 | L46: 111
A47: 11 | B47: 8155 | C47: 11 | D47: 8158 | E47: 11 | F47: 8180 | K47: 0 | L47: 111
A48: 11 | B48: 8363 | C48: 11 | D48: 8366 | E48: 11 | F48: 8370 | K48: 1 | L48: 111

Sheet !M629A2D.ust
A1: Report for:!M629A2D.ust
A2: Date: | B2: <date>
A3: Hen: | B3: <hen> | F3: Correct Sequence | G3: =Start!J2 -> 111 | P3: Total Sequences in Data | Q3: =4994-COUNTBLANK(L7:L5000) -> 40 | V3: Total Sequences in Block Data | W3: =COUNTA(L7:L13) -> 7 | AA3: Total Sequences in Block Data | AB3: =COUNTA(L14:L19) -> 6 | AF3: Total Sequences in Block Data | AG3: =COUNTA(L20:L26) -> 7 | AK3: Total Sequences in Block Data | AL3: =COUNTA(L27:L33) -> 7 | AP3: Total Sequences in Block Data | AQ3: =COUNTA(L34:L39) -> 6 | AU3: Total Sequences in Block Data | AV3: =COUNTA(L40:L46) -> 7
P4: Total Sequences in Summary | Q4: =SUM(O7:O14) -> 40 | V4: Total Sequences in Block Summary | W4: =SUM(U7:U14) -> 7 | AA4: Total Sequences in Block Summary | AB4: =SUM(Z7:Z14) -> 6 | AF4: Total Sequences in Block Summary | AG4: =SUM(AE7:AE14) -> 7 | AK4: Total Sequences in Block Summary | AL4: =SUM(AJ7:AJ14) -> 7 | AP4: Total Sequences in Block Summary | AQ4: =SUM(AO7:AO14) -> 6 | AU4: Total Sequences in Block Summary | AV4: =SUM(AT7:AT14) -> 7
T5: Block 1 | Y5: Block 2 | AD5: Block 3 | AI5: Block 4 | AN5: Block 5 | AS5: Block 6
A6: Sequence Component 1 | B6: Time 1 | C6: Sequence Component 2 | D6: Time 2 | E6: Sequence Component 3 | F6: Time 3 | G6: Sequence Component 4 | H6: Time 4 | I6: Sequence Component 5 | J6: Time 5 | K6: Correct? 0=No 1=Yes | L6: Sequence | N6: Frequency | P6: Relative Frequency | Q6: Variability | T6: Frequency | V6: Relative Frequency | W6: Variability | Y6: Frequency | AA6: Relative Frequency | AB6: Variability | AD6: Frequency | AF6: Relative Frequency | AG6: Variability | AI6: Frequency | AK6: Relative Frequency | AL6: Variability | AN6: Frequency | AP6: Relative Frequency | AQ6: Variability | AS6: Frequency | AU6: Relative Frequency | AV6: Variability
A7: 11 | B7: 3 | C7: 11 | D7: 9 | E7: 11 | F7: 18 | K7: 0 | L7: 111 | N7: 111 | O7: =COUNTIF($L$7:$L$500,N7) -> 40 | P7: =O7/$Q$4 -> 1 | Q7: =IF(P7=0,0,(P7*((LOG(P7))/LOG(2)))) -> 0 | T7: =N7 -> 111 | U7: =COUNTIF(L7:L13,T7) -> 7 | Y7: =N7 -> 111 | Z7: =COUNTIF(L14:L19,Y7) -> 6 | AD7: =N7 -> 111 | AE7: =COUNTIF(L20:L26,AD7) -> 7 | AI7: =N7 -> 111 | AJ7: =COUNTIF(L27:L33,AI7) -> 7 | AN7: =N7 -> 111 | AO7: =COUNTIF(L34:L39,AN7) -> 6 | AS7: =N7 -> 111 | AT7: =COUNTIF(L40:L46,AS7) -> 7
A8: 11 | B8: 186 | C8: 11 | D8: 193 | E8: 11 | F8: 211 | K8: 0 | L8: 111 | N8: 112 | O8: =COUNTIF($L$7:$L$500,N8) -> 0 | P8: =O8/$Q$4 -> 0 | Q8: =IF(P8=0,0,(P8*((LOG(P8))/LOG(2)))) -> 0 | T8: =N8 -> 112 | U8: =COUNTIF(L7:L13,T8) -> 0 | V8: =U8/(W4-U7) ->  | W8: =IF(V8=0,0,(V8*((LOG(V8))/LOG(2)))) ->  | Y8: =N8 -> 112 | Z8: =COUNTIF(L14:L19,Y8) -> 0 | AA8: =Z8/(AB4-Z7) ->  | AB8: =IF(AA8=0,0,(AA8*((LOG(AA8))/LOG(2)))) ->  | AD8: =N8 -> 112 | AE8: =COUNTIF(L20:L26,AD8) -> 0 | AF8: =AE8/(AG4-AE7) ->  | AG8: =IF(AF8=0,0,(AF8*((LOG(AF8))/LOG(2)))) ->  | AI8: =N8 -> 112 | AJ8: =COUNTIF(L27:L33,AI8) -> 0 | AK8: =AJ8/(AL4-AJ7) ->  | AL8: =IF(AK8=0,0,(AK8*((LOG(AK8))/LOG(2)))) ->  | AN8: =N8 -> 112 | AO8: =COUNTIF(L34:L39,AN8) -> 0 | AP8: =AO8/(AQ4-AO7) ->  | AQ8: =IF(AP8=0,0,(AP8*((LOG(AP8))/LOG(2)))) ->  | AS8: =N8 -> 112 | AT8: =COUNTIF(L40:L46,AS8) -> 0 | AU8: =AT8/(AV4-AT7) ->  | AV8: =IF(AU8=0,0,(AU8*((LOG(AU8))/LOG(2)))) -> 
A9: 11 | B9: 358 | C9: 11 | D9: 362 | E9: 11 | F9: 368 | K9: 0 | L9: 111 | N9: 121 | O9: =COUNTIF($L$7:$L$500,N9) -> 0 | P9: =O9/$Q$4 -> 0 | Q9: =IF(P9=0,0,(P9*((LOG(P9))/LOG(2)))) -> 0 | T9: =N9 -> 121 | U9: =COUNTIF(L7:L13,T9) -> 0 | V9: =U9/(W4-U7) ->  | W9: =IF(V9=0,0,(V9*((LOG(V9))/LOG(2)))) ->  | Y9: =N9 -> 121 | Z9: =COUNTIF(L14:L19,Y9) -> 0 | AA9: =Z9/(AB4-Z7) ->  | AB9: =IF(AA9=0,0,(AA9*((LOG(AA9))/LOG(2)))) ->  | AD9: =N9 -> 121 | AE9: =COUNTIF(L20:L26,AD9) -> 0 | AF9: =AE9/(AG4-AE7) ->  | AG9: =IF(AF9=0,0,(AF9*((LOG(AF9))/LOG(2)))) ->  | AI9: =N9 -> 121 | AJ9: =COUNTIF(L27:L33,AI9) -> 0 | AK9: =AJ9/(AL4-AJ7) ->  | AL9: =IF(AK9=0,0,(AK9*((LOG(AK9))/LOG(2)))) ->  | AN9: =N9 -> 121 | AO9: =COUNTIF(L34:L39,AN9) -> 0 | AP9: =AO9/(AQ4-AO7) ->  | AQ9: =IF(AP9=0,0,(AP9*((LOG(AP9))/LOG(2)))) ->  | AS9: =N9 -> 121 | AT9: =COUNTIF(L40:L46,AS9) -> 0 | AU9: =AT9/(AV4-AT7) ->  | AV9: =IF(AU9=0,0,(AU9*((LOG(AU9))/LOG(2)))) -> 
A10: 11 | B10: 528 | C10: 11 | D10: 533 | E10: 11 | F10: 540 | K10: 0 | L10: 111 | N10: 122 | O10: =COUNTIF($L$7:$L$500,N10) -> 0 | P10: =O10/$Q$4 -> 0 | Q10: =IF(P10=0,0,(P10*((LOG(P10))/LOG(2)))) -> 0 | T10: =N10 -> 122 | U10: =COUNTIF(L7:L13,T10) -> 0 | V10: =U10/(W4-U7) ->  | W10: =IF(V10=0,0,(V10*((LOG(V10))/LOG(2)))) ->  | Y10: =N10 -> 122 | Z10: =COUNTIF(L14:L19,Y10) -> 0 | AA10: =Z10/(AB4-Z7) ->  | AB10: =IF(AA10=0,0,(AA10*((LOG(AA10))/LOG(2)))) ->  | AD10: =N10 -> 122 | AE10: =COUNTIF(L20:L26,AD10) -> 0 | AF10: =AE10/(AG4-AE7) ->  | AG10: =IF(AF10=0,0,(AF10*((LOG(AF10))/LOG(2)))) ->  | AI10: =N10 -> 122 | AJ10: =COUNTIF(L27:L33,AI10) -> 0 | AK10: =AJ10/(AL4-AJ7) ->  | AL10: =IF(AK10=0,0,(AK10*((LOG(AK10))/LOG(2)))) ->  | AN10: =N10 -> 122 | AO10: =COUNTIF(L34:L39,AN10) -> 0 | AP10: =AO10/(AQ4-AO7) ->  | AQ10: =IF(AP10=0,0,(AP10*((LOG(AP10))/LOG(2)))) ->  | AS10: =N10 -> 122 | AT10: =COUNTIF(L40:L46,AS10) -> 0 | AU10: =AT10/(AV4-AT7) ->  | AV10: =IF(AU10=0,0,(AU10*((LOG(AU10))/LOG(2)))) -> 
A11: 11 | B11: 679 | C11: 11 | D11: 684 | E11: 11 | F11: 693 | K11: 0 | L11: 111 | N11: 211 | O11: =COUNTIF($L$7:$L$500,N11) -> 0 | P11: =O11/$Q$4 -> 0 | Q11: =IF(P11=0,0,(P11*((LOG(P11))/LOG(2)))) -> 0 | T11: =N11 -> 211 | U11: =COUNTIF(L7:L13,T11) -> 0 | V11: =U11/(W4-U7) ->  | W11: =IF(V11=0,0,(V11*((LOG(V11))/LOG(2)))) ->  | Y11: =N11 -> 211 | Z11: =COUNTIF(L14:L19,Y11) -> 0 | AA11: =Z11/(AB4-Z7) ->  | AB11: =IF(AA11=0,0,(AA11*((LOG(AA11))/LOG(2)))) ->  | AD11: =N11 -> 211 | AE11: =COUNTIF(L20:L26,AD11) -> 0 | AF11: =AE11/(AG4-AE7) ->  | AG11: =IF(AF11=0,0,(AF11*((LOG(AF11))/LOG(2)))) ->  | AI11: =N11 -> 211 | AJ11: =COUNTIF(L27:L33,AI11) -> 0 | AK11: =AJ11/(AL4-AJ7) ->  | AL11: =IF(AK11=0,0,(AK11*((LOG(AK11))/LOG(2)))) ->  | AN11: =N11 -> 211 | AO11: =COUNTIF(L34:L39,AN11) -> 0 | AP11: =AO11/(AQ4-AO7) ->  | AQ11: =IF(AP11=0,0,(AP11*((LOG(AP11))/LOG(2)))) ->  | AS11: =N11 -> 211 | AT11: =COUNTIF(L40:L46,AS11) -> 0 | AU11: =AT11/(AV4-AT7) ->  | AV11: =IF(AU11=0,0,(AU11*((LOG(AU11))/LOG(2)))) -> 
A12: 11 | B12: 863 | C12: 11 | D12: 869 | E12: 11 | F12: 874 | K12: 0 | L12: 111 | N12: 212 | O12: =COUNTIF($L$7:$L$500,N12) -> 0 | P12: =O12/$Q$4 -> 0 | Q12: =IF(P12=0,0,(P12*((LOG(P12))/LOG(2)))) -> 0 | T12: =N12 -> 212 | U12: =COUNTIF(L7:L13,T12) -> 0 | V12: =U12/(W4-U7) ->  | W12: =IF(V12=0,0,(V12*((LOG(V12))/LOG(2)))) ->  | Y12: =N12 -> 212 | Z12: =COUNTIF(L14:L19,Y12) -> 0 | AA12: =Z12/(AB4-Z7) ->  | AB12: =IF(AA12=0,0,(AA12*((LOG(AA12))/LOG(2)))) ->  | AD12: =N12 -> 212 | AE12: =COUNTIF(L20:L26,AD12) -> 0 | AF12: =AE12/(AG4-AE7) ->  | AG12: =IF(AF12=0,0,(AF12*((LOG(AF12))/LOG(2)))) ->  | AI12: =N12 -> 212 | AJ12: =COUNTIF(L27:L33,AI12) -> 0 | AK12: =AJ12/(AL4-AJ7) ->  | AL12: =IF(AK12=0,0,(AK12*((LOG(AK12))/LOG(2)))) ->  | AN12: =N12 -> 212 | AO12: =COUNTIF(L34:L39,AN12) -> 0 | AP12: =AO12/(AQ4-AO7) ->  | AQ12: =IF(AP12=0,0,(AP12*((LOG(AP12))/LOG(2)))) ->  | AS12: =N12 -> 212 | AT12: =COUNTIF(L40:L46,AS12) -> 0 | AU12: =AT12/(AV4-AT7) ->  | AV12: =IF(AU12=0,0,(AU12*((LOG(AU12))/LOG(2)))) -> 
A13: 11 | B13: 1032 | C13: 11 | D13: 1036 | E13: 11 | F13: 1044 | K13: 0 | L13: 111 | N13: 221 | O13: =COUNTIF($L$7:$L$500,N13) -> 0 | P13: =O13/$Q$4 -> 0 | Q13: =IF(P13=0,0,(P13*((LOG(P13))/LOG(2)))) -> 0 | T13: =N13 -> 221 | U13: =COUNTIF(L7:L13,T13) -> 0 | V13: =U13/(W4-U7) ->  | W13: =IF(V13=0,0,(V13*((LOG(V13))/LOG(2)))) ->  | Y13: =N13 -> 221 | Z13: =COUNTIF(L14:L19,Y13) -> 0 | AA13: =Z13/(AB4-Z7) ->  | AB13: =IF(AA13=0,0,(AA13*((LOG(AA13))/LOG(2)))) ->  | AD13: =N13 -> 221 | AE13: =COUNTIF(L20:L26,AD13) -> 0 | AF13: =AE13/(AG4-AE7) ->  | AG13: =IF(AF13=0,0,(AF13*((LOG(AF13))/LOG(2)))) ->  | AI13: =N13 -> 221 | AJ13: =COUNTIF(L27:L33,AI13) -> 0 | AK13: =AJ13/(AL4-AJ7) ->  | AL13: =IF(AK13=0,0,(AK13*((LOG(AK13))/LOG(2)))) ->  | AN13: =N13 -> 221 | AO13: =COUNTIF(L34:L39,AN13) -> 0 | AP13: =AO13/(AQ4-AO7) ->  | AQ13: =IF(AP13=0,0,(AP13*((LOG(AP13))/LOG(2)))) ->  | AS13: =N13 -> 221 | AT13: =COUNTIF(L40:L46,AS13) -> 0 | AU13: =AT13/(AV4-AT7) ->  | AV13: =IF(AU13=0,0,(AU13*((LOG(AU13))/LOG(2)))) -> 
A14: 11 | B14: 1142 | C14: 11 | D14: 1151 | E14: 11 | F14: 1156 | K14: 0 | L14: 111 | N14: 222 | O14: =COUNTIF($L$7:$L$500,N14) -> 0 | P14: =O14/$Q$4 -> 0 | Q14: =IF(P14=0,0,(P14*((LOG(P14))/LOG(2)))) -> 0 | T14: =N14 -> 222 | U14: =COUNTIF(L7:L13,T14) -> 0 | V14: =U14/(W4-U7) ->  | W14: =IF(V14=0,0,(V14*((LOG(V14))/LOG(2)))) ->  | Y14: =N14 -> 222 | Z14: =COUNTIF(L14:L19,Y14) -> 0 | AA14: =Z14/(AB4-Z7) ->  | AB14: =IF(AA14=0,0,(AA14*((LOG(AA14))/LOG(2)))) ->  | AD14: =N14 -> 222 | AE14: =COUNTIF(L20:L26,AD14) -> 0 | AF14: =AE14/(AG4-AE7) ->  | AG14: =IF(AF14=0,0,(AF14*((LOG(AF14))/LOG(2)))) ->  | AI14: =N14 -> 222 | AJ14: =COUNTIF(L27:L33,AI14) -> 0 | AK14: =AJ14/(AL4-AJ7) ->  | AL14: =IF(AK14=0,0,(AK14*((LOG(AK14))/LOG(2)))) ->  | AN14: =N14 -> 222 | AO14: =COUNTIF(L34:L39,AN14) -> 0 | AP14: =AO14/(AQ4-AO7) ->  | AQ14: =IF(AP14=0,0,(AP14*((LOG(AP14))/LOG(2)))) ->  | AS14: =N14 -> 222 | AT14: =COUNTIF(L40:L46,AS14) -> 0 | AU14: =AT14/(AV4-AT7) ->  | AV14: =IF(AU14=0,0,(AU14*((LOG(AU14))/LOG(2)))) -> 
A15: 11 | B15: 1355 | C15: 11 | D15: 1359 | E15: 11 | F15: 1365 | K15: 0 | L15: 111 | P15: =SUM(P7:P14) -> 1 | Q15: =-SUM(Q7:Q14) -> 0 | V15: =SUM(V7:V14) ->  | W15: =-SUM(W7:W14) ->  | AA15: =SUM(AA7:AA14) ->  | AB15: =-SUM(AB7:AB14) ->  | AF15: =SUM(AF7:AF14) ->  | AG15: =-SUM(AG7:AG14) ->  | AK15: =SUM(AK7:AK14) ->  | AL15: =-SUM(AL7:AL14) ->  | AP15: =SUM(AP7:AP14) ->  | AQ15: =-SUM(AQ7:AQ14) ->  | AU15: =SUM(AU7:AU14) ->  | AV15: =-SUM(AV7:AV14) -> 
A16: 11 | B16: 1548 | C16: 11 | D16: 1553 | E16: 11 | F16: 1564 | K16: 0 | L16: 111 | P16: U= | Q16: =Q15/(LOG(Q4)/LOG(2)) -> 0 | V16: U1= | W16: =W15/(LOG(W4)/LOG(2)) ->  | AA16: U2= | AB16: =AB15/(LOG(AB4)/LOG(2)) ->  | AF16: U3= | AG16: =AG15/(LOG(AG4)/LOG(2)) ->  | AK16: U4= | AL16: =AL15/(LOG(AL4)/LOG(2)) ->  | AP16: U5= | AQ16: =AQ15/(LOG(AQ4)/LOG(2)) ->  | AU16: U6= | AV16: =AV15/(LOG(AV4)/LOG(2)) -> 
A17: 11 | B17: 1718 | C17: 11 | D17: 1722 | E17: 11 | F17: 1728 | K17: 0 | L17: 111
A18: 11 | B18: 1898 | C18: 11 | D18: 1904 | E18: 11 | F18: 1911 | K18: 0 | L18: 111
A19: 11 | B19: 2040 | C19: 11 | D19: 2044 | E19: 11 | F19: 2050 | K19: 0 | L19: 111 | N19: Total Target Seq
A20: 11 | B20: 2223 | C20: 11 | D20: 2228 | E20: 11 | F20: 2236 | K20: 0 | L20: 111 | N20: =COUNTIF(L7:L46,G3) -> 40 | P20: 7 | Q20: 6 | R20: 7 | S20: 7 | T20: 6 | U20: 7
A21: 11 | B21: 2441 | C21: 11 | D21: 2444 | E21: 11 | F21: 2451 | K21: 0 | L21: 111 | P21: % of reinforcement given in 6 equal intervals based on number of trials
A22: 11 | B22: 2606 | C22: 11 | D22: 2611 | E22: 11 | F22: 2616 | K22: 0 | L22: 111 | P22: %_1 | Q22: %_2 | R22: %_3 | S22: %_4 | T22: %_5 | U22: %_6
A23: 11 | B23: 2782 | C23: 11 | D23: 2789 | E23: 11 | F23: 2805 | K23: 0 | L23: 111 | O23: target sequence | P23: =$G$3 -> 111 | Q23: =$G$3 -> 111 | R23: =$G$3 -> 111 | S23: =$G$3 -> 111 | T23: =$G$3 -> 111 | U23: =$G$3 -> 111
A24: 11 | B24: 2952 | C24: 11 | D24: 2958 | E24: 11 | F24: 2969 | K24: 0 | L24: 111 | O24: total reinforcement | P24: =U7 -> 7 | Q24: =Z7 -> 6 | R24: =AE7 -> 7 | S24: =AJ7 -> 7 | T24: =AO7 -> 6 | U24: =AT7 -> 7
A25: 11 | B25: 3126 | C25: 11 | D25: 3132 | E25: 11 | F25: 3138 | K25: 0 | L25: 111 | O25: % target
A26: 11 | B26: 3325 | C26: 11 | D26: 3330 | E26: 11 | F26: 3336 | K26: 0 | L26: 111 | O26: CCRF
A27: 11 | B27: 3570 | C27: 11 | D27: 3574 | E27: 11 | F27: 3580 | K27: 0 | L27: 111 | O27: % CCRf
A28: 11 | B28: 3744 | C28: 11 | D28: 3749 | E28: 11 | F28: 3755 | K28: 0 | L28: 111 | O28: average response rate | P28: =F13/P20 -> 149.1428571 | Q28: =(F19-F13)/Q20 -> 167.6666667 | R28: =(F26-F19)/R20 -> 183.7142857 | S28: =(F33-F26)/S20 -> 199.4285714 | T28: =(F39-F33)/T20 -> 230.5 | U28: =(F46-F39)/U20 -> 283.4285714
A29: 11 | B29: 3914 | C29: 11 | D29: 3919 | E29: 11 | F29: 3926 | K29: 0 | L29: 111
A30: 11 | B30: 4126 | C30: 11 | D30: 4131 | E30: 11 | F30: 4137 | K30: 0 | L30: 111
A31: 11 | B31: 4339 | C31: 11 | D31: 4344 | E31: 11 | F31: 4358 | K31: 0 | L31: 111
A32: 11 | B32: 4556 | C32: 11 | D32: 4561 | E32: 11 | F32: 4564 | K32: 0 | L32: 111
A33: 11 | B33: 4716 | C33: 11 | D33: 4722 | E33: 11 | F33: 4732 | K33: 0 | L33: 111
A34: 11 | B34: 4890 | C34: 11 | D34: 4894 | E34: 11 | F34: 4900 | K34: 0 | L34: 111
A35: 11 | B35: 5060 | C35: 11 | D35: 5062 | E35: 11 | F35: 5082 | K35: 0 | L35: 111
A36: 11 | B36: 5298 | C36: 11 | D36: 5304 | E36: 11 | F36: 5313 | K36: 0 | L36: 111
A37: 11 | B37: 5533 | C37: 11 | D37: 5544 | E37: 11 | F37: 5555 | K37: 0 | L37: 111
A38: 11 | B38: 5779 | C38: 11 | D38: 5783 | E38: 11 | F38: 5790 | K38: 0 | L38: 111
A39: 11 | B39: 6104 | C39: 11 | D39: 6109 | E39: 11 | F39: 6115 | K39: 0 | L39: 111
A40: 11 | B40: 6575 | C40: 11 | D40: 6581 | E40: 11 | F40: 6589 | K40: 0 | L40: 111
A41: 11 | B41: 6769 | C41: 11 | D41: 6772 | E41: 11 | F41: 6775 | K41: 0 | L41: 111
A42: 11 | B42: 7038 | C42: 11 | D42: 7044 | E42: 11 | F42: 7056 | K42: 0 | L42: 111
A43: 11 | B43: 7310 | C43: 11 | D43: 7316 | E43: 11 | F43: 7334 | K43: 0 | L43: 111
A44: 11 | B44: 7611 | C44: 11 | D44: 7617 | E44: 11 | F44: 7623 | K44: 0 | L44: 111
A45: 11 | B45: 7814 | C45: 11 | D45: 7818 | E45: 11 | F45: 7824 | K45: 0 | L45: 111
A46: 11 | B46: 8088 | C46: 11 | D46: 8093 | E46: 11 | F46: 8099 | K46: 1 | L46: 111

Sheet !M630C3D.ust
A1: Report for:!M630C3D.ust
A2: Date: | B2: <date>
A3: Hen: | B3: <hen> | F3: Correct Sequence | G3: =Start!J2 -> 111 | P3: Total Sequences in Data | Q3: =4994-COUNTBLANK(L7:L5000) -> 42 | V3: Total Sequences in Block Data | W3: =COUNTA(L7:L13) -> 7 | AA3: Total Sequences in Block Data | AB3: =COUNTA(L14:L20) -> 7 | AF3: Total Sequences in Block Data | AG3: =COUNTA(L21:L27) -> 7 | AK3: Total Sequences in Block Data | AL3: =COUNTA(L28:L34) -> 7 | AP3: Total Sequences in Block Data | AQ3: =COUNTA(L35:L41) -> 7 | AU3: Total Sequences in Block Data | AV3: =COUNTA(L42:L48) -> 7
P4: Total Sequences in Summary | Q4: =SUM(O7:O14) -> 42 | V4: Total Sequences in Block Summary | W4: =SUM(U7:U14) -> 7 | AA4: Total Sequences in Block Summary | AB4: =SUM(Z7:Z14) -> 7 | AF4: Total Sequences in Block Summary | AG4: =SUM(AE7:AE14) -> 7 | AK4: Total Sequences in Block Summary | AL4: =SUM(AJ7:AJ14) -> 7 | AP4: Total Sequences in Block Summary | AQ4: =SUM(AO7:AO14) -> 7 | AU4: Total Sequences in Block Summary | AV4: =SUM(AT7:AT14) -> 7
T5: Block 1 | Y5: Block 2 | AD5: Block 3 | AI5: Block 4 | AN5: Block 5 | AS5: Block 6
A6: Sequence Component 1 | B6: Time 1 | C6: Sequence Component 2 | D6: Time 2 | E6: Sequence Component 3 | F6: Time 3 | G6: Sequence Component 4 | H6: Time 4 | I6: Sequence Component 5 | J6: Time 5 | K6: Correct? 0=No 1=Yes | L6: Sequence | N6: Frequency | P6: Relative Frequency | Q6: Variability | T6: Frequency | V6: Relative Frequency | W6: Variability | Y6: Frequency | AA6: Relative Frequency | AB6: Variability | AD6: Frequency | AF6: Relative Frequency | AG6: Variability | AI6: Frequency | AK6: Relative Frequency | AL6: Variability | AN6: Frequency | AP6: Relative Frequency | AQ6: Variability | AS6: Frequency | AU6: Relative Frequency | AV6: Variability
A7: 22 | B7: 5 | C7: 13 | D7: 16 | E7: 13 | F7: 20 | K7: 0 | L7: 211 | N7: 111 | O7: =COUNTIF($L$7:$L$500,N7) -> 40 | P7: =O7/$Q$4 -> 0.9523809524 | Q7: =IF(P7=0,0,(P7*((LOG(P7))/LOG(2)))) -> -0.06703745513 | T7: =N7 -> 111 | U7: =COUNTIF(L7:L13,T7) -> 5 | Y7: =N7 -> 111 | Z7: =COUNTIF(L14:L20,Y7) -> 7 | AD7: =N7 -> 111 | AE7: =COUNTIF(L21:L27,AD7) -> 7 | AI7: =N7 -> 111 | AJ7: =COUNTIF(L28:L34,AI7) -> 7 | AN7: =N7 -> 111 | AO7: =COUNTIF(L35:L41,AN7) -> 7 | AS7: =N7 -> 111 | AT7: =COUNTIF(L42:L48,AS7) -> 7
A8: 11 | B8: 129 | C8: 11 | D8: 134 | E8: 22 | F8: 149 | K8: 0 | L8: 112 | N8: 112 | O8: =COUNTIF($L$7:$L$500,N8) -> 1 | P8: =O8/$Q$4 -> 0.02380952381 | Q8: =IF(P8=0,0,(P8*((LOG(P8))/LOG(2)))) -> -0.1283885101 | T8: =N8 -> 112 | U8: =COUNTIF(L7:L13,T8) -> 1 | V8: =U8/(W4-U7) -> 0.5 | W8: =IF(V8=0,0,(V8*((LOG(V8))/LOG(2)))) -> -0.5 | Y8: =N8 -> 112 | Z8: =COUNTIF(L14:L20,Y8) -> 0 | AA8: =Z8/(AB4-Z7) ->  | AB8: =IF(AA8=0,0,(AA8*((LOG(AA8))/LOG(2)))) ->  | AD8: =N8 -> 112 | AE8: =COUNTIF(L21:L27,AD8) -> 0 | AF8: =AE8/(AG4-AE7) ->  | AG8: =IF(AF8=0,0,(AF8*((LOG(AF8))/LOG(2)))) ->  | AI8: =N8 -> 112 | AJ8: =COUNTIF(L28:L34,AI8) -> 0 | AK8: =AJ8/(AL4-AJ7) ->  | AL8: =IF(AK8=0,0,(AK8*((LOG(AK8))/LOG(2)))) ->  | AN8: =N8 -> 112 | AO8: =COUNTIF(L35:L41,AN8) -> 0 | AP8: =AO8/(AQ4-AO7) ->  | AQ8: =IF(AP8=0,0,(AP8*((LOG(AP8))/LOG(2)))) ->  | AS8: =N8 -> 112 | AT8: =COUNTIF(L42:L48,AS8) -> 0 | AU8: =AT8/(AV4-AT7) ->  | AV8: =IF(AU8=0,0,(AU8*((LOG(AU8))/LOG(2)))) -> 
A9: 11 | B9: 245 | C9: 11 | D9: 250 | E9: 11 | F9: 258 | K9: 0 | L9: 111 | N9: 121 | O9: =COUNTIF($L$7:$L$500,N9) -> 0 | P9: =O9/$Q$4 -> 0 | Q9: =IF(P9=0,0,(P9*((LOG(P9))/LOG(2)))) -> 0 | T9: =N9 -> 121 | U9: =COUNTIF(L7:L13,T9) -> 0 | V9: =U9/(W4-U7) -> 0 | W9: =IF(V9=0,0,(V9*((LOG(V9))/LOG(2)))) -> 0 | Y9: =N9 -> 121 | Z9: =COUNTIF(L14:L20,Y9) -> 0 | AA9: =Z9/(AB4-Z7) ->  | AB9: =IF(AA9=0,0,(AA9*((LOG(AA9))/LOG(2)))) ->  | AD9: =N9 -> 121 | AE9: =COUNTIF(L21:L27,AD9) -> 0 | AF9: =AE9/(AG4-AE7) ->  | AG9: =IF(AF9=0,0,(AF9*((LOG(AF9))/LOG(2)))) ->  | AI9: =N9 -> 121 | AJ9: =COUNTIF(L28:L34,AI9) -> 0 | AK9: =AJ9/(AL4-AJ7) ->  | AL9: =IF(AK9=0,0,(AK9*((LOG(AK9))/LOG(2)))) ->  | AN9: =N9 -> 121 | AO9: =COUNTIF(L35:L41,AN9) -> 0 | AP9: =AO9/(AQ4-AO7) ->  | AQ9: =IF(AP9=0,0,(AP9*((LOG(AP9))/LOG(2)))) ->  | AS9: =N9 -> 121 | AT9: =COUNTIF(L42:L48,AS9) -> 0 | AU9: =AT9/(AV4-AT7) ->  | AV9: =IF(AU9=0,0,(AU9*((LOG(AU9))/LOG(2)))) -> 
A10: 11 | B10: 478 | C10: 11 | D10: 484 | E10: 11 | F10: 500 | K10: 0 | L10: 111 | N10: 122 | O10: =COUNTIF($L$7:$L$500,N10) -> 0 | P10: =O10/$Q$4 -> 0 | Q10: =IF(P10=0,0,(P10*((LOG(P10))/LOG(2)))) -> 0 | T10: =N10 -> 122 | U10: =COUNTIF(L7:L13,T10) -> 0 | V10: =U10/(W4-U7) -> 0 | W10: =IF(V10=0,0,(V10*((LOG(V10))/LOG(2)))) -> 0 | Y10: =N10 -> 122 | Z10: =COUNTIF(L14:L20,Y10) -> 0 | AA10: =Z10/(AB4-Z7) ->  | AB10: =IF(AA10=0,0,(AA10*((LOG(AA10))/LOG(2)))) ->  | AD10: =N10 -> 122 | AE10: =COUNTIF(L21:L27,AD10) -> 0 | AF10: =AE10/(AG4-AE7) ->  | AG10: =IF(AF10=0,0,(AF10*((LOG(AF10))/LOG(2)))) ->  | AI10: =N10 -> 122 | AJ10: =COUNTIF(L28:L34,AI10) -> 0 | AK10: =AJ10/(AL4-AJ7) ->  | AL10: =IF(AK10=0,0,(AK10*((LOG(AK10))/LOG(2)))) ->  | AN10: =N10 -> 122 | AO10: =COUNTIF(L35:L41,AN10) -> 0 | AP10: =AO10/(AQ4-AO7) ->  | AQ10: =IF(AP10=0,0,(AP10*((LOG(AP10))/LOG(2)))) ->  | AS10: =N10 -> 122 | AT10: =COUNTIF(L42:L48,AS10) -> 0 | AU10: =AT10/(AV4-AT7) ->  | AV10: =IF(AU10=0,0,(AU10*((LOG(AU10))/LOG(2)))) -> 
A11: 11 | B11: 695 | C11: 11 | D11: 700 | E11: 11 | F11: 705 | K11: 0 | L11: 111 | N11: 211 | O11: =COUNTIF($L$7:$L$500,N11) -> 1 | P11: =O11/$Q$4 -> 0.02380952381 | Q11: =IF(P11=0,0,(P11*((LOG(P11))/LOG(2)))) -> -0.1283885101 | T11: =N11 -> 211 | U11: =COUNTIF(L7:L13,T11) -> 1 | V11: =U11/(W4-U7) -> 0.5 | W11: =IF(V11=0,0,(V11*((LOG(V11))/LOG(2)))) -> -0.5 | Y11: =N11 -> 211 | Z11: =COUNTIF(L14:L20,Y11) -> 0 | AA11: =Z11/(AB4-Z7) ->  | AB11: =IF(AA11=0,0,(AA11*((LOG(AA11))/LOG(2)))) ->  | AD11: =N11 -> 211 | AE11: =COUNTIF(L21:L27,AD11) -> 0 | AF11: =AE11/(AG4-AE7) ->  | AG11: =IF(AF11=0,0,(AF11*((LOG(AF11))/LOG(2)))) ->  | AI11: =N11 -> 211 | AJ11: =COUNTIF(L28:L34,AI11) -> 0 | AK11: =AJ11/(AL4-AJ7) ->  | AL11: =IF(AK11=0,0,(AK11*((LOG(AK11))/LOG(2)))) ->  | AN11: =N11 -> 211 | AO11: =COUNTIF(L35:L41,AN11) -> 0 | AP11: =AO11/(AQ4-AO7) ->  | AQ11: =IF(AP11=0,0,(AP11*((LOG(AP11))/LOG(2)))) ->  | AS11: =N11 -> 211 | AT11: =COUNTIF(L42:L48,AS11) -> 0 | AU11: =AT11/(AV4-AT7) ->  | AV11: =IF(AU11=0,0,(AU11*((LOG(AU11))/LOG(2)))) -> 
A12: 11 | B12: 885 | C12: 11 | D12: 890 | E12: 11 | F12: 895 | K12: 0 | L12: 111 | N12: 212 | O12: =COUNTIF($L$7:$L$500,N12) -> 0 | P12: =O12/$Q$4 -> 0 | Q12: =IF(P12=0,0,(P12*((LOG(P12))/LOG(2)))) -> 0 | T12: =N12 -> 212 | U12: =COUNTIF(L7:L13,T12) -> 0 | V12: =U12/(W4-U7) -> 0 | W12: =IF(V12=0,0,(V12*((LOG(V12))/LOG(2)))) -> 0 | Y12: =N12 -> 212 | Z12: =COUNTIF(L14:L20,Y12) -> 0 | AA12: =Z12/(AB4-Z7) ->  | AB12: =IF(AA12=0,0,(AA12*((LOG(AA12))/LOG(2)))) ->  | AD12: =N12 -> 212 | AE12: =COUNTIF(L21:L27,AD12) -> 0 | AF12: =AE12/(AG4-AE7) ->  | AG12: =IF(AF12=0,0,(AF12*((LOG(AF12))/LOG(2)))) ->  | AI12: =N12 -> 212 | AJ12: =COUNTIF(L28:L34,AI12) -> 0 | AK12: =AJ12/(AL4-AJ7) ->  | AL12: =IF(AK12=0,0,(AK12*((LOG(AK12))/LOG(2)))) ->  | AN12: =N12 -> 212 | AO12: =COUNTIF(L35:L41,AN12) -> 0 | AP12: =AO12/(AQ4-AO7) ->  | AQ12: =IF(AP12=0,0,(AP12*((LOG(AP12))/LOG(2)))) ->  | AS12: =N12 -> 212 | AT12: =COUNTIF(L42:L48,AS12) -> 0 | AU12: =AT12/(AV4-AT7) ->  | AV12: =IF(AU12=0,0,(AU12*((LOG(AU12))/LOG(2)))) -> 
A13: 11 | B13: 1104 | C13: 11 | D13: 1107 | E13: 11 | F13: 1127 | K13: 0 | L13: 111 | N13: 221 | O13: =COUNTIF($L$7:$L$500,N13) -> 0 | P13: =O13/$Q$4 -> 0 | Q13: =IF(P13=0,0,(P13*((LOG(P13))/LOG(2)))) -> 0 | T13: =N13 -> 221 | U13: =COUNTIF(L7:L13,T13) -> 0 | V13: =U13/(W4-U7) -> 0 | W13: =IF(V13=0,0,(V13*((LOG(V13))/LOG(2)))) -> 0 | Y13: =N13 -> 221 | Z13: =COUNTIF(L14:L20,Y13) -> 0 | AA13: =Z13/(AB4-Z7) ->  | AB13: =IF(AA13=0,0,(AA13*((LOG(AA13))/LOG(2)))) ->  | AD13: =N13 -> 221 | AE13: =COUNTIF(L21:L27,AD13) -> 0 | AF13: =AE13/(AG4-AE7) ->  | AG13: =IF(AF13=0,0,(AF13*((LOG(AF13))/LOG(2)))) ->  | AI13: =N13 -> 221 | AJ13: =COUNTIF(L28:L34,AI13) -> 0 | AK13: =AJ13/(AL4-AJ7) ->  | AL13: =IF(AK13=0,0,(AK13*((LOG(AK13))/LOG(2)))) ->  | AN13: =N13 -> 221 | AO13: =COUNTIF(L35:L41,AN13) -> 0 | AP13: =AO13/(AQ4-AO7) ->  | AQ13: =IF(AP13=0,0,(AP13*((LOG(AP13))/LOG(2)))) ->  | AS13: =N13 -> 221 | AT13: =COUNTIF(L42:L48,AS13) -> 0 | AU13: =AT13/(AV4-AT7) ->  | AV13: =IF(AU13=0,0,(AU13*((LOG(AU13))/LOG(2)))) -> 
A14: 11 | B14: 1286 | C14: 11 | D14: 1290 | E14: 11 | F14: 1295 | K14: 0 | L14: 111 | N14: 222 | O14: =COUNTIF($L$7:$L$500,N14) -> 0 | P14: =O14/$Q$4 -> 0 | Q14: =IF(P14=0,0,(P14*((LOG(P14))/LOG(2)))) -> 0 | T14: =N14 -> 222 | U14: =COUNTIF(L7:L13,T14) -> 0 | V14: =U14/(W4-U7) -> 0 | W14: =IF(V14=0,0,(V14*((LOG(V14))/LOG(2)))) -> 0 | Y14: =N14 -> 222 | Z14: =COUNTIF(L14:L20,Y14) -> 0 | AA14: =Z14/(AB4-Z7) ->  | AB14: =IF(AA14=0,0,(AA14*((LOG(AA14))/LOG(2)))) ->  | AD14: =N14 -> 222 | AE14: =COUNTIF(L21:L27,AD14) -> 0 | AF14: =AE14/(AG4-AE7) ->  | AG14: =IF(AF14=0,0,(AF14*((LOG(AF14))/LOG(2)))) ->  | AI14: =N14 -> 222 | AJ14: =COUNTIF(L28:L34,AI14) -> 0 | AK14: =AJ14/(AL4-AJ7) ->  | AL14: =IF(AK14=0,0,(AK14*((LOG(AK14))/LOG(2)))) ->  | AN14: =N14 -> 222 | AO14: =COUNTIF(L35:L41,AN14) -> 0 | AP14: =AO14/(AQ4-AO7) ->  | AQ14: =IF(AP14=0,0,(AP14*((LOG(AP14))/LOG(2)))) ->  | AS14: =N14 -> 222 | AT14: =COUNTIF(L42:L48,AS14) -> 0 | AU14: =AT14/(AV4-AT7) ->  | AV14: =IF(AU14=0,0,(AU14*((LOG(AU14))/LOG(2)))) -> 
A15: 11 | B15: 1462 | C15: 11 | D15: 1467 | E15: 11 | F15: 1473 | K15: 0 | L15: 111 | P15: =SUM(P7:P14) -> 1 | Q15: =-SUM(Q7:Q14) -> 0.3238144753 | V15: =SUM(V7:V14) -> 1 | W15: =-SUM(W7:W14) -> 1 | AA15: =SUM(AA7:AA14) ->  | AB15: =-SUM(AB7:AB14) ->  | AF15: =SUM(AF7:AF14) ->  | AG15: =-SUM(AG7:AG14) ->  | AK15: =SUM(AK7:AK14) ->  | AL15: =-SUM(AL7:AL14) ->  | AP15: =SUM(AP7:AP14) ->  | AQ15: =-SUM(AQ7:AQ14) ->  | AU15: =SUM(AU7:AU14) ->  | AV15: =-SUM(AV7:AV14) -> 
A16: 11 | B16: 1640 | C16: 11 | D16: 1645 | E16: 11 | F16: 1649 | K16: 0 | L16: 111 | P16: U= | Q16: =Q15/(LOG(Q4)/LOG(2)) -> 0.06005107821 | V16: U1= | W16: =W15/(LOG(W4)/LOG(2)) -> 0.3562071871 | AA16: U2= | AB16: =AB15/(LOG(AB4)/LOG(2)) ->  | AF16: U3= | AG16: =AG15/(LOG(AG4)/LOG(2)) ->  | AK16: U4= | AL16: =AL15/(LOG(AL4)/LOG(2)) ->  | AP16: U5= | AQ16: =AQ15/(LOG(AQ4)/LOG(2)) ->  | AU16: U6= | AV16: =AV15/(LOG(AV4)/LOG(2)) -> 
A17: 11 | B17: 1787 | C17: 11 | D17: 1791 | E17: 11 | F17: 1798 | K17: 0 | L17: 111
A18: 11 | B18: 1955 | C18: 11 | D18: 1960 | E18: 11 | F18: 1965 | K18: 0 | L18: 111
A19: 11 | B19: 2171 | C19: 11 | D19: 2176 | E19: 11 | F19: 2182 | K19: 0 | L19: 111 | N19: Total Target Seq
A20: 11 | B20: 2333 | C20: 11 | D20: 2339 | E20: 11 | F20: 2346 | K20: 0 | L20: 111 | N20: =COUNTIF(L7:L48,G3) -> 40 | P20: 7 | Q20: 7 | R20: 7 | S20: 7 | T20: 7 | U20: 7
A21: 11 | B21: 2530 | C21: 11 | D21: 2536 | E21: 11 | F21: 2541 | K21: 0 | L21: 111 | P21: % of reinforcement given in 6 equal intervals based on number of trials
A22: 11 | B22: 2736 | C22: 11 | D22: 2742 | E22: 11 | F22: 2749 | K22: 0 | L22: 111 | P22: %_1 | Q22: %_2 | R22: %_3 | S22: %_4 | T22: %_5 | U22: %_6
A23: 11 | B23: 2865 | C23: 11 | D23: 2868 | E23: 11 | F23: 2876 | K23: 0 | L23: 111 | O23: target sequence | P23: =$G$3 -> 111 | Q23: =$G$3 -> 111 | R23: =$G$3 -> 111 | S23: =$G$3 -> 111 | T23: =$G$3 -> 111 | U23: =$G$3 -> 111
A24: 11 | B24: 3036 | C24: 11 | D24: 3040 | E24: 11 | F24: 3047 | K24: 0 | L24: 111 | O24: total reinforcement | P24: =U7 -> 5 | Q24: =Z7 -> 7 | R24: =AE7 -> 7 | S24: =AJ7 -> 7 | T24: =AO7 -> 7 | U24: =AT7 -> 7
A25: 11 | B25: 3185 | C25: 11 | D25: 3188 | E25: 11 | F25: 3194 | K25: 0 | L25: 111 | O25: % target
A26: 11 | B26: 3363 | C26: 11 | D26: 3369 | E26: 11 | F26: 3376 | K26: 0 | L26: 111 | O26: CCRF
A27: 11 | B27: 3604 | C27: 11 | D27: 3608 | E27: 11 | F27: 3614 | K27: 0 | L27: 111 | O27: % CCRf
A28: 11 | B28: 3828 | C28: 11 | D28: 3834 | E28: 11 | F28: 3851 | K28: 0 | L28: 111 | O28: average response rate | P28: =F13/P20 -> 161 | Q28: =(F20-F13)/Q20 -> 174.1428571 | R28: =(F27-F20)/R20 -> 181.1428571 | S28: =(F34-F27)/S20 -> 202 | T28: =(F41-F34)/T20 -> 200.1428571 | U28: =(F48-F41)/U20 -> 280.2857143
A29: 11 | B29: 4025 | C29: 11 | D29: 4029 | E29: 11 | F29: 4035 | K29: 0 | L29: 111
A30: 11 | B30: 4208 | C30: 11 | D30: 4215 | E30: 11 | F30: 4230 | K30: 0 | L30: 111
A31: 11 | B31: 4440 | C31: 11 | D31: 4445 | E31: 11 | F31: 4451 | K31: 0 | L31: 111
A32: 11 | B32: 4608 | C32: 11 | D32: 4614 | E32: 11 | F32: 4621 | K32: 0 | L32: 111
A33: 11 | B33: 4800 | C33: 11 | D33: 4804 | E33: 11 | F33: 4809 | K33: 0 | L33: 111
A34: 11 | B34: 5004 | C34: 11 | D34: 5017 | E34: 11 | F34: 5028 | K34: 0 | L34: 111
A35: 11 | B35: 5183 | C35: 11 | D35: 5189 | E35: 11 | F35: 5193 | K35: 0 | L35: 111
A36: 11 | B36: 5451 | C36: 11 | D36: 5456 | E36: 11 | F36: 5463 | K36: 0 | L36: 111
A37: 11 | B37: 5711 | C37: 11 | D37: 5716 | E37: 11 | F37: 5723 | K37: 0 | L37: 111
A38: 11 | B38: 5895 | C38: 11 | D38: 5900 | E38: 11 | F38: 5906 | K38: 0 | L38: 111
A39: 11 | B39: 6059 | C39: 11 | D39: 6066 | E39: 11 | F39: 6072 | K39: 0 | L39: 111
A40: 11 | B40: 6244 | C40: 11 | D40: 6249 | E40: 11 | F40: 6255 | K40: 0 | L40: 111
A41: 11 | B41: 6418 | C41: 11 | D41: 6423 | E41: 11 | F41: 6429 | K41: 0 | L41: 111
A42: 11 | B42: 6634 | C42: 11 | D42: 6639 | E42: 11 | F42: 6643 | K42: 0 | L42: 111
A43: 11 | B43: 6901 | C43: 11 | D43: 6909 | E43: 11 | F43: 6922 | K43: 0 | L43: 111
A44: 11 | B44: 7247 | C44: 11 | D44: 7252 | E44: 11 | F44: 7256 | K44: 0 | L44: 111
A45: 11 | B45: 7531 | C45: 11 | D45: 7535 | E45: 11 | F45: 7540 | K45: 0 | L45: 111
A46: 11 | B46: 7728 | C46: 11 | D46: 7732 | E46: 11 | F46: 7737 | K46: 0 | L46: 111
A47: 11 | B47: 7996 | C47: 11 | D47: 8002 | E47: 11 | F47: 8015 | K47: 0 | L47: 111
A48: 11 | B48: 8380 | C48: 11 | D48: 8385 | E48: 11 | F48: 8391 | K48: 1 | L48: 111

Sheet !M701B3D.ust
A1: Report for:!M701B3D.ust
A2: Date: | B2: <date>
A3: Hen: | B3: <hen> | F3: Correct Sequence | G3: =Start!J2 -> 111 | P3: Total Sequences in Data | Q3: =4994-COUNTBLANK(L7:L5000) -> 40 | V3: Total Sequences in Block Data | W3: =COUNTA(L7:L13) -> 7 | AA3: Total Sequences in Block Data | AB3: =COUNTA(L14:L19) -> 6 | AF3: Total Sequences in Block Data | AG3: =COUNTA(L20:L26) -> 7 | AK3: Total Sequences in Block Data | AL3: =COUNTA(L27:L33) -> 7 | AP3: Total Sequences in Block Data | AQ3: =COUNTA(L34:L39) -> 6 | AU3: Total Sequences in Block Data | AV3: =COUNTA(L40:L46) -> 7
P4: Total Sequences in Summary | Q4: =SUM(O7:O14) -> 40 | V4: Total Sequences in Block Summary | W4: =SUM(U7:U14) -> 7 | AA4: Total Sequences in Block Summary | AB4: =SUM(Z7:Z14) -> 6 | AF4: Total Sequences in Block Summary | AG4: =SUM(AE7:AE14) -> 7 | AK4: Total Sequences in Block Summary | AL4: =SUM(AJ7:AJ14) -> 7 | AP4: Total Sequences in Block Summary | AQ4: =SUM(AO7:AO14) -> 6 | AU4: Total Sequences in Block Summary | AV4: =SUM(AT7:AT14) -> 7
T5: Block 1 | Y5: Block 2 | AD5: Block 3 | AI5: Block 4 | AN5: Block 5 | AS5: Block 6
A6: Sequence Component 1 | B6: Time 1 | C6: Sequence Component 2 | D6: Time 2 | E6: Sequence Component 3 | F6: Time 3 | G6: Sequence Component 4 | H6: Time 4 | I6: Sequence Component 5 | J6: Time 5 | K6: Correct? 0=No 1=Yes | L6: Sequence | N6: Frequency | P6: Relative Frequency | Q6: Variability | T6: Frequency | V6: Relative Frequency | W6: Variability | Y6: Frequency | AA6: Relative Frequency | AB6: Variability | AD6: Frequency | AF6: Relative Frequency | AG6: Variability | AI6: Frequency | AK6: Relative Frequency | AL6: Variability | AN6: Frequency | AP6: Relative Frequency | AQ6: Variability | AS6: Frequency | AU6: Relative Frequency | AV6: Variability
A7: 11 | B7: 6 | C7: 11 | D7: 12 | E7: 11 | F7: 19 | K7: 0 | L7: 111 | N7: 111 | O7: =COUNTIF($L$7:$L$500,N7) -> 40 | P7: =O7/$Q$4 -> 1 | Q7: =IF(P7=0,0,(P7*((LOG(P7))/LOG(2)))) -> 0 | T7: =N7 -> 111 | U7: =COUNTIF(L7:L13,T7) -> 7 | Y7: =N7 -> 111 | Z7: =COUNTIF(L14:L19,Y7) -> 6 | AD7: =N7 -> 111 | AE7: =COUNTIF(L20:L26,AD7) -> 7 | AI7: =N7 -> 111 | AJ7: =COUNTIF(L27:L33,AI7) -> 7 | AN7: =N7 -> 111 | AO7: =COUNTIF(L34:L39,AN7) -> 6 | AS7: =N7 -> 111 | AT7: =COUNTIF(L40:L46,AS7) -> 7
A8: 11 | B8: 183 | C8: 11 | D8: 188 | E8: 11 | F8: 196 | K8: 0 | L8: 111 | N8: 112 | O8: =COUNTIF($L$7:$L$500,N8) -> 0 | P8: =O8/$Q$4 -> 0 | Q8: =IF(P8=0,0,(P8*((LOG(P8))/LOG(2)))) -> 0 | T8: =N8 -> 112 | U8: =COUNTIF(L7:L13,T8) -> 0 | V8: =U8/(W4-U7) ->  | W8: =IF(V8=0,0,(V8*((LOG(V8))/LOG(2)))) ->  | Y8: =N8 -> 112 | Z8: =COUNTIF(L14:L19,Y8) -> 0 | AA8: =Z8/(AB4-Z7) ->  | AB8: =IF(AA8=0,0,(AA8*((LOG(AA8))/LOG(2)))) ->  | AD8: =N8 -> 112 | AE8: =COUNTIF(L20:L26,AD8) -> 0 | AF8: =AE8/(AG4-AE7) ->  | AG8: =IF(AF8=0,0,(AF8*((LOG(AF8))/LOG(2)))) ->  | AI8: =N8 -> 112 | AJ8: =COUNTIF(L27:L33,AI8) -> 0 | AK8: =AJ8/(AL4-AJ7) ->  | AL8: =IF(AK8=0,0,(AK8*((LOG(AK8))/LOG(2)))) ->  | AN8: =N8 -> 112 | AO8: =COUNTIF(L34:L39,AN8) -> 0 | AP8: =AO8/(AQ4-AO7) ->  | AQ8: =IF(AP8=0,0,(AP8*((LOG(AP8))/LOG(2)))) ->  | AS8: =N8 -> 112 | AT8: =COUNTIF(L40:L46,AS8) -> 0 | AU8: =AT8/(AV4-AT7) ->  | AV8: =IF(AU8=0,0,(AU8*((LOG(AU8))/LOG(2)))) -> 
A9: 11 | B9: 344 | C9: 11 | D9: 350 | E9: 11 | F9: 355 | K9: 0 | L9: 111 | N9: 121 | O9: =COUNTIF($L$7:$L$500,N9) -> 0 | P9: =O9/$Q$4 -> 0 | Q9: =IF(P9=0,0,(P9*((LOG(P9))/LOG(2)))) -> 0 | T9: =N9 -> 121 | U9: =COUNTIF(L7:L13,T9) -> 0 | V9: =U9/(W4-U7) ->  | W9: =IF(V9=0,0,(V9*((LOG(V9))/LOG(2)))) ->  | Y9: =N9 -> 121 | Z9: =COUNTIF(L14:L19,Y9) -> 0 | AA9: =Z9/(AB4-Z7) ->  | AB9: =IF(AA9=0,0,(AA9*((LOG(AA9))/LOG(2)))) ->  | AD9: =N9 -> 121 | AE9: =COUNTIF(L20:L26,AD9) -> 0 | AF9: =AE9/(AG4-AE7) ->  | AG9: =IF(AF9=0,0,(AF9*((LOG(AF9))/LOG(2)))) ->  | AI9: =N9 -> 121 | AJ9: =COUNTIF(L27:L33,AI9) -> 0 | AK9: =AJ9/(AL4-AJ7) ->  | AL9: =IF(AK9=0,0,(AK9*((LOG(AK9))/LOG(2)))) ->  | AN9: =N9 -> 121 | AO9: =COUNTIF(L34:L39,AN9) -> 0 | AP9: =AO9/(AQ4-AO7) ->  | AQ9: =IF(AP9=0,0,(AP9*((LOG(AP9))/LOG(2)))) ->  | AS9: =N9 -> 121 | AT9: =COUNTIF(L40:L46,AS9) -> 0 | AU9: =AT9/(AV4-AT7) ->  | AV9: =IF(AU9=0,0,(AU9*((LOG(AU9))/LOG(2)))) -> 
A10: 11 | B10: 524 | C10: 11 | D10: 530 | E10: 11 | F10: 535 | K10: 0 | L10: 111 | N10: 122 | O10: =COUNTIF($L$7:$L$500,N10) -> 0 | P10: =O10/$Q$4 -> 0 | Q10: =IF(P10=0,0,(P10*((LOG(P10))/LOG(2)))) -> 0 | T10: =N10 -> 122 | U10: =COUNTIF(L7:L13,T10) -> 0 | V10: =U10/(W4-U7) ->  | W10: =IF(V10=0,0,(V10*((LOG(V10))/LOG(2)))) ->  | Y10: =N10 -> 122 | Z10: =COUNTIF(L14:L19,Y10) -> 0 | AA10: =Z10/(AB4-Z7) ->  | AB10: =IF(AA10=0,0,(AA10*((LOG(AA10))/LOG(2)))) ->  | AD10: =N10 -> 122 | AE10: =COUNTIF(L20:L26,AD10) -> 0 | AF10: =AE10/(AG4-AE7) ->  | AG10: =IF(AF10=0,0,(AF10*((LOG(AF10))/LOG(2)))) ->  | AI10: =N10 -> 122 | AJ10: =COUNTIF(L27:L33,AI10) -> 0 | AK10: =AJ10/(AL4-AJ7) ->  | AL10: =IF(AK10=0,0,(AK10*((LOG(AK10))/LOG(2)))) ->  | AN10: =N10 -> 122 | AO10: =COUNTIF(L34:L39,AN10) -> 0 | AP10: =AO10/(AQ4-AO7) ->  | AQ10: =IF(AP10=0,0,(AP10*((LOG(AP10))/LOG(2)))) ->  | AS10: =N10 -> 122 | AT10: =COUNTIF(L40:L46,AS10) -> 0 | AU10: =AT10/(AV4-AT7) ->  | AV10: =IF(AU10=0,0,(AU10*((LOG(AU10))/LOG(2)))) -> 
A11: 11 | B11: 795 | C11: 11 | D11: 800 | E11: 11 | F11: 810 | K11: 0 | L11: 111 | N11: 211 | O11: =COUNTIF($L$7:$L$500,N11) -> 0 | P11: =O11/$Q$4 -> 0 | Q11: =IF(P11=0,0,(P11*((LOG(P11))/LOG(2)))) -> 0 | T11: =N11 -> 211 | U11: =COUNTIF(L7:L13,T11) -> 0 | V11: =U11/(W4-U7) ->  | W11: =IF(V11=0,0,(V11*((LOG(V11))/LOG(2)))) ->  | Y11: =N11 -> 211 | Z11: =COUNTIF(L14:L19,Y11) -> 0 | AA11: =Z11/(AB4-Z7) ->  | AB11: =IF(AA11=0,0,(AA11*((LOG(AA11))/LOG(2)))) ->  | AD11: =N11 -> 211 | AE11: =COUNTIF(L20:L26,AD11) -> 0 | AF11: =AE11/(AG4-AE7) ->  | AG11: =IF(AF11=0,0,(AF11*((LOG(AF11))/LOG(2)))) ->  | AI11: =N11 -> 211 | AJ11: =COUNTIF(L27:L33,AI11) -> 0 | AK11: =AJ11/(AL4-AJ7) ->  | AL11: =IF(AK11=0,0,(AK11*((LOG(AK11))/LOG(2)))) ->  | AN11: =N11 -> 211 | AO11: =COUNTIF(L34:L39,AN11) -> 0 | AP11: =AO11/(AQ4-AO7) ->  | AQ11: =IF(AP11=0,0,(AP11*((LOG(AP11))/LOG(2)))) ->  | AS11: =N11 -> 211 | AT11: =COUNTIF(L40:L46,AS11) -> 0 | AU11: =AT11/(AV4-AT7) ->  | AV11: =IF(AU11=0,0,(AU11*((LOG(AU11))/LOG(2)))) -> 
A12: 11 | B12: 996 | C12: 11 | D12: 1002 | E12: 11 | F12: 1006 | K12: 0 | L12: 111 | N12: 212 | O12: =COUNTIF($L$7:$L$500,N12) -> 0 | P12: =O12/$Q$4 -> 0 | Q12: =IF(P12=0,0,(P12*((LOG(P12))/LOG(2)))) -> 0 | T12: =N12 -> 212 | U12: =COUNTIF(L7:L13,T12) -> 0 | V12: =U12/(W4-U7) ->  | W12: =IF(V12=0,0,(V12*((LOG(V12))/LOG(2)))) ->  | Y12: =N12 -> 212 | Z12: =COUNTIF(L14:L19,Y12) -> 0 | AA12: =Z12/(AB4-Z7) ->  | AB12: =IF(AA12=0,0,(AA12*((LOG(AA12))/LOG(2)))) ->  | AD12: =N12 -> 212 | AE12: =COUNTIF(L20:L26,AD12) -> 0 | AF12: =AE12/(AG4-AE7) ->  | AG12: =IF(AF12=0,0,(AF12*((LOG(AF12))/LOG(2)))) ->  | AI12: =N12 -> 212 | AJ12: =COUNTIF(L27:L33,AI12) -> 0 | AK12: =AJ12/(AL4-AJ7) ->  | AL12: =IF(AK12=0,0,(AK12*((LOG(AK12))/LOG(2)))) ->  | AN12: =N12 -> 212 | AO12: =COUNTIF(L34:L39,AN12) -> 0 | AP12: =AO12/(AQ4-AO7) ->  | AQ12: =IF(AP12=0,0,(AP12*((LOG(AP12))/LOG(2)))) ->  | AS12: =N12 -> 212 | AT12: =COUNTIF(L40:L46,AS12) -> 0 | AU12: =AT12/(AV4-AT7) ->  | AV12: =IF(AU12=0,0,(AU12*((LOG(AU12))/LOG(2)))) -> 
A13: 11 | B13: 1177 | C13: 11 | D13: 1181 | E13: 11 | F13: 1183 | K13: 0 | L13: 111 | N13: 221 | O13: =COUNTIF($L$7:$L$500,N13) -> 0 | P13: =O13/$Q$4 -> 0 | Q13: =IF(P13=0,0,(P13*((LOG(P13))/LOG(2)))) -> 0 | T13: =N13 -> 221 | U13: =COUNTIF(L7:L13,T13) -> 0 | V13: =U13/(W4-U7) ->  | W13: =IF(V13=0,0,(V13*((LOG(V13))/LOG(2)))) ->  | Y13: =N13 -> 221 | Z13: =COUNTIF(L14:L19,Y13) -> 0 | AA13: =Z13/(AB4-Z7) ->  | AB13: =IF(AA13=0,0,(AA13*((LOG(AA13))/LOG(2)))) ->  | AD13: =N13 -> 221 | AE13: =COUNTIF(L20:L26,AD13) -> 0 | AF13: =AE13/(AG4-AE7) ->  | AG13: =IF(AF13=0,0,(AF13*((LOG(AF13))/LOG(2)))) ->  | AI13: =N13 -> 221 | AJ13: =COUNTIF(L27:L33,AI13) -> 0 | AK13: =AJ13/(AL4-AJ7) ->  | AL13: =IF(AK13=0,0,(AK13*((LOG(AK13))/LOG(2)))) ->  | AN13: =N13 -> 221 | AO13: =COUNTIF(L34:L39,AN13) -> 0 | AP13: =AO13/(AQ4-AO7) ->  | AQ13: =IF(AP13=0,0,(AP13*((LOG(AP13))/LOG(2)))) ->  | AS13: =N13 -> 221 | AT13: =COUNTIF(L40:L46,AS13) -> 0 | AU13: =AT13/(AV4-AT7) ->  | AV13: =IF(AU13=0,0,(AU13*((LOG(AU13))/LOG(2)))) -> 
A14: 11 | B14: 1347 | C14: 11 | D14: 1351 | E14: 11 | F14: 1357 | K14: 0 | L14: 111 | N14: 222 | O14: =COUNTIF($L$7:$L$500,N14) -> 0 | P14: =O14/$Q$4 -> 0 | Q14: =IF(P14=0,0,(P14*((LOG(P14))/LOG(2)))) -> 0 | T14: =N14 -> 222 | U14: =COUNTIF(L7:L13,T14) -> 0 | V14: =U14/(W4-U7) ->  | W14: =IF(V14=0,0,(V14*((LOG(V14))/LOG(2)))) ->  | Y14: =N14 -> 222 | Z14: =COUNTIF(L14:L19,Y14) -> 0 | AA14: =Z14/(AB4-Z7) ->  | AB14: =IF(AA14=0,0,(AA14*((LOG(AA14))/LOG(2)))) ->  | AD14: =N14 -> 222 | AE14: =COUNTIF(L20:L26,AD14) -> 0 | AF14: =AE14/(AG4-AE7) ->  | AG14: =IF(AF14=0,0,(AF14*((LOG(AF14))/LOG(2)))) ->  | AI14: =N14 -> 222 | AJ14: =COUNTIF(L27:L33,AI14) -> 0 | AK14: =AJ14/(AL4-AJ7) ->  | AL14: =IF(AK14=0,0,(AK14*((LOG(AK14))/LOG(2)))) ->  | AN14: =N14 -> 222 | AO14: =COUNTIF(L34:L39,AN14) -> 0 | AP14: =AO14/(AQ4-AO7) ->  | AQ14: =IF(AP14=0,0,(AP14*((LOG(AP14))/LOG(2)))) ->  | AS14: =N14 -> 222 | AT14: =COUNTIF(L40:L46,AS14) -> 0 | AU14: =AT14/(AV4-AT7) ->  | AV14: =IF(AU14=0,0,(AU14*((LOG(AU14))/LOG(2)))) -> 
A15: 11 | B15: 1553 | C15: 11 | D15: 1556 | E15: 11 | F15: 1563 | K15: 0 | L15: 111 | P15: =SUM(P7:P14) -> 1 | Q15: =-SUM(Q7:Q14) -> 0 | V15: =SUM(V7:V14) ->  | W15: =-SUM(W7:W14) ->  | AA15: =SUM(AA7:AA14) ->  | AB15: =-SUM(AB7:AB14) ->  | AF15: =SUM(AF7:AF14) ->  | AG15: =-SUM(AG7:AG14) ->  | AK15: =SUM(AK7:AK14) ->  | AL15: =-SUM(AL7:AL14) ->  | AP15: =SUM(AP7:AP14) ->  | AQ15: =-SUM(AQ7:AQ14) ->  | AU15: =SUM(AU7:AU14) ->  | AV15: =-SUM(AV7:AV14) -> 
A16: 11 | B16: 1724 | C16: 11 | D16: 1730 | E16: 11 | F16: 1736 | K16: 0 | L16: 111 | P16: U= | Q16: =Q15/(LOG(Q4)/LOG(2)) -> 0 | V16: U1= | W16: =W15/(LOG(W4)/LOG(2)) ->  | AA16: U2= | AB16: =AB15/(LOG(AB4)/LOG(2)) ->  | AF16: U3= | AG16: =AG15/(LOG(AG4)/LOG(2)) ->  | AK16: U4= | AL16: =AL15/(LOG(AL4)/LOG(2)) ->  | AP16: U5= | AQ16: =AQ15/(LOG(AQ4)/LOG(2)) ->  | AU16: U6= | AV16: =AV15/(LOG(AV4)/LOG(2)) -> 
A17: 11 | B17: 1957 | C17: 11 | D17: 1960 | E17: 11 | F17: 1963 | K17: 0 | L17: 111
A18: 11 | B18: 2116 | C18: 11 | D18: 2122 | E18: 11 | F18: 2134 | K18: 0 | L18: 111
A19: 11 | B19: 2299 | C19: 11 | D19: 2302 | E19: 11 | F19: 2308 | K19: 0 | L19: 111 | N19: Total Target Seq
A20: 11 | B20: 2486 | C20: 11 | D20: 2491 | E20: 11 | F20: 2498 | K20: 0 | L20: 111 | N20: =COUNTIF(L7:L46,G3) -> 40 | P20: 7 | Q20: 6 | R20: 7 | S20: 7 | T20: 6 | U20: 7
A21: 11 | B21: 2679 | C21: 11 | D21: 2684 | E21: 11 | F21: 2694 | K21: 0 | L21: 111 | P21: % of reinforcement given in 6 equal intervals based on number of trials
A22: 11 | B22: 2872 | C22: 11 | D22: 2877 | E22: 11 | F22: 2884 | K22: 0 | L22: 111 | P22: %_1 | Q22: %_2 | R22: %_3 | S22: %_4 | T22: %_5 | U22: %_6
A23: 11 | B23: 3071 | C23: 11 | D23: 3082 | E23: 11 | F23: 3087 | K23: 0 | L23: 111 | O23: target sequence | P23: =$G$3 -> 111 | Q23: =$G$3 -> 111 | R23: =$G$3 -> 111 | S23: =$G$3 -> 111 | T23: =$G$3 -> 111 | U23: =$G$3 -> 111
A24: 11 | B24: 3234 | C24: 11 | D24: 3239 | E24: 11 | F24: 3246 | K24: 0 | L24: 111 | O24: total reinforcement | P24: =U7 -> 7 | Q24: =Z7 -> 6 | R24: =AE7 -> 7 | S24: =AJ7 -> 7 | T24: =AO7 -> 6 | U24: =AT7 -> 7
A25: 11 | B25: 3426 | C25: 11 | D25: 3431 | E25: 11 | F25: 3436 | K25: 0 | L25: 111 | O25: % target
A26: 11 | B26: 3572 | C26: 11 | D26: 3577 | E26: 11 | F26: 3585 | K26: 0 | L26: 111 | O26: CCRF
A27: 11 | B27: 3800 | C27: 11 | D27: 3806 | E27: 11 | F27: 3819 | K27: 0 | L27: 111 | O27: % CCRf
A28: 11 | B28: 4036 | C28: 11 | D28: 4039 | E28: 11 | F28: 4045 | K28: 0 | L28: 111 | O28: average response rate | P28: =F13/P20 -> 169 | Q28: =(F19-F13)/Q20 -> 187.5 | R28: =(F26-F19)/R20 -> 182.4285714 | S28: =(F33-F26)/S20 -> 222.7142857 | T28: =(F39-F33)/T20 -> 218.5 | U28: =(F46-F39)/U20 -> 248
A29: 11 | B29: 4222 | C29: 11 | D29: 4227 | E29: 11 | F29: 4233 | K29: 0 | L29: 111
A30: 11 | B30: 4422 | C30: 11 | D30: 4427 | E30: 11 | F30: 4434 | K30: 0 | L30: 111
A31: 11 | B31: 4657 | C31: 11 | D31: 4660 | E31: 11 | F31: 4667 | K31: 0 | L31: 111
A32: 11 | B32: 4951 | C32: 11 | D32: 4954 | E32: 11 | F32: 4960 | K32: 0 | L32: 111
A33: 11 | B33: 5132 | C33: 11 | D33: 5137 | E33: 11 | F33: 5144 | K33: 0 | L33: 111
A34: 11 | B34: 5414 | C34: 11 | D34: 5419 | E34: 11 | F34: 5424 | K34: 0 | L34: 111
A35: 11 | B35: 5562 | C35: 11 | D35: 5567 | E35: 11 | F35: 5572 | K35: 0 | L35: 111
A36: 11 | B36: 5725 | C36: 11 | D36: 5730 | E36: 11 | F36: 5736 | K36: 0 | L36: 111
A37: 11 | B37: 5911 | C37: 11 | D37: 5916 | E37: 11 | F37: 5921 | K37: 0 | L37: 111
A38: 11 | B38: 6234 | C38: 11 | D38: 6238 | E38: 11 | F38: 6244 | K38: 0 | L38: 111
A39: 11 | B39: 6446 | C39: 11 | D39: 6450 | E39: 11 | F39: 6455 | K39: 0 | L39: 111
A40: 11 | B40: 6688 | C40: 11 | D40: 6706 | E40: 11 | F40: 6712 | K40: 0 | L40: 111
A41: 11 | B41: 6946 | C41: 11 | D41: 6950 | E41: 11 | F41: 6956 | K41: 0 | L41: 111
A42: 11 | B42: 7153 | C42: 11 | D42: 7157 | E42: 11 | F42: 7161 | K42: 0 | L42: 111
A43: 11 | B43: 7303 | C43: 11 | D43: 7306 | E43: 11 | F43: 7314 | K43: 0 | L43: 111
A44: 11 | B44: 7631 | C44: 11 | D44: 7635 | E44: 11 | F44: 7641 | K44: 0 | L44: 111
A45: 11 | B45: 7945 | C45: 11 | D45: 7947 | E45: 11 | F45: 7951 | K45: 0 | L45: 111
A46: 11 | B46: 8181 | C46: 11 | D46: 8185 | E46: 11 | F46: 8191 | K46: 1 | L46: 111

Sheet !M702A2D.ust
A1: Report for:!M702A2D.ust
A2: Date: | B2: <date>
A3: Hen: | B3: <hen> | F3: Correct Sequence | G3: =Start!J2 -> 111 | P3: Total Sequences in Data | Q3: =4994-COUNTBLANK(L7:L5000) -> 42 | V3: Total Sequences in Block Data | W3: =COUNTA(L7:L13) -> 7 | AA3: Total Sequences in Block Data | AB3: =COUNTA(L14:L20) -> 7 | AF3: Total Sequences in Block Data | AG3: =COUNTA(L21:L27) -> 7 | AK3: Total Sequences in Block Data | AL3: =COUNTA(L28:L34) -> 7 | AP3: Total Sequences in Block Data | AQ3: =COUNTA(L35:L41) -> 7 | AU3: Total Sequences in Block Data | AV3: =COUNTA(L42:L48) -> 7
P4: Total Sequences in Summary | Q4: =SUM(O7:O14) -> 42 | V4: Total Sequences in Block Summary | W4: =SUM(U7:U14) -> 7 | AA4: Total Sequences in Block Summary | AB4: =SUM(Z7:Z14) -> 7 | AF4: Total Sequences in Block Summary | AG4: =SUM(AE7:AE14) -> 7 | AK4: Total Sequences in Block Summary | AL4: =SUM(AJ7:AJ14) -> 7 | AP4: Total Sequences in Block Summary | AQ4: =SUM(AO7:AO14) -> 7 | AU4: Total Sequences in Block Summary | AV4: =SUM(AT7:AT14) -> 7
T5: Block 1 | Y5: Block 2 | AD5: Block 3 | AI5: Block 4 | AN5: Block 5 | AS5: Block 6
A6: Sequence Component 1 | B6: Time 1 | C6: Sequence Component 2 | D6: Time 2 | E6: Sequence Component 3 | F6: Time 3 | G6: Sequence Component 4 | H6: Time 4 | I6: Sequence Component 5 | J6: Time 5 | K6: Correct? 0=No 1=Yes | L6: Sequence | N6: Frequency | P6: Relative Frequency | Q6: Variability | T6: Frequency | V6: Relative Frequency | W6: Variability | Y6: Frequency | AA6: Relative Frequency | AB6: Variability | AD6: Frequency | AF6: Relative Frequency | AG6: Variability | AI6: Frequency | AK6: Relative Frequency | AL6: Variability | AN6: Frequency | AP6: Relative Frequency | AQ6: Variability | AS6: Frequency | AU6: Relative Frequency | AV6: Variability
A7: 22 | B7: 9 | C7: 24 | D7: 19 | E7: 13 | F7: 34 | K7: 0 | L7: 221 | N7: 111 | O7: =COUNTIF($L$7:$L$500,N7) -> 40 | P7: =O7/$Q$4 -> 0.9523809524 | Q7: =IF(P7=0,0,(P7*((LOG(P7))/LOG(2)))) -> -0.06703745513 | T7: =N7 -> 111 | U7: =COUNTIF(L7:L13,T7) -> 6 | Y7: =N7 -> 111 | Z7: =COUNTIF(L14:L20,Y7) -> 7 | AD7: =N7 -> 111 | AE7: =COUNTIF(L21:L27,AD7) -> 7 | AI7: =N7 -> 111 | AJ7: =COUNTIF(L28:L34,AI7) -> 6 | AN7: =N7 -> 111 | AO7: =COUNTIF(L35:L41,AN7) -> 7 | AS7: =N7 -> 111 | AT7: =COUNTIF(L42:L48,AS7) -> 7
A8: 11 | B8: 131 | C8: 11 | D8: 138 | E8: 11 | F8: 143 | K8: 0 | L8: 111 | N8: 112 | O8: =COUNTIF($L$7:$L$500,N8) -> 0 | P8: =O8/$Q$4 -> 0 | Q8: =IF(P8=0,0,(P8*((LOG(P8))/LOG(2)))) -> 0 | T8: =N8 -> 112 | U8: =COUNTIF(L7:L13,T8) -> 0 | V8: =U8/(W4-U7) -> 0 | W8: =IF(V8=0,0,(V8*((LOG(V8))/LOG(2)))) -> 0 | Y8: =N8 -> 112 | Z8: =COUNTIF(L14:L20,Y8) -> 0 | AA8: =Z8/(AB4-Z7) ->  | AB8: =IF(AA8=0,0,(AA8*((LOG(AA8))/LOG(2)))) ->  | AD8: =N8 -> 112 | AE8: =COUNTIF(L21:L27,AD8) -> 0 | AF8: =AE8/(AG4-AE7) ->  | AG8: =IF(AF8=0,0,(AF8*((LOG(AF8))/LOG(2)))) ->  | AI8: =N8 -> 112 | AJ8: =COUNTIF(L28:L34,AI8) -> 0 | AK8: =AJ8/(AL4-AJ7) -> 0 | AL8: =IF(AK8=0,0,(AK8*((LOG(AK8))/LOG(2)))) -> 0 | AN8: =N8 -> 112 | AO8: =COUNTIF(L35:L41,AN8) -> 0 | AP8: =AO8/(AQ4-AO7) ->  | AQ8: =IF(AP8=0,0,(AP8*((LOG(AP8))/LOG(2)))) ->  | AS8: =N8 -> 112 | AT8: =COUNTIF(L42:L48,AS8) -> 0 | AU8: =AT8/(AV4-AT7) ->  | AV8: =IF(AU8=0,0,(AU8*((LOG(AU8))/LOG(2)))) -> 
A9: 11 | B9: 327 | C9: 11 | D9: 333 | E9: 11 | F9: 339 | K9: 0 | L9: 111 | N9: 121 | O9: =COUNTIF($L$7:$L$500,N9) -> 0 | P9: =O9/$Q$4 -> 0 | Q9: =IF(P9=0,0,(P9*((LOG(P9))/LOG(2)))) -> 0 | T9: =N9 -> 121 | U9: =COUNTIF(L7:L13,T9) -> 0 | V9: =U9/(W4-U7) -> 0 | W9: =IF(V9=0,0,(V9*((LOG(V9))/LOG(2)))) -> 0 | Y9: =N9 -> 121 | Z9: =COUNTIF(L14:L20,Y9) -> 0 | AA9: =Z9/(AB4-Z7) ->  | AB9: =IF(AA9=0,0,(AA9*((LOG(AA9))/LOG(2)))) ->  | AD9: =N9 -> 121 | AE9: =COUNTIF(L21:L27,AD9) -> 0 | AF9: =AE9/(AG4-AE7) ->  | AG9: =IF(AF9=0,0,(AF9*((LOG(AF9))/LOG(2)))) ->  | AI9: =N9 -> 121 | AJ9: =COUNTIF(L28:L34,AI9) -> 0 | AK9: =AJ9/(AL4-AJ7) -> 0 | AL9: =IF(AK9=0,0,(AK9*((LOG(AK9))/LOG(2)))) -> 0 | AN9: =N9 -> 121 | AO9: =COUNTIF(L35:L41,AN9) -> 0 | AP9: =AO9/(AQ4-AO7) ->  | AQ9: =IF(AP9=0,0,(AP9*((LOG(AP9))/LOG(2)))) ->  | AS9: =N9 -> 121 | AT9: =COUNTIF(L42:L48,AS9) -> 0 | AU9: =AT9/(AV4-AT7) ->  | AV9: =IF(AU9=0,0,(AU9*((LOG(AU9))/LOG(2)))) -> 
A10: 11 | B10: 570 | C10: 11 | D10: 574 | E10: 11 | F10: 580 | K10: 0 | L10: 111 | N10: 122 | O10: =COUNTIF($L$7:$L$500,N10) -> 0 | P10: =O10/$Q$4 -> 0 | Q10: =IF(P10=0,0,(P10*((LOG(P10))/LOG(2)))) -> 0 | T10: =N10 -> 122 | U10: =COUNTIF(L7:L13,T10) -> 0 | V10: =U10/(W4-U7) -> 0 | W10: =IF(V10=0,0,(V10*((LOG(V10))/LOG(2)))) -> 0 | Y10: =N10 -> 122 | Z10: =COUNTIF(L14:L20,Y10) -> 0 | AA10: =Z10/(AB4-Z7) ->  | AB10: =IF(AA10=0,0,(AA10*((LOG(AA10))/LOG(2)))) ->  | AD10: =N10 -> 122 | AE10: =COUNTIF(L21:L27,AD10) -> 0 | AF10: =AE10/(AG4-AE7) ->  | AG10: =IF(AF10=0,0,(AF10*((LOG(AF10))/LOG(2)))) ->  | AI10: =N10 -> 122 | AJ10: =COUNTIF(L28:L34,AI10) -> 0 | AK10: =AJ10/(AL4-AJ7) -> 0 | AL10: =IF(AK10=0,0,(AK10*((LOG(AK10))/LOG(2)))) -> 0 | AN10: =N10 -> 122 | AO10: =COUNTIF(L35:L41,AN10) -> 0 | AP10: =AO10/(AQ4-AO7) ->  | AQ10: =IF(AP10=0,0,(AP10*((LOG(AP10))/LOG(2)))) ->  | AS10: =N10 -> 122 | AT10: =COUNTIF(L42:L48,AS10) -> 0 | AU10: =AT10/(AV4-AT7) ->  | AV10: =IF(AU10=0,0,(AU10*((LOG(AU10))/LOG(2)))) -> 
A11: 11 | B11: 777 | C11: 11 | D11: 782 | E11: 11 | F11: 789 | K11: 0 | L11: 111 | N11: 211 | O11: =COUNTIF($L$7:$L$500,N11) -> 0 | P11: =O11/$Q$4 -> 0 | Q11: =IF(P11=0,0,(P11*((LOG(P11))/LOG(2)))) -> 0 | T11: =N11 -> 211 | U11: =COUNTIF(L7:L13,T11) -> 0 | V11: =U11/(W4-U7) -> 0 | W11: =IF(V11=0,0,(V11*((LOG(V11))/LOG(2)))) -> 0 | Y11: =N11 -> 211 | Z11: =COUNTIF(L14:L20,Y11) -> 0 | AA11: =Z11/(AB4-Z7) ->  | AB11: =IF(AA11=0,0,(AA11*((LOG(AA11))/LOG(2)))) ->  | AD11: =N11 -> 211 | AE11: =COUNTIF(L21:L27,AD11) -> 0 | AF11: =AE11/(AG4-AE7) ->  | AG11: =IF(AF11=0,0,(AF11*((LOG(AF11))/LOG(2)))) ->  | AI11: =N11 -> 211 | AJ11: =COUNTIF(L28:L34,AI11) -> 0 | AK11: =AJ11/(AL4-AJ7) -> 0 | AL11: =IF(AK11=0,0,(AK11*((LOG(AK11))/LOG(2)))) -> 0 | AN11: =N11 -> 211 | AO11: =COUNTIF(L35:L41,AN11) -> 0 | AP11: =AO11/(AQ4-AO7) ->  | AQ11: =IF(AP11=0,0,(AP11*((LOG(AP11))/LOG(2)))) ->  | AS11: =N11 -> 211 | AT11: =COUNTIF(L42:L48,AS11) -> 0 | AU11: =AT11/(AV4-AT7) ->  | AV11: =IF(AU11=0,0,(AU11*((LOG(AU11))/LOG(2)))) -> 
A12: 11 | B12: 956 | C12: 11 | D12: 961 | E12: 11 | F12: 967 | K12: 0 | L12: 111 | N12: 212 | O12: =COUNTIF($L$7:$L$500,N12) -> 0 | P12: =O12/$Q$4 -> 0 | Q12: =IF(P12=0,0,(P12*((LOG(P12))/LOG(2)))) -> 0 | T12: =N12 -> 212 | U12: =COUNTIF(L7:L13,T12) -> 0 | V12: =U12/(W4-U7) -> 0 | W12: =IF(V12=0,0,(V12*((LOG(V12))/LOG(2)))) -> 0 | Y12: =N12 -> 212 | Z12: =COUNTIF(L14:L20,Y12) -> 0 | AA12: =Z12/(AB4-Z7) ->  | AB12: =IF(AA12=0,0,(AA12*((LOG(AA12))/LOG(2)))) ->  | AD12: =N12 -> 212 | AE12: =COUNTIF(L21:L27,AD12) -> 0 | AF12: =AE12/(AG4-AE7) ->  | AG12: =IF(AF12=0,0,(AF12*((LOG(AF12))/LOG(2)))) ->  | AI12: =N12 -> 212 | AJ12: =COUNTIF(L28:L34,AI12) -> 0 | AK12: =AJ12/(AL4-AJ7) -> 0 | AL12: =IF(AK12=0,0,(AK12*((LOG(AK12))/LOG(2)))) -> 0 | AN12: =N12 -> 212 | AO12: =COUNTIF(L35:L41,AN12) -> 0 | AP12: =AO12/(AQ4-AO7) ->  | AQ12: =IF(AP12=0,0,(AP12*((LOG(AP12))/LOG(2)))) ->  | AS12: =N12 -> 212 | AT12: =COUNTIF(L42:L48,AS12) -> 0 | AU12: =AT12/(AV4-AT7) ->  | AV12: =IF(AU12=0,0,(AU12*((LOG(AU12))/LOG(2)))) -> 
A13: 11 | B13: 1150 | C13: 11 | D13: 1155 | E13: 11 | F13: 1161 | K13: 0 | L13: 111 | N13: 221 | O13: =COUNTIF($L$7:$L$500,N13) -> 1 | P13: =O13/$Q$4 -> 0.02380952381 | Q13: =IF(P13=0,0,(P13*((LOG(P13))/LOG(2)))) -> -0.1283885101 | T13: =N13 -> 221 | U13: =COUNTIF(L7:L13,T13) -> 1 | V13: =U13/(W4-U7) -> 1 | W13: =IF(V13=0,0,(V13*((LOG(V13))/LOG(2)))) -> 0 | Y13: =N13 -> 221 | Z13: =COUNTIF(L14:L20,Y13) -> 0 | AA13: =Z13/(AB4-Z7) ->  | AB13: =IF(AA13=0,0,(AA13*((LOG(AA13))/LOG(2)))) ->  | AD13: =N13 -> 221 | AE13: =COUNTIF(L21:L27,AD13) -> 0 | AF13: =AE13/(AG4-AE7) ->  | AG13: =IF(AF13=0,0,(AF13*((LOG(AF13))/LOG(2)))) ->  | AI13: =N13 -> 221 | AJ13: =COUNTIF(L28:L34,AI13) -> 0 | AK13: =AJ13/(AL4-AJ7) -> 0 | AL13: =IF(AK13=0,0,(AK13*((LOG(AK13))/LOG(2)))) -> 0 | AN13: =N13 -> 221 | AO13: =COUNTIF(L35:L41,AN13) -> 0 | AP13: =AO13/(AQ4-AO7) ->  | AQ13: =IF(AP13=0,0,(AP13*((LOG(AP13))/LOG(2)))) ->  | AS13: =N13 -> 221 | AT13: =COUNTIF(L42:L48,AS13) -> 0 | AU13: =AT13/(AV4-AT7) ->  | AV13: =IF(AU13=0,0,(AU13*((LOG(AU13))/LOG(2)))) -> 
A14: 11 | B14: 1328 | C14: 11 | D14: 1338 | E14: 11 | F14: 1345 | K14: 0 | L14: 111 | N14: 222 | O14: =COUNTIF($L$7:$L$500,N14) -> 1 | P14: =O14/$Q$4 -> 0.02380952381 | Q14: =IF(P14=0,0,(P14*((LOG(P14))/LOG(2)))) -> -0.1283885101 | T14: =N14 -> 222 | U14: =COUNTIF(L7:L13,T14) -> 0 | V14: =U14/(W4-U7) -> 0 | W14: =IF(V14=0,0,(V14*((LOG(V14))/LOG(2)))) -> 0 | Y14: =N14 -> 222 | Z14: =COUNTIF(L14:L20,Y14) -> 0 | AA14: =Z14/(AB4-Z7) ->  | AB14: =IF(AA14=0,0,(AA14*((LOG(AA14))/LOG(2)))) ->  | AD14: =N14 -> 222 | AE14: =COUNTIF(L21:L27,AD14) -> 0 | AF14: =AE14/(AG4-AE7) ->  | AG14: =IF(AF14=0,0,(AF14*((LOG(AF14))/LOG(2)))) ->  | AI14: =N14 -> 222 | AJ14: =COUNTIF(L28:L34,AI14) -> 1 | AK14: =AJ14/(AL4-AJ7) -> 1 | AL14: =IF(AK14=0,0,(AK14*((LOG(AK14))/LOG(2)))) -> 0 | AN14: =N14 -> 222 | AO14: =COUNTIF(L35:L41,AN14) -> 0 | AP14: =AO14/(AQ4-AO7) ->  | AQ14: =IF(AP14=0,0,(AP14*((LOG(AP14))/LOG(2)))) ->  | AS14: =N14 -> 222 | AT14: =COUNTIF(L42:L48,AS14) -> 0 | AU14: =AT14/(AV4-AT7) ->  | AV14: =IF(AU14=0,0,(AU14*((LOG(AU14))/LOG(2)))) -> 
A15: 11 | B15: 1552 | C15: 11 | D15: 1558 | E15: 11 | F15: 1565 | K15: 0 | L15: 111 | P15: =SUM(P7:P14) -> 1 | Q15: =-SUM(Q7:Q14) -> 0.3238144753 | V15: =SUM(V7:V14) -> 1 | W15: =-SUM(W7:W14) -> 0 | AA15: =SUM(AA7:AA14) ->  | AB15: =-SUM(AB7:AB14) ->  | AF15: =SUM(AF7:AF14) ->  | AG15: =-SUM(AG7:AG14) ->  | AK15: =SUM(AK7:AK14) -> 1 | AL15: =-SUM(AL7:AL14) -> 0 | AP15: =SUM(AP7:AP14) ->  | AQ15: =-SUM(AQ7:AQ14) ->  | AU15: =SUM(AU7:AU14) ->  | AV15: =-SUM(AV7:AV14) -> 
A16: 11 | B16: 1697 | C16: 11 | D16: 1704 | E16: 11 | F16: 1711 | K16: 0 | L16: 111 | P16: U= | Q16: =Q15/(LOG(Q4)/LOG(2)) -> 0.06005107821 | V16: U1= | W16: =W15/(LOG(W4)/LOG(2)) -> 0 | AA16: U2= | AB16: =AB15/(LOG(AB4)/LOG(2)) ->  | AF16: U3= | AG16: =AG15/(LOG(AG4)/LOG(2)) ->  | AK16: U4= | AL16: =AL15/(LOG(AL4)/LOG(2)) -> 0 | AP16: U5= | AQ16: =AQ15/(LOG(AQ4)/LOG(2)) ->  | AU16: U6= | AV16: =AV15/(LOG(AV4)/LOG(2)) -> 
A17: 11 | B17: 1886 | C17: 11 | D17: 1892 | E17: 11 | F17: 1899 | K17: 0 | L17: 111
A18: 11 | B18: 2113 | C18: 11 | D18: 2119 | E18: 11 | F18: 2126 | K18: 0 | L18: 111
A19: 11 | B19: 2278 | C19: 11 | D19: 2283 | E19: 11 | F19: 2302 | K19: 0 | L19: 111 | N19: Total Target Seq
A20: 11 | B20: 2483 | C20: 11 | D20: 2488 | E20: 11 | F20: 2495 | K20: 0 | L20: 111 | N20: =COUNTIF(L7:L48,G3) -> 40 | P20: 7 | Q20: 7 | R20: 7 | S20: 7 | T20: 7 | U20: 7
A21: 11 | B21: 2706 | C21: 11 | D21: 2711 | E21: 11 | F21: 2717 | K21: 0 | L21: 111 | P21: % of reinforcement given in 6 equal intervals based on number of trials
A22: 11 | B22: 2860 | C22: 11 | D22: 2870 | E22: 11 | F22: 2881 | K22: 0 | L22: 111 | P22: %_1 | Q22: %_2 | R22: %_3 | S22: %_4 | T22: %_5 | U22: %_6
A23: 11 | B23: 3072 | C23: 11 | D23: 3078 | E23: 11 | F23: 3084 | K23: 0 | L23: 111 | O23: target sequence | P23: =$G$3 -> 111 | Q23: =$G$3 -> 111 | R23: =$G$3 -> 111 | S23: =$G$3 -> 111 | T23: =$G$3 -> 111 | U23: =$G$3 -> 111
A24: 11 | B24: 3214 | C24: 11 | D24: 3224 | E24: 11 | F24: 3230 | K24: 0 | L24: 111 | O24: total reinforcement | P24: =U7 -> 6 | Q24: =Z7 -> 7 | R24: =AE7 -> 7 | S24: =AJ7 -> 6 | T24: =AO7 -> 7 | U24: =AT7 -> 7
A25: 11 | B25: 3433 | C25: 11 | D25: 3438 | E25: 11 | F25: 3443 | K25: 0 | L25: 111 | O25: % target
A26: 11 | B26: 3597 | C26: 11 | D26: 3603 | E26: 11 | F26: 3608 | K26: 0 | L26: 111 | O26: CCRF
A27: 11 | B27: 3781 | C27: 11 | D27: 3788 | E27: 11 | F27: 3795 | K27: 0 | L27: 111 | O27: % CCRf
A28: 11 | B28: 4095 | C28: 11 | D28: 4100 | E28: 11 | F28: 4105 | K28: 0 | L28: 111 | O28: average response rate | P28: =F13/P20 -> 165.8571429 | Q28: =(F20-F13)/Q20 -> 190.5714286 | R28: =(F27-F20)/R20 -> 185.7142857 | S28: =(F34-F27)/S20 -> 181.8571429 | T28: =(F41-F34)/T20 -> 183.7142857 | U28: =(F48-F41)/U20 -> 177.7142857
A29: 22 | B29: 4293 | C29: 24 | D29: 4295 | E29: 24 | F29: 4298 | K29: 0 | L29: 222
A30: 11 | B30: 4395 | C30: 11 | D30: 4402 | E30: 11 | F30: 4411 | K30: 0 | L30: 111
A31: 11 | B31: 4566 | C31: 11 | D31: 4570 | E31: 11 | F31: 4577 | K31: 0 | L31: 111
A32: 11 | B32: 4677 | C32: 11 | D32: 4683 | E32: 11 | F32: 4689 | K32: 0 | L32: 111
A33: 11 | B33: 4806 | C33: 11 | D33: 4810 | E33: 11 | F33: 4816 | K33: 0 | L33: 111
A34: 11 | B34: 5049 | C34: 11 | D34: 5055 | E34: 11 | F34: 5068 | K34: 0 | L34: 111
A35: 11 | B35: 5259 | C35: 11 | D35: 5265 | E35: 11 | F35: 5271 | K35: 0 | L35: 111
A36: 11 | B36: 5424 | C36: 11 | D36: 5430 | E36: 11 | F36: 5438 | K36: 0 | L36: 111
A37: 11 | B37: 5557 | C37: 11 | D37: 5562 | E37: 11 | F37: 5568 | K37: 0 | L37: 111
A38: 11 | B38: 5698 | C38: 11 | D38: 5704 | E38: 11 | F38: 5710 | K38: 0 | L38: 111
A39: 11 | B39: 5924 | C39: 11 | D39: 5930 | E39: 11 | F39: 5936 | K39: 0 | L39: 111
A40: 11 | B40: 6115 | C40: 11 | D40: 6118 | E40: 11 | F40: 6123 | K40: 0 | L40: 111
A41: 11 | B41: 6345 | C41: 11 | D41: 6348 | E41: 11 | F41: 6354 | K41: 0 | L41: 111
A42: 11 | B42: 6586 | C42: 11 | D42: 6590 | E42: 11 | F42: 6610 | K42: 0 | L42: 111
A43: 11 | B43: 6719 | C43: 11 | D43: 6728 | E43: 11 | F43: 6733 | K43: 0 | L43: 111
A44: 11 | B44: 6845 | C44: 11 | D44: 6852 | E44: 11 | F44: 6861 | K44: 0 | L44: 111
A45: 11 | B45: 7049 | C45: 11 | D45: 7055 | E45: 11 | F45: 7062 | K45: 0 | L45: 111
A46: 11 | B46: 7217 | C46: 11 | D46: 7224 | E46: 11 | F46: 7233 | K46: 0 | L46: 111
A47: 11 | B47: 7412 | C47: 11 | D47: 7418 | E47: 11 | F47: 7427 | K47: 0 | L47: 111
A48: 11 | B48: 7572 | C48: 11 | D48: 7578 | E48: 11 | F48: 7598 | K48: 1 | L48: 111

Sheet !M703B0D.ust
A1: Report for:!M703B0D.ust
A2: Date: | B2: <date>
A3: Hen: | B3: <hen> | F3: Correct Sequence | G3: =Start!J2 -> 111 | P3: Total Sequences in Data | Q3: =4994-COUNTBLANK(L7:L5000) -> 41 | V3: Total Sequences in Block Data | W3: =COUNTA(L7:L13) -> 7 | AA3: Total Sequences in Block Data | AB3: =COUNTA(L14:L20) -> 7 | AF3: Total Sequences in Block Data | AG3: =COUNTA(L21:L26) -> 6 | AK3: Total Sequences in Block Data | AL3: =COUNTA(L27:L33) -> 7 | AP3: Total Sequences in Block Data | AQ3: =COUNTA(L34:L40) -> 7 | AU3: Total Sequences in Block Data | AV3: =COUNTA(L41:L47) -> 7
P4: Total Sequences in Summary | Q4: =SUM(O7:O14) -> 41 | V4: Total Sequences in Block Summary | W4: =SUM(U7:U14) -> 7 | AA4: Total Sequences in Block Summary | AB4: =SUM(Z7:Z14) -> 7 | AF4: Total Sequences in Block Summary | AG4: =SUM(AE7:AE14) -> 6 | AK4: Total Sequences in Block Summary | AL4: =SUM(AJ7:AJ14) -> 7 | AP4: Total Sequences in Block Summary | AQ4: =SUM(AO7:AO14) -> 7 | AU4: Total Sequences in Block Summary | AV4: =SUM(AT7:AT14) -> 7
T5: Block 1 | Y5: Block 2 | AD5: Block 3 | AI5: Block 4 | AN5: Block 5 | AS5: Block 6
A6: Sequence Component 1 | B6: Time 1 | C6: Sequence Component 2 | D6: Time 2 | E6: Sequence Component 3 | F6: Time 3 | G6: Sequence Component 4 | H6: Time 4 | I6: Sequence Component 5 | J6: Time 5 | K6: Correct? 0=No 1=Yes | L6: Sequence | N6: Frequency | P6: Relative Frequency | Q6: Variability | T6: Frequency | V6: Relative Frequency | W6: Variability | Y6: Frequency | AA6: Relative Frequency | AB6: Variability | AD6: Frequency | AF6: Relative Frequency | AG6: Variability | AI6: Frequency | AK6: Relative Frequency | AL6: Variability | AN6: Frequency | AP6: Relative Frequency | AQ6: Variability | AS6: Frequency | AU6: Relative Frequency | AV6: Variability
A7: 11 | B7: 9 | C7: 22 | D7: 16 | E7: 24 | F7: 21 | K7: 0 | L7: 122 | N7: 111 | O7: =COUNTIF($L$7:$L$500,N7) -> 40 | P7: =O7/$Q$4 -> 0.9756097561 | Q7: =IF(P7=0,0,(P7*((LOG(P7))/LOG(2)))) -> -0.03475503388 | T7: =N7 -> 111 | U7: =COUNTIF(L7:L13,T7) -> 6 | Y7: =N7 -> 111 | Z7: =COUNTIF(L14:L20,Y7) -> 7 | AD7: =N7 -> 111 | AE7: =COUNTIF(L21:L26,AD7) -> 6 | AI7: =N7 -> 111 | AJ7: =COUNTIF(L27:L33,AI7) -> 7 | AN7: =N7 -> 111 | AO7: =COUNTIF(L34:L40,AN7) -> 7 | AS7: =N7 -> 111 | AT7: =COUNTIF(L41:L47,AS7) -> 7
A8: 11 | B8: 115 | C8: 11 | D8: 120 | E8: 11 | F8: 126 | K8: 0 | L8: 111 | N8: 112 | O8: =COUNTIF($L$7:$L$500,N8) -> 0 | P8: =O8/$Q$4 -> 0 | Q8: =IF(P8=0,0,(P8*((LOG(P8))/LOG(2)))) -> 0 | T8: =N8 -> 112 | U8: =COUNTIF(L7:L13,T8) -> 0 | V8: =U8/(W4-U7) -> 0 | W8: =IF(V8=0,0,(V8*((LOG(V8))/LOG(2)))) -> 0 | Y8: =N8 -> 112 | Z8: =COUNTIF(L14:L20,Y8) -> 0 | AA8: =Z8/(AB4-Z7) ->  | AB8: =IF(AA8=0,0,(AA8*((LOG(AA8))/LOG(2)))) ->  | AD8: =N8 -> 112 | AE8: =COUNTIF(L21:L26,AD8) -> 0 | AF8: =AE8/(AG4-AE7) ->  | AG8: =IF(AF8=0,0,(AF8*((LOG(AF8))/LOG(2)))) ->  | AI8: =N8 -> 112 | AJ8: =COUNTIF(L27:L33,AI8) -> 0 | AK8: =AJ8/(AL4-AJ7) ->  | AL8: =IF(AK8=0,0,(AK8*((LOG(AK8))/LOG(2)))) ->  | AN8: =N8 -> 112 | AO8: =COUNTIF(L34:L40,AN8) -> 0 | AP8: =AO8/(AQ4-AO7) ->  | AQ8: =IF(AP8=0,0,(AP8*((LOG(AP8))/LOG(2)))) ->  | AS8: =N8 -> 112 | AT8: =COUNTIF(L41:L47,AS8) -> 0 | AU8: =AT8/(AV4-AT7) ->  | AV8: =IF(AU8=0,0,(AU8*((LOG(AU8))/LOG(2)))) -> 
A9: 11 | B9: 242 | C9: 11 | D9: 248 | E9: 11 | F9: 270 | K9: 0 | L9: 111 | N9: 121 | O9: =COUNTIF($L$7:$L$500,N9) -> 0 | P9: =O9/$Q$4 -> 0 | Q9: =IF(P9=0,0,(P9*((LOG(P9))/LOG(2)))) -> 0 | T9: =N9 -> 121 | U9: =COUNTIF(L7:L13,T9) -> 0 | V9: =U9/(W4-U7) -> 0 | W9: =IF(V9=0,0,(V9*((LOG(V9))/LOG(2)))) -> 0 | Y9: =N9 -> 121 | Z9: =COUNTIF(L14:L20,Y9) -> 0 | AA9: =Z9/(AB4-Z7) ->  | AB9: =IF(AA9=0,0,(AA9*((LOG(AA9))/LOG(2)))) ->  | AD9: =N9 -> 121 | AE9: =COUNTIF(L21:L26,AD9) -> 0 | AF9: =AE9/(AG4-AE7) ->  | AG9: =IF(AF9=0,0,(AF9*((LOG(AF9))/LOG(2)))) ->  | AI9: =N9 -> 121 | AJ9: =COUNTIF(L27:L33,AI9) -> 0 | AK9: =AJ9/(AL4-AJ7) ->  | AL9: =IF(AK9=0,0,(AK9*((LOG(AK9))/LOG(2)))) ->  | AN9: =N9 -> 121 | AO9: =COUNTIF(L34:L40,AN9) -> 0 | AP9: =AO9/(AQ4-AO7) ->  | AQ9: =IF(AP9=0,0,(AP9*((LOG(AP9))/LOG(2)))) ->  | AS9: =N9 -> 121 | AT9: =COUNTIF(L41:L47,AS9) -> 0 | AU9: =AT9/(AV4-AT7) ->  | AV9: =IF(AU9=0,0,(AU9*((LOG(AU9))/LOG(2)))) -> 
A10: 11 | B10: 452 | C10: 11 | D10: 457 | E10: 11 | F10: 462 | K10: 0 | L10: 111 | N10: 122 | O10: =COUNTIF($L$7:$L$500,N10) -> 1 | P10: =O10/$Q$4 -> 0.0243902439 | Q10: =IF(P10=0,0,(P10*((LOG(P10))/LOG(2)))) -> -0.1306720001 | T10: =N10 -> 122 | U10: =COUNTIF(L7:L13,T10) -> 1 | V10: =U10/(W4-U7) -> 1 | W10: =IF(V10=0,0,(V10*((LOG(V10))/LOG(2)))) -> 0 | Y10: =N10 -> 122 | Z10: =COUNTIF(L14:L20,Y10) -> 0 | AA10: =Z10/(AB4-Z7) ->  | AB10: =IF(AA10=0,0,(AA10*((LOG(AA10))/LOG(2)))) ->  | AD10: =N10 -> 122 | AE10: =COUNTIF(L21:L26,AD10) -> 0 | AF10: =AE10/(AG4-AE7) ->  | AG10: =IF(AF10=0,0,(AF10*((LOG(AF10))/LOG(2)))) ->  | AI10: =N10 -> 122 | AJ10: =COUNTIF(L27:L33,AI10) -> 0 | AK10: =AJ10/(AL4-AJ7) ->  | AL10: =IF(AK10=0,0,(AK10*((LOG(AK10))/LOG(2)))) ->  | AN10: =N10 -> 122 | AO10: =COUNTIF(L34:L40,AN10) -> 0 | AP10: =AO10/(AQ4-AO7) ->  | AQ10: =IF(AP10=0,0,(AP10*((LOG(AP10))/LOG(2)))) ->  | AS10: =N10 -> 122 | AT10: =COUNTIF(L41:L47,AS10) -> 0 | AU10: =AT10/(AV4-AT7) ->  | AV10: =IF(AU10=0,0,(AU10*((LOG(AU10))/LOG(2)))) -> 
A11: 11 | B11: 626 | C11: 11 | D11: 632 | E11: 11 | F11: 638 | K11: 0 | L11: 111 | N11: 211 | O11: =COUNTIF($L$7:$L$500,N11) -> 0 | P11: =O11/$Q$4 -> 0 | Q11: =IF(P11=0,0,(P11*((LOG(P11))/LOG(2)))) -> 0 | T11: =N11 -> 211 | U11: =COUNTIF(L7:L13,T11) -> 0 | V11: =U11/(W4-U7) -> 0 | W11: =IF(V11=0,0,(V11*((LOG(V11))/LOG(2)))) -> 0 | Y11: =N11 -> 211 | Z11: =COUNTIF(L14:L20,Y11) -> 0 | AA11: =Z11/(AB4-Z7) ->  | AB11: =IF(AA11=0,0,(AA11*((LOG(AA11))/LOG(2)))) ->  | AD11: =N11 -> 211 | AE11: =COUNTIF(L21:L26,AD11) -> 0 | AF11: =AE11/(AG4-AE7) ->  | AG11: =IF(AF11=0,0,(AF11*((LOG(AF11))/LOG(2)))) ->  | AI11: =N11 -> 211 | AJ11: =COUNTIF(L27:L33,AI11) -> 0 | AK11: =AJ11/(AL4-AJ7) ->  | AL11: =IF(AK11=0,0,(AK11*((LOG(AK11))/LOG(2)))) ->  | AN11: =N11 -> 211 | AO11: =COUNTIF(L34:L40,AN11) -> 0 | AP11: =AO11/(AQ4-AO7) ->  | AQ11: =IF(AP11=0,0,(AP11*((LOG(AP11))/LOG(2)))) ->  | AS11: =N11 -> 211 | AT11: =COUNTIF(L41:L47,AS11) -> 0 | AU11: =AT11/(AV4-AT7) ->  | AV11: =IF(AU11=0,0,(AU11*((LOG(AU11))/LOG(2)))) -> 
A12: 11 | B12: 831 | C12: 11 | D12: 835 | E12: 11 | F12: 839 | K12: 0 | L12: 111 | N12: 212 | O12: =COUNTIF($L$7:$L$500,N12) -> 0 | P12: =O12/$Q$4 -> 0 | Q12: =IF(P12=0,0,(P12*((LOG(P12))/LOG(2)))) -> 0 | T12: =N12 -> 212 | U12: =COUNTIF(L7:L13,T12) -> 0 | V12: =U12/(W4-U7) -> 0 | W12: =IF(V12=0,0,(V12*((LOG(V12))/LOG(2)))) -> 0 | Y12: =N12 -> 212 | Z12: =COUNTIF(L14:L20,Y12) -> 0 | AA12: =Z12/(AB4-Z7) ->  | AB12: =IF(AA12=0,0,(AA12*((LOG(AA12))/LOG(2)))) ->  | AD12: =N12 -> 212 | AE12: =COUNTIF(L21:L26,AD12) -> 0 | AF12: =AE12/(AG4-AE7) ->  | AG12: =IF(AF12=0,0,(AF12*((LOG(AF12))/LOG(2)))) ->  | AI12: =N12 -> 212 | AJ12: =COUNTIF(L27:L33,AI12) -> 0 | AK12: =AJ12/(AL4-AJ7) ->  | AL12: =IF(AK12=0,0,(AK12*((LOG(AK12))/LOG(2)))) ->  | AN12: =N12 -> 212 | AO12: =COUNTIF(L34:L40,AN12) -> 0 | AP12: =AO12/(AQ4-AO7) ->  | AQ12: =IF(AP12=0,0,(AP12*((LOG(AP12))/LOG(2)))) ->  | AS12: =N12 -> 212 | AT12: =COUNTIF(L41:L47,AS12) -> 0 | AU12: =AT12/(AV4-AT7) ->  | AV12: =IF(AU12=0,0,(AU12*((LOG(AU12))/LOG(2)))) -> 
A13: 11 | B13: 1047 | C13: 11 | D13: 1053 | E13: 11 | F13: 1070 | K13: 0 | L13: 111 | N13: 221 | O13: =COUNTIF($L$7:$L$500,N13) -> 0 | P13: =O13/$Q$4 -> 0 | Q13: =IF(P13=0,0,(P13*((LOG(P13))/LOG(2)))) -> 0 | T13: =N13 -> 221 | U13: =COUNTIF(L7:L13,T13) -> 0 | V13: =U13/(W4-U7) -> 0 | W13: =IF(V13=0,0,(V13*((LOG(V13))/LOG(2)))) -> 0 | Y13: =N13 -> 221 | Z13: =COUNTIF(L14:L20,Y13) -> 0 | AA13: =Z13/(AB4-Z7) ->  | AB13: =IF(AA13=0,0,(AA13*((LOG(AA13))/LOG(2)))) ->  | AD13: =N13 -> 221 | AE13: =COUNTIF(L21:L26,AD13) -> 0 | AF13: =AE13/(AG4-AE7) ->  | AG13: =IF(AF13=0,0,(AF13*((LOG(AF13))/LOG(2)))) ->  | AI13: =N13 -> 221 | AJ13: =COUNTIF(L27:L33,AI13) -> 0 | AK13: =AJ13/(AL4-AJ7) ->  | AL13: =IF(AK13=0,0,(AK13*((LOG(AK13))/LOG(2)))) ->  | AN13: =N13 -> 221 | AO13: =COUNTIF(L34:L40,AN13) -> 0 | AP13: =AO13/(AQ4-AO7) ->  | AQ13: =IF(AP13=0,0,(AP13*((LOG(AP13))/LOG(2)))) ->  | AS13: =N13 -> 221 | AT13: =COUNTIF(L41:L47,AS13) -> 0 | AU13: =AT13/(AV4-AT7) ->  | AV13: =IF(AU13=0,0,(AU13*((LOG(AU13))/LOG(2)))) -> 
A14: 11 | B14: 1237 | C14: 11 | D14: 1243 | E14: 11 | F14: 1266 | K14: 0 | L14: 111 | N14: 222 | O14: =COUNTIF($L$7:$L$500,N14) -> 0 | P14: =O14/$Q$4 -> 0 | Q14: =IF(P14=0,0,(P14*((LOG(P14))/LOG(2)))) -> 0 | T14: =N14 -> 222 | U14: =COUNTIF(L7:L13,T14) -> 0 | V14: =U14/(W4-U7) -> 0 | W14: =IF(V14=0,0,(V14*((LOG(V14))/LOG(2)))) -> 0 | Y14: =N14 -> 222 | Z14: =COUNTIF(L14:L20,Y14) -> 0 | AA14: =Z14/(AB4-Z7) ->  | AB14: =IF(AA14=0,0,(AA14*((LOG(AA14))/LOG(2)))) ->  | AD14: =N14 -> 222 | AE14: =COUNTIF(L21:L26,AD14) -> 0 | AF14: =AE14/(AG4-AE7) ->  | AG14: =IF(AF14=0,0,(AF14*((LOG(AF14))/LOG(2)))) ->  | AI14: =N14 -> 222 | AJ14: =COUNTIF(L27:L33,AI14) -> 0 | AK14: =AJ14/(AL4-AJ7) ->  | AL14: =IF(AK14=0,0,(AK14*((LOG(AK14))/LOG(2)))) ->  | AN14: =N14 -> 222 | AO14: =COUNTIF(L34:L40,AN14) -> 0 | AP14: =AO14/(AQ4-AO7) ->  | AQ14: =IF(AP14=0,0,(AP14*((LOG(AP14))/LOG(2)))) ->  | AS14: =N14 -> 222 | AT14: =COUNTIF(L41:L47,AS14) -> 0 | AU14: =AT14/(AV4-AT7) ->  | AV14: =IF(AU14=0,0,(AU14*((LOG(AU14))/LOG(2)))) -> 
A15: 11 | B15: 1494 | C15: 11 | D15: 1500 | E15: 11 | F15: 1508 | K15: 0 | L15: 111 | P15: =SUM(P7:P14) -> 1 | Q15: =-SUM(Q7:Q14) -> 0.165427034 | V15: =SUM(V7:V14) -> 1 | W15: =-SUM(W7:W14) -> 0 | AA15: =SUM(AA7:AA14) ->  | AB15: =-SUM(AB7:AB14) ->  | AF15: =SUM(AF7:AF14) ->  | AG15: =-SUM(AG7:AG14) ->  | AK15: =SUM(AK7:AK14) ->  | AL15: =-SUM(AL7:AL14) ->  | AP15: =SUM(AP7:AP14) ->  | AQ15: =-SUM(AQ7:AQ14) ->  | AU15: =SUM(AU7:AU14) ->  | AV15: =-SUM(AV7:AV14) -> 
A16: 11 | B16: 1639 | C16: 11 | D16: 1645 | E16: 11 | F16: 1655 | K16: 0 | L16: 111 | P16: U= | Q16: =Q15/(LOG(Q4)/LOG(2)) -> 0.03087735478 | V16: U1= | W16: =W15/(LOG(W4)/LOG(2)) -> 0 | AA16: U2= | AB16: =AB15/(LOG(AB4)/LOG(2)) ->  | AF16: U3= | AG16: =AG15/(LOG(AG4)/LOG(2)) ->  | AK16: U4= | AL16: =AL15/(LOG(AL4)/LOG(2)) ->  | AP16: U5= | AQ16: =AQ15/(LOG(AQ4)/LOG(2)) ->  | AU16: U6= | AV16: =AV15/(LOG(AV4)/LOG(2)) -> 
A17: 11 | B17: 1849 | C17: 11 | D17: 1856 | E17: 11 | F17: 1862 | K17: 0 | L17: 111
A18: 11 | B18: 2037 | C18: 11 | D18: 2043 | E18: 11 | F18: 2049 | K18: 0 | L18: 111
A19: 11 | B19: 2233 | C19: 11 | D19: 2242 | E19: 11 | F19: 2249 | K19: 0 | L19: 111 | N19: Total Target Seq
A20: 11 | B20: 2536 | C20: 11 | D20: 2542 | E20: 11 | F20: 2547 | K20: 0 | L20: 111 | N20: =COUNTIF(L7:L47,G3) -> 40 | P20: 7 | Q20: 7 | R20: 6 | S20: 7 | T20: 7 | U20: 7
A21: 11 | B21: 2718 | C21: 11 | D21: 2724 | E21: 11 | F21: 2731 | K21: 0 | L21: 111 | P21: % of reinforcement given in 6 equal intervals based on number of trials
A22: 11 | B22: 2936 | C22: 11 | D22: 2941 | E22: 11 | F22: 2952 | K22: 0 | L22: 111 | P22: %_1 | Q22: %_2 | R22: %_3 | S22: %_4 | T22: %_5 | U22: %_6
A23: 11 | B23: 3193 | C23: 11 | D23: 3197 | E23: 11 | F23: 3202 | K23: 0 | L23: 111 | O23: target sequence | P23: =$G$3 -> 111 | Q23: =$G$3 -> 111 | R23: =$G$3 -> 111 | S23: =$G$3 -> 111 | T23: =$G$3 -> 111 | U23: =$G$3 -> 111
A24: 11 | B24: 3436 | C24: 11 | D24: 3443 | E24: 11 | F24: 3449 | K24: 0 | L24: 111 | O24: total reinforcement | P24: =U7 -> 6 | Q24: =Z7 -> 7 | R24: =AE7 -> 6 | S24: =AJ7 -> 7 | T24: =AO7 -> 7 | U24: =AT7 -> 7
A25: 11 | B25: 3599 | C25: 11 | D25: 3604 | E25: 11 | F25: 3610 | K25: 0 | L25: 111 | O25: % target
A26: 11 | B26: 3827 | C26: 11 | D26: 3833 | E26: 11 | F26: 3839 | K26: 0 | L26: 111 | O26: CCRF
A27: 11 | B27: 4054 | C27: 11 | D27: 4058 | E27: 11 | F27: 4064 | K27: 0 | L27: 111 | O27: % CCRf
A28: 11 | B28: 4309 | C28: 11 | D28: 4312 | E28: 11 | F28: 4317 | K28: 0 | L28: 111 | O28: average response rate | P28: =F13/P20 -> 152.8571429 | Q28: =(F20-F13)/Q20 -> 211 | R28: =(F26-F20)/R20 -> 215.3333333 | S28: =(F33-F26)/S20 -> 225.1428571 | T28: =(F40-F33)/T20 -> 246.5714286 | U28: =(F47-F40)/U20 -> 202.2857143
A29: 11 | B29: 4527 | C29: 11 | D29: 4533 | E29: 11 | F29: 4543 | K29: 0 | L29: 111
A30: 11 | B30: 4778 | C30: 11 | D30: 4782 | E30: 11 | F30: 4789 | K30: 0 | L30: 111
A31: 11 | B31: 5007 | C31: 11 | D31: 5012 | E31: 11 | F31: 5019 | K31: 0 | L31: 111
A32: 11 | B32: 5237 | C32: 11 | D32: 5241 | E32: 11 | F32: 5248 | K32: 0 | L32: 111
A33: 11 | B33: 5403 | C33: 11 | D33: 5408 | E33: 11 | F33: 5415 | K33: 0 | L33: 111
A34: 11 | B34: 5632 | C34: 11 | D34: 5643 | E34: 11 | F34: 5650 | K34: 0 | L34: 111
A35: 11 | B35: 5811 | C35: 11 | D35: 5816 | E35: 11 | F35: 5836 | K35: 0 | L35: 111
A36: 11 | B36: 6227 | C36: 11 | D36: 6231 | E36: 11 | F36: 6236 | K36: 0 | L36: 111
A37: 11 | B37: 6471 | C37: 11 | D37: 6476 | E37: 11 | F37: 6484 | K37: 0 | L37: 111
A38: 11 | B38: 6635 | C38: 11 | D38: 6640 | E38: 11 | F38: 6654 | K38: 0 | L38: 111
A39: 11 | B39: 6860 | C39: 11 | D39: 6864 | E39: 11 | F39: 6874 | K39: 0 | L39: 111
A40: 11 | B40: 7129 | C40: 11 | D40: 7134 | E40: 11 | F40: 7141 | K40: 0 | L40: 111
A41: 11 | B41: 7285 | C41: 11 | D41: 7290 | E41: 11 | F41: 7298 | K41: 0 | L41: 111
A42: 11 | B42: 7501 | C42: 11 | D42: 7509 | E42: 11 | F42: 7521 | K42: 0 | L42: 111
A43: 11 | B43: 7745 | C43: 11 | D43: 7750 | E43: 11 | F43: 7755 | K43: 0 | L43: 111
A44: 11 | B44: 7898 | C44: 11 | D44: 7903 | E44: 11 | F44: 7909 | K44: 0 | L44: 111
A45: 11 | B45: 8135 | C45: 11 | D45: 8141 | E45: 11 | F45: 8147 | K45: 0 | L45: 111
A46: 11 | B46: 8257 | C46: 11 | D46: 8264 | E46: 11 | F46: 8270 | K46: 0 | L46: 111
A47: 11 | B47: 8533 | C47: 11 | D47: 8539 | E47: 11 | F47: 8557 | K47: 1 | L47: 111

Sheet !M704A5D.ust
A1: Report for:!M704A5D.ust
A2: Date: | B2: <date>
A3: Hen: | B3: <hen> | F3: Correct Sequence | G3: =Start!J2 -> 111 | P3: Total Sequences in Data | Q3: =4994-COUNTBLANK(L7:L5000) -> 42 | V3: Total Sequences in Block Data | W3: =COUNTA(L7:L13) -> 7 | AA3: Total Sequences in Block Data | AB3: =COUNTA(L14:L20) -> 7 | AF3: Total Sequences in Block Data | AG3: =COUNTA(L21:L27) -> 7 | AK3: Total Sequences in Block Data | AL3: =COUNTA(L28:L34) -> 7 | AP3: Total Sequences in Block Data | AQ3: =COUNTA(L35:L41) -> 7 | AU3: Total Sequences in Block Data | AV3: =COUNTA(L42:L48) -> 7
P4: Total Sequences in Summary | Q4: =SUM(O7:O14) -> 42 | V4: Total Sequences in Block Summary | W4: =SUM(U7:U14) -> 7 | AA4: Total Sequences in Block Summary | AB4: =SUM(Z7:Z14) -> 7 | AF4: Total Sequences in Block Summary | AG4: =SUM(AE7:AE14) -> 7 | AK4: Total Sequences in Block Summary | AL4: =SUM(AJ7:AJ14) -> 7 | AP4: Total Sequences in Block Summary | AQ4: =SUM(AO7:AO14) -> 7 | AU4: Total Sequences in Block Summary | AV4: =SUM(AT7:AT14) -> 7
T5: Block 1 | Y5: Block 2 | AD5: Block 3 | AI5: Block 4 | AN5: Block 5 | AS5: Block 6
A6: Sequence Component 1 | B6: Time 1 | C6: Sequence Component 2 | D6: Time 2 | E6: Sequence Component 3 | F6: Time 3 | G6: Sequence Component 4 | H6: Time 4 | I6: Sequence Component 5 | J6: Time 5 | K6: Correct? 0=No 1=Yes | L6: Sequence | N6: Frequency | P6: Relative Frequency | Q6: Variability | T6: Frequency | V6: Relative Frequency | W6: Variability | Y6: Frequency | AA6: Relative Frequency | AB6: Variability | AD6: Frequency | AF6: Relative Frequency | AG6: Variability | AI6: Frequency | AK6: Relative Frequency | AL6: Variability | AN6: Frequency | AP6: Relative Frequency | AQ6: Variability | AS6: Frequency | AU6: Relative Frequency | AV6: Variability
A7: 11 | B7: 6 | C7: 22 | D7: 14 | E7: 13 | F7: 23 | K7: 0 | L7: 121 | N7: 111 | O7: =COUNTIF($L$7:$L$500,N7) -> 40 | P7: =O7/$Q$4 -> 0.9523809524 | Q7: =IF(P7=0,0,(P7*((LOG(P7))/LOG(2)))) -> -0.06703745513 | T7: =N7 -> 111 | U7: =COUNTIF(L7:L13,T7) -> 6 | Y7: =N7 -> 111 | Z7: =COUNTIF(L14:L20,Y7) -> 6 | AD7: =N7 -> 111 | AE7: =COUNTIF(L21:L27,AD7) -> 7 | AI7: =N7 -> 111 | AJ7: =COUNTIF(L28:L34,AI7) -> 7 | AN7: =N7 -> 111 | AO7: =COUNTIF(L35:L41,AN7) -> 7 | AS7: =N7 -> 111 | AT7: =COUNTIF(L42:L48,AS7) -> 7
A8: 11 | B8: 117 | C8: 11 | D8: 119 | E8: 11 | F8: 125 | K8: 0 | L8: 111 | N8: 112 | O8: =COUNTIF($L$7:$L$500,N8) -> 1 | P8: =O8/$Q$4 -> 0.02380952381 | Q8: =IF(P8=0,0,(P8*((LOG(P8))/LOG(2)))) -> -0.1283885101 | T8: =N8 -> 112 | U8: =COUNTIF(L7:L13,T8) -> 0 | V8: =U8/(W4-U7) -> 0 | W8: =IF(V8=0,0,(V8*((LOG(V8))/LOG(2)))) -> 0 | Y8: =N8 -> 112 | Z8: =COUNTIF(L14:L20,Y8) -> 1 | AA8: =Z8/(AB4-Z7) -> 1 | AB8: =IF(AA8=0,0,(AA8*((LOG(AA8))/LOG(2)))) -> 0 | AD8: =N8 -> 112 | AE8: =COUNTIF(L21:L27,AD8) -> 0 | AF8: =AE8/(AG4-AE7) ->  | AG8: =IF(AF8=0,0,(AF8*((LOG(AF8))/LOG(2)))) ->  | AI8: =N8 -> 112 | AJ8: =COUNTIF(L28:L34,AI8) -> 0 | AK8: =AJ8/(AL4-AJ7) ->  | AL8: =IF(AK8=0,0,(AK8*((LOG(AK8))/LOG(2)))) ->  | AN8: =N8 -> 112 | AO8: =COUNTIF(L35:L41,AN8) -> 0 | AP8: =AO8/(AQ4-AO7) ->  | AQ8: =IF(AP8=0,0,(AP8*((LOG(AP8))/LOG(2)))) ->  | AS8: =N8 -> 112 | AT8: =COUNTIF(L42:L48,AS8) -> 0 | AU8: =AT8/(AV4-AT7) ->  | AV8: =IF(AU8=0,0,(AU8*((LOG(AU8))/LOG(2)))) -> 
A9: 11 | B9: 250 | C9: 11 | D9: 253 | E9: 11 | F9: 256 | K9: 0 | L9: 111 | N9: 121 | O9: =COUNTIF($L$7:$L$500,N9) -> 1 | P9: =O9/$Q$4 -> 0.02380952381 | Q9: =IF(P9=0,0,(P9*((LOG(P9))/LOG(2)))) -> -0.1283885101 | T9: =N9 -> 121 | U9: =COUNTIF(L7:L13,T9) -> 1 | V9: =U9/(W4-U7) -> 1 | W9: =IF(V9=0,0,(V9*((LOG(V9))/LOG(2)))) -> 0 | Y9: =N9 -> 121 | Z9: =COUNTIF(L14:L20,Y9) -> 0 | AA9: =Z9/(AB4-Z7) -> 0 | AB9: =IF(AA9=0,0,(AA9*((LOG(AA9))/LOG(2)))) -> 0 | AD9: =N9 -> 121 | AE9: =COUNTIF(L21:L27,AD9) -> 0 | AF9: =AE9/(AG4-AE7) ->  | AG9: =IF(AF9=0,0,(AF9*((LOG(AF9))/LOG(2)))) ->  | AI9: =N9 -> 121 | AJ9: =COUNTIF(L28:L34,AI9) -> 0 | AK9: =AJ9/(AL4-AJ7) ->  | AL9: =IF(AK9=0,0,(AK9*((LOG(AK9))/LOG(2)))) ->  | AN9: =N9 -> 121 | AO9: =COUNTIF(L35:L41,AN9) -> 0 | AP9: =AO9/(AQ4-AO7) ->  | AQ9: =IF(AP9=0,0,(AP9*((LOG(AP9))/LOG(2)))) ->  | AS9: =N9 -> 121 | AT9: =COUNTIF(L42:L48,AS9) -> 0 | AU9: =AT9/(AV4-AT7) ->  | AV9: =IF(AU9=0,0,(AU9*((LOG(AU9))/LOG(2)))) -> 
A10: 11 | B10: 409 | C10: 11 | D10: 417 | E10: 11 | F10: 423 | K10: 0 | L10: 111 | N10: 122 | O10: =COUNTIF($L$7:$L$500,N10) -> 0 | P10: =O10/$Q$4 -> 0 | Q10: =IF(P10=0,0,(P10*((LOG(P10))/LOG(2)))) -> 0 | T10: =N10 -> 122 | U10: =COUNTIF(L7:L13,T10) -> 0 | V10: =U10/(W4-U7) -> 0 | W10: =IF(V10=0,0,(V10*((LOG(V10))/LOG(2)))) -> 0 | Y10: =N10 -> 122 | Z10: =COUNTIF(L14:L20,Y10) -> 0 | AA10: =Z10/(AB4-Z7) -> 0 | AB10: =IF(AA10=0,0,(AA10*((LOG(AA10))/LOG(2)))) -> 0 | AD10: =N10 -> 122 | AE10: =COUNTIF(L21:L27,AD10) -> 0 | AF10: =AE10/(AG4-AE7) ->  | AG10: =IF(AF10=0,0,(AF10*((LOG(AF10))/LOG(2)))) ->  | AI10: =N10 -> 122 | AJ10: =COUNTIF(L28:L34,AI10) -> 0 | AK10: =AJ10/(AL4-AJ7) ->  | AL10: =IF(AK10=0,0,(AK10*((LOG(AK10))/LOG(2)))) ->  | AN10: =N10 -> 122 | AO10: =COUNTIF(L35:L41,AN10) -> 0 | AP10: =AO10/(AQ4-AO7) ->  | AQ10: =IF(AP10=0,0,(AP10*((LOG(AP10))/LOG(2)))) ->  | AS10: =N10 -> 122 | AT10: =COUNTIF(L42:L48,AS10) -> 0 | AU10: =AT10/(AV4-AT7) ->  | AV10: =IF(AU10=0,0,(AU10*((LOG(AU10))/LOG(2)))) -> 
A11: 11 | B11: 623 | C11: 11 | D11: 629 | E11: 11 | F11: 634 | K11: 0 | L11: 111 | N11: 211 | O11: =COUNTIF($L$7:$L$500,N11) -> 0 | P11: =O11/$Q$4 -> 0 | Q11: =IF(P11=0,0,(P11*((LOG(P11))/LOG(2)))) -> 0 | T11: =N11 -> 211 | U11: =COUNTIF(L7:L13,T11) -> 0 | V11: =U11/(W4-U7) -> 0 | W11: =IF(V11=0,0,(V11*((LOG(V11))/LOG(2)))) -> 0 | Y11: =N11 -> 211 | Z11: =COUNTIF(L14:L20,Y11) -> 0 | AA11: =Z11/(AB4-Z7) -> 0 | AB11: =IF(AA11=0,0,(AA11*((LOG(AA11))/LOG(2)))) -> 0 | AD11: =N11 -> 211 | AE11: =COUNTIF(L21:L27,AD11) -> 0 | AF11: =AE11/(AG4-AE7) ->  | AG11: =IF(AF11=0,0,(AF11*((LOG(AF11))/LOG(2)))) ->  | AI11: =N11 -> 211 | AJ11: =COUNTIF(L28:L34,AI11) -> 0 | AK11: =AJ11/(AL4-AJ7) ->  | AL11: =IF(AK11=0,0,(AK11*((LOG(AK11))/LOG(2)))) ->  | AN11: =N11 -> 211 | AO11: =COUNTIF(L35:L41,AN11) -> 0 | AP11: =AO11/(AQ4-AO7) ->  | AQ11: =IF(AP11=0,0,(AP11*((LOG(AP11))/LOG(2)))) ->  | AS11: =N11 -> 211 | AT11: =COUNTIF(L42:L48,AS11) -> 0 | AU11: =AT11/(AV4-AT7) ->  | AV11: =IF(AU11=0,0,(AU11*((LOG(AU11))/LOG(2)))) -> 
A12: 11 | B12: 875 | C12: 11 | D12: 878 | E12: 11 | F12: 884 | K12: 0 | L12: 111 | N12: 212 | O12: =COUNTIF($L$7:$L$500,N12) -> 0 | P12: =O12/$Q$4 -> 0 | Q12: =IF(P12=0,0,(P12*((LOG(P12))/LOG(2)))) -> 0 | T12: =N12 -> 212 | U12: =COUNTIF(L7:L13,T12) -> 0 | V12: =U12/(W4-U7) -> 0 | W12: =IF(V12=0,0,(V12*((LOG(V12))/LOG(2)))) -> 0 | Y12: =N12 -> 212 | Z12: =COUNTIF(L14:L20,Y12) -> 0 | AA12: =Z12/(AB4-Z7) -> 0 | AB12: =IF(AA12=0,0,(AA12*((LOG(AA12))/LOG(2)))) -> 0 | AD12: =N12 -> 212 | AE12: =COUNTIF(L21:L27,AD12) -> 0 | AF12: =AE12/(AG4-AE7) ->  | AG12: =IF(AF12=0,0,(AF12*((LOG(AF12))/LOG(2)))) ->  | AI12: =N12 -> 212 | AJ12: =COUNTIF(L28:L34,AI12) -> 0 | AK12: =AJ12/(AL4-AJ7) ->  | AL12: =IF(AK12=0,0,(AK12*((LOG(AK12))/LOG(2)))) ->  | AN12: =N12 -> 212 | AO12: =COUNTIF(L35:L41,AN12) -> 0 | AP12: =AO12/(AQ4-AO7) ->  | AQ12: =IF(AP12=0,0,(AP12*((LOG(AP12))/LOG(2)))) ->  | AS12: =N12 -> 212 | AT12: =COUNTIF(L42:L48,AS12) -> 0 | AU12: =AT12/(AV4-AT7) ->  | AV12: =IF(AU12=0,0,(AU12*((LOG(AU12))/LOG(2)))) -> 
A13: 11 | B13: 1027 | C13: 11 | D13: 1031 | E13: 11 | F13: 1039 | K13: 0 | L13: 111 | N13: 221 | O13: =COUNTIF($L$7:$L$500,N13) -> 0 | P13: =O13/$Q$4 -> 0 | Q13: =IF(P13=0,0,(P13*((LOG(P13))/LOG(2)))) -> 0 | T13: =N13 -> 221 | U13: =COUNTIF(L7:L13,T13) -> 0 | V13: =U13/(W4-U7) -> 0 | W13: =IF(V13=0,0,(V13*((LOG(V13))/LOG(2)))) -> 0 | Y13: =N13 -> 221 | Z13: =COUNTIF(L14:L20,Y13) -> 0 | AA13: =Z13/(AB4-Z7) -> 0 | AB13: =IF(AA13=0,0,(AA13*((LOG(AA13))/LOG(2)))) -> 0 | AD13: =N13 -> 221 | AE13: =COUNTIF(L21:L27,AD13) -> 0 | AF13: =AE13/(AG4-AE7) ->  | AG13: =IF(AF13=0,0,(AF13*((LOG(AF13))/LOG(2)))) ->  | AI13: =N13 -> 221 | AJ13: =COUNTIF(L28:L34,AI13) -> 0 | AK13: =AJ13/(AL4-AJ7) ->  | AL13: =IF(AK13=0,0,(AK13*((LOG(AK13))/LOG(2)))) ->  | AN13: =N13 -> 221 | AO13: =COUNTIF(L35:L41,AN13) -> 0 | AP13: =AO13/(AQ4-AO7) ->  | AQ13: =IF(AP13=0,0,(AP13*((LOG(AP13))/LOG(2)))) ->  | AS13: =N13 -> 221 | AT13: =COUNTIF(L42:L48,AS13) -> 0 | AU13: =AT13/(AV4-AT7) ->  | AV13: =IF(AU13=0,0,(AU13*((LOG(AU13))/LOG(2)))) -> 
A14: 11 | B14: 1171 | C14: 11 | D14: 1175 | E14: 11 | F14: 1182 | K14: 0 | L14: 111 | N14: 222 | O14: =COUNTIF($L$7:$L$500,N14) -> 0 | P14: =O14/$Q$4 -> 0 | Q14: =IF(P14=0,0,(P14*((LOG(P14))/LOG(2)))) -> 0 | T14: =N14 -> 222 | U14: =COUNTIF(L7:L13,T14) -> 0 | V14: =U14/(W4-U7) -> 0 | W14: =IF(V14=0,0,(V14*((LOG(V14))/LOG(2)))) -> 0 | Y14: =N14 -> 222 | Z14: =COUNTIF(L14:L20,Y14) -> 0 | AA14: =Z14/(AB4-Z7) -> 0 | AB14: =IF(AA14=0,0,(AA14*((LOG(AA14))/LOG(2)))) -> 0 | AD14: =N14 -> 222 | AE14: =COUNTIF(L21:L27,AD14) -> 0 | AF14: =AE14/(AG4-AE7) ->  | AG14: =IF(AF14=0,0,(AF14*((LOG(AF14))/LOG(2)))) ->  | AI14: =N14 -> 222 | AJ14: =COUNTIF(L28:L34,AI14) -> 0 | AK14: =AJ14/(AL4-AJ7) ->  | AL14: =IF(AK14=0,0,(AK14*((LOG(AK14))/LOG(2)))) ->  | AN14: =N14 -> 222 | AO14: =COUNTIF(L35:L41,AN14) -> 0 | AP14: =AO14/(AQ4-AO7) ->  | AQ14: =IF(AP14=0,0,(AP14*((LOG(AP14))/LOG(2)))) ->  | AS14: =N14 -> 222 | AT14: =COUNTIF(L42:L48,AS14) -> 0 | AU14: =AT14/(AV4-AT7) ->  | AV14: =IF(AU14=0,0,(AU14*((LOG(AU14))/LOG(2)))) -> 
A15: 11 | B15: 1418 | C15: 11 | D15: 1422 | E15: 11 | F15: 1427 | K15: 0 | L15: 111 | P15: =SUM(P7:P14) -> 1 | Q15: =-SUM(Q7:Q14) -> 0.3238144753 | V15: =SUM(V7:V14) -> 1 | W15: =-SUM(W7:W14) -> 0 | AA15: =SUM(AA7:AA14) -> 1 | AB15: =-SUM(AB7:AB14) -> 0 | AF15: =SUM(AF7:AF14) ->  | AG15: =-SUM(AG7:AG14) ->  | AK15: =SUM(AK7:AK14) ->  | AL15: =-SUM(AL7:AL14) ->  | AP15: =SUM(AP7:AP14) ->  | AQ15: =-SUM(AQ7:AQ14) ->  | AU15: =SUM(AU7:AU14) ->  | AV15: =-SUM(AV7:AV14) -> 
A16: 11 | B16: 1611 | C16: 11 | D16: 1621 | E16: 22 | F16: 1638 | K16: 0 | L16: 112 | P16: U= | Q16: =Q15/(LOG(Q4)/LOG(2)) -> 0.06005107821 | V16: U1= | W16: =W15/(LOG(W4)/LOG(2)) -> 0 | AA16: U2= | AB16: =AB15/(LOG(AB4)/LOG(2)) -> 0 | AF16: U3= | AG16: =AG15/(LOG(AG4)/LOG(2)) ->  | AK16: U4= | AL16: =AL15/(LOG(AL4)/LOG(2)) ->  | AP16: U5= | AQ16: =AQ15/(LOG(AQ4)/LOG(2)) ->  | AU16: U6= | AV16: =AV15/(LOG(AV4)/LOG(2)) -> 
A17: 11 | B17: 1733 | C17: 11 | D17: 1740 | E17: 11 | F17: 1746 | K17: 0 | L17: 111
A18: 11 | B18: 1893 | C18: 11 | D18: 1897 | E18: 11 | F18: 1903 | K18: 0 | L18: 111
A19: 11 | B19: 2030 | C19: 11 | D19: 2035 | E19: 11 | F19: 2041 | K19: 0 | L19: 111 | N19: Total Target Seq
A20: 11 | B20: 2172 | C20: 11 | D20: 2177 | E20: 11 | F20: 2184 | K20: 0 | L20: 111 | N20: =COUNTIF(L7:L48,G3) -> 40 | P20: 7 | Q20: 7 | R20: 7 | S20: 7 | T20: 7 | U20: 7
A21: 11 | B21: 2378 | C21: 11 | D21: 2384 | E21: 11 | F21: 2391 | K21: 0 | L21: 111 | P21: % of reinforcement given in 6 equal intervals based on number of trials
A22: 11 | B22: 2625 | C22: 11 | D22: 2631 | E22: 11 | F22: 2641 | K22: 0 | L22: 111 | P22: %_1 | Q22: %_2 | R22: %_3 | S22: %_4 | T22: %_5 | U22: %_6
A23: 11 | B23: 2875 | C23: 11 | D23: 2880 | E23: 11 | F23: 2898 | K23: 0 | L23: 111 | O23: target sequence | P23: =$G$3 -> 111 | Q23: =$G$3 -> 111 | R23: =$G$3 -> 111 | S23: =$G$3 -> 111 | T23: =$G$3 -> 111 | U23: =$G$3 -> 111
A24: 11 | B24: 2997 | C24: 11 | D24: 3002 | E24: 11 | F24: 3005 | K24: 0 | L24: 111 | O24: total reinforcement | P24: =U7 -> 6 | Q24: =Z7 -> 6 | R24: =AE7 -> 7 | S24: =AJ7 -> 7 | T24: =AO7 -> 7 | U24: =AT7 -> 7
A25: 11 | B25: 3172 | C25: 11 | D25: 3179 | E25: 11 | F25: 3199 | K25: 0 | L25: 111 | O25: % target
A26: 11 | B26: 3355 | C26: 11 | D26: 3359 | E26: 11 | F26: 3366 | K26: 0 | L26: 111 | O26: CCRF
A27: 11 | B27: 3592 | C27: 11 | D27: 3597 | E27: 11 | F27: 3607 | K27: 0 | L27: 111 | O27: % CCRf
A28: 11 | B28: 3825 | C28: 11 | D28: 3830 | E28: 11 | F28: 3848 | K28: 0 | L28: 111 | O28: average response rate | P28: =F13/P20 -> 148.4285714 | Q28: =(F20-F13)/Q20 -> 163.5714286 | R28: =(F27-F20)/R20 -> 203.2857143 | S28: =(F34-F27)/S20 -> 219.5714286 | T28: =(F41-F34)/T20 -> 235.4285714 | U28: =(F48-F41)/U20 -> 259.7142857
A29: 11 | B29: 3999 | C29: 11 | D29: 4001 | E29: 11 | F29: 4003 | K29: 0 | L29: 111
A30: 11 | B30: 4218 | C30: 11 | D30: 4221 | E30: 11 | F30: 4225 | K30: 0 | L30: 111
A31: 11 | B31: 4448 | C31: 11 | D31: 4454 | E31: 11 | F31: 4470 | K31: 0 | L31: 111
A32: 11 | B32: 4660 | C32: 11 | D32: 4665 | E32: 11 | F32: 4673 | K32: 0 | L32: 111
A33: 11 | B33: 4869 | C33: 11 | D33: 4874 | E33: 11 | F33: 4886 | K33: 0 | L33: 111
A34: 11 | B34: 5122 | C34: 11 | D34: 5129 | E34: 11 | F34: 5144 | K34: 0 | L34: 111
A35: 11 | B35: 5305 | C35: 11 | D35: 5311 | E35: 11 | F35: 5317 | K35: 0 | L35: 111
A36: 11 | B36: 5531 | C36: 11 | D36: 5536 | E36: 11 | F36: 5543 | K36: 0 | L36: 111
A37: 11 | B37: 5855 | C37: 11 | D37: 5860 | E37: 11 | F37: 5873 | K37: 0 | L37: 111
A38: 11 | B38: 6042 | C38: 11 | D38: 6049 | E38: 11 | F38: 6062 | K38: 0 | L38: 111
A39: 11 | B39: 6325 | C39: 11 | D39: 6329 | E39: 11 | F39: 6368 | K39: 0 | L39: 111
A40: 11 | B40: 6603 | C40: 11 | D40: 6608 | E40: 11 | F40: 6612 | K40: 0 | L40: 111
A41: 11 | B41: 6779 | C41: 11 | D41: 6785 | E41: 11 | F41: 6792 | K41: 0 | L41: 111
A42: 11 | B42: 6996 | C42: 11 | D42: 7001 | E42: 11 | F42: 7007 | K42: 0 | L42: 111
A43: 11 | B43: 7235 | C43: 11 | D43: 7238 | E43: 11 | F43: 7253 | K43: 0 | L43: 111
A44: 11 | B44: 7587 | C44: 11 | D44: 7593 | E44: 11 | F44: 7599 | K44: 0 | L44: 111
A45: 11 | B45: 7858 | C45: 11 | D45: 7862 | E45: 11 | F45: 7867 | K45: 0 | L45: 111
A46: 11 | B46: 8072 | C46: 11 | D46: 8076 | E46: 11 | F46: 8082 | K46: 0 | L46: 111
A47: 11 | B47: 8316 | C47: 11 | D47: 8322 | E47: 11 | F47: 8331 | K47: 0 | L47: 111
A48: 11 | B48: 8600 | C48: 11 | D48: 8603 | E48: 11 | F48: 8610 | K48: 1 | L48: 111

Sheet !M705A5D.ust
A1: Report for:!M705A5D.ust
A2: Date: | B2: <date>
A3: Hen: | B3: <hen> | F3: Correct Sequence | G3: =Start!J2 -> 111 | P3: Total Sequences in Data | Q3: =4994-COUNTBLANK(L7:L5000) -> 40 | V3: Total Sequences in Block Data | W3: =COUNTA(L7:L13) -> 7 | AA3: Total Sequences in Block Data | AB3: =COUNTA(L14:L19) -> 6 | AF3: Total Sequences in Block Data | AG3: =COUNTA(L20:L26) -> 7 | AK3: Total Sequences in Block Data | AL3: =COUNTA(L27:L33) -> 7 | AP3: Total Sequences in Block Data | AQ3: =COUNTA(L34:L39) -> 6 | AU3: Total Sequences in Block Data | AV3: =COUNTA(L40:L46) -> 7
P4: Total Sequences in Summary | Q4: =SUM(O7:O14) -> 40 | V4: Total Sequences in Block Summary | W4: =SUM(U7:U14) -> 7 | AA4: Total Sequences in Block Summary | AB4: =SUM(Z7:Z14) -> 6 | AF4: Total Sequences in Block Summary | AG4: =SUM(AE7:AE14) -> 7 | AK4: Total Sequences in Block Summary | AL4: =SUM(AJ7:AJ14) -> 7 | AP4: Total Sequences in Block Summary | AQ4: =SUM(AO7:AO14) -> 6 | AU4: Total Sequences in Block Summary | AV4: =SUM(AT7:AT14) -> 7
T5: Block 1 | Y5: Block 2 | AD5: Block 3 | AI5: Block 4 | AN5: Block 5 | AS5: Block 6
A6: Sequence Component 1 | B6: Time 1 | C6: Sequence Component 2 | D6: Time 2 | E6: Sequence Component 3 | F6: Time 3 | G6: Sequence Component 4 | H6: Time 4 | I6: Sequence Component 5 | J6: Time 5 | K6: Correct? 0=No 1=Yes | L6: Sequence | N6: Frequency | P6: Relative Frequency | Q6: Variability | T6: Frequency | V6: Relative Frequency | W6: Variability | Y6: Frequency | AA6: Relative Frequency | AB6: Variability | AD6: Frequency | AF6: Relative Frequency | AG6: Variability | AI6: Frequency | AK6: Relative Frequency | AL6: Variability | AN6: Frequency | AP6: Relative Frequency | AQ6: Variability | AS6: Frequency | AU6: Relative Frequency | AV6: Variability
A7: 11 | B7: 5 | C7: 11 | D7: 9 | E7: 11 | F7: 15 | K7: 0 | L7: 111 | N7: 111 | O7: =COUNTIF($L$7:$L$500,N7) -> 40 | P7: =O7/$Q$4 -> 1 | Q7: =IF(P7=0,0,(P7*((LOG(P7))/LOG(2)))) -> 0 | T7: =N7 -> 111 | U7: =COUNTIF(L7:L13,T7) -> 7 | Y7: =N7 -> 111 | Z7: =COUNTIF(L14:L19,Y7) -> 6 | AD7: =N7 -> 111 | AE7: =COUNTIF(L20:L26,AD7) -> 7 | AI7: =N7 -> 111 | AJ7: =COUNTIF(L27:L33,AI7) -> 7 | AN7: =N7 -> 111 | AO7: =COUNTIF(L34:L39,AN7) -> 6 | AS7: =N7 -> 111 | AT7: =COUNTIF(L40:L46,AS7) -> 7
A8: 11 | B8: 172 | C8: 11 | D8: 176 | E8: 11 | F8: 184 | K8: 0 | L8: 111 | N8: 112 | O8: =COUNTIF($L$7:$L$500,N8) -> 0 | P8: =O8/$Q$4 -> 0 | Q8: =IF(P8=0,0,(P8*((LOG(P8))/LOG(2)))) -> 0 | T8: =N8 -> 112 | U8: =COUNTIF(L7:L13,T8) -> 0 | V8: =U8/(W4-U7) ->  | W8: =IF(V8=0,0,(V8*((LOG(V8))/LOG(2)))) ->  | Y8: =N8 -> 112 | Z8: =COUNTIF(L14:L19,Y8) -> 0 | AA8: =Z8/(AB4-Z7) ->  | AB8: =IF(AA8=0,0,(AA8*((LOG(AA8))/LOG(2)))) ->  | AD8: =N8 -> 112 | AE8: =COUNTIF(L20:L26,AD8) -> 0 | AF8: =AE8/(AG4-AE7) ->  | AG8: =IF(AF8=0,0,(AF8*((LOG(AF8))/LOG(2)))) ->  | AI8: =N8 -> 112 | AJ8: =COUNTIF(L27:L33,AI8) -> 0 | AK8: =AJ8/(AL4-AJ7) ->  | AL8: =IF(AK8=0,0,(AK8*((LOG(AK8))/LOG(2)))) ->  | AN8: =N8 -> 112 | AO8: =COUNTIF(L34:L39,AN8) -> 0 | AP8: =AO8/(AQ4-AO7) ->  | AQ8: =IF(AP8=0,0,(AP8*((LOG(AP8))/LOG(2)))) ->  | AS8: =N8 -> 112 | AT8: =COUNTIF(L40:L46,AS8) -> 0 | AU8: =AT8/(AV4-AT7) ->  | AV8: =IF(AU8=0,0,(AU8*((LOG(AU8))/LOG(2)))) -> 
A9: 11 | B9: 339 | C9: 11 | D9: 344 | E9: 11 | F9: 349 | K9: 0 | L9: 111 | N9: 121 | O9: =COUNTIF($L$7:$L$500,N9) -> 0 | P9: =O9/$Q$4 -> 0 | Q9: =IF(P9=0,0,(P9*((LOG(P9))/LOG(2)))) -> 0 | T9: =N9 -> 121 | U9: =COUNTIF(L7:L13,T9) -> 0 | V9: =U9/(W4-U7) ->  | W9: =IF(V9=0,0,(V9*((LOG(V9))/LOG(2)))) ->  | Y9: =N9 -> 121 | Z9: =COUNTIF(L14:L19,Y9) -> 0 | AA9: =Z9/(AB4-Z7) ->  | AB9: =IF(AA9=0,0,(AA9*((LOG(AA9))/LOG(2)))) ->  | AD9: =N9 -> 121 | AE9: =COUNTIF(L20:L26,AD9) -> 0 | AF9: =AE9/(AG4-AE7) ->  | AG9: =IF(AF9=0,0,(AF9*((LOG(AF9))/LOG(2)))) ->  | AI9: =N9 -> 121 | AJ9: =COUNTIF(L27:L33,AI9) -> 0 | AK9: =AJ9/(AL4-AJ7) ->  | AL9: =IF(AK9=0,0,(AK9*((LOG(AK9))/LOG(2)))) ->  | AN9: =N9 -> 121 | AO9: =COUNTIF(L34:L39,AN9) -> 0 | AP9: =AO9/(AQ4-AO7) ->  | AQ9: =IF(AP9=0,0,(AP9*((LOG(AP9))/LOG(2)))) ->  | AS9: =N9 -> 121 | AT9: =COUNTIF(L40:L46,AS9) -> 0 | AU9: =AT9/(AV4-AT7) ->  | AV9: =IF(AU9=0,0,(AU9*((LOG(AU9))/LOG(2)))) -> 
A10: 11 | B10: 481 | C10: 11 | D10: 487 | E10: 11 | F10: 493 | K10: 0 | L10: 111 | N10: 122 | O10: =COUNTIF($L$7:$L$500,N10) -> 0 | P10: =O10/$Q$4 -> 0 | Q10: =IF(P10=0,0,(P10*((LOG(P10))/LOG(2)))) -> 0 | T10: =N10 -> 122 | U10: =COUNTIF(L7:L13,T10) -> 0 | V10: =U10/(W4-U7) ->  | W10: =IF(V10=0,0,(V10*((LOG(V10))/LOG(2)))) ->  | Y10: =N10 -> 122 | Z10: =COUNTIF(L14:L19,Y10) -> 0 | AA10: =Z10/(AB4-Z7) ->  | AB10: =IF(AA10=0,0,(AA10*((LOG(AA10))/LOG(2)))) ->  | AD10: =N10 -> 122 | AE10: =COUNTIF(L20:L26,AD10) -> 0 | AF10: =AE10/(AG4-AE7) ->  | AG10: =IF(AF10=0,0,(AF10*((LOG(AF10))/LOG(2)))) ->  | AI10: =N10 -> 122 | AJ10: =COUNTIF(L27:L33,AI10) -> 0 | AK10: =AJ10/(AL4-AJ7) ->  | AL10: =IF(AK10=0,0,(AK10*((LOG(AK10))/LOG(2)))) ->  | AN10: =N10 -> 122 | AO10: =COUNTIF(L34:L39,AN10) -> 0 | AP10: =AO10/(AQ4-AO7) ->  | AQ10: =IF(AP10=0,0,(AP10*((LOG(AP10))/LOG(2)))) ->  | AS10: =N10 -> 122 | AT10: =COUNTIF(L40:L46,AS10) -> 0 | AU10: =AT10/(AV4-AT7) ->  | AV10: =IF(AU10=0,0,(AU10*((LOG(AU10))/LOG(2)))) -> 
A11: 11 | B11: 630 | C11: 11 | D11: 635 | E11: 11 | F11: 641 | K11: 0 | L11: 111 | N11: 211 | O11: =COUNTIF($L$7:$L$500,N11) -> 0 | P11: =O11/$Q$4 -> 0 | Q11: =IF(P11=0,0,(P11*((LOG(P11))/LOG(2)))) -> 0 | T11: =N11 -> 211 | U11: =COUNTIF(L7:L13,T11) -> 0 | V11: =U11/(W4-U7) ->  | W11: =IF(V11=0,0,(V11*((LOG(V11))/LOG(2)))) ->  | Y11: =N11 -> 211 | Z11: =COUNTIF(L14:L19,Y11) -> 0 | AA11: =Z11/(AB4-Z7) ->  | AB11: =IF(AA11=0,0,(AA11*((LOG(AA11))/LOG(2)))) ->  | AD11: =N11 -> 211 | AE11: =COUNTIF(L20:L26,AD11) -> 0 | AF11: =AE11/(AG4-AE7) ->  | AG11: =IF(AF11=0,0,(AF11*((LOG(AF11))/LOG(2)))) ->  | AI11: =N11 -> 211 | AJ11: =COUNTIF(L27:L33,AI11) -> 0 | AK11: =AJ11/(AL4-AJ7) ->  | AL11: =IF(AK11=0,0,(AK11*((LOG(AK11))/LOG(2)))) ->  | AN11: =N11 -> 211 | AO11: =COUNTIF(L34:L39,AN11) -> 0 | AP11: =AO11/(AQ4-AO7) ->  | AQ11: =IF(AP11=0,0,(AP11*((LOG(AP11))/LOG(2)))) ->  | AS11: =N11 -> 211 | AT11: =COUNTIF(L40:L46,AS11) -> 0 | AU11: =AT11/(AV4-AT7) ->  | AV11: =IF(AU11=0,0,(AU11*((LOG(AU11))/LOG(2)))) -> 
A12: 11 | B12: 769 | C12: 11 | D12: 776 | E12: 11 | F12: 782 | K12: 0 | L12: 111 | N12: 212 | O12: =COUNTIF($L$7:$L$500,N12) -> 0 | P12: =O12/$Q$4 -> 0 | Q12: =IF(P12=0,0,(P12*((LOG(P12))/LOG(2)))) -> 0 | T12: =N12 -> 212 | U12: =COUNTIF(L7:L13,T12) -> 0 | V12: =U12/(W4-U7) ->  | W12: =IF(V12=0,0,(V12*((LOG(V12))/LOG(2)))) ->  | Y12: =N12 -> 212 | Z12: =COUNTIF(L14:L19,Y12) -> 0 | AA12: =Z12/(AB4-Z7) ->  | AB12: =IF(AA12=0,0,(AA12*((LOG(AA12))/LOG(2)))) ->  | AD12: =N12 -> 212 | AE12: =COUNTIF(L20:L26,AD12) -> 0 | AF12: =AE12/(AG4-AE7) ->  | AG12: =IF(AF12=0,0,(AF12*((LOG(AF12))/LOG(2)))) ->  | AI12: =N12 -> 212 | AJ12: =COUNTIF(L27:L33,AI12) -> 0 | AK12: =AJ12/(AL4-AJ7) ->  | AL12: =IF(AK12=0,0,(AK12*((LOG(AK12))/LOG(2)))) ->  | AN12: =N12 -> 212 | AO12: =COUNTIF(L34:L39,AN12) -> 0 | AP12: =AO12/(AQ4-AO7) ->  | AQ12: =IF(AP12=0,0,(AP12*((LOG(AP12))/LOG(2)))) ->  | AS12: =N12 -> 212 | AT12: =COUNTIF(L40:L46,AS12) -> 0 | AU12: =AT12/(AV4-AT7) ->  | AV12: =IF(AU12=0,0,(AU12*((LOG(AU12))/LOG(2)))) -> 
A13: 11 | B13: 893 | C13: 11 | D13: 898 | E13: 11 | F13: 904 | K13: 0 | L13: 111 | N13: 221 | O13: =COUNTIF($L$7:$L$500,N13) -> 0 | P13: =O13/$Q$4 -> 0 | Q13: =IF(P13=0,0,(P13*((LOG(P13))/LOG(2)))) -> 0 | T13: =N13 -> 221 | U13: =COUNTIF(L7:L13,T13) -> 0 | V13: =U13/(W4-U7) ->  | W13: =IF(V13=0,0,(V13*((LOG(V13))/LOG(2)))) ->  | Y13: =N13 -> 221 | Z13: =COUNTIF(L14:L19,Y13) -> 0 | AA13: =Z13/(AB4-Z7) ->  | AB13: =IF(AA13=0,0,(AA13*((LOG(AA13))/LOG(2)))) ->  | AD13: =N13 -> 221 | AE13: =COUNTIF(L20:L26,AD13) -> 0 | AF13: =AE13/(AG4-AE7) ->  | AG13: =IF(AF13=0,0,(AF13*((LOG(AF13))/LOG(2)))) ->  | AI13: =N13 -> 221 | AJ13: =COUNTIF(L27:L33,AI13) -> 0 | AK13: =AJ13/(AL4-AJ7) ->  | AL13: =IF(AK13=0,0,(AK13*((LOG(AK13))/LOG(2)))) ->  | AN13: =N13 -> 221 | AO13: =COUNTIF(L34:L39,AN13) -> 0 | AP13: =AO13/(AQ4-AO7) ->  | AQ13: =IF(AP13=0,0,(AP13*((LOG(AP13))/LOG(2)))) ->  | AS13: =N13 -> 221 | AT13: =COUNTIF(L40:L46,AS13) -> 0 | AU13: =AT13/(AV4-AT7) ->  | AV13: =IF(AU13=0,0,(AU13*((LOG(AU13))/LOG(2)))) -> 
A14: 11 | B14: 1090 | C14: 11 | D14: 1094 | E14: 11 | F14: 1102 | K14: 0 | L14: 111 | N14: 222 | O14: =COUNTIF($L$7:$L$500,N14) -> 0 | P14: =O14/$Q$4 -> 0 | Q14: =IF(P14=0,0,(P14*((LOG(P14))/LOG(2)))) -> 0 | T14: =N14 -> 222 | U14: =COUNTIF(L7:L13,T14) -> 0 | V14: =U14/(W4-U7) ->  | W14: =IF(V14=0,0,(V14*((LOG(V14))/LOG(2)))) ->  | Y14: =N14 -> 222 | Z14: =COUNTIF(L14:L19,Y14) -> 0 | AA14: =Z14/(AB4-Z7) ->  | AB14: =IF(AA14=0,0,(AA14*((LOG(AA14))/LOG(2)))) ->  | AD14: =N14 -> 222 | AE14: =COUNTIF(L20:L26,AD14) -> 0 | AF14: =AE14/(AG4-AE7) ->  | AG14: =IF(AF14=0,0,(AF14*((LOG(AF14))/LOG(2)))) ->  | AI14: =N14 -> 222 | AJ14: =COUNTIF(L27:L33,AI14) -> 0 | AK14: =AJ14/(AL4-AJ7) ->  | AL14: =IF(AK14=0,0,(AK14*((LOG(AK14))/LOG(2)))) ->  | AN14: =N14 -> 222 | AO14: =COUNTIF(L34:L39,AN14) -> 0 | AP14: =AO14/(AQ4-AO7) ->  | AQ14: =IF(AP14=0,0,(AP14*((LOG(AP14))/LOG(2)))) ->  | AS14: =N14 -> 222 | AT14: =COUNTIF(L40:L46,AS14) -> 0 | AU14: =AT14/(AV4-AT7) ->  | AV14: =IF(AU14=0,0,(AU14*((LOG(AU14))/LOG(2)))) -> 
A15: 11 | B15: 1266 | C15: 11 | D15: 1270 | E15: 11 | F15: 1276 | K15: 0 | L15: 111 | P15: =SUM(P7:P14) -> 1 | Q15: =-SUM(Q7:Q14) -> 0 | V15: =SUM(V7:V14) ->  | W15: =-SUM(W7:W14) ->  | AA15: =SUM(AA7:AA14) ->  | AB15: =-SUM(AB7:AB14) ->  | AF15: =SUM(AF7:AF14) ->  | AG15: =-SUM(AG7:AG14) ->  | AK15: =SUM(AK7:AK14) ->  | AL15: =-SUM(AL7:AL14) ->  | AP15: =SUM(AP7:AP14) ->  | AQ15: =-SUM(AQ7:AQ14) ->  | AU15: =SUM(AU7:AU14) ->  | AV15: =-SUM(AV7:AV14) -> 
A16: 11 | B16: 1493 | C16: 11 | D16: 1498 | E16: 11 | F16: 1506 | K16: 0 | L16: 111 | P16: U= | Q16: =Q15/(LOG(Q4)/LOG(2)) -> 0 | V16: U1= | W16: =W15/(LOG(W4)/LOG(2)) ->  | AA16: U2= | AB16: =AB15/(LOG(AB4)/LOG(2)) ->  | AF16: U3= | AG16: =AG15/(LOG(AG4)/LOG(2)) ->  | AK16: U4= | AL16: =AL15/(LOG(AL4)/LOG(2)) ->  | AP16: U5= | AQ16: =AQ15/(LOG(AQ4)/LOG(2)) ->  | AU16: U6= | AV16: =AV15/(LOG(AV4)/LOG(2)) -> 
A17: 11 | B17: 1634 | C17: 11 | D17: 1638 | E17: 11 | F17: 1644 | K17: 0 | L17: 111
A18: 11 | B18: 1810 | C18: 11 | D18: 1814 | E18: 11 | F18: 1829 | K18: 0 | L18: 111
A19: 11 | B19: 1984 | C19: 11 | D19: 1989 | E19: 11 | F19: 1994 | K19: 0 | L19: 111 | N19: Total Target Seq
A20: 11 | B20: 2203 | C20: 11 | D20: 2209 | E20: 11 | F20: 2214 | K20: 0 | L20: 111 | N20: =COUNTIF(L7:L46,G3) -> 40 | P20: 7 | Q20: 6 | R20: 7 | S20: 7 | T20: 6 | U20: 7
A21: 11 | B21: 2409 | C21: 11 | D21: 2414 | E21: 11 | F21: 2421 | K21: 0 | L21: 111 | P21: % of reinforcement given in 6 equal intervals based on number of trials
A22: 11 | B22: 2630 | C22: 11 | D22: 2635 | E22: 11 | F22: 2640 | K22: 0 | L22: 111 | P22: %_1 | Q22: %_2 | R22: %_3 | S22: %_4 | T22: %_5 | U22: %_6
A23: 11 | B23: 2838 | C23: 11 | D23: 2841 | E23: 11 | F23: 2846 | K23: 0 | L23: 111 | O23: target sequence | P23: =$G$3 -> 111 | Q23: =$G$3 -> 111 | R23: =$G$3 -> 111 | S23: =$G$3 -> 111 | T23: =$G$3 -> 111 | U23: =$G$3 -> 111
A24: 11 | B24: 3062 | C24: 11 | D24: 3069 | E24: 11 | F24: 3075 | K24: 0 | L24: 111 | O24: total reinforcement | P24: =U7 -> 7 | Q24: =Z7 -> 6 | R24: =AE7 -> 7 | S24: =AJ7 -> 7 | T24: =AO7 -> 6 | U24: =AT7 -> 7
A25: 11 | B25: 3278 | C25: 11 | D25: 3282 | E25: 11 | F25: 3289 | K25: 0 | L25: 111 | O25: % target
A26: 11 | B26: 3416 | C26: 11 | D26: 3421 | E26: 11 | F26: 3428 | K26: 0 | L26: 111 | O26: CCRF
A27: 11 | B27: 3598 | C27: 11 | D27: 3603 | E27: 11 | F27: 3610 | K27: 0 | L27: 111 | O27: % CCRf
A28: 11 | B28: 3807 | C28: 11 | D28: 3813 | E28: 11 | F28: 3826 | K28: 0 | L28: 111 | O28: average response rate | P28: =F13/P20 -> 129.1428571 | Q28: =(F19-F13)/Q20 -> 181.6666667 | R28: =(F26-F19)/R20 -> 204.8571429 | S28: =(F33-F26)/S20 -> 194.8571429 | T28: =(F39-F33)/T20 -> 195.3333333 | U28: =(F46-F39)/U20 -> 231.5714286
A29: 11 | B29: 3932 | C29: 11 | D29: 3937 | E29: 11 | F29: 3944 | K29: 0 | L29: 111
A30: 11 | B30: 4159 | C30: 11 | D30: 4163 | E30: 11 | F30: 4168 | K30: 0 | L30: 111
A31: 11 | B31: 4390 | C31: 11 | D31: 4398 | E31: 11 | F31: 4417 | K31: 0 | L31: 111
A32: 11 | B32: 4622 | C32: 11 | D32: 4627 | E32: 11 | F32: 4633 | K32: 0 | L32: 111
A33: 11 | B33: 4782 | C33: 11 | D33: 4786 | E33: 11 | F33: 4792 | K33: 0 | L33: 111
A34: 11 | B34: 5002 | C34: 11 | D34: 5006 | E34: 11 | F34: 5010 | K34: 0 | L34: 111
A35: 11 | B35: 5190 | C35: 11 | D35: 5195 | E35: 11 | F35: 5221 | K35: 0 | L35: 111
A36: 11 | B36: 5397 | C36: 11 | D36: 5401 | E36: 11 | F36: 5407 | K36: 0 | L36: 111
A37: 11 | B37: 5584 | C37: 11 | D37: 5586 | E37: 11 | F37: 5591 | K37: 0 | L37: 111
A38: 11 | B38: 5771 | C38: 11 | D38: 5776 | E38: 11 | F38: 5781 | K38: 0 | L38: 111
A39: 11 | B39: 5955 | C39: 11 | D39: 5959 | E39: 11 | F39: 5964 | K39: 0 | L39: 111
A40: 11 | B40: 6090 | C40: 11 | D40: 6098 | E40: 11 | F40: 6106 | K40: 0 | L40: 111
A41: 11 | B41: 6355 | C41: 11 | D41: 6361 | E41: 11 | F41: 6376 | K41: 0 | L41: 111
A42: 11 | B42: 6595 | C42: 11 | D42: 6598 | E42: 11 | F42: 6604 | K42: 0 | L42: 111
A43: 11 | B43: 6768 | C43: 11 | D43: 6772 | E43: 11 | F43: 6778 | K43: 0 | L43: 111
A44: 11 | B44: 7103 | C44: 11 | D44: 7108 | E44: 11 | F44: 7114 | K44: 0 | L44: 111
A45: 11 | B45: 7317 | C45: 11 | D45: 7322 | E45: 11 | F45: 7326 | K45: 0 | L45: 111
A46: 11 | B46: 7568 | C46: 11 | D46: 7574 | E46: 11 | F46: 7585 | K46: 1 | L46: 111

Sheet !M706B2D.ust
A1: Report for:!M706B2D.ust
A2: Date: | B2: <date>
A3: Hen: | B3: <hen> | F3: Correct Sequence | G3: =Start!J2 -> 111 | P3: Total Sequences in Data | Q3: =4994-COUNTBLANK(L7:L5000) -> 41 | V3: Total Sequences in Block Data | W3: =COUNTA(L7:L13) -> 7 | AA3: Total Sequences in Block Data | AB3: =COUNTA(L14:L20) -> 7 | AF3: Total Sequences in Block Data | AG3: =COUNTA(L21:L26) -> 6 | AK3: Total Sequences in Block Data | AL3: =COUNTA(L27:L33) -> 7 | AP3: Total Sequences in Block Data | AQ3: =COUNTA(L34:L40) -> 7 | AU3: Total Sequences in Block Data | AV3: =COUNTA(L41:L47) -> 7
P4: Total Sequences in Summary | Q4: =SUM(O7:O14) -> 41 | V4: Total Sequences in Block Summary | W4: =SUM(U7:U14) -> 7 | AA4: Total Sequences in Block Summary | AB4: =SUM(Z7:Z14) -> 7 | AF4: Total Sequences in Block Summary | AG4: =SUM(AE7:AE14) -> 6 | AK4: Total Sequences in Block Summary | AL4: =SUM(AJ7:AJ14) -> 7 | AP4: Total Sequences in Block Summary | AQ4: =SUM(AO7:AO14) -> 7 | AU4: Total Sequences in Block Summary | AV4: =SUM(AT7:AT14) -> 7
T5: Block 1 | Y5: Block 2 | AD5: Block 3 | AI5: Block 4 | AN5: Block 5 | AS5: Block 6
A6: Sequence Component 1 | B6: Time 1 | C6: Sequence Component 2 | D6: Time 2 | E6: Sequence Component 3 | F6: Time 3 | G6: Sequence Component 4 | H6: Time 4 | I6: Sequence Component 5 | J6: Time 5 | K6: Correct? 0=No 1=Yes | L6: Sequence | N6: Frequency | P6: Relative Frequency | Q6: Variability | T6: Frequency | V6: Relative Frequency | W6: Variability | Y6: Frequency | AA6: Relative Frequency | AB6: Variability | AD6: Frequency | AF6: Relative Frequency | AG6: Variability | AI6: Frequency | AK6: Relative Frequency | AL6: Variability | AN6: Frequency | AP6: Relative Frequency | AQ6: Variability | AS6: Frequency | AU6: Relative Frequency | AV6: Variability
A7: 11 | B7: 10 | C7: 11 | D7: 17 | E7: 11 | F7: 20 | K7: 0 | L7: 111 | N7: 111 | O7: =COUNTIF($L$7:$L$500,N7) -> 40 | P7: =O7/$Q$4 -> 0.9756097561 | Q7: =IF(P7=0,0,(P7*((LOG(P7))/LOG(2)))) -> -0.03475503388 | T7: =N7 -> 111 | U7: =COUNTIF(L7:L13,T7) -> 6 | Y7: =N7 -> 111 | Z7: =COUNTIF(L14:L20,Y7) -> 7 | AD7: =N7 -> 111 | AE7: =COUNTIF(L21:L26,AD7) -> 6 | AI7: =N7 -> 111 | AJ7: =COUNTIF(L27:L33,AI7) -> 7 | AN7: =N7 -> 111 | AO7: =COUNTIF(L34:L40,AN7) -> 7 | AS7: =N7 -> 111 | AT7: =COUNTIF(L41:L47,AS7) -> 7
A8: 11 | B8: 159 | C8: 11 | D8: 164 | E8: 11 | F8: 171 | K8: 0 | L8: 111 | N8: 112 | O8: =COUNTIF($L$7:$L$500,N8) -> 1 | P8: =O8/$Q$4 -> 0.0243902439 | Q8: =IF(P8=0,0,(P8*((LOG(P8))/LOG(2)))) -> -0.1306720001 | T8: =N8 -> 112 | U8: =COUNTIF(L7:L13,T8) -> 1 | V8: =U8/(W4-U7) -> 1 | W8: =IF(V8=0,0,(V8*((LOG(V8))/LOG(2)))) -> 0 | Y8: =N8 -> 112 | Z8: =COUNTIF(L14:L20,Y8) -> 0 | AA8: =Z8/(AB4-Z7) ->  | AB8: =IF(AA8=0,0,(AA8*((LOG(AA8))/LOG(2)))) ->  | AD8: =N8 -> 112 | AE8: =COUNTIF(L21:L26,AD8) -> 0 | AF8: =AE8/(AG4-AE7) ->  | AG8: =IF(AF8=0,0,(AF8*((LOG(AF8))/LOG(2)))) ->  | AI8: =N8 -> 112 | AJ8: =COUNTIF(L27:L33,AI8) -> 0 | AK8: =AJ8/(AL4-AJ7) ->  | AL8: =IF(AK8=0,0,(AK8*((LOG(AK8))/LOG(2)))) ->  | AN8: =N8 -> 112 | AO8: =COUNTIF(L34:L40,AN8) -> 0 | AP8: =AO8/(AQ4-AO7) ->  | AQ8: =IF(AP8=0,0,(AP8*((LOG(AP8))/LOG(2)))) ->  | AS8: =N8 -> 112 | AT8: =COUNTIF(L41:L47,AS8) -> 0 | AU8: =AT8/(AV4-AT7) ->  | AV8: =IF(AU8=0,0,(AU8*((LOG(AU8))/LOG(2)))) -> 
A9: 11 | B9: 297 | C9: 11 | D9: 304 | E9: 22 | F9: 320 | K9: 0 | L9: 112 | N9: 121 | O9: =COUNTIF($L$7:$L$500,N9) -> 0 | P9: =O9/$Q$4 -> 0 | Q9: =IF(P9=0,0,(P9*((LOG(P9))/LOG(2)))) -> 0 | T9: =N9 -> 121 | U9: =COUNTIF(L7:L13,T9) -> 0 | V9: =U9/(W4-U7) -> 0 | W9: =IF(V9=0,0,(V9*((LOG(V9))/LOG(2)))) -> 0 | Y9: =N9 -> 121 | Z9: =COUNTIF(L14:L20,Y9) -> 0 | AA9: =Z9/(AB4-Z7) ->  | AB9: =IF(AA9=0,0,(AA9*((LOG(AA9))/LOG(2)))) ->  | AD9: =N9 -> 121 | AE9: =COUNTIF(L21:L26,AD9) -> 0 | AF9: =AE9/(AG4-AE7) ->  | AG9: =IF(AF9=0,0,(AF9*((LOG(AF9))/LOG(2)))) ->  | AI9: =N9 -> 121 | AJ9: =COUNTIF(L27:L33,AI9) -> 0 | AK9: =AJ9/(AL4-AJ7) ->  | AL9: =IF(AK9=0,0,(AK9*((LOG(AK9))/LOG(2)))) ->  | AN9: =N9 -> 121 | AO9: =COUNTIF(L34:L40,AN9) -> 0 | AP9: =AO9/(AQ4-AO7) ->  | AQ9: =IF(AP9=0,0,(AP9*((LOG(AP9))/LOG(2)))) ->  | AS9: =N9 -> 121 | AT9: =COUNTIF(L41:L47,AS9) -> 0 | AU9: =AT9/(AV4-AT7) ->  | AV9: =IF(AU9=0,0,(AU9*((LOG(AU9))/LOG(2)))) -> 
A10: 11 | B10: 416 | C10: 11 | D10: 421 | E10: 11 | F10: 428 | K10: 0 | L10: 111 | N10: 122 | O10: =COUNTIF($L$7:$L$500,N10) -> 0 | P10: =O10/$Q$4 -> 0 | Q10: =IF(P10=0,0,(P10*((LOG(P10))/LOG(2)))) -> 0 | T10: =N10 -> 122 | U10: =COUNTIF(L7:L13,T10) -> 0 | V10: =U10/(W4-U7) -> 0 | W10: =IF(V10=0,0,(V10*((LOG(V10))/LOG(2)))) -> 0 | Y10: =N10 -> 122 | Z10: =COUNTIF(L14:L20,Y10) -> 0 | AA10: =Z10/(AB4-Z7) ->  | AB10: =IF(AA10=0,0,(AA10*((LOG(AA10))/LOG(2)))) ->  | AD10: =N10 -> 122 | AE10: =COUNTIF(L21:L26,AD10) -> 0 | AF10: =AE10/(AG4-AE7) ->  | AG10: =IF(AF10=0,0,(AF10*((LOG(AF10))/LOG(2)))) ->  | AI10: =N10 -> 122 | AJ10: =COUNTIF(L27:L33,AI10) -> 0 | AK10: =AJ10/(AL4-AJ7) ->  | AL10: =IF(AK10=0,0,(AK10*((LOG(AK10))/LOG(2)))) ->  | AN10: =N10 -> 122 | AO10: =COUNTIF(L34:L40,AN10) -> 0 | AP10: =AO10/(AQ4-AO7) ->  | AQ10: =IF(AP10=0,0,(AP10*((LOG(AP10))/LOG(2)))) ->  | AS10: =N10 -> 122 | AT10: =COUNTIF(L41:L47,AS10) -> 0 | AU10: =AT10/(AV4-AT7) ->  | AV10: =IF(AU10=0,0,(AU10*((LOG(AU10))/LOG(2)))) -> 
A11: 11 | B11: 537 | C11: 11 | D11: 543 | E11: 11 | F11: 552 | K11: 0 | L11: 111 | N11: 211 | O11: =COUNTIF($L$7:$L$500,N11) -> 0 | P11: =O11/$Q$4 -> 0 | Q11: =IF(P11=0,0,(P11*((LOG(P11))/LOG(2)))) -> 0 | T11: =N11 -> 211 | U11: =COUNTIF(L7:L13,T11) -> 0 | V11: =U11/(W4-U7) -> 0 | W11: =IF(V11=0,0,(V11*((LOG(V11))/LOG(2)))) -> 0 | Y11: =N11 -> 211 | Z11: =COUNTIF(L14:L20,Y11) -> 0 | AA11: =Z11/(AB4-Z7) ->  | AB11: =IF(AA11=0,0,(AA11*((LOG(AA11))/LOG(2)))) ->  | AD11: =N11 -> 211 | AE11: =COUNTIF(L21:L26,AD11) -> 0 | AF11: =AE11/(AG4-AE7) ->  | AG11: =IF(AF11=0,0,(AF11*((LOG(AF11))/LOG(2)))) ->  | AI11: =N11 -> 211 | AJ11: =COUNTIF(L27:L33,AI11) -> 0 | AK11: =AJ11/(AL4-AJ7) ->  | AL11: =IF(AK11=0,0,(AK11*((LOG(AK11))/LOG(2)))) ->  | AN11: =N11 -> 211 | AO11: =COUNTIF(L34:L40,AN11) -> 0 | AP11: =AO11/(AQ4-AO7) ->  | AQ11: =IF(AP11=0,0,(AP11*((LOG(AP11))/LOG(2)))) ->  | AS11: =N11 -> 211 | AT11: =COUNTIF(L41:L47,AS11) -> 0 | AU11: =AT11/(AV4-AT7) ->  | AV11: =IF(AU11=0,0,(AU11*((LOG(AU11))/LOG(2)))) -> 
A12: 11 | B12: 664 | C12: 11 | D12: 667 | E12: 11 | F12: 671 | K12: 0 | L12: 111 | N12: 212 | O12: =COUNTIF($L$7:$L$500,N12) -> 0 | P12: =O12/$Q$4 -> 0 | Q12: =IF(P12=0,0,(P12*((LOG(P12))/LOG(2)))) -> 0 | T12: =N12 -> 212 | U12: =COUNTIF(L7:L13,T12) -> 0 | V12: =U12/(W4-U7) -> 0 | W12: =IF(V12=0,0,(V12*((LOG(V12))/LOG(2)))) -> 0 | Y12: =N12 -> 212 | Z12: =COUNTIF(L14:L20,Y12) -> 0 | AA12: =Z12/(AB4-Z7) ->  | AB12: =IF(AA12=0,0,(AA12*((LOG(AA12))/LOG(2)))) ->  | AD12: =N12 -> 212 | AE12: =COUNTIF(L21:L26,AD12) -> 0 | AF12: =AE12/(AG4-AE7) ->  | AG12: =IF(AF12=0,0,(AF12*((LOG(AF12))/LOG(2)))) ->  | AI12: =N12 -> 212 | AJ12: =COUNTIF(L27:L33,AI12) -> 0 | AK12: =AJ12/(AL4-AJ7) ->  | AL12: =IF(AK12=0,0,(AK12*((LOG(AK12))/LOG(2)))) ->  | AN12: =N12 -> 212 | AO12: =COUNTIF(L34:L40,AN12) -> 0 | AP12: =AO12/(AQ4-AO7) ->  | AQ12: =IF(AP12=0,0,(AP12*((LOG(AP12))/LOG(2)))) ->  | AS12: =N12 -> 212 | AT12: =COUNTIF(L41:L47,AS12) -> 0 | AU12: =AT12/(AV4-AT7) ->  | AV12: =IF(AU12=0,0,(AU12*((LOG(AU12))/LOG(2)))) -> 
A13: 11 | B13: 834 | C13: 11 | D13: 839 | E13: 11 | F13: 842 | K13: 0 | L13: 111 | N13: 221 | O13: =COUNTIF($L$7:$L$500,N13) -> 0 | P13: =O13/$Q$4 -> 0 | Q13: =IF(P13=0,0,(P13*((LOG(P13))/LOG(2)))) -> 0 | T13: =N13 -> 221 | U13: =COUNTIF(L7:L13,T13) -> 0 | V13: =U13/(W4-U7) -> 0 | W13: =IF(V13=0,0,(V13*((LOG(V13))/LOG(2)))) -> 0 | Y13: =N13 -> 221 | Z13: =COUNTIF(L14:L20,Y13) -> 0 | AA13: =Z13/(AB4-Z7) ->  | AB13: =IF(AA13=0,0,(AA13*((LOG(AA13))/LOG(2)))) ->  | AD13: =N13 -> 221 | AE13: =COUNTIF(L21:L26,AD13) -> 0 | AF13: =AE13/(AG4-AE7) ->  | AG13: =IF(AF13=0,0,(AF13*((LOG(AF13))/LOG(2)))) ->  | AI13: =N13 -> 221 | AJ13: =COUNTIF(L27:L33,AI13) -> 0 | AK13: =AJ13/(AL4-AJ7) ->  | AL13: =IF(AK13=0,0,(AK13*((LOG(AK13))/LOG(2)))) ->  | AN13: =N13 -> 221 | AO13: =COUNTIF(L34:L40,AN13) -> 0 | AP13: =AO13/(AQ4-AO7) ->  | AQ13: =IF(AP13=0,0,(AP13*((LOG(AP13))/LOG(2)))) ->  | AS13: =N13 -> 221 | AT13: =COUNTIF(L41:L47,AS13) -> 0 | AU13: =AT13/(AV4-AT7) ->  | AV13: =IF(AU13=0,0,(AU13*((LOG(AU13))/LOG(2)))) -> 
A14: 11 | B14: 980 | C14: 11 | D14: 984 | E14: 11 | F14: 989 | K14: 0 | L14: 111 | N14: 222 | O14: =COUNTIF($L$7:$L$500,N14) -> 0 | P14: =O14/$Q$4 -> 0 | Q14: =IF(P14=0,0,(P14*((LOG(P14))/LOG(2)))) -> 0 | T14: =N14 -> 222 | U14: =COUNTIF(L7:L13,T14) -> 0 | V14: =U14/(W4-U7) -> 0 | W14: =IF(V14=0,0,(V14*((LOG(V14))/LOG(2)))) -> 0 | Y14: =N14 -> 222 | Z14: =COUNTIF(L14:L20,Y14) -> 0 | AA14: =Z14/(AB4-Z7) ->  | AB14: =IF(AA14=0,0,(AA14*((LOG(AA14))/LOG(2)))) ->  | AD14: =N14 -> 222 | AE14: =COUNTIF(L21:L26,AD14) -> 0 | AF14: =AE14/(AG4-AE7) ->  | AG14: =IF(AF14=0,0,(AF14*((LOG(AF14))/LOG(2)))) ->  | AI14: =N14 -> 222 | AJ14: =COUNTIF(L27:L33,AI14) -> 0 | AK14: =AJ14/(AL4-AJ7) ->  | AL14: =IF(AK14=0,0,(AK14*((LOG(AK14))/LOG(2)))) ->  | AN14: =N14 -> 222 | AO14: =COUNTIF(L34:L40,AN14) -> 0 | AP14: =AO14/(AQ4-AO7) ->  | AQ14: =IF(AP14=0,0,(AP14*((LOG(AP14))/LOG(2)))) ->  | AS14: =N14 -> 222 | AT14: =COUNTIF(L41:L47,AS14) -> 0 | AU14: =AT14/(AV4-AT7) ->  | AV14: =IF(AU14=0,0,(AU14*((LOG(AU14))/LOG(2)))) -> 
A15: 11 | B15: 1154 | C15: 11 | D15: 1158 | E15: 11 | F15: 1167 | K15: 0 | L15: 111 | P15: =SUM(P7:P14) -> 1 | Q15: =-SUM(Q7:Q14) -> 0.165427034 | V15: =SUM(V7:V14) -> 1 | W15: =-SUM(W7:W14) -> 0 | AA15: =SUM(AA7:AA14) ->  | AB15: =-SUM(AB7:AB14) ->  | AF15: =SUM(AF7:AF14) ->  | AG15: =-SUM(AG7:AG14) ->  | AK15: =SUM(AK7:AK14) ->  | AL15: =-SUM(AL7:AL14) ->  | AP15: =SUM(AP7:AP14) ->  | AQ15: =-SUM(AQ7:AQ14) ->  | AU15: =SUM(AU7:AU14) ->  | AV15: =-SUM(AV7:AV14) -> 
A16: 11 | B16: 1306 | C16: 11 | D16: 1312 | E16: 11 | F16: 1320 | K16: 0 | L16: 111 | P16: U= | Q16: =Q15/(LOG(Q4)/LOG(2)) -> 0.03087735478 | V16: U1= | W16: =W15/(LOG(W4)/LOG(2)) -> 0 | AA16: U2= | AB16: =AB15/(LOG(AB4)/LOG(2)) ->  | AF16: U3= | AG16: =AG15/(LOG(AG4)/LOG(2)) ->  | AK16: U4= | AL16: =AL15/(LOG(AL4)/LOG(2)) ->  | AP16: U5= | AQ16: =AQ15/(LOG(AQ4)/LOG(2)) ->  | AU16: U6= | AV16: =AV15/(LOG(AV4)/LOG(2)) -> 
A17: 11 | B17: 1453 | C17: 11 | D17: 1457 | E17: 11 | F17: 1473 | K17: 0 | L17: 111
A18: 11 | B18: 1621 | C18: 11 | D18: 1624 | E18: 11 | F18: 1630 | K18: 0 | L18: 111
A19: 11 | B19: 1765 | C19: 11 | D19: 1770 | E19: 11 | F19: 1777 | K19: 0 | L19: 111 | N19: Total Target Seq
A20: 11 | B20: 1898 | C20: 11 | D20: 1903 | E20: 11 | F20: 1909 | K20: 0 | L20: 111 | N20: =COUNTIF(L7:L47,G3) -> 40 | P20: 7 | Q20: 7 | R20: 6 | S20: 7 | T20: 7 | U20: 7
A21: 11 | B21: 2030 | C21: 11 | D21: 2035 | E21: 11 | F21: 2041 | K21: 0 | L21: 111 | P21: % of reinforcement given in 6 equal intervals based on number of trials
A22: 11 | B22: 2169 | C22: 11 | D22: 2174 | E22: 11 | F22: 2183 | K22: 0 | L22: 111 | P22: %_1 | Q22: %_2 | R22: %_3 | S22: %_4 | T22: %_5 | U22: %_6
A23: 11 | B23: 2305 | C23: 11 | D23: 2311 | E23: 11 | F23: 2317 | K23: 0 | L23: 111 | O23: target sequence | P23: =$G$3 -> 111 | Q23: =$G$3 -> 111 | R23: =$G$3 -> 111 | S23: =$G$3 -> 111 | T23: =$G$3 -> 111 | U23: =$G$3 -> 111
A24: 11 | B24: 2514 | C24: 11 | D24: 2517 | E24: 11 | F24: 2524 | K24: 0 | L24: 111 | O24: total reinforcement | P24: =U7 -> 6 | Q24: =Z7 -> 7 | R24: =AE7 -> 6 | S24: =AJ7 -> 7 | T24: =AO7 -> 7 | U24: =AT7 -> 7
A25: 11 | B25: 2653 | C25: 11 | D25: 2658 | E25: 11 | F25: 2664 | K25: 0 | L25: 111 | O25: % target
A26: 11 | B26: 2817 | C26: 11 | D26: 2823 | E26: 11 | F26: 2829 | K26: 0 | L26: 111 | O26: CCRF
A27: 11 | B27: 2927 | C27: 11 | D27: 2931 | E27: 11 | F27: 2936 | K27: 0 | L27: 111 | O27: % CCRf
A28: 11 | B28: 3077 | C28: 11 | D28: 3083 | E28: 11 | F28: 3090 | K28: 0 | L28: 111 | O28: average response rate | P28: =F13/P20 -> 120.2857143 | Q28: =(F20-F13)/Q20 -> 152.4285714 | R28: =(F26-F20)/R20 -> 153.3333333 | S28: =(F33-F26)/S20 -> 168.7142857 | T28: =(F40-F33)/T20 -> 179.4285714 | U28: =(F47-F40)/U20 -> 173.7142857
A29: 11 | B29: 3246 | C29: 11 | D29: 3251 | E29: 11 | F29: 3258 | K29: 0 | L29: 111
A30: 11 | B30: 3480 | C30: 11 | D30: 3484 | E30: 11 | F30: 3491 | K30: 0 | L30: 111
A31: 11 | B31: 3635 | C31: 11 | D31: 3642 | E31: 11 | F31: 3661 | K31: 0 | L31: 111
A32: 11 | B32: 3863 | C32: 11 | D32: 3866 | E32: 11 | F32: 3872 | K32: 0 | L32: 111
A33: 11 | B33: 4001 | C33: 11 | D33: 4004 | E33: 11 | F33: 4010 | K33: 0 | L33: 111
A34: 11 | B34: 4188 | C34: 11 | D34: 4194 | E34: 11 | F34: 4200 | K34: 0 | L34: 111
A35: 11 | B35: 4375 | C35: 11 | D35: 4380 | E35: 11 | F35: 4394 | K35: 0 | L35: 111
A36: 11 | B36: 4633 | C36: 11 | D36: 4637 | E36: 11 | F36: 4642 | K36: 0 | L36: 111
A37: 11 | B37: 4802 | C37: 11 | D37: 4805 | E37: 11 | F37: 4811 | K37: 0 | L37: 111
A38: 11 | B38: 4980 | C38: 11 | D38: 4983 | E38: 11 | F38: 4990 | K38: 0 | L38: 111
A39: 11 | B39: 5143 | C39: 11 | D39: 5147 | E39: 11 | F39: 5152 | K39: 0 | L39: 111
A40: 11 | B40: 5257 | C40: 11 | D40: 5263 | E40: 11 | F40: 5266 | K40: 0 | L40: 111
A41: 11 | B41: 5426 | C41: 11 | D41: 5429 | E41: 11 | F41: 5442 | K41: 0 | L41: 111
A42: 11 | B42: 5605 | C42: 11 | D42: 5611 | E42: 11 | F42: 5615 | K42: 0 | L42: 111
A43: 11 | B43: 5746 | C43: 11 | D43: 5752 | E43: 11 | F43: 5758 | K43: 0 | L43: 111
A44: 11 | B44: 5915 | C44: 11 | D44: 5918 | E44: 11 | F44: 5922 | K44: 0 | L44: 111
A45: 11 | B45: 6130 | C45: 11 | D45: 6134 | E45: 11 | F45: 6137 | K45: 0 | L45: 111
A46: 11 | B46: 6306 | C46: 11 | D46: 6311 | E46: 11 | F46: 6316 | K46: 0 | L46: 111
A47: 11 | B47: 6467 | C47: 11 | D47: 6474 | E47: 11 | F47: 6482 | K47: 1 | L47: 111

Sheet !M707A3D.ust
A1: Report for:!M707A3D.ust
A2: Date: | B2: <date>
A3: Hen: | B3: <hen> | F3: Correct Sequence | G3: =Start!J2 -> 111 | P3: Total Sequences in Data | Q3: =4994-COUNTBLANK(L7:L5000) -> 42 | V3: Total Sequences in Block Data | W3: =COUNTA(L7:L13) -> 7 | AA3: Total Sequences in Block Data | AB3: =COUNTA(L14:L20) -> 7 | AF3: Total Sequences in Block Data | AG3: =COUNTA(L21:L27) -> 7 | AK3: Total Sequences in Block Data | AL3: =COUNTA(L28:L34) -> 7 | AP3: Total Sequences in Block Data | AQ3: =COUNTA(L35:L41) -> 7 | AU3: Total Sequences in Block Data | AV3: =COUNTA(L42:L48) -> 7
P4: Total Sequences in Summary | Q4: =SUM(O7:O14) -> 42 | V4: Total Sequences in Block Summary | W4: =SUM(U7:U14) -> 7 | AA4: Total Sequences in Block Summary | AB4: =SUM(Z7:Z14) -> 7 | AF4: Total Sequences in Block Summary | AG4: =SUM(AE7:AE14) -> 7 | AK4: Total Sequences in Block Summary | AL4: =SUM(AJ7:AJ14) -> 7 | AP4: Total Sequences in Block Summary | AQ4: =SUM(AO7:AO14) -> 7 | AU4: Total Sequences in Block Summary | AV4: =SUM(AT7:AT14) -> 7
T5: Block 1 | Y5: Block 2 | AD5: Block 3 | AI5: Block 4 | AN5: Block 5 | AS5: Block 6
A6: Sequence Component 1 | B6: Time 1 | C6: Sequence Component 2 | D6: Time 2 | E6: Sequence Component 3 | F6: Time 3 | G6: Sequence Component 4 | H6: Time 4 | I6: Sequence Component 5 | J6: Time 5 | K6: Correct? 0=No 1=Yes | L6: Sequence | N6: Frequency | P6: Relative Frequency | Q6: Variability | T6: Frequency | V6: Relative Frequency | W6: Variability | Y6: Frequency | AA6: Relative Frequency | AB6: Variability | AD6: Frequency | AF6: Relative Frequency | AG6: Variability | AI6: Frequency | AK6: Relative Frequency | AL6: Variability | AN6: Frequency | AP6: Relative Frequency | AQ6: Variability | AS6: Frequency | AU6: Relative Frequency | AV6: Variability
A7: 11 | B7: 11 | C7: 11 | D7: 17 | E7: 11 | F7: 31 | K7: 0 | L7: 111 | N7: 111 | O7: =COUNTIF($L$7:$L$500,N7) -> 40 | P7: =O7/$Q$4 -> 0.9523809524 | Q7: =IF(P7=0,0,(P7*((LOG(P7))/LOG(2)))) -> -0.06703745513 | T7: =N7 -> 111 | U7: =COUNTIF(L7:L13,T7) -> 7 | Y7: =N7 -> 111 | Z7: =COUNTIF(L14:L20,Y7) -> 6 | AD7: =N7 -> 111 | AE7: =COUNTIF(L21:L27,AD7) -> 7 | AI7: =N7 -> 111 | AJ7: =COUNTIF(L28:L34,AI7) -> 6 | AN7: =N7 -> 111 | AO7: =COUNTIF(L35:L41,AN7) -> 7 | AS7: =N7 -> 111 | AT7: =COUNTIF(L42:L48,AS7) -> 7
A8: 11 | B8: 163 | C8: 11 | D8: 169 | E8: 11 | F8: 180 | K8: 0 | L8: 111 | N8: 112 | O8: =COUNTIF($L$7:$L$500,N8) -> 2 | P8: =O8/$Q$4 -> 0.04761904762 | Q8: =IF(P8=0,0,(P8*((LOG(P8))/LOG(2)))) -> -0.2091579725 | T8: =N8 -> 112 | U8: =COUNTIF(L7:L13,T8) -> 0 | V8: =U8/(W4-U7) ->  | W8: =IF(V8=0,0,(V8*((LOG(V8))/LOG(2)))) ->  | Y8: =N8 -> 112 | Z8: =COUNTIF(L14:L20,Y8) -> 1 | AA8: =Z8/(AB4-Z7) -> 1 | AB8: =IF(AA8=0,0,(AA8*((LOG(AA8))/LOG(2)))) -> 0 | AD8: =N8 -> 112 | AE8: =COUNTIF(L21:L27,AD8) -> 0 | AF8: =AE8/(AG4-AE7) ->  | AG8: =IF(AF8=0,0,(AF8*((LOG(AF8))/LOG(2)))) ->  | AI8: =N8 -> 112 | AJ8: =COUNTIF(L28:L34,AI8) -> 1 | AK8: =AJ8/(AL4-AJ7) -> 1 | AL8: =IF(AK8=0,0,(AK8*((LOG(AK8))/LOG(2)))) -> 0 | AN8: =N8 -> 112 | AO8: =COUNTIF(L35:L41,AN8) -> 0 | AP8: =AO8/(AQ4-AO7) ->  | AQ8: =IF(AP8=0,0,(AP8*((LOG(AP8))/LOG(2)))) ->  | AS8: =N8 -> 112 | AT8: =COUNTIF(L42:L48,AS8) -> 0 | AU8: =AT8/(AV4-AT7) ->  | AV8: =IF(AU8=0,0,(AU8*((LOG(AU8))/LOG(2)))) -> 
A9: 11 | B9: 327 | C9: 11 | D9: 332 | E9: 11 | F9: 340 | K9: 0 | L9: 111 | N9: 121 | O9: =COUNTIF($L$7:$L$500,N9) -> 0 | P9: =O9/$Q$4 -> 0 | Q9: =IF(P9=0,0,(P9*((LOG(P9))/LOG(2)))) -> 0 | T9: =N9 -> 121 | U9: =COUNTIF(L7:L13,T9) -> 0 | V9: =U9/(W4-U7) ->  | W9: =IF(V9=0,0,(V9*((LOG(V9))/LOG(2)))) ->  | Y9: =N9 -> 121 | Z9: =COUNTIF(L14:L20,Y9) -> 0 | AA9: =Z9/(AB4-Z7) -> 0 | AB9: =IF(AA9=0,0,(AA9*((LOG(AA9))/LOG(2)))) -> 0 | AD9: =N9 -> 121 | AE9: =COUNTIF(L21:L27,AD9) -> 0 | AF9: =AE9/(AG4-AE7) ->  | AG9: =IF(AF9=0,0,(AF9*((LOG(AF9))/LOG(2)))) ->  | AI9: =N9 -> 121 | AJ9: =COUNTIF(L28:L34,AI9) -> 0 | AK9: =AJ9/(AL4-AJ7) -> 0 | AL9: =IF(AK9=0,0,(AK9*((LOG(AK9))/LOG(2)))) -> 0 | AN9: =N9 -> 121 | AO9: =COUNTIF(L35:L41,AN9) -> 0 | AP9: =AO9/(AQ4-AO7) ->  | AQ9: =IF(AP9=0,0,(AP9*((LOG(AP9))/LOG(2)))) ->  | AS9: =N9 -> 121 | AT9: =COUNTIF(L42:L48,AS9) -> 0 | AU9: =AT9/(AV4-AT7) ->  | AV9: =IF(AU9=0,0,(AU9*((LOG(AU9))/LOG(2)))) -> 
A10: 11 | B10: 532 | C10: 11 | D10: 536 | E10: 11 | F10: 544 | K10: 0 | L10: 111 | N10: 122 | O10: =COUNTIF($L$7:$L$500,N10) -> 0 | P10: =O10/$Q$4 -> 0 | Q10: =IF(P10=0,0,(P10*((LOG(P10))/LOG(2)))) -> 0 | T10: =N10 -> 122 | U10: =COUNTIF(L7:L13,T10) -> 0 | V10: =U10/(W4-U7) ->  | W10: =IF(V10=0,0,(V10*((LOG(V10))/LOG(2)))) ->  | Y10: =N10 -> 122 | Z10: =COUNTIF(L14:L20,Y10) -> 0 | AA10: =Z10/(AB4-Z7) -> 0 | AB10: =IF(AA10=0,0,(AA10*((LOG(AA10))/LOG(2)))) -> 0 | AD10: =N10 -> 122 | AE10: =COUNTIF(L21:L27,AD10) -> 0 | AF10: =AE10/(AG4-AE7) ->  | AG10: =IF(AF10=0,0,(AF10*((LOG(AF10))/LOG(2)))) ->  | AI10: =N10 -> 122 | AJ10: =COUNTIF(L28:L34,AI10) -> 0 | AK10: =AJ10/(AL4-AJ7) -> 0 | AL10: =IF(AK10=0,0,(AK10*((LOG(AK10))/LOG(2)))) -> 0 | AN10: =N10 -> 122 | AO10: =COUNTIF(L35:L41,AN10) -> 0 | AP10: =AO10/(AQ4-AO7) ->  | AQ10: =IF(AP10=0,0,(AP10*((LOG(AP10))/LOG(2)))) ->  | AS10: =N10 -> 122 | AT10: =COUNTIF(L42:L48,AS10) -> 0 | AU10: =AT10/(AV4-AT7) ->  | AV10: =IF(AU10=0,0,(AU10*((LOG(AU10))/LOG(2)))) -> 
A11: 11 | B11: 692 | C11: 11 | D11: 725 | E11: 11 | F11: 748 | K11: 0 | L11: 111 | N11: 211 | O11: =COUNTIF($L$7:$L$500,N11) -> 0 | P11: =O11/$Q$4 -> 0 | Q11: =IF(P11=0,0,(P11*((LOG(P11))/LOG(2)))) -> 0 | T11: =N11 -> 211 | U11: =COUNTIF(L7:L13,T11) -> 0 | V11: =U11/(W4-U7) ->  | W11: =IF(V11=0,0,(V11*((LOG(V11))/LOG(2)))) ->  | Y11: =N11 -> 211 | Z11: =COUNTIF(L14:L20,Y11) -> 0 | AA11: =Z11/(AB4-Z7) -> 0 | AB11: =IF(AA11=0,0,(AA11*((LOG(AA11))/LOG(2)))) -> 0 | AD11: =N11 -> 211 | AE11: =COUNTIF(L21:L27,AD11) -> 0 | AF11: =AE11/(AG4-AE7) ->  | AG11: =IF(AF11=0,0,(AF11*((LOG(AF11))/LOG(2)))) ->  | AI11: =N11 -> 211 | AJ11: =COUNTIF(L28:L34,AI11) -> 0 | AK11: =AJ11/(AL4-AJ7) -> 0 | AL11: =IF(AK11=0,0,(AK11*((LOG(AK11))/LOG(2)))) -> 0 | AN11: =N11 -> 211 | AO11: =COUNTIF(L35:L41,AN11) -> 0 | AP11: =AO11/(AQ4-AO7) ->  | AQ11: =IF(AP11=0,0,(AP11*((LOG(AP11))/LOG(2)))) ->  | AS11: =N11 -> 211 | AT11: =COUNTIF(L42:L48,AS11) -> 0 | AU11: =AT11/(AV4-AT7) ->  | AV11: =IF(AU11=0,0,(AU11*((LOG(AU11))/LOG(2)))) -> 
A12: 11 | B12: 922 | C12: 11 | D12: 929 | E12: 11 | F12: 937 | K12: 0 | L12: 111 | N12: 212 | O12: =COUNTIF($L$7:$L$500,N12) -> 0 | P12: =O12/$Q$4 -> 0 | Q12: =IF(P12=0,0,(P12*((LOG(P12))/LOG(2)))) -> 0 | T12: =N12 -> 212 | U12: =COUNTIF(L7:L13,T12) -> 0 | V12: =U12/(W4-U7) ->  | W12: =IF(V12=0,0,(V12*((LOG(V12))/LOG(2)))) ->  | Y12: =N12 -> 212 | Z12: =COUNTIF(L14:L20,Y12) -> 0 | AA12: =Z12/(AB4-Z7) -> 0 | AB12: =IF(AA12=0,0,(AA12*((LOG(AA12))/LOG(2)))) -> 0 | AD12: =N12 -> 212 | AE12: =COUNTIF(L21:L27,AD12) -> 0 | AF12: =AE12/(AG4-AE7) ->  | AG12: =IF(AF12=0,0,(AF12*((LOG(AF12))/LOG(2)))) ->  | AI12: =N12 -> 212 | AJ12: =COUNTIF(L28:L34,AI12) -> 0 | AK12: =AJ12/(AL4-AJ7) -> 0 | AL12: =IF(AK12=0,0,(AK12*((LOG(AK12))/LOG(2)))) -> 0 | AN12: =N12 -> 212 | AO12: =COUNTIF(L35:L41,AN12) -> 0 | AP12: =AO12/(AQ4-AO7) ->  | AQ12: =IF(AP12=0,0,(AP12*((LOG(AP12))/LOG(2)))) ->  | AS12: =N12 -> 212 | AT12: =COUNTIF(L42:L48,AS12) -> 0 | AU12: =AT12/(AV4-AT7) ->  | AV12: =IF(AU12=0,0,(AU12*((LOG(AU12))/LOG(2)))) -> 
A13: 11 | B13: 1070 | C13: 11 | D13: 1075 | E13: 11 | F13: 1078 | K13: 0 | L13: 111 | N13: 221 | O13: =COUNTIF($L$7:$L$500,N13) -> 0 | P13: =O13/$Q$4 -> 0 | Q13: =IF(P13=0,0,(P13*((LOG(P13))/LOG(2)))) -> 0 | T13: =N13 -> 221 | U13: =COUNTIF(L7:L13,T13) -> 0 | V13: =U13/(W4-U7) ->  | W13: =IF(V13=0,0,(V13*((LOG(V13))/LOG(2)))) ->  | Y13: =N13 -> 221 | Z13: =COUNTIF(L14:L20,Y13) -> 0 | AA13: =Z13/(AB4-Z7) -> 0 | AB13: =IF(AA13=0,0,(AA13*((LOG(AA13))/LOG(2)))) -> 0 | AD13: =N13 -> 221 | AE13: =COUNTIF(L21:L27,AD13) -> 0 | AF13: =AE13/(AG4-AE7) ->  | AG13: =IF(AF13=0,0,(AF13*((LOG(AF13))/LOG(2)))) ->  | AI13: =N13 -> 221 | AJ13: =COUNTIF(L28:L34,AI13) -> 0 | AK13: =AJ13/(AL4-AJ7) -> 0 | AL13: =IF(AK13=0,0,(AK13*((LOG(AK13))/LOG(2)))) -> 0 | AN13: =N13 -> 221 | AO13: =COUNTIF(L35:L41,AN13) -> 0 | AP13: =AO13/(AQ4-AO7) ->  | AQ13: =IF(AP13=0,0,(AP13*((LOG(AP13))/LOG(2)))) ->  | AS13: =N13 -> 221 | AT13: =COUNTIF(L42:L48,AS13) -> 0 | AU13: =AT13/(AV4-AT7) ->  | AV13: =IF(AU13=0,0,(AU13*((LOG(AU13))/LOG(2)))) -> 
A14: 11 | B14: 1252 | C14: 11 | D14: 1255 | E14: 11 | F14: 1263 | K14: 0 | L14: 111 | N14: 222 | O14: =COUNTIF($L$7:$L$500,N14) -> 0 | P14: =O14/$Q$4 -> 0 | Q14: =IF(P14=0,0,(P14*((LOG(P14))/LOG(2)))) -> 0 | T14: =N14 -> 222 | U14: =COUNTIF(L7:L13,T14) -> 0 | V14: =U14/(W4-U7) ->  | W14: =IF(V14=0,0,(V14*((LOG(V14))/LOG(2)))) ->  | Y14: =N14 -> 222 | Z14: =COUNTIF(L14:L20,Y14) -> 0 | AA14: =Z14/(AB4-Z7) -> 0 | AB14: =IF(AA14=0,0,(AA14*((LOG(AA14))/LOG(2)))) -> 0 | AD14: =N14 -> 222 | AE14: =COUNTIF(L21:L27,AD14) -> 0 | AF14: =AE14/(AG4-AE7) ->  | AG14: =IF(AF14=0,0,(AF14*((LOG(AF14))/LOG(2)))) ->  | AI14: =N14 -> 222 | AJ14: =COUNTIF(L28:L34,AI14) -> 0 | AK14: =AJ14/(AL4-AJ7) -> 0 | AL14: =IF(AK14=0,0,(AK14*((LOG(AK14))/LOG(2)))) -> 0 | AN14: =N14 -> 222 | AO14: =COUNTIF(L35:L41,AN14) -> 0 | AP14: =AO14/(AQ4-AO7) ->  | AQ14: =IF(AP14=0,0,(AP14*((LOG(AP14))/LOG(2)))) ->  | AS14: =N14 -> 222 | AT14: =COUNTIF(L42:L48,AS14) -> 0 | AU14: =AT14/(AV4-AT7) ->  | AV14: =IF(AU14=0,0,(AU14*((LOG(AU14))/LOG(2)))) -> 
A15: 11 | B15: 1460 | C15: 11 | D15: 1480 | E15: 22 | F15: 1503 | K15: 0 | L15: 112 | P15: =SUM(P7:P14) -> 1 | Q15: =-SUM(Q7:Q14) -> 0.2761954276 | V15: =SUM(V7:V14) ->  | W15: =-SUM(W7:W14) ->  | AA15: =SUM(AA7:AA14) -> 1 | AB15: =-SUM(AB7:AB14) -> 0 | AF15: =SUM(AF7:AF14) ->  | AG15: =-SUM(AG7:AG14) ->  | AK15: =SUM(AK7:AK14) -> 1 | AL15: =-SUM(AL7:AL14) -> 0 | AP15: =SUM(AP7:AP14) ->  | AQ15: =-SUM(AQ7:AQ14) ->  | AU15: =SUM(AU7:AU14) ->  | AV15: =-SUM(AV7:AV14) -> 
A16: 11 | B16: 1603 | C16: 11 | D16: 1609 | E16: 11 | F16: 1618 | K16: 0 | L16: 111 | P16: U= | Q16: =Q15/(LOG(Q4)/LOG(2)) -> 0.05122017233 | V16: U1= | W16: =W15/(LOG(W4)/LOG(2)) ->  | AA16: U2= | AB16: =AB15/(LOG(AB4)/LOG(2)) -> 0 | AF16: U3= | AG16: =AG15/(LOG(AG4)/LOG(2)) ->  | AK16: U4= | AL16: =AL15/(LOG(AL4)/LOG(2)) -> 0 | AP16: U5= | AQ16: =AQ15/(LOG(AQ4)/LOG(2)) ->  | AU16: U6= | AV16: =AV15/(LOG(AV4)/LOG(2)) -> 
A17: 11 | B17: 1734 | C17: 11 | D17: 1740 | E17: 11 | F17: 1747 | K17: 0 | L17: 111
A18: 11 | B18: 1848 | C18: 11 | D18: 1854 | E18: 11 | F18: 1865 | K18: 0 | L18: 111
A19: 11 | B19: 1967 | C19: 11 | D19: 1973 | E19: 11 | F19: 1981 | K19: 0 | L19: 111 | N19: Total Target Seq
A20: 11 | B20: 2139 | C20: 11 | D20: 2145 | E20: 11 | F20: 2183 | K20: 0 | L20: 111 | N20: =COUNTIF(L7:L48,G3) -> 40 | P20: 7 | Q20: 7 | R20: 7 | S20: 7 | T20: 7 | U20: 7
A21: 11 | B21: 2363 | C21: 11 | D21: 2370 | E21: 11 | F21: 2378 | K21: 0 | L21: 111 | P21: % of reinforcement given in 6 equal intervals based on number of trials
A22: 11 | B22: 2511 | C22: 11 | D22: 2517 | E22: 11 | F22: 2523 | K22: 0 | L22: 111 | P22: %_1 | Q22: %_2 | R22: %_3 | S22: %_4 | T22: %_5 | U22: %_6
A23: 11 | B23: 2687 | C23: 11 | D23: 2692 | E23: 11 | F23: 2697 | K23: 0 | L23: 111 | O23: target sequence | P23: =$G$3 -> 111 | Q23: =$G$3 -> 111 | R23: =$G$3 -> 111 | S23: =$G$3 -> 111 | T23: =$G$3 -> 111 | U23: =$G$3 -> 111
A24: 11 | B24: 2860 | C24: 11 | D24: 2864 | E24: 11 | F24: 2870 | K24: 0 | L24: 111 | O24: total reinforcement | P24: =U7 -> 7 | Q24: =Z7 -> 6 | R24: =AE7 -> 7 | S24: =AJ7 -> 6 | T24: =AO7 -> 7 | U24: =AT7 -> 7
A25: 11 | B25: 3004 | C25: 11 | D25: 3009 | E25: 11 | F25: 3016 | K25: 0 | L25: 111 | O25: % target
A26: 11 | B26: 3203 | C26: 11 | D26: 3211 | E26: 11 | F26: 3218 | K26: 0 | L26: 111 | O26: CCRF
A27: 11 | B27: 3395 | C27: 11 | D27: 3401 | E27: 11 | F27: 3409 | K27: 0 | L27: 111 | O27: % CCRf
A28: 11 | B28: 3603 | C28: 11 | D28: 3607 | E28: 11 | F28: 3613 | K28: 0 | L28: 111 | O28: average response rate | P28: =F13/P20 -> 154 | Q28: =(F20-F13)/Q20 -> 157.8571429 | R28: =(F27-F20)/R20 -> 175.1428571 | S28: =(F34-F27)/S20 -> 191.1428571 | T28: =(F41-F34)/T20 -> 167.1428571 | U28: =(F48-F41)/U20 -> 163.8571429
A29: 11 | B29: 3760 | C29: 11 | D29: 3765 | E29: 11 | F29: 3771 | K29: 0 | L29: 111
A30: 11 | B30: 3965 | C30: 11 | D30: 3992 | E30: 11 | F30: 4009 | K30: 0 | L30: 111
A31: 11 | B31: 4170 | C31: 11 | D31: 4176 | E31: 11 | F31: 4190 | K31: 0 | L31: 111
A32: 11 | B32: 4373 | C32: 11 | D32: 4380 | E32: 11 | F32: 4398 | K32: 0 | L32: 111
A33: 11 | B33: 4533 | C33: 11 | D33: 4538 | E33: 11 | F33: 4542 | K33: 0 | L33: 111
A34: 11 | B34: 4719 | C34: 11 | D34: 4725 | E34: 22 | F34: 4747 | K34: 0 | L34: 112
A35: 11 | B35: 4846 | C35: 11 | D35: 4852 | E35: 11 | F35: 4858 | K35: 0 | L35: 111
A36: 11 | B36: 4970 | C36: 11 | D36: 4975 | E36: 11 | F36: 4980 | K36: 0 | L36: 111
A37: 11 | B37: 5138 | C37: 11 | D37: 5144 | E37: 11 | F37: 5162 | K37: 0 | L37: 111
A38: 11 | B38: 5312 | C38: 11 | D38: 5317 | E38: 11 | F38: 5324 | K38: 0 | L38: 111
A39: 11 | B39: 5500 | C39: 11 | D39: 5508 | E39: 11 | F39: 5515 | K39: 0 | L39: 111
A40: 11 | B40: 5715 | C40: 11 | D40: 5719 | E40: 11 | F40: 5725 | K40: 0 | L40: 111
A41: 11 | B41: 5886 | C41: 11 | D41: 5896 | E41: 11 | F41: 5917 | K41: 0 | L41: 111
A42: 11 | B42: 6120 | C42: 11 | D42: 6124 | E42: 11 | F42: 6130 | K42: 0 | L42: 111
A43: 11 | B43: 6270 | C43: 11 | D43: 6274 | E43: 11 | F43: 6287 | K43: 0 | L43: 111
A44: 11 | B44: 6441 | C44: 11 | D44: 6443 | E44: 11 | F44: 6478 | K44: 0 | L44: 111
A45: 11 | B45: 6583 | C45: 11 | D45: 6589 | E45: 11 | F45: 6596 | K45: 0 | L45: 111
A46: 11 | B46: 6697 | C46: 11 | D46: 6705 | E46: 11 | F46: 6715 | K46: 0 | L46: 111
A47: 11 | B47: 6898 | C47: 11 | D47: 6906 | E47: 11 | F47: 6915 | K47: 0 | L47: 111
A48: 11 | B48: 7051 | C48: 11 | D48: 7057 | E48: 11 | F48: 7064 | K48: 1 | L48: 111

Sheet !M708A0D.ust
A1: Report for:!M708A0D.ust
A2: Date: | B2: <date>
A3: Hen: | B3: <hen> | F3: Correct Sequence | G3: =Start!J2 -> 111 | P3: Total Sequences in Data | Q3: =4994-COUNTBLANK(L7:L5000) -> 40 | V3: Total Sequences in Block Data | W3: =COUNTA(L7:L13) -> 7 | AA3: Total Sequences in Block Data | AB3: =COUNTA(L14:L19) -> 6 | AF3: Total Sequences in Block Data | AG3: =COUNTA(L20:L26) -> 7 | AK3: Total Sequences in Block Data | AL3: =COUNTA(L27:L33) -> 7 | AP3: Total Sequences in Block Data | AQ3: =COUNTA(L34:L39) -> 6 | AU3: Total Sequences in Block Data | AV3: =COUNTA(L40:L46) -> 7
P4: Total Sequences in Summary | Q4: =SUM(O7:O14) -> 40 | V4: Total Sequences in Block Summary | W4: =SUM(U7:U14) -> 7 | AA4: Total Sequences in Block Summary | AB4: =SUM(Z7:Z14) -> 6 | AF4: Total Sequences in Block Summary | AG4: =SUM(AE7:AE14) -> 7 | AK4: Total Sequences in Block Summary | AL4: =SUM(AJ7:AJ14) -> 7 | AP4: Total Sequences in Block Summary | AQ4: =SUM(AO7:AO14) -> 6 | AU4: Total Sequences in Block Summary | AV4: =SUM(AT7:AT14) -> 7
T5: Block 1 | Y5: Block 2 | AD5: Block 3 | AI5: Block 4 | AN5: Block 5 | AS5: Block 6
A6: Sequence Component 1 | B6: Time 1 | C6: Sequence Component 2 | D6: Time 2 | E6: Sequence Component 3 | F6: Time 3 | G6: Sequence Component 4 | H6: Time 4 | I6: Sequence Component 5 | J6: Time 5 | K6: Correct? 0=No 1=Yes | L6: Sequence | N6: Frequency | P6: Relative Frequency | Q6: Variability | T6: Frequency | V6: Relative Frequency | W6: Variability | Y6: Frequency | AA6: Relative Frequency | AB6: Variability | AD6: Frequency | AF6: Relative Frequency | AG6: Variability | AI6: Frequency | AK6: Relative Frequency | AL6: Variability | AN6: Frequency | AP6: Relative Frequency | AQ6: Variability | AS6: Frequency | AU6: Relative Frequency | AV6: Variability
A7: 11 | B7: 4 | C7: 11 | D7: 9 | E7: 11 | F7: 13 | K7: 0 | L7: 111 | N7: 111 | O7: =COUNTIF($L$7:$L$500,N7) -> 40 | P7: =O7/$Q$4 -> 1 | Q7: =IF(P7=0,0,(P7*((LOG(P7))/LOG(2)))) -> 0 | T7: =N7 -> 111 | U7: =COUNTIF(L7:L13,T7) -> 7 | Y7: =N7 -> 111 | Z7: =COUNTIF(L14:L19,Y7) -> 6 | AD7: =N7 -> 111 | AE7: =COUNTIF(L20:L26,AD7) -> 7 | AI7: =N7 -> 111 | AJ7: =COUNTIF(L27:L33,AI7) -> 7 | AN7: =N7 -> 111 | AO7: =COUNTIF(L34:L39,AN7) -> 6 | AS7: =N7 -> 111 | AT7: =COUNTIF(L40:L46,AS7) -> 7
A8: 11 | B8: 151 | C8: 11 | D8: 158 | E8: 11 | F8: 167 | K8: 0 | L8: 111 | N8: 112 | O8: =COUNTIF($L$7:$L$500,N8) -> 0 | P8: =O8/$Q$4 -> 0 | Q8: =IF(P8=0,0,(P8*((LOG(P8))/LOG(2)))) -> 0 | T8: =N8 -> 112 | U8: =COUNTIF(L7:L13,T8) -> 0 | V8: =U8/(W4-U7) ->  | W8: =IF(V8=0,0,(V8*((LOG(V8))/LOG(2)))) ->  | Y8: =N8 -> 112 | Z8: =COUNTIF(L14:L19,Y8) -> 0 | AA8: =Z8/(AB4-Z7) ->  | AB8: =IF(AA8=0,0,(AA8*((LOG(AA8))/LOG(2)))) ->  | AD8: =N8 -> 112 | AE8: =COUNTIF(L20:L26,AD8) -> 0 | AF8: =AE8/(AG4-AE7) ->  | AG8: =IF(AF8=0,0,(AF8*((LOG(AF8))/LOG(2)))) ->  | AI8: =N8 -> 112 | AJ8: =COUNTIF(L27:L33,AI8) -> 0 | AK8: =AJ8/(AL4-AJ7) ->  | AL8: =IF(AK8=0,0,(AK8*((LOG(AK8))/LOG(2)))) ->  | AN8: =N8 -> 112 | AO8: =COUNTIF(L34:L39,AN8) -> 0 | AP8: =AO8/(AQ4-AO7) ->  | AQ8: =IF(AP8=0,0,(AP8*((LOG(AP8))/LOG(2)))) ->  | AS8: =N8 -> 112 | AT8: =COUNTIF(L40:L46,AS8) -> 0 | AU8: =AT8/(AV4-AT7) ->  | AV8: =IF(AU8=0,0,(AU8*((LOG(AU8))/LOG(2)))) -> 
A9: 11 | B9: 284 | C9: 11 | D9: 288 | E9: 11 | F9: 297 | K9: 0 | L9: 111 | N9: 121 | O9: =COUNTIF($L$7:$L$500,N9) -> 0 | P9: =O9/$Q$4 -> 0 | Q9: =IF(P9=0,0,(P9*((LOG(P9))/LOG(2)))) -> 0 | T9: =N9 -> 121 | U9: =COUNTIF(L7:L13,T9) -> 0 | V9: =U9/(W4-U7) ->  | W9: =IF(V9=0,0,(V9*((LOG(V9))/LOG(2)))) ->  | Y9: =N9 -> 121 | Z9: =COUNTIF(L14:L19,Y9) -> 0 | AA9: =Z9/(AB4-Z7) ->  | AB9: =IF(AA9=0,0,(AA9*((LOG(AA9))/LOG(2)))) ->  | AD9: =N9 -> 121 | AE9: =COUNTIF(L20:L26,AD9) -> 0 | AF9: =AE9/(AG4-AE7) ->  | AG9: =IF(AF9=0,0,(AF9*((LOG(AF9))/LOG(2)))) ->  | AI9: =N9 -> 121 | AJ9: =COUNTIF(L27:L33,AI9) -> 0 | AK9: =AJ9/(AL4-AJ7) ->  | AL9: =IF(AK9=0,0,(AK9*((LOG(AK9))/LOG(2)))) ->  | AN9: =N9 -> 121 | AO9: =COUNTIF(L34:L39,AN9) -> 0 | AP9: =AO9/(AQ4-AO7) ->  | AQ9: =IF(AP9=0,0,(AP9*((LOG(AP9))/LOG(2)))) ->  | AS9: =N9 -> 121 | AT9: =COUNTIF(L40:L46,AS9) -> 0 | AU9: =AT9/(AV4-AT7) ->  | AV9: =IF(AU9=0,0,(AU9*((LOG(AU9))/LOG(2)))) -> 
A10: 11 | B10: 460 | C10: 11 | D10: 466 | E10: 11 | F10: 474 | K10: 0 | L10: 111 | N10: 122 | O10: =COUNTIF($L$7:$L$500,N10) -> 0 | P10: =O10/$Q$4 -> 0 | Q10: =IF(P10=0,0,(P10*((LOG(P10))/LOG(2)))) -> 0 | T10: =N10 -> 122 | U10: =COUNTIF(L7:L13,T10) -> 0 | V10: =U10/(W4-U7) ->  | W10: =IF(V10=0,0,(V10*((LOG(V10))/LOG(2)))) ->  | Y10: =N10 -> 122 | Z10: =COUNTIF(L14:L19,Y10) -> 0 | AA10: =Z10/(AB4-Z7) ->  | AB10: =IF(AA10=0,0,(AA10*((LOG(AA10))/LOG(2)))) ->  | AD10: =N10 -> 122 | AE10: =COUNTIF(L20:L26,AD10) -> 0 | AF10: =AE10/(AG4-AE7) ->  | AG10: =IF(AF10=0,0,(AF10*((LOG(AF10))/LOG(2)))) ->  | AI10: =N10 -> 122 | AJ10: =COUNTIF(L27:L33,AI10) -> 0 | AK10: =AJ10/(AL4-AJ7) ->  | AL10: =IF(AK10=0,0,(AK10*((LOG(AK10))/LOG(2)))) ->  | AN10: =N10 -> 122 | AO10: =COUNTIF(L34:L39,AN10) -> 0 | AP10: =AO10/(AQ4-AO7) ->  | AQ10: =IF(AP10=0,0,(AP10*((LOG(AP10))/LOG(2)))) ->  | AS10: =N10 -> 122 | AT10: =COUNTIF(L40:L46,AS10) -> 0 | AU10: =AT10/(AV4-AT7) ->  | AV10: =IF(AU10=0,0,(AU10*((LOG(AU10))/LOG(2)))) -> 
A11: 11 | B11: 601 | C11: 11 | D11: 607 | E11: 11 | F11: 612 | K11: 0 | L11: 111 | N11: 211 | O11: =COUNTIF($L$7:$L$500,N11) -> 0 | P11: =O11/$Q$4 -> 0 | Q11: =IF(P11=0,0,(P11*((LOG(P11))/LOG(2)))) -> 0 | T11: =N11 -> 211 | U11: =COUNTIF(L7:L13,T11) -> 0 | V11: =U11/(W4-U7) ->  | W11: =IF(V11=0,0,(V11*((LOG(V11))/LOG(2)))) ->  | Y11: =N11 -> 211 | Z11: =COUNTIF(L14:L19,Y11) -> 0 | AA11: =Z11/(AB4-Z7) ->  | AB11: =IF(AA11=0,0,(AA11*((LOG(AA11))/LOG(2)))) ->  | AD11: =N11 -> 211 | AE11: =COUNTIF(L20:L26,AD11) -> 0 | AF11: =AE11/(AG4-AE7) ->  | AG11: =IF(AF11=0,0,(AF11*((LOG(AF11))/LOG(2)))) ->  | AI11: =N11 -> 211 | AJ11: =COUNTIF(L27:L33,AI11) -> 0 | AK11: =AJ11/(AL4-AJ7) ->  | AL11: =IF(AK11=0,0,(AK11*((LOG(AK11))/LOG(2)))) ->  | AN11: =N11 -> 211 | AO11: =COUNTIF(L34:L39,AN11) -> 0 | AP11: =AO11/(AQ4-AO7) ->  | AQ11: =IF(AP11=0,0,(AP11*((LOG(AP11))/LOG(2)))) ->  | AS11: =N11 -> 211 | AT11: =COUNTIF(L40:L46,AS11) -> 0 | AU11: =AT11/(AV4-AT7) ->  | AV11: =IF(AU11=0,0,(AU11*((LOG(AU11))/LOG(2)))) -> 
A12: 11 | B12: 849 | C12: 11 | D12: 857 | E12: 11 | F12: 880 | K12: 0 | L12: 111 | N12: 212 | O12: =COUNTIF($L$7:$L$500,N12) -> 0 | P12: =O12/$Q$4 -> 0 | Q12: =IF(P12=0,0,(P12*((LOG(P12))/LOG(2)))) -> 0 | T12: =N12 -> 212 | U12: =COUNTIF(L7:L13,T12) -> 0 | V12: =U12/(W4-U7) ->  | W12: =IF(V12=0,0,(V12*((LOG(V12))/LOG(2)))) ->  | Y12: =N12 -> 212 | Z12: =COUNTIF(L14:L19,Y12) -> 0 | AA12: =Z12/(AB4-Z7) ->  | AB12: =IF(AA12=0,0,(AA12*((LOG(AA12))/LOG(2)))) ->  | AD12: =N12 -> 212 | AE12: =COUNTIF(L20:L26,AD12) -> 0 | AF12: =AE12/(AG4-AE7) ->  | AG12: =IF(AF12=0,0,(AF12*((LOG(AF12))/LOG(2)))) ->  | AI12: =N12 -> 212 | AJ12: =COUNTIF(L27:L33,AI12) -> 0 | AK12: =AJ12/(AL4-AJ7) ->  | AL12: =IF(AK12=0,0,(AK12*((LOG(AK12))/LOG(2)))) ->  | AN12: =N12 -> 212 | AO12: =COUNTIF(L34:L39,AN12) -> 0 | AP12: =AO12/(AQ4-AO7) ->  | AQ12: =IF(AP12=0,0,(AP12*((LOG(AP12))/LOG(2)))) ->  | AS12: =N12 -> 212 | AT12: =COUNTIF(L40:L46,AS12) -> 0 | AU12: =AT12/(AV4-AT7) ->  | AV12: =IF(AU12=0,0,(AU12*((LOG(AU12))/LOG(2)))) -> 
A13: 11 | B13: 1044 | C13: 11 | D13: 1050 | E13: 11 | F13: 1054 | K13: 0 | L13: 111 | N13: 221 | O13: =COUNTIF($L$7:$L$500,N13) -> 0 | P13: =O13/$Q$4 -> 0 | Q13: =IF(P13=0,0,(P13*((LOG(P13))/LOG(2)))) -> 0 | T13: =N13 -> 221 | U13: =COUNTIF(L7:L13,T13) -> 0 | V13: =U13/(W4-U7) ->  | W13: =IF(V13=0,0,(V13*((LOG(V13))/LOG(2)))) ->  | Y13: =N13 -> 221 | Z13: =COUNTIF(L14:L19,Y13) -> 0 | AA13: =Z13/(AB4-Z7) ->  | AB13: =IF(AA13=0,0,(AA13*((LOG(AA13))/LOG(2)))) ->  | AD13: =N13 -> 221 | AE13: =COUNTIF(L20:L26,AD13) -> 0 | AF13: =AE13/(AG4-AE7) ->  | AG13: =IF(AF13=0,0,(AF13*((LOG(AF13))/LOG(2)))) ->  | AI13: =N13 -> 221 | AJ13: =COUNTIF(L27:L33,AI13) -> 0 | AK13: =AJ13/(AL4-AJ7) ->  | AL13: =IF(AK13=0,0,(AK13*((LOG(AK13))/LOG(2)))) ->  | AN13: =N13 -> 221 | AO13: =COUNTIF(L34:L39,AN13) -> 0 | AP13: =AO13/(AQ4-AO7) ->  | AQ13: =IF(AP13=0,0,(AP13*((LOG(AP13))/LOG(2)))) ->  | AS13: =N13 -> 221 | AT13: =COUNTIF(L40:L46,AS13) -> 0 | AU13: =AT13/(AV4-AT7) ->  | AV13: =IF(AU13=0,0,(AU13*((LOG(AU13))/LOG(2)))) -> 
A14: 11 | B14: 1320 | C14: 11 | D14: 1326 | E14: 11 | F14: 1340 | K14: 0 | L14: 111 | N14: 222 | O14: =COUNTIF($L$7:$L$500,N14) -> 0 | P14: =O14/$Q$4 -> 0 | Q14: =IF(P14=0,0,(P14*((LOG(P14))/LOG(2)))) -> 0 | T14: =N14 -> 222 | U14: =COUNTIF(L7:L13,T14) -> 0 | V14: =U14/(W4-U7) ->  | W14: =IF(V14=0,0,(V14*((LOG(V14))/LOG(2)))) ->  | Y14: =N14 -> 222 | Z14: =COUNTIF(L14:L19,Y14) -> 0 | AA14: =Z14/(AB4-Z7) ->  | AB14: =IF(AA14=0,0,(AA14*((LOG(AA14))/LOG(2)))) ->  | AD14: =N14 -> 222 | AE14: =COUNTIF(L20:L26,AD14) -> 0 | AF14: =AE14/(AG4-AE7) ->  | AG14: =IF(AF14=0,0,(AF14*((LOG(AF14))/LOG(2)))) ->  | AI14: =N14 -> 222 | AJ14: =COUNTIF(L27:L33,AI14) -> 0 | AK14: =AJ14/(AL4-AJ7) ->  | AL14: =IF(AK14=0,0,(AK14*((LOG(AK14))/LOG(2)))) ->  | AN14: =N14 -> 222 | AO14: =COUNTIF(L34:L39,AN14) -> 0 | AP14: =AO14/(AQ4-AO7) ->  | AQ14: =IF(AP14=0,0,(AP14*((LOG(AP14))/LOG(2)))) ->  | AS14: =N14 -> 222 | AT14: =COUNTIF(L40:L46,AS14) -> 0 | AU14: =AT14/(AV4-AT7) ->  | AV14: =IF(AU14=0,0,(AU14*((LOG(AU14))/LOG(2)))) -> 
A15: 11 | B15: 1529 | C15: 11 | D15: 1534 | E15: 11 | F15: 1544 | K15: 0 | L15: 111 | P15: =SUM(P7:P14) -> 1 | Q15: =-SUM(Q7:Q14) -> 0 | V15: =SUM(V7:V14) ->  | W15: =-SUM(W7:W14) ->  | AA15: =SUM(AA7:AA14) ->  | AB15: =-SUM(AB7:AB14) ->  | AF15: =SUM(AF7:AF14) ->  | AG15: =-SUM(AG7:AG14) ->  | AK15: =SUM(AK7:AK14) ->  | AL15: =-SUM(AL7:AL14) ->  | AP15: =SUM(AP7:AP14) ->  | AQ15: =-SUM(AQ7:AQ14) ->  | AU15: =SUM(AU7:AU14) ->  | AV15: =-SUM(AV7:AV14) -> 
A16: 11 | B16: 1714 | C16: 11 | D16: 1720 | E16: 11 | F16: 1727 | K16: 0 | L16: 111 | P16: U= | Q16: =Q15/(LOG(Q4)/LOG(2)) -> 0 | V16: U1= | W16: =W15/(LOG(W4)/LOG(2)) ->  | AA16: U2= | AB16: =AB15/(LOG(AB4)/LOG(2)) ->  | AF16: U3= | AG16: =AG15/(LOG(AG4)/LOG(2)) ->  | AK16: U4= | AL16: =AL15/(LOG(AL4)/LOG(2)) ->  | AP16: U5= | AQ16: =AQ15/(LOG(AQ4)/LOG(2)) ->  | AU16: U6= | AV16: =AV15/(LOG(AV4)/LOG(2)) -> 
A17: 11 | B17: 1865 | C17: 11 | D17: 1871 | E17: 11 | F17: 1877 | K17: 0 | L17: 111
A18: 11 | B18: 2041 | C18: 11 | D18: 2047 | E18: 11 | F18: 2053 | K18: 0 | L18: 111
A19: 11 | B19: 2238 | C19: 11 | D19: 2245 | E19: 11 | F19: 2252 | K19: 0 | L19: 111 | N19: Total Target Seq
A20: 11 | B20: 2446 | C20: 11 | D20: 2456 | E20: 11 | F20: 2468 | K20: 0 | L20: 111 | N20: =COUNTIF(L7:L46,G3) -> 40 | P20: 7 | Q20: 6 | R20: 7 | S20: 7 | T20: 6 | U20: 7
A21: 11 | B21: 2612 | C21: 11 | D21: 2625 | E21: 11 | F21: 2640 | K21: 0 | L21: 111 | P21: % of reinforcement given in 6 equal intervals based on number of trials
A22: 11 | B22: 2883 | C22: 11 | D22: 2887 | E22: 11 | F22: 2892 | K22: 0 | L22: 111 | P22: %_1 | Q22: %_2 | R22: %_3 | S22: %_4 | T22: %_5 | U22: %_6
A23: 11 | B23: 3042 | C23: 11 | D23: 3046 | E23: 11 | F23: 3054 | K23: 0 | L23: 111 | O23: target sequence | P23: =$G$3 -> 111 | Q23: =$G$3 -> 111 | R23: =$G$3 -> 111 | S23: =$G$3 -> 111 | T23: =$G$3 -> 111 | U23: =$G$3 -> 111
A24: 11 | B24: 3193 | C24: 11 | D24: 3198 | E24: 11 | F24: 3205 | K24: 0 | L24: 111 | O24: total reinforcement | P24: =U7 -> 7 | Q24: =Z7 -> 6 | R24: =AE7 -> 7 | S24: =AJ7 -> 7 | T24: =AO7 -> 6 | U24: =AT7 -> 7
A25: 11 | B25: 3365 | C25: 11 | D25: 3372 | E25: 11 | F25: 3377 | K25: 0 | L25: 111 | O25: % target
A26: 11 | B26: 3552 | C26: 11 | D26: 3557 | E26: 11 | F26: 3564 | K26: 0 | L26: 111 | O26: CCRF
A27: 11 | B27: 3751 | C27: 11 | D27: 3756 | E27: 11 | F27: 3763 | K27: 0 | L27: 111 | O27: % CCRf
A28: 11 | B28: 3959 | C28: 11 | D28: 3965 | E28: 11 | F28: 3985 | K28: 0 | L28: 111 | O28: average response rate | P28: =F13/P20 -> 150.5714286 | Q28: =(F19-F13)/Q20 -> 199.6666667 | R28: =(F26-F19)/R20 -> 187.4285714 | S28: =(F33-F26)/S20 -> 201.1428571 | T28: =(F39-F33)/T20 -> 232.8333333 | U28: =(F46-F39)/U20 -> 250.7142857
A29: 11 | B29: 4165 | C29: 11 | D29: 4170 | E29: 11 | F29: 4176 | K29: 0 | L29: 111
A30: 11 | B30: 4359 | C30: 11 | D30: 4363 | E30: 11 | F30: 4370 | K30: 0 | L30: 111
A31: 11 | B31: 4542 | C31: 11 | D31: 4546 | E31: 11 | F31: 4552 | K31: 0 | L31: 111
A32: 11 | B32: 4698 | C32: 11 | D32: 4704 | E32: 11 | F32: 4712 | K32: 0 | L32: 111
A33: 11 | B33: 4942 | C33: 11 | D33: 4947 | E33: 11 | F33: 4972 | K33: 0 | L33: 111
A34: 11 | B34: 5137 | C34: 11 | D34: 5141 | E34: 11 | F34: 5146 | K34: 0 | L34: 111
A35: 11 | B35: 5426 | C35: 11 | D35: 5432 | E35: 11 | F35: 5439 | K35: 0 | L35: 111
A36: 11 | B36: 5648 | C36: 11 | D36: 5653 | E36: 11 | F36: 5662 | K36: 0 | L36: 111
A37: 11 | B37: 5856 | C37: 11 | D37: 5862 | E37: 11 | F37: 5868 | K37: 0 | L37: 111
A38: 11 | B38: 6145 | C38: 11 | D38: 6151 | E38: 11 | F38: 6156 | K38: 0 | L38: 111
A39: 11 | B39: 6357 | C39: 11 | D39: 6360 | E39: 11 | F39: 6369 | K39: 0 | L39: 111
A40: 11 | B40: 6637 | C40: 11 | D40: 6642 | E40: 11 | F40: 6648 | K40: 0 | L40: 111
A41: 11 | B41: 6927 | C41: 11 | D41: 6931 | E41: 11 | F41: 6938 | K41: 0 | L41: 111
A42: 11 | B42: 7153 | C42: 11 | D42: 7157 | E42: 11 | F42: 7163 | K42: 0 | L42: 111
A43: 11 | B43: 7430 | C43: 11 | D43: 7435 | E43: 11 | F43: 7442 | K43: 0 | L43: 111
A44: 11 | B44: 7717 | C44: 11 | D44: 7722 | E44: 11 | F44: 7727 | K44: 0 | L44: 111
A45: 11 | B45: 7867 | C45: 11 | D45: 7871 | E45: 11 | F45: 7874 | K45: 0 | L45: 111
A46: 11 | B46: 8115 | C46: 11 | D46: 8119 | E46: 11 | F46: 8124 | K46: 1 | L46: 111

Sheet !M709A2D.ust
A1: Report for:!M709A2D.ust
A2: Date: | B2: <date>
A3: Hen: | B3: <hen> | F3: Correct Sequence | G3: =Start!J2 -> 111 | P3: Total Sequences in Data | Q3: =4994-COUNTBLANK(L7:L5000) -> 43 | V3: Total Sequences in Block Data | W3: =COUNTA(L7:L13) -> 7 | AA3: Total Sequences in Block Data | AB3: =COUNTA(L14:L20) -> 7 | AF3: Total Sequences in Block Data | AG3: =COUNTA(L21:L28) -> 8 | AK3: Total Sequences in Block Data | AL3: =COUNTA(L29:L35) -> 7 | AP3: Total Sequences in Block Data | AQ3: =COUNTA(L36:L42) -> 7 | AU3: Total Sequences in Block Data | AV3: =COUNTA(L43:L49) -> 7
P4: Total Sequences in Summary | Q4: =SUM(O7:O14) -> 43 | V4: Total Sequences in Block Summary | W4: =SUM(U7:U14) -> 7 | AA4: Total Sequences in Block Summary | AB4: =SUM(Z7:Z14) -> 7 | AF4: Total Sequences in Block Summary | AG4: =SUM(AE7:AE14) -> 8 | AK4: Total Sequences in Block Summary | AL4: =SUM(AJ7:AJ14) -> 7 | AP4: Total Sequences in Block Summary | AQ4: =SUM(AO7:AO14) -> 7 | AU4: Total Sequences in Block Summary | AV4: =SUM(AT7:AT14) -> 7
T5: Block 1 | Y5: Block 2 | AD5: Block 3 | AI5: Block 4 | AN5: Block 5 | AS5: Block 6
A6: Sequence Component 1 | B6: Time 1 | C6: Sequence Component 2 | D6: Time 2 | E6: Sequence Component 3 | F6: Time 3 | G6: Sequence Component 4 | H6: Time 4 | I6: Sequence Component 5 | J6: Time 5 | K6: Correct? 0=No 1=Yes | L6: Sequence | N6: Frequency | P6: Relative Frequency | Q6: Variability | T6: Frequency | V6: Relative Frequency | W6: Variability | Y6: Frequency | AA6: Relative Frequency | AB6: Variability | AD6: Frequency | AF6: Relative Frequency | AG6: Variability | AI6: Frequency | AK6: Relative Frequency | AL6: Variability | AN6: Frequency | AP6: Relative Frequency | AQ6: Variability | AS6: Frequency | AU6: Relative Frequency | AV6: Variability
A7: 11 | B7: 5 | C7: 11 | D7: 8 | E7: 11 | F7: 14 | K7: 0 | L7: 111 | N7: 111 | O7: =COUNTIF($L$7:$L$500,N7) -> 40 | P7: =O7/$Q$4 -> 0.9302325581 | Q7: =IF(P7=0,0,(P7*((LOG(P7))/LOG(2)))) -> -0.09705735797 | T7: =N7 -> 111 | U7: =COUNTIF(L7:L13,T7) -> 7 | Y7: =N7 -> 111 | Z7: =COUNTIF(L14:L20,Y7) -> 7 | AD7: =N7 -> 111 | AE7: =COUNTIF(L21:L28,AD7) -> 8 | AI7: =N7 -> 111 | AJ7: =COUNTIF(L29:L35,AI7) -> 5 | AN7: =N7 -> 111 | AO7: =COUNTIF(L36:L42,AN7) -> 6 | AS7: =N7 -> 111 | AT7: =COUNTIF(L43:L49,AS7) -> 7
A8: 11 | B8: 128 | C8: 11 | D8: 133 | E8: 11 | F8: 139 | K8: 0 | L8: 111 | N8: 112 | O8: =COUNTIF($L$7:$L$500,N8) -> 0 | P8: =O8/$Q$4 -> 0 | Q8: =IF(P8=0,0,(P8*((LOG(P8))/LOG(2)))) -> 0 | T8: =N8 -> 112 | U8: =COUNTIF(L7:L13,T8) -> 0 | V8: =U8/(W4-U7) ->  | W8: =IF(V8=0,0,(V8*((LOG(V8))/LOG(2)))) ->  | Y8: =N8 -> 112 | Z8: =COUNTIF(L14:L20,Y8) -> 0 | AA8: =Z8/(AB4-Z7) ->  | AB8: =IF(AA8=0,0,(AA8*((LOG(AA8))/LOG(2)))) ->  | AD8: =N8 -> 112 | AE8: =COUNTIF(L21:L28,AD8) -> 0 | AF8: =AE8/(AG4-AE7) ->  | AG8: =IF(AF8=0,0,(AF8*((LOG(AF8))/LOG(2)))) ->  | AI8: =N8 -> 112 | AJ8: =COUNTIF(L29:L35,AI8) -> 0 | AK8: =AJ8/(AL4-AJ7) -> 0 | AL8: =IF(AK8=0,0,(AK8*((LOG(AK8))/LOG(2)))) -> 0 | AN8: =N8 -> 112 | AO8: =COUNTIF(L36:L42,AN8) -> 0 | AP8: =AO8/(AQ4-AO7) -> 0 | AQ8: =IF(AP8=0,0,(AP8*((LOG(AP8))/LOG(2)))) -> 0 | AS8: =N8 -> 112 | AT8: =COUNTIF(L43:L49,AS8) -> 0 | AU8: =AT8/(AV4-AT7) ->  | AV8: =IF(AU8=0,0,(AU8*((LOG(AU8))/LOG(2)))) -> 
A9: 11 | B9: 270 | C9: 11 | D9: 275 | E9: 11 | F9: 281 | K9: 0 | L9: 111 | N9: 121 | O9: =COUNTIF($L$7:$L$500,N9) -> 0 | P9: =O9/$Q$4 -> 0 | Q9: =IF(P9=0,0,(P9*((LOG(P9))/LOG(2)))) -> 0 | T9: =N9 -> 121 | U9: =COUNTIF(L7:L13,T9) -> 0 | V9: =U9/(W4-U7) ->  | W9: =IF(V9=0,0,(V9*((LOG(V9))/LOG(2)))) ->  | Y9: =N9 -> 121 | Z9: =COUNTIF(L14:L20,Y9) -> 0 | AA9: =Z9/(AB4-Z7) ->  | AB9: =IF(AA9=0,0,(AA9*((LOG(AA9))/LOG(2)))) ->  | AD9: =N9 -> 121 | AE9: =COUNTIF(L21:L28,AD9) -> 0 | AF9: =AE9/(AG4-AE7) ->  | AG9: =IF(AF9=0,0,(AF9*((LOG(AF9))/LOG(2)))) ->  | AI9: =N9 -> 121 | AJ9: =COUNTIF(L29:L35,AI9) -> 0 | AK9: =AJ9/(AL4-AJ7) -> 0 | AL9: =IF(AK9=0,0,(AK9*((LOG(AK9))/LOG(2)))) -> 0 | AN9: =N9 -> 121 | AO9: =COUNTIF(L36:L42,AN9) -> 0 | AP9: =AO9/(AQ4-AO7) -> 0 | AQ9: =IF(AP9=0,0,(AP9*((LOG(AP9))/LOG(2)))) -> 0 | AS9: =N9 -> 121 | AT9: =COUNTIF(L43:L49,AS9) -> 0 | AU9: =AT9/(AV4-AT7) ->  | AV9: =IF(AU9=0,0,(AU9*((LOG(AU9))/LOG(2)))) -> 
A10: 11 | B10: 455 | C10: 11 | D10: 461 | E10: 11 | F10: 470 | K10: 0 | L10: 111 | N10: 122 | O10: =COUNTIF($L$7:$L$500,N10) -> 1 | P10: =O10/$Q$4 -> 0.02325581395 | Q10: =IF(P10=0,0,(P10*((LOG(P10))/LOG(2)))) -> -0.1261922036 | T10: =N10 -> 122 | U10: =COUNTIF(L7:L13,T10) -> 0 | V10: =U10/(W4-U7) ->  | W10: =IF(V10=0,0,(V10*((LOG(V10))/LOG(2)))) ->  | Y10: =N10 -> 122 | Z10: =COUNTIF(L14:L20,Y10) -> 0 | AA10: =Z10/(AB4-Z7) ->  | AB10: =IF(AA10=0,0,(AA10*((LOG(AA10))/LOG(2)))) ->  | AD10: =N10 -> 122 | AE10: =COUNTIF(L21:L28,AD10) -> 0 | AF10: =AE10/(AG4-AE7) ->  | AG10: =IF(AF10=0,0,(AF10*((LOG(AF10))/LOG(2)))) ->  | AI10: =N10 -> 122 | AJ10: =COUNTIF(L29:L35,AI10) -> 1 | AK10: =AJ10/(AL4-AJ7) -> 0.5 | AL10: =IF(AK10=0,0,(AK10*((LOG(AK10))/LOG(2)))) -> -0.5 | AN10: =N10 -> 122 | AO10: =COUNTIF(L36:L42,AN10) -> 0 | AP10: =AO10/(AQ4-AO7) -> 0 | AQ10: =IF(AP10=0,0,(AP10*((LOG(AP10))/LOG(2)))) -> 0 | AS10: =N10 -> 122 | AT10: =COUNTIF(L43:L49,AS10) -> 0 | AU10: =AT10/(AV4-AT7) ->  | AV10: =IF(AU10=0,0,(AU10*((LOG(AU10))/LOG(2)))) -> 
A11: 11 | B11: 675 | C11: 11 | D11: 679 | E11: 11 | F11: 686 | K11: 0 | L11: 111 | N11: 211 | O11: =COUNTIF($L$7:$L$500,N11) -> 0 | P11: =O11/$Q$4 -> 0 | Q11: =IF(P11=0,0,(P11*((LOG(P11))/LOG(2)))) -> 0 | T11: =N11 -> 211 | U11: =COUNTIF(L7:L13,T11) -> 0 | V11: =U11/(W4-U7) ->  | W11: =IF(V11=0,0,(V11*((LOG(V11))/LOG(2)))) ->  | Y11: =N11 -> 211 | Z11: =COUNTIF(L14:L20,Y11) -> 0 | AA11: =Z11/(AB4-Z7) ->  | AB11: =IF(AA11=0,0,(AA11*((LOG(AA11))/LOG(2)))) ->  | AD11: =N11 -> 211 | AE11: =COUNTIF(L21:L28,AD11) -> 0 | AF11: =AE11/(AG4-AE7) ->  | AG11: =IF(AF11=0,0,(AF11*((LOG(AF11))/LOG(2)))) ->  | AI11: =N11 -> 211 | AJ11: =COUNTIF(L29:L35,AI11) -> 0 | AK11: =AJ11/(AL4-AJ7) -> 0 | AL11: =IF(AK11=0,0,(AK11*((LOG(AK11))/LOG(2)))) -> 0 | AN11: =N11 -> 211 | AO11: =COUNTIF(L36:L42,AN11) -> 0 | AP11: =AO11/(AQ4-AO7) -> 0 | AQ11: =IF(AP11=0,0,(AP11*((LOG(AP11))/LOG(2)))) -> 0 | AS11: =N11 -> 211 | AT11: =COUNTIF(L43:L49,AS11) -> 0 | AU11: =AT11/(AV4-AT7) ->  | AV11: =IF(AU11=0,0,(AU11*((LOG(AU11))/LOG(2)))) -> 
A12: 11 | B12: 812 | C12: 11 | D12: 818 | E12: 11 | F12: 824 | K12: 0 | L12: 111 | N12: 212 | O12: =COUNTIF($L$7:$L$500,N12) -> 0 | P12: =O12/$Q$4 -> 0 | Q12: =IF(P12=0,0,(P12*((LOG(P12))/LOG(2)))) -> 0 | T12: =N12 -> 212 | U12: =COUNTIF(L7:L13,T12) -> 0 | V12: =U12/(W4-U7) ->  | W12: =IF(V12=0,0,(V12*((LOG(V12))/LOG(2)))) ->  | Y12: =N12 -> 212 | Z12: =COUNTIF(L14:L20,Y12) -> 0 | AA12: =Z12/(AB4-Z7) ->  | AB12: =IF(AA12=0,0,(AA12*((LOG(AA12))/LOG(2)))) ->  | AD12: =N12 -> 212 | AE12: =COUNTIF(L21:L28,AD12) -> 0 | AF12: =AE12/(AG4-AE7) ->  | AG12: =IF(AF12=0,0,(AF12*((LOG(AF12))/LOG(2)))) ->  | AI12: =N12 -> 212 | AJ12: =COUNTIF(L29:L35,AI12) -> 0 | AK12: =AJ12/(AL4-AJ7) -> 0 | AL12: =IF(AK12=0,0,(AK12*((LOG(AK12))/LOG(2)))) -> 0 | AN12: =N12 -> 212 | AO12: =COUNTIF(L36:L42,AN12) -> 0 | AP12: =AO12/(AQ4-AO7) -> 0 | AQ12: =IF(AP12=0,0,(AP12*((LOG(AP12))/LOG(2)))) -> 0 | AS12: =N12 -> 212 | AT12: =COUNTIF(L43:L49,AS12) -> 0 | AU12: =AT12/(AV4-AT7) ->  | AV12: =IF(AU12=0,0,(AU12*((LOG(AU12))/LOG(2)))) -> 
A13: 11 | B13: 959 | C13: 11 | D13: 960 | E13: 11 | F13: 966 | K13: 0 | L13: 111 | N13: 221 | O13: =COUNTIF($L$7:$L$500,N13) -> 2 | P13: =O13/$Q$4 -> 0.04651162791 | Q13: =IF(P13=0,0,(P13*((LOG(P13))/LOG(2)))) -> -0.2058727793 | T13: =N13 -> 221 | U13: =COUNTIF(L7:L13,T13) -> 0 | V13: =U13/(W4-U7) ->  | W13: =IF(V13=0,0,(V13*((LOG(V13))/LOG(2)))) ->  | Y13: =N13 -> 221 | Z13: =COUNTIF(L14:L20,Y13) -> 0 | AA13: =Z13/(AB4-Z7) ->  | AB13: =IF(AA13=0,0,(AA13*((LOG(AA13))/LOG(2)))) ->  | AD13: =N13 -> 221 | AE13: =COUNTIF(L21:L28,AD13) -> 0 | AF13: =AE13/(AG4-AE7) ->  | AG13: =IF(AF13=0,0,(AF13*((LOG(AF13))/LOG(2)))) ->  | AI13: =N13 -> 221 | AJ13: =COUNTIF(L29:L35,AI13) -> 1 | AK13: =AJ13/(AL4-AJ7) -> 0.5 | AL13: =IF(AK13=0,0,(AK13*((LOG(AK13))/LOG(2)))) -> -0.5 | AN13: =N13 -> 221 | AO13: =COUNTIF(L36:L42,AN13) -> 1 | AP13: =AO13/(AQ4-AO7) -> 1 | AQ13: =IF(AP13=0,0,(AP13*((LOG(AP13))/LOG(2)))) -> 0 | AS13: =N13 -> 221 | AT13: =COUNTIF(L43:L49,AS13) -> 0 | AU13: =AT13/(AV4-AT7) ->  | AV13: =IF(AU13=0,0,(AU13*((LOG(AU13))/LOG(2)))) -> 
A14: 11 | B14: 1199 | C14: 11 | D14: 1203 | E14: 11 | F14: 1218 | K14: 0 | L14: 111 | N14: 222 | O14: =COUNTIF($L$7:$L$500,N14) -> 0 | P14: =O14/$Q$4 -> 0 | Q14: =IF(P14=0,0,(P14*((LOG(P14))/LOG(2)))) -> 0 | T14: =N14 -> 222 | U14: =COUNTIF(L7:L13,T14) -> 0 | V14: =U14/(W4-U7) ->  | W14: =IF(V14=0,0,(V14*((LOG(V14))/LOG(2)))) ->  | Y14: =N14 -> 222 | Z14: =COUNTIF(L14:L20,Y14) -> 0 | AA14: =Z14/(AB4-Z7) ->  | AB14: =IF(AA14=0,0,(AA14*((LOG(AA14))/LOG(2)))) ->  | AD14: =N14 -> 222 | AE14: =COUNTIF(L21:L28,AD14) -> 0 | AF14: =AE14/(AG4-AE7) ->  | AG14: =IF(AF14=0,0,(AF14*((LOG(AF14))/LOG(2)))) ->  | AI14: =N14 -> 222 | AJ14: =COUNTIF(L29:L35,AI14) -> 0 | AK14: =AJ14/(AL4-AJ7) -> 0 | AL14: =IF(AK14=0,0,(AK14*((LOG(AK14))/LOG(2)))) -> 0 | AN14: =N14 -> 222 | AO14: =COUNTIF(L36:L42,AN14) -> 0 | AP14: =AO14/(AQ4-AO7) -> 0 | AQ14: =IF(AP14=0,0,(AP14*((LOG(AP14))/LOG(2)))) -> 0 | AS14: =N14 -> 222 | AT14: =COUNTIF(L43:L49,AS14) -> 0 | AU14: =AT14/(AV4-AT7) ->  | AV14: =IF(AU14=0,0,(AU14*((LOG(AU14))/LOG(2)))) -> 
A15: 11 | B15: 1398 | C15: 11 | D15: 1403 | E15: 11 | F15: 1409 | K15: 0 | L15: 111 | P15: =SUM(P7:P14) -> 1 | Q15: =-SUM(Q7:Q14) -> 0.4291223409 | V15: =SUM(V7:V14) ->  | W15: =-SUM(W7:W14) ->  | AA15: =SUM(AA7:AA14) ->  | AB15: =-SUM(AB7:AB14) ->  | AF15: =SUM(AF7:AF14) ->  | AG15: =-SUM(AG7:AG14) ->  | AK15: =SUM(AK7:AK14) -> 1 | AL15: =-SUM(AL7:AL14) -> 1 | AP15: =SUM(AP7:AP14) -> 1 | AQ15: =-SUM(AQ7:AQ14) -> 0 | AU15: =SUM(AU7:AU14) ->  | AV15: =-SUM(AV7:AV14) -> 
A16: 11 | B16: 1507 | C16: 11 | D16: 1511 | E16: 11 | F16: 1517 | K16: 0 | L16: 111 | P16: U= | Q16: =Q15/(LOG(Q4)/LOG(2)) -> 0.07908245547 | V16: U1= | W16: =W15/(LOG(W4)/LOG(2)) ->  | AA16: U2= | AB16: =AB15/(LOG(AB4)/LOG(2)) ->  | AF16: U3= | AG16: =AG15/(LOG(AG4)/LOG(2)) ->  | AK16: U4= | AL16: =AL15/(LOG(AL4)/LOG(2)) -> 0.3562071871 | AP16: U5= | AQ16: =AQ15/(LOG(AQ4)/LOG(2)) -> 0 | AU16: U6= | AV16: =AV15/(LOG(AV4)/LOG(2)) -> 
A17: 11 | B17: 1686 | C17: 11 | D17: 1692 | E17: 11 | F17: 1705 | K17: 0 | L17: 111
A18: 11 | B18: 1857 | C18: 11 | D18: 1862 | E18: 11 | F18: 1868 | K18: 0 | L18: 111
A19: 11 | B19: 2047 | C19: 11 | D19: 2053 | E19: 11 | F19: 2072 | K19: 0 | L19: 111 | N19: Total Target Seq
A20: 11 | B20: 2224 | C20: 11 | D20: 2230 | E20: 11 | F20: 2240 | K20: 0 | L20: 111 | N20: =COUNTIF(L7:L49,G3) -> 40 | P20: 7 | Q20: 7 | R20: 8 | S20: 7 | T20: 7 | U20: 7
A21: 11 | B21: 2432 | C21: 11 | D21: 2436 | E21: 11 | F21: 2442 | K21: 0 | L21: 111 | P21: % of reinforcement given in 6 equal intervals based on number of trials
A22: 11 | B22: 2569 | C22: 11 | D22: 2575 | E22: 11 | F22: 2581 | K22: 0 | L22: 111 | P22: %_1 | Q22: %_2 | R22: %_3 | S22: %_4 | T22: %_5 | U22: %_6
A23: 11 | B23: 2717 | C23: 11 | D23: 2723 | E23: 11 | F23: 2729 | K23: 0 | L23: 111 | O23: target sequence | P23: =$G$3 -> 111 | Q23: =$G$3 -> 111 | R23: =$G$3 -> 111 | S23: =$G$3 -> 111 | T23: =$G$3 -> 111 | U23: =$G$3 -> 111
A24: 11 | B24: 2846 | C24: 11 | D24: 2851 | E24: 11 | F24: 2857 | K24: 0 | L24: 111 | O24: total reinforcement | P24: =U7 -> 7 | Q24: =Z7 -> 7 | R24: =AE7 -> 8 | S24: =AJ7 -> 5 | T24: =AO7 -> 6 | U24: =AT7 -> 7
A25: 11 | B25: 2977 | C25: 11 | D25: 2981 | E25: 11 | F25: 2986 | K25: 0 | L25: 111 | O25: % target
A26: 11 | B26: 3096 | C26: 11 | D26: 3103 | E26: 11 | F26: 3108 | K26: 0 | L26: 111 | O26: CCRF
A27: 11 | B27: 3213 | C27: 11 | D27: 3219 | E27: 11 | F27: 3238 | K27: 0 | L27: 111 | O27: % CCRf
A28: 11 | B28: 3365 | C28: 11 | D28: 3371 | E28: 11 | F28: 3377 | K28: 0 | L28: 111 | O28: average response rate | P28: =F13/P20 -> 138 | Q28: =(F20-F13)/Q20 -> 182 | R28: =(F28-F20)/R20 -> 142.125 | S28: =(F35-F28)/S20 -> 132.2857143 | T28: =(F42-F35)/T20 -> 132.5714286 | U28: =(F49-F42)/U20 -> 171.2857143
A29: 11 | B29: 3514 | C29: 11 | D29: 3519 | E29: 11 | F29: 3525 | K29: 0 | L29: 111
A30: 11 | B30: 3647 | C30: 11 | D30: 3652 | E30: 11 | F30: 3668 | K30: 0 | L30: 111
A31: 11 | B31: 3806 | C31: 11 | D31: 3812 | E31: 11 | F31: 3818 | K31: 0 | L31: 111
A32: 11 | B32: 3947 | C32: 11 | D32: 3952 | E32: 11 | F32: 3964 | K32: 0 | L32: 111
A33: 11 | B33: 4067 | C33: 22 | D33: 4080 | E33: 24 | F33: 4083 | K33: 0 | L33: 122
A34: 22 | B34: 4180 | C34: 24 | D34: 4185 | E34: 13 | F34: 4197 | K34: 0 | L34: 221
A35: 11 | B35: 4292 | C35: 11 | D35: 4298 | E35: 11 | F35: 4303 | K35: 0 | L35: 111
A36: 11 | B36: 4423 | C36: 11 | D36: 4428 | E36: 11 | F36: 4434 | K36: 0 | L36: 111
A37: 22 | B37: 4530 | C37: 24 | D37: 4532 | E37: 13 | F37: 4549 | K37: 0 | L37: 221
A38: 11 | B38: 4647 | C38: 11 | D38: 4650 | E38: 11 | F38: 4656 | K38: 0 | L38: 111
A39: 11 | B39: 4758 | C39: 11 | D39: 4764 | E39: 11 | F39: 4770 | K39: 0 | L39: 111
A40: 11 | B40: 4898 | C40: 11 | D40: 4903 | E40: 11 | F40: 4908 | K40: 0 | L40: 111
A41: 11 | B41: 5033 | C41: 11 | D41: 5038 | E41: 11 | F41: 5043 | K41: 0 | L41: 111
A42: 11 | B42: 5219 | C42: 11 | D42: 5224 | E42: 11 | F42: 5231 | K42: 0 | L42: 111
A43: 11 | B43: 5369 | C43: 11 | D43: 5374 | E43: 11 | F43: 5381 | K43: 0 | L43: 111
A44: 11 | B44: 5599 | C44: 11 | D44: 5604 | E44: 11 | F44: 5609 | K44: 0 | L44: 111
A45: 11 | B45: 5742 | C45: 11 | D45: 5749 | E45: 11 | F45: 5754 | K45: 0 | L45: 111
A46: 11 | B46: 5893 | C46: 11 | D46: 5900 | E46: 11 | F46: 5905 | K46: 0 | L46: 111
A47: 11 | B47: 6081 | C47: 11 | D47: 6086 | E47: 11 | F47: 6089 | K47: 0 | L47: 111
A48: 11 | B48: 6248 | C48: 11 | D48: 6252 | E48: 11 | F48: 6257 | K48: 0 | L48: 111
A49: 11 | B49: 6420 | C49: 11 | D49: 6424 | E49: 11 | F49: 6430 | K49: 1 | L49: 111

Sheet !M710A4D.ust
A1: Report for:!M710A4D.ust
A2: Date: | B2: <date>
A3: Hen: | B3: <hen> | F3: Correct Sequence | G3: =Start!J2 -> 111 | P3: Total Sequences in Data | Q3: =4994-COUNTBLANK(L7:L5000) -> 40 | V3: Total Sequences in Block Data | W3: =COUNTA(L7:L13) -> 7 | AA3: Total Sequences in Block Data | AB3: =COUNTA(L14:L19) -> 6 | AF3: Total Sequences in Block Data | AG3: =COUNTA(L20:L26) -> 7 | AK3: Total Sequences in Block Data | AL3: =COUNTA(L27:L33) -> 7 | AP3: Total Sequences in Block Data | AQ3: =COUNTA(L34:L39) -> 6 | AU3: Total Sequences in Block Data | AV3: =COUNTA(L40:L46) -> 7
P4: Total Sequences in Summary | Q4: =SUM(O7:O14) -> 40 | V4: Total Sequences in Block Summary | W4: =SUM(U7:U14) -> 7 | AA4: Total Sequences in Block Summary | AB4: =SUM(Z7:Z14) -> 6 | AF4: Total Sequences in Block Summary | AG4: =SUM(AE7:AE14) -> 7 | AK4: Total Sequences in Block Summary | AL4: =SUM(AJ7:AJ14) -> 7 | AP4: Total Sequences in Block Summary | AQ4: =SUM(AO7:AO14) -> 6 | AU4: Total Sequences in Block Summary | AV4: =SUM(AT7:AT14) -> 7
T5: Block 1 | Y5: Block 2 | AD5: Block 3 | AI5: Block 4 | AN5: Block 5 | AS5: Block 6
A6: Sequence Component 1 | B6: Time 1 | C6: Sequence Component 2 | D6: Time 2 | E6: Sequence Component 3 | F6: Time 3 | G6: Sequence Component 4 | H6: Time 4 | I6: Sequence Component 5 | J6: Time 5 | K6: Correct? 0=No 1=Yes | L6: Sequence | N6: Frequency | P6: Relative Frequency | Q6: Variability | T6: Frequency | V6: Relative Frequency | W6: Variability | Y6: Frequency | AA6: Relative Frequency | AB6: Variability | AD6: Frequency | AF6: Relative Frequency | AG6: Variability | AI6: Frequency | AK6: Relative Frequency | AL6: Variability | AN6: Frequency | AP6: Relative Frequency | AQ6: Variability | AS6: Frequency | AU6: Relative Frequency | AV6: Variability
A7: 11 | B7: 2 | C7: 11 | D7: 11 | E7: 11 | F7: 17 | K7: 0 | L7: 111 | N7: 111 | O7: =COUNTIF($L$7:$L$500,N7) -> 40 | P7: =O7/$Q$4 -> 1 | Q7: =IF(P7=0,0,(P7*((LOG(P7))/LOG(2)))) -> 0 | T7: =N7 -> 111 | U7: =COUNTIF(L7:L13,T7) -> 7 | Y7: =N7 -> 111 | Z7: =COUNTIF(L14:L19,Y7) -> 6 | AD7: =N7 -> 111 | AE7: =COUNTIF(L20:L26,AD7) -> 7 | AI7: =N7 -> 111 | AJ7: =COUNTIF(L27:L33,AI7) -> 7 | AN7: =N7 -> 111 | AO7: =COUNTIF(L34:L39,AN7) -> 6 | AS7: =N7 -> 111 | AT7: =COUNTIF(L40:L46,AS7) -> 7
A8: 11 | B8: 156 | C8: 11 | D8: 159 | E8: 11 | F8: 166 | K8: 0 | L8: 111 | N8: 112 | O8: =COUNTIF($L$7:$L$500,N8) -> 0 | P8: =O8/$Q$4 -> 0 | Q8: =IF(P8=0,0,(P8*((LOG(P8))/LOG(2)))) -> 0 | T8: =N8 -> 112 | U8: =COUNTIF(L7:L13,T8) -> 0 | V8: =U8/(W4-U7) ->  | W8: =IF(V8=0,0,(V8*((LOG(V8))/LOG(2)))) ->  | Y8: =N8 -> 112 | Z8: =COUNTIF(L14:L19,Y8) -> 0 | AA8: =Z8/(AB4-Z7) ->  | AB8: =IF(AA8=0,0,(AA8*((LOG(AA8))/LOG(2)))) ->  | AD8: =N8 -> 112 | AE8: =COUNTIF(L20:L26,AD8) -> 0 | AF8: =AE8/(AG4-AE7) ->  | AG8: =IF(AF8=0,0,(AF8*((LOG(AF8))/LOG(2)))) ->  | AI8: =N8 -> 112 | AJ8: =COUNTIF(L27:L33,AI8) -> 0 | AK8: =AJ8/(AL4-AJ7) ->  | AL8: =IF(AK8=0,0,(AK8*((LOG(AK8))/LOG(2)))) ->  | AN8: =N8 -> 112 | AO8: =COUNTIF(L34:L39,AN8) -> 0 | AP8: =AO8/(AQ4-AO7) ->  | AQ8: =IF(AP8=0,0,(AP8*((LOG(AP8))/LOG(2)))) ->  | AS8: =N8 -> 112 | AT8: =COUNTIF(L40:L46,AS8) -> 0 | AU8: =AT8/(AV4-AT7) ->  | AV8: =IF(AU8=0,0,(AU8*((LOG(AU8))/LOG(2)))) -> 
A9: 11 | B9: 300 | C9: 11 | D9: 303 | E9: 11 | F9: 309 | K9: 0 | L9: 111 | N9: 121 | O9: =COUNTIF($L$7:$L$500,N9) -> 0 | P9: =O9/$Q$4 -> 0 | Q9: =IF(P9=0,0,(P9*((LOG(P9))/LOG(2)))) -> 0 | T9: =N9 -> 121 | U9: =COUNTIF(L7:L13,T9) -> 0 | V9: =U9/(W4-U7) ->  | W9: =IF(V9=0,0,(V9*((LOG(V9))/LOG(2)))) ->  | Y9: =N9 -> 121 | Z9: =COUNTIF(L14:L19,Y9) -> 0 | AA9: =Z9/(AB4-Z7) ->  | AB9: =IF(AA9=0,0,(AA9*((LOG(AA9))/LOG(2)))) ->  | AD9: =N9 -> 121 | AE9: =COUNTIF(L20:L26,AD9) -> 0 | AF9: =AE9/(AG4-AE7) ->  | AG9: =IF(AF9=0,0,(AF9*((LOG(AF9))/LOG(2)))) ->  | AI9: =N9 -> 121 | AJ9: =COUNTIF(L27:L33,AI9) -> 0 | AK9: =AJ9/(AL4-AJ7) ->  | AL9: =IF(AK9=0,0,(AK9*((LOG(AK9))/LOG(2)))) ->  | AN9: =N9 -> 121 | AO9: =COUNTIF(L34:L39,AN9) -> 0 | AP9: =AO9/(AQ4-AO7) ->  | AQ9: =IF(AP9=0,0,(AP9*((LOG(AP9))/LOG(2)))) ->  | AS9: =N9 -> 121 | AT9: =COUNTIF(L40:L46,AS9) -> 0 | AU9: =AT9/(AV4-AT7) ->  | AV9: =IF(AU9=0,0,(AU9*((LOG(AU9))/LOG(2)))) -> 
A10: 11 | B10: 488 | C10: 11 | D10: 494 | E10: 11 | F10: 499 | K10: 0 | L10: 111 | N10: 122 | O10: =COUNTIF($L$7:$L$500,N10) -> 0 | P10: =O10/$Q$4 -> 0 | Q10: =IF(P10=0,0,(P10*((LOG(P10))/LOG(2)))) -> 0 | T10: =N10 -> 122 | U10: =COUNTIF(L7:L13,T10) -> 0 | V10: =U10/(W4-U7) ->  | W10: =IF(V10=0,0,(V10*((LOG(V10))/LOG(2)))) ->  | Y10: =N10 -> 122 | Z10: =COUNTIF(L14:L19,Y10) -> 0 | AA10: =Z10/(AB4-Z7) ->  | AB10: =IF(AA10=0,0,(AA10*((LOG(AA10))/LOG(2)))) ->  | AD10: =N10 -> 122 | AE10: =COUNTIF(L20:L26,AD10) -> 0 | AF10: =AE10/(AG4-AE7) ->  | AG10: =IF(AF10=0,0,(AF10*((LOG(AF10))/LOG(2)))) ->  | AI10: =N10 -> 122 | AJ10: =COUNTIF(L27:L33,AI10) -> 0 | AK10: =AJ10/(AL4-AJ7) ->  | AL10: =IF(AK10=0,0,(AK10*((LOG(AK10))/LOG(2)))) ->  | AN10: =N10 -> 122 | AO10: =COUNTIF(L34:L39,AN10) -> 0 | AP10: =AO10/(AQ4-AO7) ->  | AQ10: =IF(AP10=0,0,(AP10*((LOG(AP10))/LOG(2)))) ->  | AS10: =N10 -> 122 | AT10: =COUNTIF(L40:L46,AS10) -> 0 | AU10: =AT10/(AV4-AT7) ->  | AV10: =IF(AU10=0,0,(AU10*((LOG(AU10))/LOG(2)))) -> 
A11: 11 | B11: 636 | C11: 11 | D11: 642 | E11: 11 | F11: 658 | K11: 0 | L11: 111 | N11: 211 | O11: =COUNTIF($L$7:$L$500,N11) -> 0 | P11: =O11/$Q$4 -> 0 | Q11: =IF(P11=0,0,(P11*((LOG(P11))/LOG(2)))) -> 0 | T11: =N11 -> 211 | U11: =COUNTIF(L7:L13,T11) -> 0 | V11: =U11/(W4-U7) ->  | W11: =IF(V11=0,0,(V11*((LOG(V11))/LOG(2)))) ->  | Y11: =N11 -> 211 | Z11: =COUNTIF(L14:L19,Y11) -> 0 | AA11: =Z11/(AB4-Z7) ->  | AB11: =IF(AA11=0,0,(AA11*((LOG(AA11))/LOG(2)))) ->  | AD11: =N11 -> 211 | AE11: =COUNTIF(L20:L26,AD11) -> 0 | AF11: =AE11/(AG4-AE7) ->  | AG11: =IF(AF11=0,0,(AF11*((LOG(AF11))/LOG(2)))) ->  | AI11: =N11 -> 211 | AJ11: =COUNTIF(L27:L33,AI11) -> 0 | AK11: =AJ11/(AL4-AJ7) ->  | AL11: =IF(AK11=0,0,(AK11*((LOG(AK11))/LOG(2)))) ->  | AN11: =N11 -> 211 | AO11: =COUNTIF(L34:L39,AN11) -> 0 | AP11: =AO11/(AQ4-AO7) ->  | AQ11: =IF(AP11=0,0,(AP11*((LOG(AP11))/LOG(2)))) ->  | AS11: =N11 -> 211 | AT11: =COUNTIF(L40:L46,AS11) -> 0 | AU11: =AT11/(AV4-AT7) ->  | AV11: =IF(AU11=0,0,(AU11*((LOG(AU11))/LOG(2)))) -> 
A12: 11 | B12: 787 | C12: 11 | D12: 793 | E12: 11 | F12: 804 | K12: 0 | L12: 111 | N12: 212 | O12: =COUNTIF($L$7:$L$500,N12) -> 0 | P12: =O12/$Q$4 -> 0 | Q12: =IF(P12=0,0,(P12*((LOG(P12))/LOG(2)))) -> 0 | T12: =N12 -> 212 | U12: =COUNTIF(L7:L13,T12) -> 0 | V12: =U12/(W4-U7) ->  | W12: =IF(V12=0,0,(V12*((LOG(V12))/LOG(2)))) ->  | Y12: =N12 -> 212 | Z12: =COUNTIF(L14:L19,Y12) -> 0 | AA12: =Z12/(AB4-Z7) ->  | AB12: =IF(AA12=0,0,(AA12*((LOG(AA12))/LOG(2)))) ->  | AD12: =N12 -> 212 | AE12: =COUNTIF(L20:L26,AD12) -> 0 | AF12: =AE12/(AG4-AE7) ->  | AG12: =IF(AF12=0,0,(AF12*((LOG(AF12))/LOG(2)))) ->  | AI12: =N12 -> 212 | AJ12: =COUNTIF(L27:L33,AI12) -> 0 | AK12: =AJ12/(AL4-AJ7) ->  | AL12: =IF(AK12=0,0,(AK12*((LOG(AK12))/LOG(2)))) ->  | AN12: =N12 -> 212 | AO12: =COUNTIF(L34:L39,AN12) -> 0 | AP12: =AO12/(AQ4-AO7) ->  | AQ12: =IF(AP12=0,0,(AP12*((LOG(AP12))/LOG(2)))) ->  | AS12: =N12 -> 212 | AT12: =COUNTIF(L40:L46,AS12) -> 0 | AU12: =AT12/(AV4-AT7) ->  | AV12: =IF(AU12=0,0,(AU12*((LOG(AU12))/LOG(2)))) -> 
A13: 11 | B13: 945 | C13: 11 | D13: 952 | E13: 11 | F13: 957 | K13: 0 | L13: 111 | N13: 221 | O13: =COUNTIF($L$7:$L$500,N13) -> 0 | P13: =O13/$Q$4 -> 0 | Q13: =IF(P13=0,0,(P13*((LOG(P13))/LOG(2)))) -> 0 | T13: =N13 -> 221 | U13: =COUNTIF(L7:L13,T13) -> 0 | V13: =U13/(W4-U7) ->  | W13: =IF(V13=0,0,(V13*((LOG(V13))/LOG(2)))) ->  | Y13: =N13 -> 221 | Z13: =COUNTIF(L14:L19,Y13) -> 0 | AA13: =Z13/(AB4-Z7) ->  | AB13: =IF(AA13=0,0,(AA13*((LOG(AA13))/LOG(2)))) ->  | AD13: =N13 -> 221 | AE13: =COUNTIF(L20:L26,AD13) -> 0 | AF13: =AE13/(AG4-AE7) ->  | AG13: =IF(AF13=0,0,(AF13*((LOG(AF13))/LOG(2)))) ->  | AI13: =N13 -> 221 | AJ13: =COUNTIF(L27:L33,AI13) -> 0 | AK13: =AJ13/(AL4-AJ7) ->  | AL13: =IF(AK13=0,0,(AK13*((LOG(AK13))/LOG(2)))) ->  | AN13: =N13 -> 221 | AO13: =COUNTIF(L34:L39,AN13) -> 0 | AP13: =AO13/(AQ4-AO7) ->  | AQ13: =IF(AP13=0,0,(AP13*((LOG(AP13))/LOG(2)))) ->  | AS13: =N13 -> 221 | AT13: =COUNTIF(L40:L46,AS13) -> 0 | AU13: =AT13/(AV4-AT7) ->  | AV13: =IF(AU13=0,0,(AU13*((LOG(AU13))/LOG(2)))) -> 
A14: 11 | B14: 1093 | C14: 11 | D14: 1103 | E14: 11 | F14: 1113 | K14: 0 | L14: 111 | N14: 222 | O14: =COUNTIF($L$7:$L$500,N14) -> 0 | P14: =O14/$Q$4 -> 0 | Q14: =IF(P14=0,0,(P14*((LOG(P14))/LOG(2)))) -> 0 | T14: =N14 -> 222 | U14: =COUNTIF(L7:L13,T14) -> 0 | V14: =U14/(W4-U7) ->  | W14: =IF(V14=0,0,(V14*((LOG(V14))/LOG(2)))) ->  | Y14: =N14 -> 222 | Z14: =COUNTIF(L14:L19,Y14) -> 0 | AA14: =Z14/(AB4-Z7) ->  | AB14: =IF(AA14=0,0,(AA14*((LOG(AA14))/LOG(2)))) ->  | AD14: =N14 -> 222 | AE14: =COUNTIF(L20:L26,AD14) -> 0 | AF14: =AE14/(AG4-AE7) ->  | AG14: =IF(AF14=0,0,(AF14*((LOG(AF14))/LOG(2)))) ->  | AI14: =N14 -> 222 | AJ14: =COUNTIF(L27:L33,AI14) -> 0 | AK14: =AJ14/(AL4-AJ7) ->  | AL14: =IF(AK14=0,0,(AK14*((LOG(AK14))/LOG(2)))) ->  | AN14: =N14 -> 222 | AO14: =COUNTIF(L34:L39,AN14) -> 0 | AP14: =AO14/(AQ4-AO7) ->  | AQ14: =IF(AP14=0,0,(AP14*((LOG(AP14))/LOG(2)))) ->  | AS14: =N14 -> 222 | AT14: =COUNTIF(L40:L46,AS14) -> 0 | AU14: =AT14/(AV4-AT7) ->  | AV14: =IF(AU14=0,0,(AU14*((LOG(AU14))/LOG(2)))) -> 
A15: 11 | B15: 1225 | C15: 11 | D15: 1231 | E15: 11 | F15: 1237 | K15: 0 | L15: 111 | P15: =SUM(P7:P14) -> 1 | Q15: =-SUM(Q7:Q14) -> 0 | V15: =SUM(V7:V14) ->  | W15: =-SUM(W7:W14) ->  | AA15: =SUM(AA7:AA14) ->  | AB15: =-SUM(AB7:AB14) ->  | AF15: =SUM(AF7:AF14) ->  | AG15: =-SUM(AG7:AG14) ->  | AK15: =SUM(AK7:AK14) ->  | AL15: =-SUM(AL7:AL14) ->  | AP15: =SUM(AP7:AP14) ->  | AQ15: =-SUM(AQ7:AQ14) ->  | AU15: =SUM(AU7:AU14) ->  | AV15: =-SUM(AV7:AV14) -> 
A16: 11 | B16: 1388 | C16: 11 | D16: 1395 | E16: 11 | F16: 1405 | K16: 0 | L16: 111 | P16: U= | Q16: =Q15/(LOG(Q4)/LOG(2)) -> 0 | V16: U1= | W16: =W15/(LOG(W4)/LOG(2)) ->  | AA16: U2= | AB16: =AB15/(LOG(AB4)/LOG(2)) ->  | AF16: U3= | AG16: =AG15/(LOG(AG4)/LOG(2)) ->  | AK16: U4= | AL16: =AL15/(LOG(AL4)/LOG(2)) ->  | AP16: U5= | AQ16: =AQ15/(LOG(AQ4)/LOG(2)) ->  | AU16: U6= | AV16: =AV15/(LOG(AV4)/LOG(2)) -> 
A17: 11 | B17: 1542 | C17: 11 | D17: 1549 | E17: 11 | F17: 1555 | K17: 0 | L17: 111
A18: 11 | B18: 1704 | C18: 11 | D18: 1708 | E18: 11 | F18: 1711 | K18: 0 | L18: 111
A19: 11 | B19: 1830 | C19: 11 | D19: 1835 | E19: 11 | F19: 1841 | K19: 0 | L19: 111 | N19: Total Target Seq
A20: 11 | B20: 1936 | C20: 11 | D20: 1940 | E20: 11 | F20: 1946 | K20: 0 | L20: 111 | N20: =COUNTIF(L7:L46,G3) -> 40 | P20: 7 | Q20: 6 | R20: 7 | S20: 7 | T20: 6 | U20: 7
A21: 11 | B21: 2107 | C21: 11 | D21: 2115 | E21: 11 | F21: 2128 | K21: 0 | L21: 111 | P21: % of reinforcement given in 6 equal intervals based on number of trials
A22: 11 | B22: 2251 | C22: 11 | D22: 2258 | E22: 11 | F22: 2264 | K22: 0 | L22: 111 | P22: %_1 | Q22: %_2 | R22: %_3 | S22: %_4 | T22: %_5 | U22: %_6
A23: 11 | B23: 2573 | C23: 11 | D23: 2576 | E23: 11 | F23: 2581 | K23: 0 | L23: 111 | O23: target sequence | P23: =$G$3 -> 111 | Q23: =$G$3 -> 111 | R23: =$G$3 -> 111 | S23: =$G$3 -> 111 | T23: =$G$3 -> 111 | U23: =$G$3 -> 111
A24: 11 | B24: 2685 | C24: 11 | D24: 2689 | E24: 11 | F24: 2695 | K24: 0 | L24: 111 | O24: total reinforcement | P24: =U7 -> 7 | Q24: =Z7 -> 6 | R24: =AE7 -> 7 | S24: =AJ7 -> 7 | T24: =AO7 -> 6 | U24: =AT7 -> 7
A25: 11 | B25: 2796 | C25: 11 | D25: 2802 | E25: 11 | F25: 2807 | K25: 0 | L25: 111 | O25: % target
A26: 11 | B26: 2923 | C26: 11 | D26: 2928 | E26: 11 | F26: 2937 | K26: 0 | L26: 111 | O26: CCRF
A27: 11 | B27: 3070 | C27: 11 | D27: 3074 | E27: 11 | F27: 3080 | K27: 0 | L27: 111 | O27: % CCRf
A28: 11 | B28: 3219 | C28: 11 | D28: 3225 | E28: 11 | F28: 3232 | K28: 0 | L28: 111 | O28: average response rate | P28: =F13/P20 -> 136.7142857 | Q28: =(F19-F13)/Q20 -> 147.3333333 | R28: =(F26-F19)/R20 -> 156.5714286 | S28: =(F33-F26)/S20 -> 149.5714286 | T28: =(F39-F33)/T20 -> 150.1666667 | U28: =(F46-F39)/U20 -> 166.8571429
A29: 11 | B29: 3393 | C29: 11 | D29: 3398 | E29: 11 | F29: 3403 | K29: 0 | L29: 111
A30: 11 | B30: 3517 | C30: 11 | D30: 3523 | E30: 11 | F30: 3531 | K30: 0 | L30: 111
A31: 11 | B31: 3713 | C31: 11 | D31: 3719 | E31: 11 | F31: 3734 | K31: 0 | L31: 111
A32: 11 | B32: 3848 | C32: 11 | D32: 3861 | E32: 11 | F32: 3868 | K32: 0 | L32: 111
A33: 11 | B33: 3973 | C33: 11 | D33: 3977 | E33: 11 | F33: 3984 | K33: 0 | L33: 111
A34: 11 | B34: 4122 | C34: 11 | D34: 4128 | E34: 11 | F34: 4135 | K34: 0 | L34: 111
A35: 11 | B35: 4262 | C35: 11 | D35: 4267 | E35: 11 | F35: 4274 | K35: 0 | L35: 111
A36: 11 | B36: 4375 | C36: 11 | D36: 4381 | E36: 11 | F36: 4387 | K36: 0 | L36: 111
A37: 11 | B37: 4532 | C37: 11 | D37: 4541 | E37: 11 | F37: 4547 | K37: 0 | L37: 111
A38: 11 | B38: 4704 | C38: 11 | D38: 4713 | E38: 11 | F38: 4721 | K38: 0 | L38: 111
A39: 11 | B39: 4876 | C39: 11 | D39: 4879 | E39: 11 | F39: 4885 | K39: 0 | L39: 111
A40: 11 | B40: 5081 | C40: 11 | D40: 5085 | E40: 11 | F40: 5091 | K40: 0 | L40: 111
A41: 11 | B41: 5260 | C41: 11 | D41: 5263 | E41: 11 | F41: 5270 | K41: 0 | L41: 111
A42: 11 | B42: 5449 | C42: 11 | D42: 5455 | E42: 11 | F42: 5461 | K42: 0 | L42: 111
A43: 11 | B43: 5584 | C43: 11 | D43: 5590 | E43: 11 | F43: 5598 | K43: 0 | L43: 111
A44: 11 | B44: 5751 | C44: 11 | D44: 5755 | E44: 11 | F44: 5761 | K44: 0 | L44: 111
A45: 11 | B45: 5892 | C45: 11 | D45: 5896 | E45: 11 | F45: 5905 | K45: 0 | L45: 111
A46: 11 | B46: 6041 | C46: 11 | D46: 6047 | E46: 11 | F46: 6053 | K46: 1 | L46: 111

Sheet !M711A1D.ust
A1: Report for:!M711A1D.ust
A2: Date: | B2: <date>
A3: Hen: | B3: <hen> | F3: Correct Sequence | G3: =Start!J2 -> 111 | P3: Total Sequences in Data | Q3: =4994-COUNTBLANK(L7:L5000) -> 40 | V3: Total Sequences in Block Data | W3: =COUNTA(L7:L13) -> 7 | AA3: Total Sequences in Block Data | AB3: =COUNTA(L14:L19) -> 6 | AF3: Total Sequences in Block Data | AG3: =COUNTA(L20:L26) -> 7 | AK3: Total Sequences in Block Data | AL3: =COUNTA(L27:L33) -> 7 | AP3: Total Sequences in Block Data | AQ3: =COUNTA(L34:L39) -> 6 | AU3: Total Sequences in Block Data | AV3: =COUNTA(L40:L46) -> 7
P4: Total Sequences in Summary | Q4: =SUM(O7:O14) -> 40 | V4: Total Sequences in Block Summary | W4: =SUM(U7:U14) -> 7 | AA4: Total Sequences in Block Summary | AB4: =SUM(Z7:Z14) -> 6 | AF4: Total Sequences in Block Summary | AG4: =SUM(AE7:AE14) -> 7 | AK4: Total Sequences in Block Summary | AL4: =SUM(AJ7:AJ14) -> 7 | AP4: Total Sequences in Block Summary | AQ4: =SUM(AO7:AO14) -> 6 | AU4: Total Sequences in Block Summary | AV4: =SUM(AT7:AT14) -> 7
T5: Block 1 | Y5: Block 2 | AD5: Block 3 | AI5: Block 4 | AN5: Block 5 | AS5: Block 6
A6: Sequence Component 1 | B6: Time 1 | C6: Sequence Component 2 | D6: Time 2 | E6: Sequence Component 3 | F6: Time 3 | G6: Sequence Component 4 | H6: Time 4 | I6: Sequence Component 5 | J6: Time 5 | K6: Correct? 0=No 1=Yes | L6: Sequence | N6: Frequency | P6: Relative Frequency | Q6: Variability | T6: Frequency | V6: Relative Frequency | W6: Variability | Y6: Frequency | AA6: Relative Frequency | AB6: Variability | AD6: Frequency | AF6: Relative Frequency | AG6: Variability | AI6: Frequency | AK6: Relative Frequency | AL6: Variability | AN6: Frequency | AP6: Relative Frequency | AQ6: Variability | AS6: Frequency | AU6: Relative Frequency | AV6: Variability
A7: 11 | B7: 10 | C7: 11 | D7: 15 | E7: 11 | F7: 22 | K7: 0 | L7: 111 | N7: 111 | O7: =COUNTIF($L$7:$L$500,N7) -> 40 | P7: =O7/$Q$4 -> 1 | Q7: =IF(P7=0,0,(P7*((LOG(P7))/LOG(2)))) -> 0 | T7: =N7 -> 111 | U7: =COUNTIF(L7:L13,T7) -> 7 | Y7: =N7 -> 111 | Z7: =COUNTIF(L14:L19,Y7) -> 6 | AD7: =N7 -> 111 | AE7: =COUNTIF(L20:L26,AD7) -> 7 | AI7: =N7 -> 111 | AJ7: =COUNTIF(L27:L33,AI7) -> 7 | AN7: =N7 -> 111 | AO7: =COUNTIF(L34:L39,AN7) -> 6 | AS7: =N7 -> 111 | AT7: =COUNTIF(L40:L46,AS7) -> 7
A8: 11 | B8: 137 | C8: 11 | D8: 140 | E8: 11 | F8: 144 | K8: 0 | L8: 111 | N8: 112 | O8: =COUNTIF($L$7:$L$500,N8) -> 0 | P8: =O8/$Q$4 -> 0 | Q8: =IF(P8=0,0,(P8*((LOG(P8))/LOG(2)))) -> 0 | T8: =N8 -> 112 | U8: =COUNTIF(L7:L13,T8) -> 0 | V8: =U8/(W4-U7) ->  | W8: =IF(V8=0,0,(V8*((LOG(V8))/LOG(2)))) ->  | Y8: =N8 -> 112 | Z8: =COUNTIF(L14:L19,Y8) -> 0 | AA8: =Z8/(AB4-Z7) ->  | AB8: =IF(AA8=0,0,(AA8*((LOG(AA8))/LOG(2)))) ->  | AD8: =N8 -> 112 | AE8: =COUNTIF(L20:L26,AD8) -> 0 | AF8: =AE8/(AG4-AE7) ->  | AG8: =IF(AF8=0,0,(AF8*((LOG(AF8))/LOG(2)))) ->  | AI8: =N8 -> 112 | AJ8: =COUNTIF(L27:L33,AI8) -> 0 | AK8: =AJ8/(AL4-AJ7) ->  | AL8: =IF(AK8=0,0,(AK8*((LOG(AK8))/LOG(2)))) ->  | AN8: =N8 -> 112 | AO8: =COUNTIF(L34:L39,AN8) -> 0 | AP8: =AO8/(AQ4-AO7) ->  | AQ8: =IF(AP8=0,0,(AP8*((LOG(AP8))/LOG(2)))) ->  | AS8: =N8 -> 112 | AT8: =COUNTIF(L40:L46,AS8) -> 0 | AU8: =AT8/(AV4-AT7) ->  | AV8: =IF(AU8=0,0,(AU8*((LOG(AU8))/LOG(2)))) -> 
A9: 11 | B9: 254 | C9: 11 | D9: 258 | E9: 11 | F9: 265 | K9: 0 | L9: 111 | N9: 121 | O9: =COUNTIF($L$7:$L$500,N9) -> 0 | P9: =O9/$Q$4 -> 0 | Q9: =IF(P9=0,0,(P9*((LOG(P9))/LOG(2)))) -> 0 | T9: =N9 -> 121 | U9: =COUNTIF(L7:L13,T9) -> 0 | V9: =U9/(W4-U7) ->  | W9: =IF(V9=0,0,(V9*((LOG(V9))/LOG(2)))) ->  | Y9: =N9 -> 121 | Z9: =COUNTIF(L14:L19,Y9) -> 0 | AA9: =Z9/(AB4-Z7) ->  | AB9: =IF(AA9=0,0,(AA9*((LOG(AA9))/LOG(2)))) ->  | AD9: =N9 -> 121 | AE9: =COUNTIF(L20:L26,AD9) -> 0 | AF9: =AE9/(AG4-AE7) ->  | AG9: =IF(AF9=0,0,(AF9*((LOG(AF9))/LOG(2)))) ->  | AI9: =N9 -> 121 | AJ9: =COUNTIF(L27:L33,AI9) -> 0 | AK9: =AJ9/(AL4-AJ7) ->  | AL9: =IF(AK9=0,0,(AK9*((LOG(AK9))/LOG(2)))) ->  | AN9: =N9 -> 121 | AO9: =COUNTIF(L34:L39,AN9) -> 0 | AP9: =AO9/(AQ4-AO7) ->  | AQ9: =IF(AP9=0,0,(AP9*((LOG(AP9))/LOG(2)))) ->  | AS9: =N9 -> 121 | AT9: =COUNTIF(L40:L46,AS9) -> 0 | AU9: =AT9/(AV4-AT7) ->  | AV9: =IF(AU9=0,0,(AU9*((LOG(AU9))/LOG(2)))) -> 
A10: 11 | B10: 373 | C10: 11 | D10: 379 | E10: 11 | F10: 385 | K10: 0 | L10: 111 | N10: 122 | O10: =COUNTIF($L$7:$L$500,N10) -> 0 | P10: =O10/$Q$4 -> 0 | Q10: =IF(P10=0,0,(P10*((LOG(P10))/LOG(2)))) -> 0 | T10: =N10 -> 122 | U10: =COUNTIF(L7:L13,T10) -> 0 | V10: =U10/(W4-U7) ->  | W10: =IF(V10=0,0,(V10*((LOG(V10))/LOG(2)))) ->  | Y10: =N10 -> 122 | Z10: =COUNTIF(L14:L19,Y10) -> 0 | AA10: =Z10/(AB4-Z7) ->  | AB10: =IF(AA10=0,0,(AA10*((LOG(AA10))/LOG(2)))) ->  | AD10: =N10 -> 122 | AE10: =COUNTIF(L20:L26,AD10) -> 0 | AF10: =AE10/(AG4-AE7) ->  | AG10: =IF(AF10=0,0,(AF10*((LOG(AF10))/LOG(2)))) ->  | AI10: =N10 -> 122 | AJ10: =COUNTIF(L27:L33,AI10) -> 0 | AK10: =AJ10/(AL4-AJ7) ->  | AL10: =IF(AK10=0,0,(AK10*((LOG(AK10))/LOG(2)))) ->  | AN10: =N10 -> 122 | AO10: =COUNTIF(L34:L39,AN10) -> 0 | AP10: =AO10/(AQ4-AO7) ->  | AQ10: =IF(AP10=0,0,(AP10*((LOG(AP10))/LOG(2)))) ->  | AS10: =N10 -> 122 | AT10: =COUNTIF(L40:L46,AS10) -> 0 | AU10: =AT10/(AV4-AT7) ->  | AV10: =IF(AU10=0,0,(AU10*((LOG(AU10))/LOG(2)))) -> 
A11: 11 | B11: 494 | C11: 11 | D11: 500 | E11: 11 | F11: 517 | K11: 0 | L11: 111 | N11: 211 | O11: =COUNTIF($L$7:$L$500,N11) -> 0 | P11: =O11/$Q$4 -> 0 | Q11: =IF(P11=0,0,(P11*((LOG(P11))/LOG(2)))) -> 0 | T11: =N11 -> 211 | U11: =COUNTIF(L7:L13,T11) -> 0 | V11: =U11/(W4-U7) ->  | W11: =IF(V11=0,0,(V11*((LOG(V11))/LOG(2)))) ->  | Y11: =N11 -> 211 | Z11: =COUNTIF(L14:L19,Y11) -> 0 | AA11: =Z11/(AB4-Z7) ->  | AB11: =IF(AA11=0,0,(AA11*((LOG(AA11))/LOG(2)))) ->  | AD11: =N11 -> 211 | AE11: =COUNTIF(L20:L26,AD11) -> 0 | AF11: =AE11/(AG4-AE7) ->  | AG11: =IF(AF11=0,0,(AF11*((LOG(AF11))/LOG(2)))) ->  | AI11: =N11 -> 211 | AJ11: =COUNTIF(L27:L33,AI11) -> 0 | AK11: =AJ11/(AL4-AJ7) ->  | AL11: =IF(AK11=0,0,(AK11*((LOG(AK11))/LOG(2)))) ->  | AN11: =N11 -> 211 | AO11: =COUNTIF(L34:L39,AN11) -> 0 | AP11: =AO11/(AQ4-AO7) ->  | AQ11: =IF(AP11=0,0,(AP11*((LOG(AP11))/LOG(2)))) ->  | AS11: =N11 -> 211 | AT11: =COUNTIF(L40:L46,AS11) -> 0 | AU11: =AT11/(AV4-AT7) ->  | AV11: =IF(AU11=0,0,(AU11*((LOG(AU11))/LOG(2)))) -> 
A12: 11 | B12: 639 | C12: 11 | D12: 644 | E12: 11 | F12: 650 | K12: 0 | L12: 111 | N12: 212 | O12: =COUNTIF($L$7:$L$500,N12) -> 0 | P12: =O12/$Q$4 -> 0 | Q12: =IF(P12=0,0,(P12*((LOG(P12))/LOG(2)))) -> 0 | T12: =N12 -> 212 | U12: =COUNTIF(L7:L13,T12) -> 0 | V12: =U12/(W4-U7) ->  | W12: =IF(V12=0,0,(V12*((LOG(V12))/LOG(2)))) ->  | Y12: =N12 -> 212 | Z12: =COUNTIF(L14:L19,Y12) -> 0 | AA12: =Z12/(AB4-Z7) ->  | AB12: =IF(AA12=0,0,(AA12*((LOG(AA12))/LOG(2)))) ->  | AD12: =N12 -> 212 | AE12: =COUNTIF(L20:L26,AD12) -> 0 | AF12: =AE12/(AG4-AE7) ->  | AG12: =IF(AF12=0,0,(AF12*((LOG(AF12))/LOG(2)))) ->  | AI12: =N12 -> 212 | AJ12: =COUNTIF(L27:L33,AI12) -> 0 | AK12: =AJ12/(AL4-AJ7) ->  | AL12: =IF(AK12=0,0,(AK12*((LOG(AK12))/LOG(2)))) ->  | AN12: =N12 -> 212 | AO12: =COUNTIF(L34:L39,AN12) -> 0 | AP12: =AO12/(AQ4-AO7) ->  | AQ12: =IF(AP12=0,0,(AP12*((LOG(AP12))/LOG(2)))) ->  | AS12: =N12 -> 212 | AT12: =COUNTIF(L40:L46,AS12) -> 0 | AU12: =AT12/(AV4-AT7) ->  | AV12: =IF(AU12=0,0,(AU12*((LOG(AU12))/LOG(2)))) -> 
A13: 11 | B13: 761 | C13: 11 | D13: 764 | E13: 11 | F13: 771 | K13: 0 | L13: 111 | N13: 221 | O13: =COUNTIF($L$7:$L$500,N13) -> 0 | P13: =O13/$Q$4 -> 0 | Q13: =IF(P13=0,0,(P13*((LOG(P13))/LOG(2)))) -> 0 | T13: =N13 -> 221 | U13: =COUNTIF(L7:L13,T13) -> 0 | V13: =U13/(W4-U7) ->  | W13: =IF(V13=0,0,(V13*((LOG(V13))/LOG(2)))) ->  | Y13: =N13 -> 221 | Z13: =COUNTIF(L14:L19,Y13) -> 0 | AA13: =Z13/(AB4-Z7) ->  | AB13: =IF(AA13=0,0,(AA13*((LOG(AA13))/LOG(2)))) ->  | AD13: =N13 -> 221 | AE13: =COUNTIF(L20:L26,AD13) -> 0 | AF13: =AE13/(AG4-AE7) ->  | AG13: =IF(AF13=0,0,(AF13*((LOG(AF13))/LOG(2)))) ->  | AI13: =N13 -> 221 | AJ13: =COUNTIF(L27:L33,AI13) -> 0 | AK13: =AJ13/(AL4-AJ7) ->  | AL13: =IF(AK13=0,0,(AK13*((LOG(AK13))/LOG(2)))) ->  | AN13: =N13 -> 221 | AO13: =COUNTIF(L34:L39,AN13) -> 0 | AP13: =AO13/(AQ4-AO7) ->  | AQ13: =IF(AP13=0,0,(AP13*((LOG(AP13))/LOG(2)))) ->  | AS13: =N13 -> 221 | AT13: =COUNTIF(L40:L46,AS13) -> 0 | AU13: =AT13/(AV4-AT7) ->  | AV13: =IF(AU13=0,0,(AU13*((LOG(AU13))/LOG(2)))) -> 
A14: 11 | B14: 871 | C14: 11 | D14: 877 | E14: 11 | F14: 885 | K14: 0 | L14: 111 | N14: 222 | O14: =COUNTIF($L$7:$L$500,N14) -> 0 | P14: =O14/$Q$4 -> 0 | Q14: =IF(P14=0,0,(P14*((LOG(P14))/LOG(2)))) -> 0 | T14: =N14 -> 222 | U14: =COUNTIF(L7:L13,T14) -> 0 | V14: =U14/(W4-U7) ->  | W14: =IF(V14=0,0,(V14*((LOG(V14))/LOG(2)))) ->  | Y14: =N14 -> 222 | Z14: =COUNTIF(L14:L19,Y14) -> 0 | AA14: =Z14/(AB4-Z7) ->  | AB14: =IF(AA14=0,0,(AA14*((LOG(AA14))/LOG(2)))) ->  | AD14: =N14 -> 222 | AE14: =COUNTIF(L20:L26,AD14) -> 0 | AF14: =AE14/(AG4-AE7) ->  | AG14: =IF(AF14=0,0,(AF14*((LOG(AF14))/LOG(2)))) ->  | AI14: =N14 -> 222 | AJ14: =COUNTIF(L27:L33,AI14) -> 0 | AK14: =AJ14/(AL4-AJ7) ->  | AL14: =IF(AK14=0,0,(AK14*((LOG(AK14))/LOG(2)))) ->  | AN14: =N14 -> 222 | AO14: =COUNTIF(L34:L39,AN14) -> 0 | AP14: =AO14/(AQ4-AO7) ->  | AQ14: =IF(AP14=0,0,(AP14*((LOG(AP14))/LOG(2)))) ->  | AS14: =N14 -> 222 | AT14: =COUNTIF(L40:L46,AS14) -> 0 | AU14: =AT14/(AV4-AT7) ->  | AV14: =IF(AU14=0,0,(AU14*((LOG(AU14))/LOG(2)))) -> 
A15: 11 | B15: 985 | C15: 11 | D15: 989 | E15: 11 | F15: 995 | K15: 0 | L15: 111 | P15: =SUM(P7:P14) -> 1 | Q15: =-SUM(Q7:Q14) -> 0 | V15: =SUM(V7:V14) ->  | W15: =-SUM(W7:W14) ->  | AA15: =SUM(AA7:AA14) ->  | AB15: =-SUM(AB7:AB14) ->  | AF15: =SUM(AF7:AF14) ->  | AG15: =-SUM(AG7:AG14) ->  | AK15: =SUM(AK7:AK14) ->  | AL15: =-SUM(AL7:AL14) ->  | AP15: =SUM(AP7:AP14) ->  | AQ15: =-SUM(AQ7:AQ14) ->  | AU15: =SUM(AU7:AU14) ->  | AV15: =-SUM(AV7:AV14) -> 
A16: 11 | B16: 1136 | C16: 11 | D16: 1140 | E16: 11 | F16: 1145 | K16: 0 | L16: 111 | P16: U= | Q16: =Q15/(LOG(Q4)/LOG(2)) -> 0 | V16: U1= | W16: =W15/(LOG(W4)/LOG(2)) ->  | AA16: U2= | AB16: =AB15/(LOG(AB4)/LOG(2)) ->  | AF16: U3= | AG16: =AG15/(LOG(AG4)/LOG(2)) ->  | AK16: U4= | AL16: =AL15/(LOG(AL4)/LOG(2)) ->  | AP16: U5= | AQ16: =AQ15/(LOG(AQ4)/LOG(2)) ->  | AU16: U6= | AV16: =AV15/(LOG(AV4)/LOG(2)) -> 
A17: 11 | B17: 1282 | C17: 11 | D17: 1284 | E17: 11 | F17: 1286 | K17: 0 | L17: 111
A18: 11 | B18: 1433 | C18: 11 | D18: 1436 | E18: 11 | F18: 1442 | K18: 0 | L18: 111
A19: 11 | B19: 1576 | C19: 11 | D19: 1580 | E19: 11 | F19: 1587 | K19: 0 | L19: 111 | N19: Total Target Seq
A20: 11 | B20: 1718 | C20: 11 | D20: 1720 | E20: 11 | F20: 1725 | K20: 0 | L20: 111 | N20: =COUNTIF(L7:L46,G3) -> 40 | P20: 7 | Q20: 6 | R20: 7 | S20: 7 | T20: 6 | U20: 7
A21: 11 | B21: 1859 | C21: 11 | D21: 1863 | E21: 11 | F21: 1869 | K21: 0 | L21: 111 | P21: % of reinforcement given in 6 equal intervals based on number of trials
A22: 11 | B22: 2004 | C22: 11 | D22: 2008 | E22: 11 | F22: 2016 | K22: 0 | L22: 111 | P22: %_1 | Q22: %_2 | R22: %_3 | S22: %_4 | T22: %_5 | U22: %_6
A23: 11 | B23: 2178 | C23: 11 | D23: 2181 | E23: 11 | F23: 2186 | K23: 0 | L23: 111 | O23: target sequence | P23: =$G$3 -> 111 | Q23: =$G$3 -> 111 | R23: =$G$3 -> 111 | S23: =$G$3 -> 111 | T23: =$G$3 -> 111 | U23: =$G$3 -> 111
A24: 11 | B24: 2307 | C24: 11 | D24: 2310 | E24: 11 | F24: 2317 | K24: 0 | L24: 111 | O24: total reinforcement | P24: =U7 -> 7 | Q24: =Z7 -> 6 | R24: =AE7 -> 7 | S24: =AJ7 -> 7 | T24: =AO7 -> 6 | U24: =AT7 -> 7
A25: 11 | B25: 2486 | C25: 11 | D25: 2490 | E25: 11 | F25: 2496 | K25: 0 | L25: 111 | O25: % target
A26: 11 | B26: 2630 | C26: 11 | D26: 2633 | E26: 11 | F26: 2637 | K26: 0 | L26: 111 | O26: CCRF
A27: 11 | B27: 2785 | C27: 11 | D27: 2788 | E27: 11 | F27: 2790 | K27: 0 | L27: 111 | O27: % CCRf
A28: 11 | B28: 2956 | C28: 11 | D28: 2960 | E28: 11 | F28: 2967 | K28: 0 | L28: 111 | O28: average response rate | P28: =F13/P20 -> 110.1428571 | Q28: =(F19-F13)/Q20 -> 136 | R28: =(F26-F19)/R20 -> 150 | S28: =(F33-F26)/S20 -> 148.2857143 | T28: =(F39-F33)/T20 -> 165.8333333 | U28: =(F46-F39)/U20 -> 176.2857143
A29: 11 | B29: 3075 | C29: 11 | D29: 3081 | E29: 11 | F29: 3096 | K29: 0 | L29: 111
A30: 11 | B30: 3230 | C30: 11 | D30: 3234 | E30: 11 | F30: 3242 | K30: 0 | L30: 111
A31: 11 | B31: 3366 | C31: 11 | D31: 3370 | E31: 11 | F31: 3376 | K31: 0 | L31: 111
A32: 11 | B32: 3538 | C32: 11 | D32: 3541 | E32: 11 | F32: 3547 | K32: 0 | L32: 111
A33: 11 | B33: 3667 | C33: 11 | D33: 3669 | E33: 11 | F33: 3675 | K33: 0 | L33: 111
A34: 11 | B34: 3804 | C34: 11 | D34: 3808 | E34: 11 | F34: 3814 | K34: 0 | L34: 111
A35: 11 | B35: 3930 | C35: 11 | D35: 3947 | E35: 11 | F35: 3959 | K35: 0 | L35: 111
A36: 11 | B36: 4073 | C36: 11 | D36: 4078 | E36: 11 | F36: 4084 | K36: 0 | L36: 111
A37: 11 | B37: 4195 | C37: 11 | D37: 4200 | E37: 11 | F37: 4207 | K37: 0 | L37: 111
A38: 11 | B38: 4321 | C38: 11 | D38: 4333 | E38: 11 | F38: 4347 | K38: 0 | L38: 111
A39: 11 | B39: 4660 | C39: 11 | D39: 4662 | E39: 11 | F39: 4670 | K39: 0 | L39: 111
A40: 11 | B40: 4823 | C40: 11 | D40: 4828 | E40: 11 | F40: 4834 | K40: 0 | L40: 111
A41: 11 | B41: 4969 | C41: 11 | D41: 4971 | E41: 11 | F41: 4975 | K41: 0 | L41: 111
A42: 11 | B42: 5107 | C42: 11 | D42: 5113 | E42: 11 | F42: 5130 | K42: 0 | L42: 111
A43: 11 | B43: 5326 | C43: 11 | D43: 5331 | E43: 11 | F43: 5339 | K43: 0 | L43: 111
A44: 11 | B44: 5493 | C44: 11 | D44: 5498 | E44: 11 | F44: 5503 | K44: 0 | L44: 111
A45: 11 | B45: 5700 | C45: 11 | D45: 5707 | E45: 11 | F45: 5728 | K45: 0 | L45: 111
A46: 11 | B46: 5893 | C46: 11 | D46: 5898 | E46: 11 | F46: 5904 | K46: 1 | L46: 111

Sheet !M712A4D.ust
A1: Report for:!M712A4D.ust
A2: Date: | B2: <date>
A3: Hen: | B3: <hen> | F3: Correct Sequence | G3: =Start!J2 -> 111 | P3: Total Sequences in Data | Q3: =4994-COUNTBLANK(L7:L5000) -> 40 | V3: Total Sequences in Block Data | W3: =COUNTA(L7:L13) -> 7 | AA3: Total Sequences in Block Data | AB3: =COUNTA(L14:L19) -> 6 | AF3: Total Sequences in Block Data | AG3: =COUNTA(L20:L26) -> 7 | AK3: Total Sequences in Block Data | AL3: =COUNTA(L27:L33) -> 7 | AP3: Total Sequences in Block Data | AQ3: =COUNTA(L34:L39) -> 6 | AU3: Total Sequences in Block Data | AV3: =COUNTA(L40:L46) -> 7
P4: Total Sequences in Summary | Q4: =SUM(O7:O14) -> 40 | V4: Total Sequences in Block Summary | W4: =SUM(U7:U14) -> 7 | AA4: Total Sequences in Block Summary | AB4: =SUM(Z7:Z14) -> 6 | AF4: Total Sequences in Block Summary | AG4: =SUM(AE7:AE14) -> 7 | AK4: Total Sequences in Block Summary | AL4: =SUM(AJ7:AJ14) -> 7 | AP4: Total Sequences in Block Summary | AQ4: =SUM(AO7:AO14) -> 6 | AU4: Total Sequences in Block Summary | AV4: =SUM(AT7:AT14) -> 7
T5: Block 1 | Y5: Block 2 | AD5: Block 3 | AI5: Block 4 | AN5: Block 5 | AS5: Block 6
A6: Sequence Component 1 | B6: Time 1 | C6: Sequence Component 2 | D6: Time 2 | E6: Sequence Component 3 | F6: Time 3 | G6: Sequence Component 4 | H6: Time 4 | I6: Sequence Component 5 | J6: Time 5 | K6: Correct? 0=No 1=Yes | L6: Sequence | N6: Frequency | P6: Relative Frequency | Q6: Variability | T6: Frequency | V6: Relative Frequency | W6: Variability | Y6: Frequency | AA6: Relative Frequency | AB6: Variability | AD6: Frequency | AF6: Relative Frequency | AG6: Variability | AI6: Frequency | AK6: Relative Frequency | AL6: Variability | AN6: Frequency | AP6: Relative Frequency | AQ6: Variability | AS6: Frequency | AU6: Relative Frequency | AV6: Variability
A7: 11 | B7: 3 | C7: 11 | D7: 8 | E7: 11 | F7: 16 | K7: 0 | L7: 111 | N7: 111 | O7: =COUNTIF($L$7:$L$500,N7) -> 40 | P7: =O7/$Q$4 -> 1 | Q7: =IF(P7=0,0,(P7*((LOG(P7))/LOG(2)))) -> 0 | T7: =N7 -> 111 | U7: =COUNTIF(L7:L13,T7) -> 7 | Y7: =N7 -> 111 | Z7: =COUNTIF(L14:L19,Y7) -> 6 | AD7: =N7 -> 111 | AE7: =COUNTIF(L20:L26,AD7) -> 7 | AI7: =N7 -> 111 | AJ7: =COUNTIF(L27:L33,AI7) -> 7 | AN7: =N7 -> 111 | AO7: =COUNTIF(L34:L39,AN7) -> 6 | AS7: =N7 -> 111 | AT7: =COUNTIF(L40:L46,AS7) -> 7
A8: 11 | B8: 166 | C8: 11 | D8: 174 | E8: 11 | F8: 185 | K8: 0 | L8: 111 | N8: 112 | O8: =COUNTIF($L$7:$L$500,N8) -> 0 | P8: =O8/$Q$4 -> 0 | Q8: =IF(P8=0,0,(P8*((LOG(P8))/LOG(2)))) -> 0 | T8: =N8 -> 112 | U8: =COUNTIF(L7:L13,T8) -> 0 | V8: =U8/(W4-U7) ->  | W8: =IF(V8=0,0,(V8*((LOG(V8))/LOG(2)))) ->  | Y8: =N8 -> 112 | Z8: =COUNTIF(L14:L19,Y8) -> 0 | AA8: =Z8/(AB4-Z7) ->  | AB8: =IF(AA8=0,0,(AA8*((LOG(AA8))/LOG(2)))) ->  | AD8: =N8 -> 112 | AE8: =COUNTIF(L20:L26,AD8) -> 0 | AF8: =AE8/(AG4-AE7) ->  | AG8: =IF(AF8=0,0,(AF8*((LOG(AF8))/LOG(2)))) ->  | AI8: =N8 -> 112 | AJ8: =COUNTIF(L27:L33,AI8) -> 0 | AK8: =AJ8/(AL4-AJ7) ->  | AL8: =IF(AK8=0,0,(AK8*((LOG(AK8))/LOG(2)))) ->  | AN8: =N8 -> 112 | AO8: =COUNTIF(L34:L39,AN8) -> 0 | AP8: =AO8/(AQ4-AO7) ->  | AQ8: =IF(AP8=0,0,(AP8*((LOG(AP8))/LOG(2)))) ->  | AS8: =N8 -> 112 | AT8: =COUNTIF(L40:L46,AS8) -> 0 | AU8: =AT8/(AV4-AT7) ->  | AV8: =IF(AU8=0,0,(AU8*((LOG(AU8))/LOG(2)))) -> 
A9: 11 | B9: 345 | C9: 11 | D9: 351 | E9: 11 | F9: 358 | K9: 0 | L9: 111 | N9: 121 | O9: =COUNTIF($L$7:$L$500,N9) -> 0 | P9: =O9/$Q$4 -> 0 | Q9: =IF(P9=0,0,(P9*((LOG(P9))/LOG(2)))) -> 0 | T9: =N9 -> 121 | U9: =COUNTIF(L7:L13,T9) -> 0 | V9: =U9/(W4-U7) ->  | W9: =IF(V9=0,0,(V9*((LOG(V9))/LOG(2)))) ->  | Y9: =N9 -> 121 | Z9: =COUNTIF(L14:L19,Y9) -> 0 | AA9: =Z9/(AB4-Z7) ->  | AB9: =IF(AA9=0,0,(AA9*((LOG(AA9))/LOG(2)))) ->  | AD9: =N9 -> 121 | AE9: =COUNTIF(L20:L26,AD9) -> 0 | AF9: =AE9/(AG4-AE7) ->  | AG9: =IF(AF9=0,0,(AF9*((LOG(AF9))/LOG(2)))) ->  | AI9: =N9 -> 121 | AJ9: =COUNTIF(L27:L33,AI9) -> 0 | AK9: =AJ9/(AL4-AJ7) ->  | AL9: =IF(AK9=0,0,(AK9*((LOG(AK9))/LOG(2)))) ->  | AN9: =N9 -> 121 | AO9: =COUNTIF(L34:L39,AN9) -> 0 | AP9: =AO9/(AQ4-AO7) ->  | AQ9: =IF(AP9=0,0,(AP9*((LOG(AP9))/LOG(2)))) ->  | AS9: =N9 -> 121 | AT9: =COUNTIF(L40:L46,AS9) -> 0 | AU9: =AT9/(AV4-AT7) ->  | AV9: =IF(AU9=0,0,(AU9*((LOG(AU9))/LOG(2)))) -> 
A10: 11 | B10: 478 | C10: 11 | D10: 485 | E10: 11 | F10: 491 | K10: 0 | L10: 111 | N10: 122 | O10: =COUNTIF($L$7:$L$500,N10) -> 0 | P10: =O10/$Q$4 -> 0 | Q10: =IF(P10=0,0,(P10*((LOG(P10))/LOG(2)))) -> 0 | T10: =N10 -> 122 | U10: =COUNTIF(L7:L13,T10) -> 0 | V10: =U10/(W4-U7) ->  | W10: =IF(V10=0,0,(V10*((LOG(V10))/LOG(2)))) ->  | Y10: =N10 -> 122 | Z10: =COUNTIF(L14:L19,Y10) -> 0 | AA10: =Z10/(AB4-Z7) ->  | AB10: =IF(AA10=0,0,(AA10*((LOG(AA10))/LOG(2)))) ->  | AD10: =N10 -> 122 | AE10: =COUNTIF(L20:L26,AD10) -> 0 | AF10: =AE10/(AG4-AE7) ->  | AG10: =IF(AF10=0,0,(AF10*((LOG(AF10))/LOG(2)))) ->  | AI10: =N10 -> 122 | AJ10: =COUNTIF(L27:L33,AI10) -> 0 | AK10: =AJ10/(AL4-AJ7) ->  | AL10: =IF(AK10=0,0,(AK10*((LOG(AK10))/LOG(2)))) ->  | AN10: =N10 -> 122 | AO10: =COUNTIF(L34:L39,AN10) -> 0 | AP10: =AO10/(AQ4-AO7) ->  | AQ10: =IF(AP10=0,0,(AP10*((LOG(AP10))/LOG(2)))) ->  | AS10: =N10 -> 122 | AT10: =COUNTIF(L40:L46,AS10) -> 0 | AU10: =AT10/(AV4-AT7) ->  | AV10: =IF(AU10=0,0,(AU10*((LOG(AU10))/LOG(2)))) -> 
A11: 11 | B11: 618 | C11: 11 | D11: 622 | E11: 11 | F11: 628 | K11: 0 | L11: 111 | N11: 211 | O11: =COUNTIF($L$7:$L$500,N11) -> 0 | P11: =O11/$Q$4 -> 0 | Q11: =IF(P11=0,0,(P11*((LOG(P11))/LOG(2)))) -> 0 | T11: =N11 -> 211 | U11: =COUNTIF(L7:L13,T11) -> 0 | V11: =U11/(W4-U7) ->  | W11: =IF(V11=0,0,(V11*((LOG(V11))/LOG(2)))) ->  | Y11: =N11 -> 211 | Z11: =COUNTIF(L14:L19,Y11) -> 0 | AA11: =Z11/(AB4-Z7) ->  | AB11: =IF(AA11=0,0,(AA11*((LOG(AA11))/LOG(2)))) ->  | AD11: =N11 -> 211 | AE11: =COUNTIF(L20:L26,AD11) -> 0 | AF11: =AE11/(AG4-AE7) ->  | AG11: =IF(AF11=0,0,(AF11*((LOG(AF11))/LOG(2)))) ->  | AI11: =N11 -> 211 | AJ11: =COUNTIF(L27:L33,AI11) -> 0 | AK11: =AJ11/(AL4-AJ7) ->  | AL11: =IF(AK11=0,0,(AK11*((LOG(AK11))/LOG(2)))) ->  | AN11: =N11 -> 211 | AO11: =COUNTIF(L34:L39,AN11) -> 0 | AP11: =AO11/(AQ4-AO7) ->  | AQ11: =IF(AP11=0,0,(AP11*((LOG(AP11))/LOG(2)))) ->  | AS11: =N11 -> 211 | AT11: =COUNTIF(L40:L46,AS11) -> 0 | AU11: =AT11/(AV4-AT7) ->  | AV11: =IF(AU11=0,0,(AU11*((LOG(AU11))/LOG(2)))) -> 
A12: 11 | B12: 752 | C12: 11 | D12: 758 | E12: 11 | F12: 765 | K12: 0 | L12: 111 | N12: 212 | O12: =COUNTIF($L$7:$L$500,N12) -> 0 | P12: =O12/$Q$4 -> 0 | Q12: =IF(P12=0,0,(P12*((LOG(P12))/LOG(2)))) -> 0 | T12: =N12 -> 212 | U12: =COUNTIF(L7:L13,T12) -> 0 | V12: =U12/(W4-U7) ->  | W12: =IF(V12=0,0,(V12*((LOG(V12))/LOG(2)))) ->  | Y12: =N12 -> 212 | Z12: =COUNTIF(L14:L19,Y12) -> 0 | AA12: =Z12/(AB4-Z7) ->  | AB12: =IF(AA12=0,0,(AA12*((LOG(AA12))/LOG(2)))) ->  | AD12: =N12 -> 212 | AE12: =COUNTIF(L20:L26,AD12) -> 0 | AF12: =AE12/(AG4-AE7) ->  | AG12: =IF(AF12=0,0,(AF12*((LOG(AF12))/LOG(2)))) ->  | AI12: =N12 -> 212 | AJ12: =COUNTIF(L27:L33,AI12) -> 0 | AK12: =AJ12/(AL4-AJ7) ->  | AL12: =IF(AK12=0,0,(AK12*((LOG(AK12))/LOG(2)))) ->  | AN12: =N12 -> 212 | AO12: =COUNTIF(L34:L39,AN12) -> 0 | AP12: =AO12/(AQ4-AO7) ->  | AQ12: =IF(AP12=0,0,(AP12*((LOG(AP12))/LOG(2)))) ->  | AS12: =N12 -> 212 | AT12: =COUNTIF(L40:L46,AS12) -> 0 | AU12: =AT12/(AV4-AT7) ->  | AV12: =IF(AU12=0,0,(AU12*((LOG(AU12))/LOG(2)))) -> 
A13: 11 | B13: 937 | C13: 11 | D13: 939 | E13: 11 | F13: 943 | K13: 0 | L13: 111 | N13: 221 | O13: =COUNTIF($L$7:$L$500,N13) -> 0 | P13: =O13/$Q$4 -> 0 | Q13: =IF(P13=0,0,(P13*((LOG(P13))/LOG(2)))) -> 0 | T13: =N13 -> 221 | U13: =COUNTIF(L7:L13,T13) -> 0 | V13: =U13/(W4-U7) ->  | W13: =IF(V13=0,0,(V13*((LOG(V13))/LOG(2)))) ->  | Y13: =N13 -> 221 | Z13: =COUNTIF(L14:L19,Y13) -> 0 | AA13: =Z13/(AB4-Z7) ->  | AB13: =IF(AA13=0,0,(AA13*((LOG(AA13))/LOG(2)))) ->  | AD13: =N13 -> 221 | AE13: =COUNTIF(L20:L26,AD13) -> 0 | AF13: =AE13/(AG4-AE7) ->  | AG13: =IF(AF13=0,0,(AF13*((LOG(AF13))/LOG(2)))) ->  | AI13: =N13 -> 221 | AJ13: =COUNTIF(L27:L33,AI13) -> 0 | AK13: =AJ13/(AL4-AJ7) ->  | AL13: =IF(AK13=0,0,(AK13*((LOG(AK13))/LOG(2)))) ->  | AN13: =N13 -> 221 | AO13: =COUNTIF(L34:L39,AN13) -> 0 | AP13: =AO13/(AQ4-AO7) ->  | AQ13: =IF(AP13=0,0,(AP13*((LOG(AP13))/LOG(2)))) ->  | AS13: =N13 -> 221 | AT13: =COUNTIF(L40:L46,AS13) -> 0 | AU13: =AT13/(AV4-AT7) ->  | AV13: =IF(AU13=0,0,(AU13*((LOG(AU13))/LOG(2)))) -> 
A14: 11 | B14: 1087 | C14: 11 | D14: 1090 | E14: 11 | F14: 1113 | K14: 0 | L14: 111 | N14: 222 | O14: =COUNTIF($L$7:$L$500,N14) -> 0 | P14: =O14/$Q$4 -> 0 | Q14: =IF(P14=0,0,(P14*((LOG(P14))/LOG(2)))) -> 0 | T14: =N14 -> 222 | U14: =COUNTIF(L7:L13,T14) -> 0 | V14: =U14/(W4-U7) ->  | W14: =IF(V14=0,0,(V14*((LOG(V14))/LOG(2)))) ->  | Y14: =N14 -> 222 | Z14: =COUNTIF(L14:L19,Y14) -> 0 | AA14: =Z14/(AB4-Z7) ->  | AB14: =IF(AA14=0,0,(AA14*((LOG(AA14))/LOG(2)))) ->  | AD14: =N14 -> 222 | AE14: =COUNTIF(L20:L26,AD14) -> 0 | AF14: =AE14/(AG4-AE7) ->  | AG14: =IF(AF14=0,0,(AF14*((LOG(AF14))/LOG(2)))) ->  | AI14: =N14 -> 222 | AJ14: =COUNTIF(L27:L33,AI14) -> 0 | AK14: =AJ14/(AL4-AJ7) ->  | AL14: =IF(AK14=0,0,(AK14*((LOG(AK14))/LOG(2)))) ->  | AN14: =N14 -> 222 | AO14: =COUNTIF(L34:L39,AN14) -> 0 | AP14: =AO14/(AQ4-AO7) ->  | AQ14: =IF(AP14=0,0,(AP14*((LOG(AP14))/LOG(2)))) ->  | AS14: =N14 -> 222 | AT14: =COUNTIF(L40:L46,AS14) -> 0 | AU14: =AT14/(AV4-AT7) ->  | AV14: =IF(AU14=0,0,(AU14*((LOG(AU14))/LOG(2)))) -> 
A15: 11 | B15: 1257 | C15: 11 | D15: 1263 | E15: 11 | F15: 1270 | K15: 0 | L15: 111 | P15: =SUM(P7:P14) -> 1 | Q15: =-SUM(Q7:Q14) -> 0 | V15: =SUM(V7:V14) ->  | W15: =-SUM(W7:W14) ->  | AA15: =SUM(AA7:AA14) ->  | AB15: =-SUM(AB7:AB14) ->  | AF15: =SUM(AF7:AF14) ->  | AG15: =-SUM(AG7:AG14) ->  | AK15: =SUM(AK7:AK14) ->  | AL15: =-SUM(AL7:AL14) ->  | AP15: =SUM(AP7:AP14) ->  | AQ15: =-SUM(AQ7:AQ14) ->  | AU15: =SUM(AU7:AU14) ->  | AV15: =-SUM(AV7:AV14) -> 
A16: 11 | B16: 1410 | C16: 11 | D16: 1413 | E16: 11 | F16: 1423 | K16: 0 | L16: 111 | P16: U= | Q16: =Q15/(LOG(Q4)/LOG(2)) -> 0 | V16: U1= | W16: =W15/(LOG(W4)/LOG(2)) ->  | AA16: U2= | AB16: =AB15/(LOG(AB4)/LOG(2)) ->  | AF16: U3= | AG16: =AG15/(LOG(AG4)/LOG(2)) ->  | AK16: U4= | AL16: =AL15/(LOG(AL4)/LOG(2)) ->  | AP16: U5= | AQ16: =AQ15/(LOG(AQ4)/LOG(2)) ->  | AU16: U6= | AV16: =AV15/(LOG(AV4)/LOG(2)) -> 
A17: 11 | B17: 1547 | C17: 11 | D17: 1551 | E17: 11 | F17: 1557 | K17: 0 | L17: 111
A18: 11 | B18: 1737 | C18: 11 | D18: 1741 | E18: 11 | F18: 1746 | K18: 0 | L18: 111
A19: 11 | B19: 1894 | C19: 11 | D19: 1896 | E19: 11 | F19: 1902 | K19: 0 | L19: 111 | N19: Total Target Seq
A20: 11 | B20: 2023 | C20: 11 | D20: 2025 | E20: 11 | F20: 2028 | K20: 0 | L20: 111 | N20: =COUNTIF(L7:L46,G3) -> 40 | P20: 7 | Q20: 6 | R20: 7 | S20: 7 | T20: 6 | U20: 7
A21: 11 | B21: 2160 | C21: 11 | D21: 2166 | E21: 11 | F21: 2173 | K21: 0 | L21: 111 | P21: % of reinforcement given in 6 equal intervals based on number of trials
A22: 11 | B22: 2312 | C22: 11 | D22: 2317 | E22: 11 | F22: 2329 | K22: 0 | L22: 111 | P22: %_1 | Q22: %_2 | R22: %_3 | S22: %_4 | T22: %_5 | U22: %_6
A23: 11 | B23: 2486 | C23: 11 | D23: 2489 | E23: 11 | F23: 2495 | K23: 0 | L23: 111 | O23: target sequence | P23: =$G$3 -> 111 | Q23: =$G$3 -> 111 | R23: =$G$3 -> 111 | S23: =$G$3 -> 111 | T23: =$G$3 -> 111 | U23: =$G$3 -> 111
A24: 11 | B24: 2606 | C24: 11 | D24: 2611 | E24: 11 | F24: 2614 | K24: 0 | L24: 111 | O24: total reinforcement | P24: =U7 -> 7 | Q24: =Z7 -> 6 | R24: =AE7 -> 7 | S24: =AJ7 -> 7 | T24: =AO7 -> 6 | U24: =AT7 -> 7
A25: 11 | B25: 2804 | C25: 11 | D25: 2809 | E25: 11 | F25: 2821 | K25: 0 | L25: 111 | O25: % target
A26: 11 | B26: 2985 | C26: 11 | D26: 2996 | E26: 11 | F26: 3008 | K26: 0 | L26: 111 | O26: CCRF
A27: 11 | B27: 3157 | C27: 11 | D27: 3160 | E27: 11 | F27: 3163 | K27: 0 | L27: 111 | O27: % CCRf
A28: 11 | B28: 3279 | C28: 11 | D28: 3281 | E28: 11 | F28: 3284 | K28: 0 | L28: 111 | O28: average response rate | P28: =F13/P20 -> 134.7142857 | Q28: =(F19-F13)/Q20 -> 159.8333333 | R28: =(F26-F19)/R20 -> 158 | S28: =(F33-F26)/S20 -> 152.1428571 | T28: =(F39-F33)/T20 -> 160.3333333 | U28: =(F46-F39)/U20 -> 159.1428571
A29: 11 | B29: 3420 | C29: 11 | D29: 3433 | E29: 11 | F29: 3460 | K29: 0 | L29: 111
A30: 11 | B30: 3596 | C30: 11 | D30: 3602 | E30: 11 | F30: 3612 | K30: 0 | L30: 111
A31: 11 | B31: 3735 | C31: 11 | D31: 3741 | E31: 11 | F31: 3755 | K31: 0 | L31: 111
A32: 11 | B32: 3884 | C32: 11 | D32: 3889 | E32: 11 | F32: 3904 | K32: 0 | L32: 111
A33: 11 | B33: 4063 | C33: 11 | D33: 4067 | E33: 11 | F33: 4073 | K33: 0 | L33: 111
A34: 11 | B34: 4253 | C34: 11 | D34: 4258 | E34: 11 | F34: 4265 | K34: 0 | L34: 111
A35: 11 | B35: 4399 | C35: 11 | D35: 4405 | E35: 11 | F35: 4421 | K35: 0 | L35: 111
A36: 11 | B36: 4570 | C36: 11 | D36: 4573 | E36: 11 | F36: 4580 | K36: 0 | L36: 111
A37: 11 | B37: 4693 | C37: 11 | D37: 4698 | E37: 11 | F37: 4703 | K37: 0 | L37: 111
A38: 11 | B38: 4820 | C38: 11 | D38: 4826 | E38: 11 | F38: 4835 | K38: 0 | L38: 111
A39: 11 | B39: 5023 | C39: 11 | D39: 5028 | E39: 11 | F39: 5035 | K39: 0 | L39: 111
A40: 11 | B40: 5177 | C40: 11 | D40: 5186 | E40: 11 | F40: 5200 | K40: 0 | L40: 111
A41: 11 | B41: 5361 | C41: 11 | D41: 5364 | E41: 11 | F41: 5367 | K41: 0 | L41: 111
A42: 11 | B42: 5506 | C42: 11 | D42: 5513 | E42: 11 | F42: 5522 | K42: 0 | L42: 111
A43: 11 | B43: 5643 | C43: 11 | D43: 5646 | E43: 11 | F43: 5648 | K43: 0 | L43: 111
A44: 11 | B44: 5784 | C44: 11 | D44: 5789 | E44: 11 | F44: 5798 | K44: 0 | L44: 111
A45: 11 | B45: 5993 | C45: 11 | D45: 5997 | E45: 11 | F45: 6003 | K45: 0 | L45: 111
A46: 11 | B46: 6140 | C46: 11 | D46: 6145 | E46: 11 | F46: 6149 | K46: 1 | L46: 111

Sheet !M713B1D.ust
A1: Report for:!M713B1D.ust
A2: Date: | B2: <date>
A3: Hen: | B3: <hen> | F3: Correct Sequence | G3: =Start!J2 -> 111 | P3: Total Sequences in Data | Q3: =4994-COUNTBLANK(L7:L5000) -> 40 | V3: Total Sequences in Block Data | W3: =COUNTA(L7:L13) -> 7 | AA3: Total Sequences in Block Data | AB3: =COUNTA(L14:L19) -> 6 | AF3: Total Sequences in Block Data | AG3: =COUNTA(L20:L26) -> 7 | AK3: Total Sequences in Block Data | AL3: =COUNTA(L27:L33) -> 7 | AP3: Total Sequences in Block Data | AQ3: =COUNTA(L34:L39) -> 6 | AU3: Total Sequences in Block Data | AV3: =COUNTA(L40:L46) -> 7
P4: Total Sequences in Summary | Q4: =SUM(O7:O14) -> 40 | V4: Total Sequences in Block Summary | W4: =SUM(U7:U14) -> 7 | AA4: Total Sequences in Block Summary | AB4: =SUM(Z7:Z14) -> 6 | AF4: Total Sequences in Block Summary | AG4: =SUM(AE7:AE14) -> 7 | AK4: Total Sequences in Block Summary | AL4: =SUM(AJ7:AJ14) -> 7 | AP4: Total Sequences in Block Summary | AQ4: =SUM(AO7:AO14) -> 6 | AU4: Total Sequences in Block Summary | AV4: =SUM(AT7:AT14) -> 7
T5: Block 1 | Y5: Block 2 | AD5: Block 3 | AI5: Block 4 | AN5: Block 5 | AS5: Block 6
A6: Sequence Component 1 | B6: Time 1 | C6: Sequence Component 2 | D6: Time 2 | E6: Sequence Component 3 | F6: Time 3 | G6: Sequence Component 4 | H6: Time 4 | I6: Sequence Component 5 | J6: Time 5 | K6: Correct? 0=No 1=Yes | L6: Sequence | N6: Frequency | P6: Relative Frequency | Q6: Variability | T6: Frequency | V6: Relative Frequency | W6: Variability | Y6: Frequency | AA6: Relative Frequency | AB6: Variability | AD6: Frequency | AF6: Relative Frequency | AG6: Variability | AI6: Frequency | AK6: Relative Frequency | AL6: Variability | AN6: Frequency | AP6: Relative Frequency | AQ6: Variability | AS6: Frequency | AU6: Relative Frequency | AV6: Variability
A7: 11 | B7: 2 | C7: 11 | D7: 7 | E7: 11 | F7: 14 | K7: 0 | L7: 111 | N7: 111 | O7: =COUNTIF($L$7:$L$500,N7) -> 40 | P7: =O7/$Q$4 -> 1 | Q7: =IF(P7=0,0,(P7*((LOG(P7))/LOG(2)))) -> 0 | T7: =N7 -> 111 | U7: =COUNTIF(L7:L13,T7) -> 7 | Y7: =N7 -> 111 | Z7: =COUNTIF(L14:L19,Y7) -> 6 | AD7: =N7 -> 111 | AE7: =COUNTIF(L20:L26,AD7) -> 7 | AI7: =N7 -> 111 | AJ7: =COUNTIF(L27:L33,AI7) -> 7 | AN7: =N7 -> 111 | AO7: =COUNTIF(L34:L39,AN7) -> 6 | AS7: =N7 -> 111 | AT7: =COUNTIF(L40:L46,AS7) -> 7
A8: 11 | B8: 165 | C8: 11 | D8: 170 | E8: 11 | F8: 177 | K8: 0 | L8: 111 | N8: 112 | O8: =COUNTIF($L$7:$L$500,N8) -> 0 | P8: =O8/$Q$4 -> 0 | Q8: =IF(P8=0,0,(P8*((LOG(P8))/LOG(2)))) -> 0 | T8: =N8 -> 112 | U8: =COUNTIF(L7:L13,T8) -> 0 | V8: =U8/(W4-U7) ->  | W8: =IF(V8=0,0,(V8*((LOG(V8))/LOG(2)))) ->  | Y8: =N8 -> 112 | Z8: =COUNTIF(L14:L19,Y8) -> 0 | AA8: =Z8/(AB4-Z7) ->  | AB8: =IF(AA8=0,0,(AA8*((LOG(AA8))/LOG(2)))) ->  | AD8: =N8 -> 112 | AE8: =COUNTIF(L20:L26,AD8) -> 0 | AF8: =AE8/(AG4-AE7) ->  | AG8: =IF(AF8=0,0,(AF8*((LOG(AF8))/LOG(2)))) ->  | AI8: =N8 -> 112 | AJ8: =COUNTIF(L27:L33,AI8) -> 0 | AK8: =AJ8/(AL4-AJ7) ->  | AL8: =IF(AK8=0,0,(AK8*((LOG(AK8))/LOG(2)))) ->  | AN8: =N8 -> 112 | AO8: =COUNTIF(L34:L39,AN8) -> 0 | AP8: =AO8/(AQ4-AO7) ->  | AQ8: =IF(AP8=0,0,(AP8*((LOG(AP8))/LOG(2)))) ->  | AS8: =N8 -> 112 | AT8: =COUNTIF(L40:L46,AS8) -> 0 | AU8: =AT8/(AV4-AT7) ->  | AV8: =IF(AU8=0,0,(AU8*((LOG(AU8))/LOG(2)))) -> 
A9: 11 | B9: 290 | C9: 11 | D9: 298 | E9: 11 | F9: 315 | K9: 0 | L9: 111 | N9: 121 | O9: =COUNTIF($L$7:$L$500,N9) -> 0 | P9: =O9/$Q$4 -> 0 | Q9: =IF(P9=0,0,(P9*((LOG(P9))/LOG(2)))) -> 0 | T9: =N9 -> 121 | U9: =COUNTIF(L7:L13,T9) -> 0 | V9: =U9/(W4-U7) ->  | W9: =IF(V9=0,0,(V9*((LOG(V9))/LOG(2)))) ->  | Y9: =N9 -> 121 | Z9: =COUNTIF(L14:L19,Y9) -> 0 | AA9: =Z9/(AB4-Z7) ->  | AB9: =IF(AA9=0,0,(AA9*((LOG(AA9))/LOG(2)))) ->  | AD9: =N9 -> 121 | AE9: =COUNTIF(L20:L26,AD9) -> 0 | AF9: =AE9/(AG4-AE7) ->  | AG9: =IF(AF9=0,0,(AF9*((LOG(AF9))/LOG(2)))) ->  | AI9: =N9 -> 121 | AJ9: =COUNTIF(L27:L33,AI9) -> 0 | AK9: =AJ9/(AL4-AJ7) ->  | AL9: =IF(AK9=0,0,(AK9*((LOG(AK9))/LOG(2)))) ->  | AN9: =N9 -> 121 | AO9: =COUNTIF(L34:L39,AN9) -> 0 | AP9: =AO9/(AQ4-AO7) ->  | AQ9: =IF(AP9=0,0,(AP9*((LOG(AP9))/LOG(2)))) ->  | AS9: =N9 -> 121 | AT9: =COUNTIF(L40:L46,AS9) -> 0 | AU9: =AT9/(AV4-AT7) ->  | AV9: =IF(AU9=0,0,(AU9*((LOG(AU9))/LOG(2)))) -> 
A10: 11 | B10: 418 | C10: 11 | D10: 425 | E10: 11 | F10: 435 | K10: 0 | L10: 111 | N10: 122 | O10: =COUNTIF($L$7:$L$500,N10) -> 0 | P10: =O10/$Q$4 -> 0 | Q10: =IF(P10=0,0,(P10*((LOG(P10))/LOG(2)))) -> 0 | T10: =N10 -> 122 | U10: =COUNTIF(L7:L13,T10) -> 0 | V10: =U10/(W4-U7) ->  | W10: =IF(V10=0,0,(V10*((LOG(V10))/LOG(2)))) ->  | Y10: =N10 -> 122 | Z10: =COUNTIF(L14:L19,Y10) -> 0 | AA10: =Z10/(AB4-Z7) ->  | AB10: =IF(AA10=0,0,(AA10*((LOG(AA10))/LOG(2)))) ->  | AD10: =N10 -> 122 | AE10: =COUNTIF(L20:L26,AD10) -> 0 | AF10: =AE10/(AG4-AE7) ->  | AG10: =IF(AF10=0,0,(AF10*((LOG(AF10))/LOG(2)))) ->  | AI10: =N10 -> 122 | AJ10: =COUNTIF(L27:L33,AI10) -> 0 | AK10: =AJ10/(AL4-AJ7) ->  | AL10: =IF(AK10=0,0,(AK10*((LOG(AK10))/LOG(2)))) ->  | AN10: =N10 -> 122 | AO10: =COUNTIF(L34:L39,AN10) -> 0 | AP10: =AO10/(AQ4-AO7) ->  | AQ10: =IF(AP10=0,0,(AP10*((LOG(AP10))/LOG(2)))) ->  | AS10: =N10 -> 122 | AT10: =COUNTIF(L40:L46,AS10) -> 0 | AU10: =AT10/(AV4-AT7) ->  | AV10: =IF(AU10=0,0,(AU10*((LOG(AU10))/LOG(2)))) -> 
A11: 11 | B11: 540 | C11: 11 | D11: 548 | E11: 11 | F11: 557 | K11: 0 | L11: 111 | N11: 211 | O11: =COUNTIF($L$7:$L$500,N11) -> 0 | P11: =O11/$Q$4 -> 0 | Q11: =IF(P11=0,0,(P11*((LOG(P11))/LOG(2)))) -> 0 | T11: =N11 -> 211 | U11: =COUNTIF(L7:L13,T11) -> 0 | V11: =U11/(W4-U7) ->  | W11: =IF(V11=0,0,(V11*((LOG(V11))/LOG(2)))) ->  | Y11: =N11 -> 211 | Z11: =COUNTIF(L14:L19,Y11) -> 0 | AA11: =Z11/(AB4-Z7) ->  | AB11: =IF(AA11=0,0,(AA11*((LOG(AA11))/LOG(2)))) ->  | AD11: =N11 -> 211 | AE11: =COUNTIF(L20:L26,AD11) -> 0 | AF11: =AE11/(AG4-AE7) ->  | AG11: =IF(AF11=0,0,(AF11*((LOG(AF11))/LOG(2)))) ->  | AI11: =N11 -> 211 | AJ11: =COUNTIF(L27:L33,AI11) -> 0 | AK11: =AJ11/(AL4-AJ7) ->  | AL11: =IF(AK11=0,0,(AK11*((LOG(AK11))/LOG(2)))) ->  | AN11: =N11 -> 211 | AO11: =COUNTIF(L34:L39,AN11) -> 0 | AP11: =AO11/(AQ4-AO7) ->  | AQ11: =IF(AP11=0,0,(AP11*((LOG(AP11))/LOG(2)))) ->  | AS11: =N11 -> 211 | AT11: =COUNTIF(L40:L46,AS11) -> 0 | AU11: =AT11/(AV4-AT7) ->  | AV11: =IF(AU11=0,0,(AU11*((LOG(AU11))/LOG(2)))) -> 
A12: 11 | B12: 661 | C12: 11 | D12: 667 | E12: 11 | F12: 677 | K12: 0 | L12: 111 | N12: 212 | O12: =COUNTIF($L$7:$L$500,N12) -> 0 | P12: =O12/$Q$4 -> 0 | Q12: =IF(P12=0,0,(P12*((LOG(P12))/LOG(2)))) -> 0 | T12: =N12 -> 212 | U12: =COUNTIF(L7:L13,T12) -> 0 | V12: =U12/(W4-U7) ->  | W12: =IF(V12=0,0,(V12*((LOG(V12))/LOG(2)))) ->  | Y12: =N12 -> 212 | Z12: =COUNTIF(L14:L19,Y12) -> 0 | AA12: =Z12/(AB4-Z7) ->  | AB12: =IF(AA12=0,0,(AA12*((LOG(AA12))/LOG(2)))) ->  | AD12: =N12 -> 212 | AE12: =COUNTIF(L20:L26,AD12) -> 0 | AF12: =AE12/(AG4-AE7) ->  | AG12: =IF(AF12=0,0,(AF12*((LOG(AF12))/LOG(2)))) ->  | AI12: =N12 -> 212 | AJ12: =COUNTIF(L27:L33,AI12) -> 0 | AK12: =AJ12/(AL4-AJ7) ->  | AL12: =IF(AK12=0,0,(AK12*((LOG(AK12))/LOG(2)))) ->  | AN12: =N12 -> 212 | AO12: =COUNTIF(L34:L39,AN12) -> 0 | AP12: =AO12/(AQ4-AO7) ->  | AQ12: =IF(AP12=0,0,(AP12*((LOG(AP12))/LOG(2)))) ->  | AS12: =N12 -> 212 | AT12: =COUNTIF(L40:L46,AS12) -> 0 | AU12: =AT12/(AV4-AT7) ->  | AV12: =IF(AU12=0,0,(AU12*((LOG(AU12))/LOG(2)))) -> 
A13: 11 | B13: 793 | C13: 11 | D13: 802 | E13: 11 | F13: 808 | K13: 0 | L13: 111 | N13: 221 | O13: =COUNTIF($L$7:$L$500,N13) -> 0 | P13: =O13/$Q$4 -> 0 | Q13: =IF(P13=0,0,(P13*((LOG(P13))/LOG(2)))) -> 0 | T13: =N13 -> 221 | U13: =COUNTIF(L7:L13,T13) -> 0 | V13: =U13/(W4-U7) ->  | W13: =IF(V13=0,0,(V13*((LOG(V13))/LOG(2)))) ->  | Y13: =N13 -> 221 | Z13: =COUNTIF(L14:L19,Y13) -> 0 | AA13: =Z13/(AB4-Z7) ->  | AB13: =IF(AA13=0,0,(AA13*((LOG(AA13))/LOG(2)))) ->  | AD13: =N13 -> 221 | AE13: =COUNTIF(L20:L26,AD13) -> 0 | AF13: =AE13/(AG4-AE7) ->  | AG13: =IF(AF13=0,0,(AF13*((LOG(AF13))/LOG(2)))) ->  | AI13: =N13 -> 221 | AJ13: =COUNTIF(L27:L33,AI13) -> 0 | AK13: =AJ13/(AL4-AJ7) ->  | AL13: =IF(AK13=0,0,(AK13*((LOG(AK13))/LOG(2)))) ->  | AN13: =N13 -> 221 | AO13: =COUNTIF(L34:L39,AN13) -> 0 | AP13: =AO13/(AQ4-AO7) ->  | AQ13: =IF(AP13=0,0,(AP13*((LOG(AP13))/LOG(2)))) ->  | AS13: =N13 -> 221 | AT13: =COUNTIF(L40:L46,AS13) -> 0 | AU13: =AT13/(AV4-AT7) ->  | AV13: =IF(AU13=0,0,(AU13*((LOG(AU13))/LOG(2)))) -> 
A14: 11 | B14: 935 | C14: 11 | D14: 946 | E14: 11 | F14: 952 | K14: 0 | L14: 111 | N14: 222 | O14: =COUNTIF($L$7:$L$500,N14) -> 0 | P14: =O14/$Q$4 -> 0 | Q14: =IF(P14=0,0,(P14*((LOG(P14))/LOG(2)))) -> 0 | T14: =N14 -> 222 | U14: =COUNTIF(L7:L13,T14) -> 0 | V14: =U14/(W4-U7) ->  | W14: =IF(V14=0,0,(V14*((LOG(V14))/LOG(2)))) ->  | Y14: =N14 -> 222 | Z14: =COUNTIF(L14:L19,Y14) -> 0 | AA14: =Z14/(AB4-Z7) ->  | AB14: =IF(AA14=0,0,(AA14*((LOG(AA14))/LOG(2)))) ->  | AD14: =N14 -> 222 | AE14: =COUNTIF(L20:L26,AD14) -> 0 | AF14: =AE14/(AG4-AE7) ->  | AG14: =IF(AF14=0,0,(AF14*((LOG(AF14))/LOG(2)))) ->  | AI14: =N14 -> 222 | AJ14: =COUNTIF(L27:L33,AI14) -> 0 | AK14: =AJ14/(AL4-AJ7) ->  | AL14: =IF(AK14=0,0,(AK14*((LOG(AK14))/LOG(2)))) ->  | AN14: =N14 -> 222 | AO14: =COUNTIF(L34:L39,AN14) -> 0 | AP14: =AO14/(AQ4-AO7) ->  | AQ14: =IF(AP14=0,0,(AP14*((LOG(AP14))/LOG(2)))) ->  | AS14: =N14 -> 222 | AT14: =COUNTIF(L40:L46,AS14) -> 0 | AU14: =AT14/(AV4-AT7) ->  | AV14: =IF(AU14=0,0,(AU14*((LOG(AU14))/LOG(2)))) -> 
A15: 11 | B15: 1127 | C15: 11 | D15: 1135 | E15: 11 | F15: 1145 | K15: 0 | L15: 111 | P15: =SUM(P7:P14) -> 1 | Q15: =-SUM(Q7:Q14) -> 0 | V15: =SUM(V7:V14) ->  | W15: =-SUM(W7:W14) ->  | AA15: =SUM(AA7:AA14) ->  | AB15: =-SUM(AB7:AB14) ->  | AF15: =SUM(AF7:AF14) ->  | AG15: =-SUM(AG7:AG14) ->  | AK15: =SUM(AK7:AK14) ->  | AL15: =-SUM(AL7:AL14) ->  | AP15: =SUM(AP7:AP14) ->  | AQ15: =-SUM(AQ7:AQ14) ->  | AU15: =SUM(AU7:AU14) ->  | AV15: =-SUM(AV7:AV14) -> 
A16: 11 | B16: 1382 | C16: 11 | D16: 1386 | E16: 11 | F16: 1391 | K16: 0 | L16: 111 | P16: U= | Q16: =Q15/(LOG(Q4)/LOG(2)) -> 0 | V16: U1= | W16: =W15/(LOG(W4)/LOG(2)) ->  | AA16: U2= | AB16: =AB15/(LOG(AB4)/LOG(2)) ->  | AF16: U3= | AG16: =AG15/(LOG(AG4)/LOG(2)) ->  | AK16: U4= | AL16: =AL15/(LOG(AL4)/LOG(2)) ->  | AP16: U5= | AQ16: =AQ15/(LOG(AQ4)/LOG(2)) ->  | AU16: U6= | AV16: =AV15/(LOG(AV4)/LOG(2)) -> 
A17: 11 | B17: 1494 | C17: 11 | D17: 1503 | E17: 11 | F17: 1517 | K17: 0 | L17: 111
A18: 11 | B18: 1622 | C18: 11 | D18: 1627 | E18: 11 | F18: 1638 | K18: 0 | L18: 111
A19: 11 | B19: 1773 | C19: 11 | D19: 1780 | E19: 11 | F19: 1791 | K19: 0 | L19: 111 | N19: Total Target Seq
A20: 11 | B20: 1920 | C20: 11 | D20: 1927 | E20: 11 | F20: 1934 | K20: 0 | L20: 111 | N20: =COUNTIF(L7:L46,G3) -> 40 | P20: 7 | Q20: 6 | R20: 7 | S20: 7 | T20: 6 | U20: 7
A21: 11 | B21: 2037 | C21: 11 | D21: 2044 | E21: 11 | F21: 2050 | K21: 0 | L21: 111 | P21: % of reinforcement given in 6 equal intervals based on number of trials
A22: 11 | B22: 2182 | C22: 11 | D22: 2189 | E22: 11 | F22: 2198 | K22: 0 | L22: 111 | P22: %_1 | Q22: %_2 | R22: %_3 | S22: %_4 | T22: %_5 | U22: %_6
A23: 11 | B23: 2299 | C23: 11 | D23: 2301 | E23: 11 | F23: 2307 | K23: 0 | L23: 111 | O23: target sequence | P23: =$G$3 -> 111 | Q23: =$G$3 -> 111 | R23: =$G$3 -> 111 | S23: =$G$3 -> 111 | T23: =$G$3 -> 111 | U23: =$G$3 -> 111
A24: 11 | B24: 2440 | C24: 11 | D24: 2446 | E24: 11 | F24: 2452 | K24: 0 | L24: 111 | O24: total reinforcement | P24: =U7 -> 7 | Q24: =Z7 -> 6 | R24: =AE7 -> 7 | S24: =AJ7 -> 7 | T24: =AO7 -> 6 | U24: =AT7 -> 7
A25: 11 | B25: 2612 | C25: 11 | D25: 2618 | E25: 11 | F25: 2635 | K25: 0 | L25: 111 | O25: % target
A26: 11 | B26: 2769 | C26: 11 | D26: 2773 | E26: 11 | F26: 2779 | K26: 0 | L26: 111 | O26: CCRF
A27: 11 | B27: 2892 | C27: 11 | D27: 2898 | E27: 11 | F27: 2911 | K27: 0 | L27: 111 | O27: % CCRf
A28: 11 | B28: 3105 | C28: 11 | D28: 3110 | E28: 11 | F28: 3116 | K28: 0 | L28: 111 | O28: average response rate | P28: =F13/P20 -> 115.4285714 | Q28: =(F19-F13)/Q20 -> 163.8333333 | R28: =(F26-F19)/R20 -> 141.1428571 | S28: =(F33-F26)/S20 -> 162.1428571 | T28: =(F39-F33)/T20 -> 168.8333333 | U28: =(F46-F39)/U20 -> 174.8571429
A29: 11 | B29: 3252 | C29: 11 | D29: 3257 | E29: 11 | F29: 3270 | K29: 0 | L29: 111
A30: 11 | B30: 3416 | C30: 11 | D30: 3422 | E30: 11 | F30: 3429 | K30: 0 | L30: 111
A31: 11 | B31: 3597 | C31: 11 | D31: 3607 | E31: 11 | F31: 3616 | K31: 0 | L31: 111
A32: 11 | B32: 3770 | C32: 11 | D32: 3772 | E32: 11 | F32: 3779 | K32: 0 | L32: 111
A33: 11 | B33: 3897 | C33: 11 | D33: 3903 | E33: 11 | F33: 3914 | K33: 0 | L33: 111
A34: 11 | B34: 4036 | C34: 11 | D34: 4041 | E34: 11 | F34: 4047 | K34: 0 | L34: 111
A35: 11 | B35: 4187 | C35: 11 | D35: 4189 | E35: 11 | F35: 4193 | K35: 0 | L35: 111
A36: 11 | B36: 4406 | C36: 11 | D36: 4413 | E36: 11 | F36: 4422 | K36: 0 | L36: 111
A37: 11 | B37: 4574 | C37: 11 | D37: 4579 | E37: 11 | F37: 4588 | K37: 0 | L37: 111
A38: 11 | B38: 4772 | C38: 11 | D38: 4775 | E38: 11 | F38: 4781 | K38: 0 | L38: 111
A39: 11 | B39: 4916 | C39: 11 | D39: 4921 | E39: 11 | F39: 4927 | K39: 0 | L39: 111
A40: 11 | B40: 5083 | C40: 11 | D40: 5088 | E40: 11 | F40: 5102 | K40: 0 | L40: 111
A41: 11 | B41: 5251 | C41: 11 | D41: 5257 | E41: 11 | F41: 5264 | K41: 0 | L41: 111
A42: 11 | B42: 5408 | C42: 11 | D42: 5410 | E42: 11 | F42: 5415 | K42: 0 | L42: 111
A43: 11 | B43: 5572 | C43: 11 | D43: 5577 | E43: 11 | F43: 5584 | K43: 0 | L43: 111
A44: 11 | B44: 5728 | C44: 11 | D44: 5733 | E44: 11 | F44: 5739 | K44: 0 | L44: 111
A45: 11 | B45: 5910 | C45: 11 | D45: 5915 | E45: 11 | F45: 5921 | K45: 0 | L45: 111
A46: 11 | B46: 6135 | C46: 11 | D46: 6140 | E46: 11 | F46: 6151 | K46: 1 | L46: 111

Sheet !M71592D.ust
A1: Report for:!M71592D.ust
A2: Date: | B2: <date>
A3: Hen: | B3: <hen> | F3: Correct Sequence | G3: =Start!J2 -> 111 | P3: Total Sequences in Data | Q3: =4994-COUNTBLANK(L7:L5000) -> 42 | V3: Total Sequences in Block Data | W3: =COUNTA(L7:L13) -> 7 | AA3: Total Sequences in Block Data | AB3: =COUNTA(L14:L20) -> 7 | AF3: Total Sequences in Block Data | AG3: =COUNTA(L21:L27) -> 7 | AK3: Total Sequences in Block Data | AL3: =COUNTA(L28:L34) -> 7 | AP3: Total Sequences in Block Data | AQ3: =COUNTA(L35:L41) -> 7 | AU3: Total Sequences in Block Data | AV3: =COUNTA(L42:L48) -> 7
P4: Total Sequences in Summary | Q4: =SUM(O7:O14) -> 42 | V4: Total Sequences in Block Summary | W4: =SUM(U7:U14) -> 7 | AA4: Total Sequences in Block Summary | AB4: =SUM(Z7:Z14) -> 7 | AF4: Total Sequences in Block Summary | AG4: =SUM(AE7:AE14) -> 7 | AK4: Total Sequences in Block Summary | AL4: =SUM(AJ7:AJ14) -> 7 | AP4: Total Sequences in Block Summary | AQ4: =SUM(AO7:AO14) -> 7 | AU4: Total Sequences in Block Summary | AV4: =SUM(AT7:AT14) -> 7
T5: Block 1 | Y5: Block 2 | AD5: Block 3 | AI5: Block 4 | AN5: Block 5 | AS5: Block 6
A6: Sequence Component 1 | B6: Time 1 | C6: Sequence Component 2 | D6: Time 2 | E6: Sequence Component 3 | F6: Time 3 | G6: Sequence Component 4 | H6: Time 4 | I6: Sequence Component 5 | J6: Time 5 | K6: Correct? 0=No 1=Yes | L6: Sequence | N6: Frequency | P6: Relative Frequency | Q6: Variability | T6: Frequency | V6: Relative Frequency | W6: Variability | Y6: Frequency | AA6: Relative Frequency | AB6: Variability | AD6: Frequency | AF6: Relative Frequency | AG6: Variability | AI6: Frequency | AK6: Relative Frequency | AL6: Variability | AN6: Frequency | AP6: Relative Frequency | AQ6: Variability | AS6: Frequency | AU6: Relative Frequency | AV6: Variability
A7: 22 | B7: 18 | C7: 13 | D7: 29 | E7: 13 | F7: 41 | K7: 0 | L7: 211 | N7: 111 | O7: =COUNTIF($L$7:$L$500,N7) -> 40 | P7: =O7/$Q$4 -> 0.9523809524 | Q7: =IF(P7=0,0,(P7*((LOG(P7))/LOG(2)))) -> -0.06703745513 | T7: =N7 -> 111 | U7: =COUNTIF(L7:L13,T7) -> 6 | Y7: =N7 -> 111 | Z7: =COUNTIF(L14:L20,Y7) -> 7 | AD7: =N7 -> 111 | AE7: =COUNTIF(L21:L27,AD7) -> 7 | AI7: =N7 -> 111 | AJ7: =COUNTIF(L28:L34,AI7) -> 7 | AN7: =N7 -> 111 | AO7: =COUNTIF(L35:L41,AN7) -> 7 | AS7: =N7 -> 111 | AT7: =COUNTIF(L42:L48,AS7) -> 6
A8: 11 | B8: 142 | C8: 11 | D8: 153 | E8: 11 | F8: 160 | K8: 0 | L8: 111 | N8: 112 | O8: =COUNTIF($L$7:$L$500,N8) -> 0 | P8: =O8/$Q$4 -> 0 | Q8: =IF(P8=0,0,(P8*((LOG(P8))/LOG(2)))) -> 0 | T8: =N8 -> 112 | U8: =COUNTIF(L7:L13,T8) -> 0 | V8: =U8/(W4-U7) -> 0 | W8: =IF(V8=0,0,(V8*((LOG(V8))/LOG(2)))) -> 0 | Y8: =N8 -> 112 | Z8: =COUNTIF(L14:L20,Y8) -> 0 | AA8: =Z8/(AB4-Z7) ->  | AB8: =IF(AA8=0,0,(AA8*((LOG(AA8))/LOG(2)))) ->  | AD8: =N8 -> 112 | AE8: =COUNTIF(L21:L27,AD8) -> 0 | AF8: =AE8/(AG4-AE7) ->  | AG8: =IF(AF8=0,0,(AF8*((LOG(AF8))/LOG(2)))) ->  | AI8: =N8 -> 112 | AJ8: =COUNTIF(L28:L34,AI8) -> 0 | AK8: =AJ8/(AL4-AJ7) ->  | AL8: =IF(AK8=0,0,(AK8*((LOG(AK8))/LOG(2)))) ->  | AN8: =N8 -> 112 | AO8: =COUNTIF(L35:L41,AN8) -> 0 | AP8: =AO8/(AQ4-AO7) ->  | AQ8: =IF(AP8=0,0,(AP8*((LOG(AP8))/LOG(2)))) ->  | AS8: =N8 -> 112 | AT8: =COUNTIF(L42:L48,AS8) -> 0 | AU8: =AT8/(AV4-AT7) -> 0 | AV8: =IF(AU8=0,0,(AU8*((LOG(AU8))/LOG(2)))) -> 0
